Workbook

Sheet Consolidated Cap Structure
A1: Atmos Energy Corp. - Consolidated | H1: Atmos Energy Corp. - Consolidated
A2: Capital Structure and Proforma Cost of Capital | H2: Capital Structure with Earned ROR Computed
A4: =CONCATENATE("13 Month Average at ",A17) -> 13 Month Average at March 31, 2021 | F4: Proforma | H4: =+A4 -> 13 Month Average at March 31, 2021 | K4: Actual
A5: Line | F5: Wtd Cost | J5: Actual | K5: Wtd Cost
A6: No. | B6: Description | C6: Capital | D6: Ratio | E6: Cost Rate | F6: of Capital | H6: Description | I6: Capital | J6: Cost Rate | K6: of Capital
B7: (a) | C7: (b) | D7: (c) | E7: (d) | F7: (e) | H7: (f) | I7: (g) | J7: (h) | K7: (i)
B8: Atmos Energy Corp., Consolidated:
A9: 1 | B9: Long Term Debt Capital | C9: ='LTD rate'!T43 -> 4950001152 | D9: =+C9/C$12 -> 0.4195056388 | E9: =+'LTD rate'!U44 -> 0.04137681901 | F9: =+D9*E9 -> 0.01735780889 | H9: =+B9 -> Long Term Debt Capital | I9: 4950001152 | J9: =+E9 -> 0.04137681901 | K9: =+F9 -> 0.01735780889
A10: 2 | B10: Short Term Debt | C10: =+'Consolidated Balance Detail'!I26 -> 21556707.44 | D10: =+C10/C$12 -> 0.00182690065 | E10: =+'Consolidated Balance Detail'!K26 -> 0.2517316892 | F10: =+D10*E10 -> 0.0004598887868 | H10: Short Term Debt | I10: 21556707.44 | J10: =+E10 -> 0.2517316892 | K10: =+F10 -> 0.0004598887868 | N10: (12 Mth Avg)
A11: 3 | B11: Equity Capital | C11: =+'Consolidated Balance Detail'!F26 -> 6828047900 | D11: =+C11/C$12 -> 0.5786674605 | E11: 0.105 | F11: =+D11*E11 -> 0.06076008336 | H11: Equity Capital | I11: 6828047900 | J11: =+K11/D11 ->  | K11: =+#REF!-K9-K10 -> 
A12: 4 | B12: Total Capital | C12: =SUM(C9:C11) -> 1.179960576e+10 | D12: =SUM(D9:D11) -> 1 | F12: =SUM(F9:F11) -> 0.07857778104 | H12: Total Capital | I12: 1.179960576e+10
A14: =+A1 -> Atmos Energy Corp. - Consolidated | H14: =+H1 -> Atmos Energy Corp. - Consolidated
A15: =+A2 -> Capital Structure and Proforma Cost of Capital | H15: =+H2 -> Capital Structure with Earned ROR Computed
A17: ='LTD rate'!A3 -> March 31, 2021 | F17: Proforma | H17: =+A17 -> March 31, 2021 | K17: Actual
A18: Line | F18: Wtd Cost | J18: Actual | K18: Wtd Cost
A19: No. | B19: Description | C19: Capital | D19: Ratio | E19: Cost Rate | F19: of Capital | H19: Description | I19: Capital | J19: Cost Rate | K19: of Capital
B20: (a) | C20: (b) | D20: (c) | E20: (d) | F20: (e) | H20: (f) | I20: (g) | J20: (h) | K20: (i)
B21: Atmos Energy Corp., Consolidated:
A22: 5 | B22: Long Term Debt Capital | C22: =+'Consolidated Balance Detail'!D23 -> 7316580609 | D22: =+C22/C$25 -> 0.4833412209 | E22: =+'LTD rate'!Q44 -> 0.03042106438 | F22: =+D22*E22 -> 0.0147037544 | H22: =+B22 -> Long Term Debt Capital | I22: 7316580609 | J22: =+E22 -> 0.03042106438 | K22: =+F22 -> 0.0147037544
A23: 6 | B23: Short Term Debt | C23: =+'Consolidated Balance Detail'!E23 -> 0.04 | D23: =+C23/C$25 -> 2.642443222e-12 | E23: =+E10 -> 0.2517316892 | F23: =+D23*E23 -> 6.651866958e-13 | H23: Short Term Debt | I23: 0.04 | J23: =+E23 -> 0.2517316892 | K23: =+F23 -> 6.651866958e-13
A24: 7 | B24: Equity Capital | C24: =+'Consolidated Balance Detail'!F23 -> 7820925344 | D24: =+C24/C$25 -> 0.5166587791 | E24: =+E11 -> 0.105 | F24: =+D24*E24 -> 0.0542491718 | H24: Equity Capital | I24: 7820925344 | J24: =+K24/D24 ->  | K24: =+#REF!-K22-K23 -> 
A25: 8 | B25: Total Capital | C25: =SUM(C22:C24) -> 1.513750595e+10 | D25: =SUM(D22:D24) -> 1 | F25: =SUM(F22:F24) -> 0.0689529262 | H25: Total Capital | I25: 1.513750595e+10
A28: Atmos Energy Corp. - Consolidated / Excluding $2.2BN Incremental Financing* | H28: Juris NOI (after tax) | I28: =+#REF! -> 
A29: Capital Structure and Proforma Cost of Capital
A31: March 31, 2021 | F31: Proforma
A32: Line | F32: Wtd Cost
A33: No. | B33: Description | C33: Capital | D33: Ratio | E33: Cost Rate | F33: of Capital
B34: (a) | C34: (b) | D34: (c) | E34: (d) | F34: (e)
B35: Atmos Energy Corp., Consolidated:
A36: 5 | B36: Long Term Debt Capital | C36: ='LTD rate'!P54+'LTD rate'!P46 -> 5125753448 | D36: =+C36/C$39 -> 0.3959126144 | E36: ='LTD rate'!T54 -> 0.0399902136 | F36: =+D36*E36 -> 0.01583263002
A37: 6 | B37: Short Term Debt | C37: 0.04 | D37: =+C37/C$25 -> 2.642443222e-12 | E37: =E10 -> 0.2517316892 | F37: =+D37*E37 -> 6.651866958e-13
A38: 7 | B38: Equity Capital | C38: 7820925344 | D38: =+C38/C$39 -> 0.6040873856 | E38: =E11 -> 0.105 | F38: =+D38*E38 -> 0.06342917549
A39: 8 | B39: Total Capital | C39: =SUM(C36:C38) -> 1.294667879e+10 | D39: =SUM(D36:D38) -> 1 | F39: =SUM(F36:F38) -> 0.07926180551
A41: *On March 9, 2021, we completed a public offering of $1.1 billion of 0.625% senior notes due 2023 and $1.1 billion floating rate senior notes due 2023 that bear interest at a rate of LIBOR plus 0.38%. The net proceeds from the offering, after the underwriting discount and estimated offering expenses of $2.2 billion, were used for the payment of unplanned natural gas costs incurred during Winter Storm Uri.

Sheet Consolidated Balance Detail
A1: Atmos Energy Corp - Consolidated
A3: Schedule of Debt and Equity | N3: Commitment | O3: CA-Effective 09/25/15 to mature 9/25/23
A4: ='LTD rate'!A3 -> March 31, 2021 | M4: Interest on CP or Interest on | N4: Fees on Credit | O4: Bank Fees on
I5: 12 Month Avg | J5: 12 Month Avg | M5: Draws on Credit Facilitiy | N5: Facility | O5: AEC Credit Facility
D6: Atmos Consolidated Balances | I6: Atmos Consolidated - calc of STD rate | N6: 30120,30121 | O6: 30121
A7: Line | D7: Long-Term | E7: Short-Term | I7: STD | J7: STD | K7: STD | M7: Detail of Colm (f) Consolidated Int Exp & Fees
A8: No. | B8: Date | D8: Debt** | E8: Debt | F8: Equity | I8: Avg Daily Bal | J8: Int Exp & fees | K8: avg rate | O8: Utility
B9: (a) | D9: (b) | E9: (c) | F9: (d) | I9: (e) | J9: (f) | K9: (g) | M9: Int Exp | N9: Commit fees | O9: Bank Admin
A11: 1 | B11: 2020-03-01 | D11: 4328996996 | E11: 199923347.5 | F11: 6304414573
A12: 2 | B12: 2020-04-01 | D12: 4529030709 | E12: 0.04 | F12: 6333528945 | I12: 61723500 | J12: 400702.0883 | M12: 96787.655 | N12: 172831.4333 | O12: 131083
A13: 3 | B13: 2020-05-01 | D13: 4529195706 | E13: 0.03 | F13: 6318537073 | I13: 0 | J13: 469297.2211 | M13: 0 | N13: 178592.4811 | O13: 290704.74
A14: 4 | B14: 2020-06-01 | D14: 4531497968 | E14: 0.03 | F14: 6461470109 | I14: 3333333.333 | J14: 436494.0933 | M14: 312.5 | N14: 172831.4333 | O14: 263350.16
A15: 5 | B15: 2020-07-01 | D15: 4531685721 | E15: 0.03 | F15: 6469473585 | I15: 0 | J15: 441337.7106 | M15: 0 | N15: 177987.5506 | O15: 263350.16
A16: 6 | B16: 2020-08-01 | D16: 4531858276 | E16: 24998125.03 | F16: 6496178973 | I16: 5645161.29 | J16: 442212.7106 | M16: 875 | N16: 177987.5506 | O16: 263350.16
A17: 7 | B17: 2020-09-01 | D17: 4531944234 | E17: 0.03 | F17: 6791203456 | I17: 132333333.3 | J17: 452147.5567 | M17: 16551.38 | N17: 172246.0167 | O17: 263350.16
A18: 8 | B18: 2020-10-01 | D18: 5124535942 | E18: 0.03 | F18: 6875466222 | I18: 0 | J18: 441337.7106 | M18: 0 | N18: 177987.5506 | O18: 263350.16
A19: 9 | B19: 2020-11-01 | D19: 5124818909 | E19: 0.03 | F19: 6868006033 | I19: 0 | J19: 435596.1767 | M19: 0 | N19: 172246.0167 | O19: 263350.16
A20: 10 | B20: 2020-12-01 | D20: 5125033150 | E20: 0.03 | F20: 7213155664 | I20: 0 | J20: 441337.7106 | M20: 0 | N20: 177987.5506 | O20: 263350.16
A21: 11 | B21: 2021-01-01 | D21: 5125258556 | E21: 0.03 | F21: 7373460669 | I21: 0 | J21: 441352.2806 | M21: 0 | N21: 178002.1206 | O21: 263350.16
A22: 12 | B22: 2021-02-28 | D22: 5125483885 | E22: 59994400.04 | F22: 7438802054 | I22: 15000000 | J22: 434326.2689 | M22: 1866.666666 | N22: 169109.4422 | O22: 263350.16
A23: 13 | B23: 2021-03-31 | D23: 7316580609 | E23: 0.04 | F23: 7820925344 | I23: 40645161.29 | J23: 590364.8492 | M23: 5599.9986 | N23: 229002.1206 | O23: 355762.73 | Q23: 0
A24: 14 | J24: =SUM(J12:J23) -> 5426506.377 | M24: =SUM(M12:M23) -> 121993.2003 | N24: =SUM(N12:N23) -> 2156811.267 | O24: =SUM(O12:O23) -> 3147701.91
A25: 15
A26: 16 | B26: Average | D26: =AVERAGE(D11:D23) -> 4958147743 | E26: =AVERAGE(E11:E23) -> 21916605.61 | F26: =AVERAGE(F11:F23) -> 6828047900 | I26: =AVERAGE(I12:I23) -> 21556707.44 | K26: =+J24/I26 -> 0.2517316892 | M26: per STD rpts: | N26: =+M24+N24+O24 -> 5426506.377
I28: Short-term Interest Only | K28: =M24/I26 -> 0.005659175949
B32: Check | D32: 0 | E32: 0 | F32: 0 | I32: 0 | J32: 0 | M32: 0 | N32: 0 | O32: 0

Sheet LTD rate
A1: Atmos Energy Corporation
A2: Consolidated Long-Term Debt Outstanding w/ calculation of Effective Interest Rates
A3: March 31, 2021 | Z3: Unamort Debt | AC3: (Offset to | AF3: (Offset to 4280, 4310) | AG3: (Offset to 4281) | AH3: (Offset to 4280, 4290) | AI3: (Offset to 4270 or 2530)
Y4: Annualized | Z4: Exp 2241,1650,1860 | AB4: (Offset to 2150) | AC4: 2241,1650,1860) | AD4: (Offset to 2260, 2250) | AE4: (Offset to 1890) | AF4: Unamort Debt Exp | AG4: Unamort Loss | AH4: Debt Dsct/Prem | AI4: App Retained Earnings
X5: Annualized | Y5: 4280, 4281, 4290 & 4310 | Z5: Penalty 1890 | AB5: 4270.30937 | AC5: 4280, 4310 | AD5: 4280, 4290 | AE5: 4281 | AF5: 2241, 1650 | AG5: 1890 | AH5: 2260, 2250 | AI5: 2150
A6: Atmos Energy Corp., Consolidated: | D6: Outstanding | E6: Outstanding | F6: Outstanding | G6: Outstanding | H6: Outstanding | I6: Outstanding | J6: Outstanding | K6: Outstanding | L6: Outstanding | M6: Outstanding | N6: Outstanding | O6: Outstanding | P6: Outstanding | Q6: End | R6: Annual Int at | T6: Outstanding | U6: Avg | V6: Annual Int | X6: 4270 Amort | Y6: Amortization | Z6: Dsct 2260 | AB6: Exp on T-lock/Swaps | AC6: Mthly Debt Exp | AD6: Mthly Dsct/Prem. Exp | AE6: Mthly Exp | AF6: Balance | AG6: Balance | AH6: Balance | AI6: T-Lock/Swap Balance
A7: Line | B7: Debt Series | C7: Issued | D7: 2020-03-31 | E7: 2020-04-30 | F7: 2020-05-31 | G7: 2020-06-30 | H7: 2020-07-31 | I7: 2020-08-30 | J7: 2020-09-30 | K7: 2020-10-31 | L7: 2020-11-30 | M7: 2020-12-31 | N7: 2021-01-31 | O7: 2021-02-28 | P7: 2021-03-31 | Q7: Int Rate | R7: =A3 -> March 31, 2021 | T7: 13 mth Average | U7: Int Rate | V7: =+T7 -> 13 mth Average | X7: for T-lock/Swaps | Y7: Debt Exp, Dsct & Prem | Z7: =A3 -> March 31, 2021 | AB7: =A3 -> March 31, 2021 | AC7: =AB7 -> March 31, 2021 | AD7: March 31, 2021 | AE7: March 31, 2021 | AF7: March 31, 2021 | AG7: March 31, 2021 | AH7: March 31, 2021 | AI7: =AH7 -> March 31, 2021 | AK7: Effective Cost of Debt
B8: (a) | C8: (b) | D8: (d) | E8: (e) | F8: (f) | G8: (g) | H8: (h) | I8: (i) | J8: (j) | K8: (k) | L8: (l) | M8: (m) | N8: (n) | O8: (o) | P8: (o) | Q8: (p) | R8: (q) | S8: (r) | T8: (s) | U8: (t) | V8: (u) | W8: (v) | X8: (w) | Y8: (x) | Z8: (y) | AA8: (z) | AB8: (aa) | AC8: (ab) | AD8: (ac) | AE8: (ad) | AF8: (ae) | AG8: (af) | AH8: (ag) | AI8: (ah)
A10: 1 | B10: 9.40% First Mortgage Bond J due May 2021/RET 2005 | C10: 1991-04-01 | D10: 0 | E10: 0 | F10: 0 | G10: 0 | H10: 0 | I10: 0 | J10: 0 | K10: 0 | L10: 0 | M10: 0 | N10: 0 | O10: 0 | P10: 0 | Q10: 0.094 | R10: =+P10*Q10 -> 0 | T10: =AVERAGE(D10:P10) -> 0 | U10: 0.094 | V10: =+T10*U10 -> 0 | X10: =+AB10*12 -> 0 | Y10: =SUM(AC10:AE10)*12 -> 560397.48 | Z10: =SUM(AF10:AH10) -> 46699.9 | AE10: =-'1890 Unamort Loss on Reacq Debt'!N16 -> 46699.79 | AF10: 0 | AG10: ='1890 Unamort Loss on Reacq Debt'!N36 -> 46699.9
A11: 2 | B11: 6.75% Debentures Unsecured due July 2028 | C11: 1998-07-27 | D11: 150000000 | E11: 150000000 | F11: 150000000 | G11: 150000000 | H11: 150000000 | I11: 150000000 | J11: 150000000 | K11: 150000000 | L11: 150000000 | M11: 150000000 | N11: 150000000 | O11: 150000000 | P11: 150000000 | Q11: 0.0675 | R11: =+P11*Q11 -> 10125000 | T11: =AVERAGE(D11:P11) -> 150000000 | U11: 0.0675 | V11: =+T11*U11 -> 10125000 | X11: =+AB11*12 -> 0 | Y11: =SUM(AC11:AE11)*12 -> 99938.16 | Z11: =SUM(AF11:AH11) -> 729193.23 | AC11: =-'Acct 2241 Unamort Debt Exp'!X39 -> 4640.68 | AD11: =-'2260 LTDebt Discount'!BJ11 -> 3687.5 | AF11: ='Acct 2241 Unamort Debt Exp'!X14 -> 408380.73 | AH11: ='2260 LTDebt Discount'!R11 -> 320812.5 | AK11: =IF(N11="","",(+R11+X11+Y11)/(+N11-AF11-AH11)) -> 0.06849924899
A12: 3 | B12: 5.125% Senior Note due Jan 2013 | C12: 2003-01-13 | D12: 0 | E12: 0 | F12: 0 | G12: 0 | H12: 0 | I12: 0 | J12: 0 | K12: 0 | L12: 0 | M12: 0 | N12: 0 | O12: 0 | P12: 0 | Q12: 0.05125 | R12: 0 | T12: 0 | U12: 0.05125 | V12: =+T12*U12 -> 0 | X12: =+AB12*12 -> 0 | Y12: 0 | Z12: 0 | AD12: =-'2260 LTDebt Discount'!BJ12 -> 0 | AE12: 0 | AF12: 0 | AG12: 0 | AH12: ='2260 LTDebt Discount'!R12 -> 0 | AK12: =IF(N12=0,"",(+R12+X12+Y12)/(+N12-AF12-AH12)) -> 
A13: 4 | B13: 10.43% First Mortgage Bond P due 2017 (eff 2012) | C13: 1987-11-01 | D13: 0 | E13: 0 | F13: 0 | G13: 0 | H13: 0 | I13: 0 | J13: 0 | K13: 0 | L13: 0 | M13: 0 | N13: 0 | O13: 0 | P13: 0 | Q13: 0.1043 | R13: 0 | T13: 0 | U13: 0.1043 | V13: 0 | X13: 0 | Y13: 0 | Z13: =SUM(AF13:AH13) -> 2.182785203e-13 | AE13: =-'1890 Unamort Loss on Reacq Debt'!N15 -> 0 | AF13: 0 | AG13: ='1890 Unamort Loss on Reacq Debt'!N35 -> 2.182785203e-13
A14: 5 | B14: 9.75% First Mortgage Bond Q due Apr 2020/RET 2005 | C14: 1990-04-01 | D14: 0 | E14: 0 | F14: 0 | G14: 0 | H14: 0 | I14: 0 | J14: 0 | K14: 0 | L14: 0 | M14: 0 | N14: 0 | O14: 0 | P14: 0 | Q14: 0.0975 | R14: 0 | T14: 0 | U14: 0.0975 | V14: 0 | X14: 0 | Y14: 0 | Z14: -0.21 | AE14: =-'1890 Unamort Loss on Reacq Debt'!N12 -> 0 | AF14: 0 | AG14: ='1890 Unamort Loss on Reacq Debt'!N32 -> -0.21
A15: 6 | B15: 9.32% First Mortgage Bond T due June 2021/RET 2005 | C15: 1991-06-01 | D15: 0 | E15: 0 | F15: 0 | G15: 0 | H15: 0 | I15: 0 | J15: 0 | K15: 0 | L15: 0 | M15: 0 | N15: 0 | O15: 0 | P15: 0 | Q15: 0.0932 | R15: 0 | T15: 0 | U15: 0.0932 | V15: 0 | X15: 0 | Y15: 362746.44 | Z15: 60457.4 | AE15: =-'1890 Unamort Loss on Reacq Debt'!N13 -> 30228.87 | AF15: 0 | AG15: ='1890 Unamort Loss on Reacq Debt'!N33 -> 60457.4
A16: 7 | B16: 8.77% First Mortgage Bond U due May 2022/RET 2005 | C16: 1992-05-01 | D16: 0 | E16: 0 | F16: 0 | G16: 0 | H16: 0 | I16: 0 | J16: 0 | K16: 0 | L16: 0 | M16: 0 | N16: 0 | O16: 0 | P16: 0 | Q16: 0.0877 | R16: 0 | T16: 0 | U16: 0.0877 | V16: 0 | X16: 0 | Y16: 368719.08 | Z16: 399446.14 | AE16: =-'1890 Unamort Loss on Reacq Debt'!N14 -> 30726.59 | AF16: 0 | AG16: ='1890 Unamort Loss on Reacq Debt'!N34 -> 399446.14
A17: 8 | B17: 6.67% MTN A1 due Dec 2025 | C17: 1995-12-15 | D17: 10000000 | E17: 10000000 | F17: 10000000 | G17: 10000000 | H17: 10000000 | I17: 10000000 | J17: 10000000 | K17: 10000000 | L17: 10000000 | M17: 10000000 | N17: 10000000 | O17: 10000000 | P17: 10000000 | Q17: 0.0667 | R17: 667000 | T17: 10000000 | U17: 0.0667 | V17: =+T17*U17 -> 667000 | X17: 0 | Y17: 7776.96 | Z17: 36616.24 | AC17: =-'Acct 2241 Unamort Debt Exp'!X38 -> 648.08 | AF17: ='Acct 2241 Unamort Debt Exp'!X13 -> 36616.24 | AK17: 0.06772568198
A18: 9 | B18: 4.95% Sr Note due 10/15/2014 | C18: 2004-10-22 | D18: 0 | E18: 0 | F18: 0 | G18: 0 | H18: 0 | I18: 0 | J18: 0 | K18: 0 | L18: 0 | M18: 0 | N18: 0 | O18: 0 | P18: 0 | Q18: 0.0495 | R18: 0 | T18: 0 | U18: 0.0495 | V18: =+T18*U18 -> 0 | X18: 0 | Y18: =SUM(AC18:AE18)*12 -> 0 | Z18: 0 | AF18: 0
A19: 10 | B19: 5.95% Sr Note due 10/15/2034 | C19: 2004-10-22 | D19: 200000000 | E19: 200000000 | F19: 200000000 | G19: 200000000 | H19: 200000000 | I19: 200000000 | J19: 200000000 | K19: 200000000 | L19: 200000000 | M19: 200000000 | N19: 200000000 | O19: 200000000 | P19: 200000000 | Q19: 0.0595 | R19: 11900000 | T19: 200000000 | U19: 0.0595 | V19: =+T19*U19 -> 11900000 | X19: =+AB19*12 -> -7047.066667 | Y19: 115723.56 | Z19: 1568534.82 | AB19: ='20102'!K222 -> -587.2555556 | AC19: =-'Acct 2241 Unamort Debt Exp'!X40 -> 6265.85 | AD19: =-'2260 LTDebt Discount'!BJ14 -> 3377.78 | AF19: ='Acct 2241 Unamort Debt Exp'!X15 -> 1021334.89 | AH19: ='2260 LTDebt Discount'!R14 -> 547199.93 | AI19: ='20102'!M222 -> -95722.65556 | AJ19: Offset to 4270 | AK19: 0.06051800546
A20: 11 | B20: 4.3% Sr Note due 10/1/2048 | C20: 10/2018 | D20: 600000000 | E20: 600000000 | F20: 600000000 | G20: 600000000 | H20: 600000000 | I20: 600000000 | J20: 600000000 | K20: 600000000 | L20: 600000000 | M20: 600000000 | N20: 600000000 | O20: 600000000 | P20: 600000000 | Q20: 0.043 | R20: 25800000 | T20: 600000000 | U20: 0.043 | V20: 25800000 | X20: =+AB20*12 -> 0 | Y20: 315360.72 | Z20: =SUM(AF20:AH20) -> 8672420.35 | AC20: =-'Acct 2241 Unamort Debt Exp'!X41 -> 17930.06 | AD20: =-'2260 LTDebt Discount'!BJ13 -> 8350 | AF20: ='Acct 2241 Unamort Debt Exp'!X16 -> 5916920.35 | AH20: ='2260 LTDebt Discount'!R13 -> 2755500 | AK20: 0.04416394841
A21: 12 | B21: Sr Note 5.50% Due 06/15/2041 | C21: 6/10/2011 | D21: 400000000 | E21: 400000000 | F21: 400000000 | G21: 400000000 | H21: 400000000 | I21: 400000000 | J21: 400000000 | K21: 400000000 | L21: 400000000 | M21: 400000000 | N21: 400000000 | O21: 400000000 | P21: 400000000 | Q21: 0.055 | R21: 22000000 | T21: =AVERAGE(D21:P21) -> 400000000 | U21: 0.055 | V21: 22000000 | X21: =+AB21*12 -> -669301.5667 | Y21: 186859.56 | Z21: 3768335.16 | AB21: =-'20105'!C143 -> -55775.13056 | AC21: =-'Acct 2241 Unamort Debt Exp'!X43 -> 11993.85 | AD21: =-'2260 LTDebt Discount'!BJ16 -> 3577.78 | AF21: ='Acct 2241 Unamort Debt Exp'!X18 -> 2902513.01 | AH21: ='2260 LTDebt Discount'!R16 -> 865822.15 | AI21: ='20105'!D143 -> -13497581.59 | AJ21: Offset to 4270 | AK21: 0.05430549828
A22: 13 | B22: 8.50% Sr Note due 3/15/2019 | C22: 2009-03-23 | D22: 0 | E22: 0 | F22: 0 | G22: 0 | H22: 0 | I22: 0 | J22: 0 | K22: 0 | L22: 0 | M22: 0 | N22: 0 | O22: 0 | P22: 0 | Q22: 0.085 | R22: 0 | T22: 0 | U22: 0.085 | V22: 0 | X22: =AB22*12 -> 0 | Y22: 0 | Z22: =SUM(AF22:AH22) -> 1.175794739e-10 | AB22: 0 | AC22: =-'Acct 2241 Unamort Debt Exp'!X42 -> 0 | AD22: =-'2260 LTDebt Discount'!BJ17 -> 0 | AE22: =-'1890 Unamort Loss on Reacq Debt'!N10 -> 0 | AF22: ='Acct 2241 Unamort Debt Exp'!X17 -> 0 | AG22: ='1890 Unamort Loss on Reacq Debt'!N30 -> 1.175794739e-10 | AH22: ='2260 LTDebt Discount'!R17 -> 0 | AI22: 0 | AJ22: Offset to 4270
A23: 14 | B23: 4.15% Sr Note due 1/15/2043 | C23: 2013-01-15 | D23: 500000000 | E23: 500000000 | F23: 500000000 | G23: 500000000 | H23: 500000000 | I23: 500000000 | J23: 500000000 | K23: 500000000 | L23: 500000000 | M23: 500000000 | N23: 500000000 | O23: 500000000 | P23: 500000000 | Q23: 0.0415 | R23: 20750000 | T23: 500000000 | U23: 0.0415 | V23: =+T23*U23 -> 20750000 | X23: =AB23*12 -> 2220856.802 | Y23: 378080.28 | Z23: 8237692.07 | AB23: =-'20107'!C122 -> 185071.4001 | AC23: =-'Acct 2241 Unamort Debt Exp'!X44 -> 14907.23 | AD23: =-'2260 LTDebt Discount'!BJ18 -> 2611.11 | AE23: =-'1890 Unamort Loss on Reacq Debt'!N11 -> 13988.35 | AF23: ='Acct 2241 Unamort Debt Exp'!X19 -> 3898239.94 | AG23: ='1890 Unamort Loss on Reacq Debt'!N31 -> 3657952.1 | AH23: ='2260 LTDebt Discount'!R18 -> 681500.03 | AI23: ='20107'!D122 -> 48488706.84 | AJ23: Offset to 4270 | AK23: 0.04712955639
A24: 15 | B24: 4.125% Sr Note due 10/15/2044 (500MM(2014) & 250MM(2017) | C24: 10/15/14 | D24: 750000000 | E24: 750000000 | F24: 750000000 | G24: 750000000 | H24: 750000000 | I24: 750000000 | J24: 750000000 | K24: 750000000 | L24: 750000000 | M24: 750000000 | N24: 750000000 | O24: 750000000 | P24: 750000000 | Q24: 0.04125 | R24: 30937500 | T24: 750000000 | U24: 0.04125 | V24: =+T24*U24 -> 30937500 | X24: =AB24*12 -> 908015.8252 | Y24: =SUM(AC24:AE24)*12 -> -43555.08 | Z24: =SUM(AF24:AH24) -> -1026664.73 | AB24: =SUM('20108'!C102+'20109'!C70)*-1 -> 75667.98543 | AC24: =-'Acct 2241 Unamort Debt Exp'!X45 -> 23538.26 | AD24: =-SUM('2260 LTDebt Discount'!BJ19+'2250 LTDebt Premium'!BK12) -> -27167.85 | AF24: ='Acct 2241 Unamort Debt Exp'!X20 -> 6649559.17 | AH24: ='2260 LTDebt Discount'!R19+'2250 LTDebt Premium'!R11 -> -7676223.9 | AI24: ='20108'!D102+'20109'!D70 -> 21414039.88 | AJ24: Offset to 4270 | AK24: 0.04234464932
A25: 16 | B25: 3.00% Sr Note due 6/15/2027 | C25: 06/2017 | D25: 500000000 | E25: 500000000 | F25: 500000000 | G25: 500000000 | H25: 500000000 | I25: 500000000 | J25: 500000000 | K25: 500000000 | L25: 500000000 | M25: 500000000 | N25: 500000000 | O25: 500000000 | P25: 500000000 | Q25: 0.03 | R25: 15000000 | T25: =AVERAGE(D25:P25) -> 500000000 | U25: 0.03 | V25: 15000000 | X25: =AB25*12 -> 0 | Y25: =SUM(AC25:AE25)*12 -> 555072 | Z25: 3446072.09 | AB25: 0 | AC25: =-'Acct 2241 Unamort Debt Exp'!X46 -> 34797.67 | AD25: =-'2260 LTDebt Discount'!BJ20 -> 11458.33 | AF25: ='Acct 2241 Unamort Debt Exp'!X21 -> 2592426.15 | AH25: ='2260 LTDebt Discount'!R20 -> 853645.94 | AI25: 0 | AJ25: Offset to 4270 | AK25: 0.03132604764
A26: 17 | B26: 4.125% Sr Note due 3/15/49 | C26: 03/2019 | D26: 450000000 | E26: 450000000 | F26: 450000000 | G26: 450000000 | H26: 450000000 | I26: 450000000 | J26: 450000000 | K26: 450000000 | L26: 450000000 | M26: 450000000 | N26: 450000000 | O26: 450000000 | P26: 450000000 | Q26: 0.04125 | R26: 18562500 | T26: =AVERAGE(D26:P26) -> 450000000 | U26: 0.04125 | V26: =+T26*U26 -> 18562500 | X26: =AB26*12 -> 3004713.1 | Y26: =AD26*12+AC26*12 -> 220237.56 | Z26: =SUM(AF26:AH26) -> 6148300.18 | AB26: =-'20111'!C53 -> 250392.7583 | AC26: =-'Acct 2241 Unamort Debt Exp'!X48 -> 13428.13 | AD26: =-'2260 LTDebt Discount'!BJ21 -> 4925 | AF26: ='Acct 2241 Unamort Debt Exp'!X23 -> 4498425.18 | AH26: ='2260 LTDebt Discount'!R21 -> 1649875 | AI26: ='20111'!D53 -> 84131966.8 | AJ26: Offset to 4270
A27: 18 | B27: 2.625% Sr Notes Due 2029 | C27: 10/2019 | D27: 300000000 | E27: 300000000 | F27: 300000000 | G27: 300000000 | H27: 300000000 | I27: 300000000 | J27: 300000000 | K27: 300000000 | L27: 300000000 | M27: 300000000 | N27: 300000000 | O27: 300000000 | P27: 300000000 | Q27: 0.02625 | R27: 7875000 | T27: 300000000 | U27: 0.02625 | V27: =+T27*U27 -> 7875000 | X27: 0 | Y27: =SUM(AC27:AE27)*12 -> 266666.76 | Z27: =SUM(AF27:AH27) -> 2266666.96 | AC27: =-'Acct 2241 Unamort Debt Exp'!X49 -> 20722.23 | AD27: =-'2260 LTDebt Discount'!BJ22 -> 1500 | AF27: ='Acct 2241 Unamort Debt Exp'!X24 -> 2113666.96 | AH27: ='2260 LTDebt Discount'!R22 -> 153000
A28: 19 | B28: 3.375% Sr Notes Due 2049 | C28: 10/2019 | D28: 500000000 | E28: 500000000 | F28: 500000000 | G28: 500000000 | H28: 500000000 | I28: 500000000 | J28: 500000000 | K28: 500000000 | L28: 500000000 | M28: 500000000 | N28: 500000000 | O28: 500000000 | P28: 500000000 | Q28: 0.03375 | R28: 16875000 | T28: 500000000 | U28: 0.03375 | V28: =+T28*U28 -> 16875000 | X28: 0 | Y28: =SUM(AC28:AE28)*12 -> 187981.56 | Z28: =SUM(AF28:AH28) -> 5357472.79 | AC28: =-'Acct 2241 Unamort Debt Exp'!X50 -> 14637.35 | AD28: =-'2260 LTDebt Discount'!BJ23 -> 1027.78 | AF28: ='Acct 2241 Unamort Debt Exp'!X25 -> 5005972.83 | AH28: ='2260 LTDebt Discount'!R23 -> 351499.96
A29: 20 | B29: $200MM 3YR. Term Loan (Established 4/09/20) | C29: 04/2020 | D29: 0 | E29: 200000000 | F29: 200000000 | G29: 200000000 | H29: 200000000 | I29: 200000000 | J29: 200000000 | K29: 200000000 | L29: 200000000 | M29: 200000000 | N29: 200000000 | O29: 200000000 | P29: 200000000 | Q29: ='Apr20_$200MM TL'!Q20 -> 0.02425 | R29: 4850000 | T29: 184615384.6 | U29: ='Apr20_$200MM TL'!R20 -> 0.02319520833 | V29: =+T29*U29 -> 4282192.308 | X29: =AB29*12 -> 0 | Y29: =SUM(AC29:AE29)*12 -> 82500 | Z29: =SUM(AF29:AH29) -> 84333.33 | AC29: =-'Acct 1860 Prepayments LT'!Z22 -> 6875 | AF29: ='Acct 1650 ST Prepayments'!Z14+'Acct 1860 Prepayments LT'!Z13 -> 84333.33
A30: 21 | B30: 1.500% Sr Notes Due 2031 | C30: 2020-10-01 | D30: 0 | E30: 0 | F30: 0 | G30: 0 | H30: 0 | I30: 0 | J30: 0 | K30: 600000000 | L30: 600000000 | M30: 600000000 | N30: 600000000 | O30: 600000000 | P30: 600000000 | Q30: 0.015 | R30: 9000000 | T30: =AVERAGE(D30:P30) -> 276923076.9 | U30: 0.015 | V30: =+T30*U30 -> 4153846.154 | X30: =AB30*12 -> 428328.2903 | Y30: =AD30*12+AC30*12 -> 743529 | Z30: =SUM(AF30:AH30) -> 7311367.87 | AB30: =-'20112'!C35 -> 35694.02419 | AC30: =-'Acct 2241 Unamort Debt Exp'!X51 -> 40912.36 | AD30: =-'2260 LTDebt Discount'!BJ24 -> 21048.39 | AF30: ='Acct 2241 Unamort Debt Exp'!X26 -> 4827658.21 | AH30: ='2260 LTDebt Discount'!R24 -> 2483709.66 | AI30: ='20112'!D35 -> 4211894.855 | AJ30: Offset to 4270
A31: 22 | B31: 0.625% Sr Notes Due 2023 - Pending Amortization | C31: 03/2021 | D31: 0 | E31: 0 | F31: 0 | G31: 0 | H31: 0 | I31: 0 | J31: 0 | K31: 0 | L31: 0 | M31: 0 | N31: 0 | O31: 0 | P31: 1100000000 | Q31: 0.00625 | R31: 6875000 | T31: =AVERAGE(D31:P31) -> 84615384.62 | U31: 0.00625 | V31: =+T31*U31 -> 528846.1538 | X31: =AB31*12 -> 0 | Y31: =AD31*12+AC31*12 -> 2304209.635 | Z31: =SUM(AF31:AH31) -> 4608419.27 | AC31: =-'Acct 2241 Unamort Debt Exp'!X52 -> 190184.1362 | AD31: =-'2260 LTDebt Discount'!BJ25 -> 1833.333333 | AF31: ='Acct 2241 Unamort Debt Exp'!X27 -> 4564419.27 | AH31: ='2260 LTDebt Discount'!R25 -> 44000
A32: 23 | B32: FRN Sr Notes Due 2023 - Pending Amortization | C32: 03/2021 | D32: 0 | E32: 0 | F32: 0 | G32: 0 | H32: 0 | I32: 0 | J32: 0 | K32: 0 | L32: 0 | M32: 0 | N32: 0 | O32: 0 | P32: 1100000000 | Q32: 0.0056538 | R32: 6219180 | T32: =AVERAGE(D32:P32) -> 84615384.62 | U32: ='FRN_$1.1BN'!K20 -> 0.0056538 | V32: 478398.4615 | X32: 0 | Y32: =AD32*12+AC32*12 -> 2282209.635 | Z32: 4564419.27 | AC32: =-'Acct 2241 Unamort Debt Exp'!X53 -> 190184.1362 | AF32: ='Acct 2241 Unamort Debt Exp'!X28 -> 4564419.27
A33: 24 | B33: October 2021 - Swap Position | C33: 04/2020 | D33: 0 | E33: 0 | F33: 0 | G33: 0 | H33: 0 | I33: 0 | J33: 0 | K33: 0 | L33: 0 | M33: 0 | N33: 0 | O33: 0 | P33: 0 | R33: 0 | T33: 0 | V33: 0 | X33: 0 | Y33: 0 | Z33: 0 | AI33: =-'March-2021'!B69+-'March-2021'!B68 -> -131797867 | AJ33: Offset to 2530
A34: 25 | B34: October 2022 - Swap Position | C34: 07/2020 | D34: 0 | E34: 0 | F34: 0 | G34: 0 | H34: 0 | I34: 0 | J34: 0 | K34: 0 | L34: 0 | M34: 0 | N34: 0 | O34: 0 | P34: 0 | R34: 0 | T34: =AVERAGE(D34:P34) -> 0 | V34: 0 | X34: 0 | Y34: 0 | Z34: 0 | AI34: =-'March-2021'!B92+-'March-2021'!B93 -> -96676604.42 | AJ34: Offset to 2530
A35: 26 | B35: October 2024 - Swap Position | C35: 07/2020 | D35: 0 | E35: 0 | F35: 0 | G35: 0 | H35: 0 | I35: 0 | J35: 0 | K35: 0 | L35: 0 | M35: 0 | N35: 0 | O35: 0 | P35: 0 | R35: 0 | T35: 0 | V35: 0 | X35: 0 | Y35: 0 | Z35: 0 | AI35: =-'March-2021'!B116+-'March-2021'!B117 -> -97109167.45 | AJ35: Offset to 2530
A36: 27 | B36: Subtotal -- Utility Long-Term Debt | D36: =SUM(D10:D35) -> 4360000000 | E36: 4560000000 | F36: 4560000000 | G36: 4560000000 | H36: 4560000000 | I36: 4560000000 | J36: 4560000000 | K36: 5160000000 | L36: 5160000000 | M36: 5160000000 | N36: 5160000000 | O36: 5160000000 | P36: 7360000000 | R36: =SUM(R10:R35) -> 207436180 | T36: =SUM(T10:T35) -> 4990769231 | V36: =SUM(V10:V35) -> 189935283.1 | X36: =SUM(X10:X35) -> 5885565.384 | Y36: =SUM(Y10:Y35) -> 8994453.31 | Z36: =SUM(Z10:Z35) -> 56279782.13 | AB36: =SUM(AB10:AB35) -> 490463.782 | AC36: 591665.0225 | AD36: 36229.15333 | AE36: 121643.6 | AF36: 49084885.53 | AG36: 4164555.33 | AH36: 3030341.27 | AI36: =SUM(AI10:AI35) -> -180930334.8
A37: 28
A38: 29 | B38: Other Long-Term Debt
A39: 30 | B39: Total Long-Term Debt | D39: =+D36+D38 -> 4360000000 | E39: 4560000000 | F39: 4560000000 | G39: 4560000000 | H39: 4560000000 | I39: 4560000000 | J39: 4560000000 | K39: 5160000000 | L39: 5160000000 | M39: 5160000000 | N39: 5160000000 | O39: 5160000000 | P39: 7360000000 | R39: =+R36+R38 -> 207436180 | T39: =+T36+T38 -> 4990769231 | V39: =+V36+V38 -> 189935283.1
A40: 31 | B40: Less Unamortized Debt Discount & Debt Premium | D40: ='2260 LTDebt Discount'!F26+'2250 LTDebt Premium'!F11 -> 662800.77 | E40: ='2260 LTDebt Discount'!G26+'2250 LTDebt Premium'!G11 -> 649453.34 | F40: ='2260 LTDebt Discount'!H26+'2250 LTDebt Premium'!H11 -> 636105.91 | G40: ='2260 LTDebt Discount'!I26+'2250 LTDebt Premium'!I11 -> 622758.48 | H40: ='2260 LTDebt Discount'!J26+'2250 LTDebt Premium'!J11 -> 609411.05 | I40: ='2260 LTDebt Discount'!K26+'2250 LTDebt Premium'!K11 -> 596063.62 | J40: ='2260 LTDebt Discount'!L26+'2250 LTDebt Premium'!L11 -> 582716.19 | K40: ='2260 LTDebt Discount'!M26+'2250 LTDebt Premium'!M11 -> 3179368.76 | L40: ='2260 LTDebt Discount'!N26+'2250 LTDebt Premium'!N11 -> 3123924.55 | M40: ='2260 LTDebt Discount'!O26+'2250 LTDebt Premium'!O11 -> 3089528.73 | N40: ='2260 LTDebt Discount'!P26+'2250 LTDebt Premium'!P11 -> 3055132.91 | O40: ='2260 LTDebt Discount'!Q26+'2250 LTDebt Premium'!Q11 -> 3020737.09 | P40: ='2260 LTDebt Discount'!R26+'2250 LTDebt Premium'!R11 -> 3030341.27 | T40: =AVERAGE(D40:P40) -> 1758334.052 | X40: =X36 -> 5885565.384 | Y40: =Y36 -> 8994453.31 | Z40: 56279782.13 | AB40: =AB36 -> 490463.782 | AC40: =AC36 -> 591665.0225 | AD40: =-'2260 LTDebt Discount'!BJ26+-'2250 LTDebt Premium'!BK12 -> 36229.15333 | AE40: =-'1890 Unamort Loss on Reacq Debt'!N17 -> 121643.6 | AF40: =AF36 -> 49084885.53 | AG40: =AG36 -> 4164555.33 | AH40: =+AH36 -> 3030341.27 | AI40: =+AI36 -> -180930334.8
A41: 32 | B41: Less Unamortized Debt Expense | D41: ='Acct 2241 Unamort Debt Exp'!L29 -> 37006168.13 | E41: ='Acct 2241 Unamort Debt Exp'!M29 -> 36842658.74 | F41: ='Acct 2241 Unamort Debt Exp'!N29 -> 36679149.35 | G41: ='Acct 2241 Unamort Debt Exp'!O29 -> 36515639.96 | H41: ='Acct 2241 Unamort Debt Exp'!P29 -> 36352130.57 | I41: ='Acct 2241 Unamort Debt Exp'!Q29 -> 36188621.18 | J41: ='Acct 2241 Unamort Debt Exp'!R29 -> 36102991.79 | K41: ='Acct 2241 Unamort Debt Exp'!S29 -> 40918941.4 | L41: ='Acct 2241 Unamort Debt Exp'!T29 -> 40678159.57 | M41: ='Acct 2241 Unamort Debt Exp'!U29 -> 40484978.91 | N41: ='Acct 2241 Unamort Debt Exp'!V29 -> 40280557.16 | O41: ='Acct 2241 Unamort Debt Exp'!W29 -> 40076135.41 | P41: ='Acct 2241 Unamort Debt Exp'!X29 -> 49000552.2 | T41: =AVERAGE(D63:P63) -> 39009744.95
A42: 33 | B42: Annualized Amortization of T-Lock Settlement, Debt Exp, Debt Disc. & Debt Prem. | R42: =+X40+Y40 -> 14880018.69 | V42: =+X40+Y40 -> 14880018.69 | AB42: ck | AC42: ck | AE42: ck | AF42: ck | AG42: ck | AH42: ck | AI42: ck
A43: 34 | D43: =D39-D40-D41 -> 4322331031 | E43: 4522507888 | F43: 4522684745 | G43: 4522861602 | H43: 4523038458 | I43: 4523215315 | J43: 4523314292 | K43: 5115901690 | L43: 5116197916 | M43: 5116425492 | N43: 5116664310 | O43: =O39-O40-O41 -> 5116903128 | P43: =P39-P40-P41 -> 7307969107 | R43: =+R39+R42 -> 222316198.7 | T43: =+T39-T40-T41 -> 4950001152 | V43: =+V39+V42 -> 204815301.8 | X43: check | Y43: check | Z43: check | AB43: =112791.18+185071.4-587.26-37123.19-55775.13+250392.67+35694.02 -> 490463.69 | AC43: =-'Acct 2241 Unamort Debt Exp'!X54-'Acct 1650 ST Prepayments'!Z23-'2260 LTDebt Discount'!BJ26-'2250 LTDebt Premium'!BK11-'Acct 1860 Prepayments LT'!Z22 -> 627894.1758 | AE43: =-'1890 Unamort Loss on Reacq Debt'!N17 -> 121643.6 | AF43: =SUM('Acct 2241 Unamort Debt Exp'!X29+'Acct 1650 ST Prepayments'!Z23+'Acct 1650 ST Prepayments'!Z14+'Acct 1860 Prepayments LT'!Z13) -> 49084885.53 | AG43: ='1890 Unamort Loss on Reacq Debt'!N37 -> 4164555.33 | AH43: ='2260 LTDebt Discount'!R26+'2250 LTDebt Premium'!R12 -> 3030341.27 | AI43: =AH71 -> -180930334.8
A44: 35 | B44: Effective Avg Cost of Consol Debt | Q44: =+R43/P43 -> 0.03042106438 | R44: end of period | U44: =+V43/T43 -> 0.04137681901 | V44: 13 mth avg | X44: =AB40*12 -> 5885565.384 | Y44: =SUM(AC40:AE40)*12 -> 8994453.31 | Z44: =SUM(AF43:AH43) -> 56279782.13 | AA44: diff g/l vs calc | AB44: =+AB40-AB43 -> 0.09198826388 | AC44: =SUM(AC36+AD36)-SUM(AC40+AD40) -> 0 | AD44: =AD40-AD36 -> 0 | AE44: =+AE40-AE43 -> 0 | AF44: 0 | AG44: 0 | AH44: 0 | AI44: 0
A45: 36 | B45: Consolidated & Utility | Q45: =(R36+X36+Y36)/(P36-P40-P41) -> 0.03042106438 | R45: end of period | U45: =(V36+X36+Y36)/(T36-T40-T41) -> 0.04137681901 | V45: 13 mth avg | X45: =X40-X44 -> 0 | Y45: =Y40-Y44 -> 0 | Z45: =Z40-Z44 -> 0
A46: 37 | B46: Other Long-Term Real Estate Lease | D46: ='Acct 2240 Real Estate Lease'!B13 -> 6665965.2 | E46: ='Acct 2240 Real Estate Lease'!C13 -> 6522821.06 | F46: ='Acct 2240 Real Estate Lease'!D13 -> 6510961.35 | G46: ='Acct 2240 Real Estate Lease'!E13 -> 8636366.86 | H46: ='Acct 2240 Real Estate Lease'!F13 -> 8647262.65 | I46: ='Acct 2240 Real Estate Lease'!G13 -> 8642960.56 | J46: ='Acct 2240 Real Estate Lease'!H13 -> 8629942.23 | K46: ='Acct 2240 Real Estate Lease'!I13 -> 8634251.99 | L46: ='Acct 2240 Real Estate Lease'!J13 -> 8620992.76 | M46: ='Acct 2240 Real Estate Lease'!K13 -> 8607657.52 | N46: ='Acct 2240 Real Estate Lease'!L13 -> 8594245.83 | O46: ='Acct 2240 Real Estate Lease'!M13 -> 8580757.16 | P46: ='Acct 2240 Real Estate Lease'!N13 -> 8611502.87
A47: 38 | B47: Total Long-Term Debt Including Capital Leases | D47: =+D43+D46 -> 4328996996 | E47: 4529030709 | F47: 4529195706 | G47: 4531497968 | H47: 4531685721 | I47: 4531858276 | J47: 4531944234 | K47: 5124535942 | L47: 5124818909 | M47: 5125033150 | N47: 5125258556 | O47: 5125483885 | P47: =+P43+P46 -> 7316580609
A48: 39 | B48: Note: includes current maturities
A49: 40 | N49: Debt Cost Exluding $2.2Bn Incremental Financing:
A50: 41 | N50: Exclude 0.625% Sr Notes Due 2023 | P50: =-P31 -> -1100000000 | Q50: Exclude 0.625% Sr Notes Due 2023 | R50: =-R31 -> -6875000
A51: 42 | N51: Exclude FRN Sr Notes Due 2023 | P51: =-P32 -> -1100000000 | Q51: Exclude FRN Sr Notes Due 2023 | R51: =-R32 -> -6219180
A52: 43 | N52: Exclude 2241 Debt Ex | P52: ='Acct 2241 Unamort Debt Exp'!X27+'Acct 2241 Unamort Debt Exp'!X28 -> 9128838.54 | Q52: Exclude 2241 Debt Ex | R52: =-Y31 -> -2304209.635
A53: 44 | N53: Exclude 2260 Discount | P53: =+'2260 LTDebt Discount'!R25 -> 44000 | Q53: Exclude 2260 Discount | R53: =-Y32 -> -2282209.635
A54: 45 | O54: Total LTD | P54: =+P43+P50+P51+P52+P53 -> 5117141945 | Q54: Annualized Int / Debt Ex / Discount | R54: =R43+R50+R51+R52+R53 -> 204635599.4 | T54: =R54/P54 -> 0.0399902136 | U54: end of period
B56: ck Fin Rptg Bal | D56: ='Consolidated Balance Detail'!$D$11 -> 4328996996 | E56: ='Consolidated Balance Detail'!$D$12 -> 4529030709 | F56: ='Consolidated Balance Detail'!$D$13 -> 4529195706 | G56: ='Consolidated Balance Detail'!$D$14 -> 4531497968 | H56: ='Consolidated Balance Detail'!$D$15 -> 4531685721 | I56: ='Consolidated Balance Detail'!$D$16 -> 4531858276 | J56: ='Consolidated Balance Detail'!$D$17 -> 4531944234 | K56: ='Consolidated Balance Detail'!$D$18 -> 5124535942 | L56: ='Consolidated Balance Detail'!$D$19 -> 5124818909 | M56: ='Consolidated Balance Detail'!$D$20 -> 5125033150 | N56: ='Consolidated Balance Detail'!$D$21 -> 5125258556 | O56: ='Consolidated Balance Detail'!$D$22 -> 5125483885 | P56: ='Consolidated Balance Detail'!$D$23 -> 7316580609 | AB56: Diff | AC56: =AC43-SUM(AC40:AD40) -> 0
B57: diff Fin Rptg vs calc | D57: =D56-D47 -> 0 | E57: 0 | F57: 0 | G57: 0 | H57: 0 | I57: 0 | J57: 0 | K57: 0 | L57: 0 | M57: 0 | N57: 0 | O57: 0 | P57: 0 | AG57: Per Amort Sch & Value | AH57: Per Amort Sch & Value | AI57: Amort Sch vs. G/L
AF58: Ledger Bal 03/31/21 | AG58: Def Tax Bal | AH58: Lock Bal | AI58: Diff
A59: . | P59: =P57+P58 -> 0 | AD59: Realized | AE59: 20102 | AF59: ='20102'!G222 -> -74259.72173 | AG59: ='20102'!F222 -> 21462.93383 | AH59: =SUM(AI18:AI19) -> -95722.65556 | AI59: =AF59-AG59-AH59 -> 1.396983862e-09 | AJ59: (Offset to 4270)
AD60: Realized | AE60: 20103 | AF60: 0 | AG60: 0 | AH60: =AI20 -> 0 | AI60: 0 | AJ60: (Offset to 4270)
D61: Acct 2241 | E61: Acct 2241 | F61: Acct 2241 | G61: Acct 2241 | H61: Acct 2241 | I61: Acct 2241 | J61: Acct 2241 | K61: Acct 2241 | L61: Acct 2241 | M61: Acct 2241 | N61: Acct 2241 | O61: Acct 2241 | P61: Acct 2241 | AD61: Realized | AE61: 20104 | AF61: 0 | AG61: 0 | AH61: =AI22 -> 0 | AI61: 0 | AJ61: (Offset to 4270)
D62: =+D7 -> 2020-03-31 | E62: 2020-04-30 | F62: 2020-05-31 | G62: 2020-06-30 | H62: 2020-07-31 | I62: 2020-08-30 | J62: 2020-09-30 | K62: 2020-10-31 | L62: 2020-11-30 | M62: 2020-12-31 | N62: 2021-01-31 | O62: 2021-02-28 | P62: 2021-03-31 | R62: 13 mth Average | AD62: Realized | AE62: 20105 | AF62: ='20105'!G143 -> -10471153.85 | AG62: ='20105'!F143 -> 3026427.745 | AH62: =AI21 -> -13497581.59 | AI62: -1.098960638e-07 | AJ62: (Offset to 4270)
A63: Note: | B63: Unamortized Debt Expense | D63: =+D41 -> 37006168.13 | E63: 36842658.74 | F63: 36679149.35 | G63: 36515639.96 | H63: 36352130.57 | I63: 36188621.18 | J63: 36102991.79 | K63: 40918941.4 | L63: 40678159.57 | M63: 40484978.91 | N63: 40280557.16 | O63: 40076135.41 | P63: 49000552.2 | R63: =AVERAGE(D63:P63) -> 39009744.95 | Y63: Annualized | AD63: Realized | AE63: 20107 | AF63: ='20107'!G122 -> 37616568.99 | AG63: ='20107'!F122 -> -10872137.85 | AH63: =AI23 -> 48488706.84 | AI63: 0 | AJ63: (Offset to 4270)
B64: **In Sept 16 the Company implemented FASB ASU 201503. | X64: Annualized | Y64: 4280, 4281, 4290 & 4310 | AD64: Realized | AE64: 20108 | AF64: ='20108'!G102 -> -8150239.195 | AG64: ='20108'!F102 -> 2355624.832 | AH64: ='20108'!D102 -> -10505864.03 | AI64: 0 | AJ64: (Offset to 4270)
X65: 4270 Amort | Y65: Amortization | AD65: Realized | AE65: 20109 | AF65: ='20109'!G70 -> 24762823.05 | AG65: ='20109'!F70 -> -7157080.854 | AH65: ='20109'!D70 -> 31919903.91 | AI65: =AF65-AG65-AH65 -> -4.097819328e-08 | AJ65: (Offset to 4270)
D66: =D62 -> 2020-03-31 | E66: =E62 -> 2020-04-30 | F66: 2020-05-31 | G66: 2020-06-30 | H66: 2020-07-31 | I66: 2020-08-30 | J66: 2020-09-30 | K66: 2020-10-31 | L66: 2020-11-30 | M66: 2020-12-31 | N66: 2021-01-31 | O66: 2021-02-28 | P66: 2021-03-31 | T66: 13 mth Average | X66: for T-lock/Swaps | Y66: Debt Exp, Dsct & Prem | AD66: Realized | AE66: 20111 | AF66: ='20111'!G53 -> 65267897.2 | AG66: ='20111'!F53 -> -18864069.6 | AH66: =AI26 -> 84131966.8 | AI66: 1.788139343e-07 | AJ66: (Offset to 4270)
B67: Unamortized Debt Discount & Debt Premium Excl. Sr. Notes Due 2023 | D67: =SUM('2260 LTDebt Discount'!F11:F24)+'2250 LTDebt Premium'!F11 -> 662800.77 | E67: =SUM('2260 LTDebt Discount'!G11:G24)+'2250 LTDebt Premium'!G11 -> 649453.34 | F67: =SUM('2260 LTDebt Discount'!H11:H24)+'2250 LTDebt Premium'!H11 -> 636105.91 | G67: =SUM('2260 LTDebt Discount'!I11:I24)+'2250 LTDebt Premium'!I11 -> 622758.48 | H67: =SUM('2260 LTDebt Discount'!J11:J24)+'2250 LTDebt Premium'!J11 -> 609411.05 | I67: =SUM('2260 LTDebt Discount'!K11:K24)+'2250 LTDebt Premium'!K11 -> 596063.62 | J67: =SUM('2260 LTDebt Discount'!L11:L24)+'2250 LTDebt Premium'!L11 -> 582716.19 | K67: =SUM('2260 LTDebt Discount'!M11:M24)+'2250 LTDebt Premium'!M11 -> 3179368.76 | L67: =SUM('2260 LTDebt Discount'!N11:N24)+'2250 LTDebt Premium'!N11 -> 3123924.55 | M67: =SUM('2260 LTDebt Discount'!O11:O24)+'2250 LTDebt Premium'!O11 -> 3089528.73 | N67: =SUM('2260 LTDebt Discount'!P11:P24)+'2250 LTDebt Premium'!P11 -> 3055132.91 | O67: =SUM('2260 LTDebt Discount'!Q11:Q24)+'2250 LTDebt Premium'!Q11 -> 3020737.09 | P67: =SUM('2260 LTDebt Discount'!R11:R24)+'2250 LTDebt Premium'!R11 -> 2986341.27 | T67: =AVERAGE(D67:P67) -> 1754949.436 | X67: =SUM(X10:X30) -> 5885565.384 | Y67: =SUM(Y10:Y30) -> 4408034.04 | AD67: Realized | AE67: 20112 | AF67: ='20112'!G35 -> 3267503.79 | AG67: ='20112'!F35 -> -944391.0644 | AH67: =AI30 -> 4211894.855 | AI67: 0 | AJ67: (Offset to 4270)
B68: Unamortized Debt Expense Excl. Sr. Notes Due 2024 | D68: =SUM('Acct 2241 Unamort Debt Exp'!L13:L26) -> 37006168.13 | E68: =SUM('Acct 2241 Unamort Debt Exp'!M13:M26) -> 36842658.74 | F68: =SUM('Acct 2241 Unamort Debt Exp'!N13:N26) -> 36679149.35 | G68: =SUM('Acct 2241 Unamort Debt Exp'!O13:O26) -> 36515639.96 | H68: =SUM('Acct 2241 Unamort Debt Exp'!P13:P26) -> 36352130.57 | I68: =SUM('Acct 2241 Unamort Debt Exp'!Q13:Q26) -> 36188621.18 | J68: =SUM('Acct 2241 Unamort Debt Exp'!R13:R26) -> 36102991.79 | K68: =SUM('Acct 2241 Unamort Debt Exp'!S13:S26) -> 40918941.4 | L68: =SUM('Acct 2241 Unamort Debt Exp'!T13:T26) -> 40678159.57 | M68: =SUM('Acct 2241 Unamort Debt Exp'!U13:U26) -> 40484978.91 | N68: =SUM('Acct 2241 Unamort Debt Exp'!V13:V26) -> 40280557.16 | O68: =SUM('Acct 2241 Unamort Debt Exp'!W13:W26) -> 40076135.41 | P68: =SUM('Acct 2241 Unamort Debt Exp'!X13:X26) -> 39871713.66 | T68: =AVERAGE(D68:P68) -> 38307526.6 | AD68: Unrealized | AE68: 20113 | AF68: =-'March-2021'!F69+-'March-2021'!F68 -> -102246149.3 | AG68: ='March-2021'!E69+'March-2021'!E68 -> 29551717.74 | AH68: =AI33 -> -131797867 | AI68: 0 | AJ68: (Offset to 2530)
B69: Annualized Amortization of T-Lock Settlement, Debt Exp, Debt Disc. & Debt Prem. | V69: =X67+Y67 -> 10293599.42 | AD69: Unrealized | AE69: 20114 | AF69: =-'March-2021'!F92+-'March-2021'!F93 -> -74999776.18 | AG69: ='March-2021'!E92+'March-2021'!E93 -> 21676828.24 | AH69: =AI34 -> -96676604.42 | AI69: 0 | AJ69: (Offset to 2530)
V70: =V42-Y31-Y32-V69 -> 0 | AD70: Unrealized | AE70: 20115 | AF70: =-'March-2021'!F116+-'March-2021'!F117 -> -75335349.92 | AG70: ='March-2021'!E116+'March-2021'!E117 -> 21773817.53 | AH70: =AI35 -> -97109167.45 | AI70: 0 | AJ70: (Offset to 2530)
AF71: =SUM(AF59:AF70) -> -140362135.1 | AG71: =SUM(AG59:AG70) -> 40568199.66 | AH71: -180930334.8 | AI71: 2.93366611e-08

Sheet Oct16_$200MM TL
C3: ATMOS ENERGY CORPORATION - LONG TERM DEBT DETAIL | U3: ATMOS ENERGY CORPORATION - LONG TERM DEBT DETAIL
C4: BB&T | E4: 200000000 | I4: Three Year Term Loan | M4: Effective 09/22/16 to 09/21/19 | U4: BB&T | W4: 200000000 | AD4: Three Year Term Loan | AF4: Effective 09/22/16 to 09/21/19 | AK4: 13Mth Avg
E5: Principal | G5: Interest | I5: Interest | K5: Unused | M5: Commitment | O5: Commitment | P5: Utilization | Q5: Utilization | W5: Principal | Y5: Principal | AA5: Interest | AC5: Daily | AD5: Unused | AF5: Commitment | AH5: Commitment | AJ5: Ending | AK5: M/E Average
C6: Date | E6: Outstanding | G6: Rate | K6: Portion of | M6: Fee Rate | O6: Fee | P6: Fee Rate | Q6: Fee | U6: Date | W6: Outstanding | Y6: Outstanding | AA6: Rate | AC6: Interest | AD6: Portion of | AF6: Fee Rate | AH6: Fee | AJ6: Interest | AK6: Interest
K7: Line | Q7: (3) | W7: M/E | Y7: Average | AC7: Calc | AD7: Line | AH7: Calc | AJ7: Rate | AK7: Rate
C8: =DATE(2016,10,1) -> 2016-10-01 | E8: 0 | G8: 0 | I8: =ROUND(E8*G8/366,3) -> 0 | K8: =$E$4-E8 -> 200000000 | M8: 0.001 | O8: =K8*M8/360 -> 555.5555556 | P8: 0 | Q8: =IF(E39<($AA$4*0.5),0,(E39*P8)/360) -> 0 | U8: 2019-09-30 | W8: 0 | Y8: =IF(W8=0,0,SUM($W$8:W8)/13) -> 0 | AA8: 0 | AC8: =+AA8/360*W8 -> 0 | AD8: =IF(W8=0,0,200000000-W8) -> 0 | AF8: =IF(AD8=0,0,0.1%) -> 0 | AH8: =+AF8/360*AD8 -> 0 | AJ8: =IF(W8=0,0,((W8*AA8)+(AD8*AF8))/W8) -> 0 | AK8: =IF(W8=0,0,+((AVERAGE($AC$8:AC8)+AVERAGE($AH$8:AH8))/AVERAGE($W$8:W8))*360) -> 0
C9: =C8+1 -> 2016-10-02 | E9: =+E8 -> 0 | G9: =IF(E9>0,G8,0) -> 0 | I9: 0 | K9: 200000000 | M9: =+M8 -> 0.001 | O9: =K9*M9/360 -> 555.5555556 | P9: 0 | Q9: 0 | U9: 2019-10-30 | W9: 0 | Y9: =IF(W9=0,0,SUM($W$8:W9)/13) -> 0 | AA9: 0 | AC9: 0 | AD9: 0 | AF9: 0 | AH9: 0 | AJ9: 0 | AK9: =IF(W9=0,0,+((AVERAGE($AC$8:AC9)+AVERAGE($AH$8:AH9))/AVERAGE($W$8:W9))*360) -> 0
C10: =C9+1 -> 2016-10-03 | E10: =+E9 -> 0 | G10: =IF(E10>0,G9,0) -> 0 | I10: 0 | K10: 200000000 | M10: =+M9 -> 0.001 | O10: =K10*M10/360 -> 555.5555556 | P10: 0 | Q10: 0 | U10: 2019-11-30 | W10: 0 | Y10: =IF(W10=0,0,SUM($W$8:W10)/13) -> 0 | AA10: 0 | AC10: 0 | AD10: 0 | AF10: 0 | AH10: 0 | AJ10: 0 | AK10: =IF(W10=0,0,+((AVERAGE($AC$8:AC10)+AVERAGE($AH$8:AH10))/AVERAGE($W$8:W10))*360) -> 0
C11: 2016-10-04 | E11: 0 | G11: 0 | I11: 0 | K11: 200000000 | M11: 0.001 | O11: 555.5555556 | P11: 0 | Q11: 0 | U11: 2019-12-31 | W11: 0 | Y11: =IF(W11=0,0,SUM(W8:W11)/13) -> 0 | AA11: 0 | AC11: 0 | AD11: 0 | AF11: 0 | AH11: 0 | AJ11: 0 | AK11: =IF(W11=0,0,+((AVERAGE($AC$8:AC11)+AVERAGE($AH$8:AH11))/AVERAGE($W$8:W11))*360) -> 0
C12: 2016-10-05 | E12: 0 | G12: 0 | I12: 0 | K12: 200000000 | M12: 0.001 | O12: 555.5555556 | P12: 0 | Q12: 0 | U12: 2020-01-31 | W12: 0 | Y12: =IF(W12=0,0,SUM(W8:W12)/13) -> 0 | AA12: 0 | AC12: 0 | AD12: 0 | AF12: 0 | AH12: 0 | AJ12: 0 | AK12: =IF(W12=0,0,+((AVERAGE($AC$8:AC12)+AVERAGE($AH$8:AH12))/AVERAGE($W$8:W12))*360) -> 0
C13: 2016-10-06 | E13: 0 | G13: 0 | I13: 0 | K13: 200000000 | M13: 0.001 | O13: 555.5555556 | P13: 0 | Q13: 0 | U13: 2020-02-29 | W13: 0 | Y13: =IF(W13=0,0,SUM(W8:W13)/13) -> 0 | AA13: 0 | AC13: 0 | AD13: 0 | AF13: 0 | AH13: 0 | AJ13: 0 | AK13: =IF(W13=0,0,+((AVERAGE($AC$8:AC13)+AVERAGE($AH$8:AH13))/AVERAGE($W$8:W13))*360) -> 0
C14: 2016-10-07 | E14: 0 | G14: 0 | I14: 0 | K14: 200000000 | M14: 0.001 | O14: =K14*M14/360 -> 555.5555556 | P14: 0 | Q14: 0 | U14: 2020-03-31 | W14: 0 | Y14: =IF(W14=0,0,SUM(W8:W14)/13) -> 0 | AA14: 0 | AC14: 0 | AD14: 0 | AF14: 0 | AH14: 0 | AJ14: 0 | AK14: =IF(W14=0,0,+((AVERAGE(AC8:AC14)+AVERAGE(AH8:AH14))/AVERAGE(W8:W14))*360) -> 0
C15: 2016-10-08 | E15: 0 | G15: 0 | I15: 0 | K15: 200000000 | M15: 0.001 | O15: 555.5555556 | P15: 0 | Q15: 0 | U15: 2020-04-30 | W15: 0 | Y15: =IF(W15=0,0,SUM(W8:W15)/13) -> 0 | AA15: 0 | AC15: 0 | AD15: 0 | AF15: 0 | AH15: 0 | AJ15: 0 | AK15: =IF(W15=0,0,+((AVERAGE(AC8:AC15)+AVERAGE(AH8:AH15))/AVERAGE(W8:W15))*360) -> 0
C16: 2016-10-09 | E16: 0 | G16: 0 | I16: 0 | K16: 200000000 | M16: 0.001 | O16: 555.5555556 | P16: 0 | Q16: 0 | U16: 2020-05-31 | W16: 0 | Y16: =IF(W16=0,0,SUM(W8:W16)/13) -> 0 | AA16: 0 | AC16: 0 | AD16: 0 | AF16: 0 | AH16: 0 | AJ16: 0 | AK16: =IF(W16=0,0,+((AVERAGE(AC8:AC16)+AVERAGE(AH8:AH16))/AVERAGE(W8:W16))*360) -> 0
C17: 2016-10-10 | E17: 0 | G17: 0 | I17: 0 | K17: 200000000 | M17: 0.001 | O17: 555.5555556 | P17: 0 | Q17: 0 | U17: 2020-06-30 | W17: 0 | Y17: =IF(W17=0,0,SUM(W8:W17)/13) -> 0 | AA17: 0 | AC17: 0 | AD17: 0 | AF17: 0 | AH17: 0 | AJ17: 0 | AK17: =IF(W17=0,0,+((AVERAGE(AC8:AC17)+AVERAGE(AH8:AH17))/AVERAGE(W8:W17))*360) -> 0
C18: 2016-10-11 | E18: 0 | G18: 0 | I18: 0 | K18: 200000000 | M18: 0.001 | O18: 555.5555556 | P18: 0 | Q18: 0 | U18: 2020-07-30 | W18: 0 | Y18: =IF(W18=0,0,SUM(W8:W18)/13) -> 0 | AA18: 0 | AC18: 0 | AD18: 0 | AF18: 0 | AH18: 0 | AJ18: 0 | AK18: =IF(W18=0,0,+((AVERAGE(AC8:AC18)+AVERAGE(AH8:AH18))/AVERAGE(W8:W18))*360) -> 0
C19: 2016-10-12 | E19: 0 | G19: 0 | I19: 0 | K19: 200000000 | M19: 0.001 | O19: 555.5555556 | P19: 0 | Q19: 0 | U19: 2020-08-30 | W19: 0 | Y19: =IF(W19=0,0,SUM(W8:W19)/13) -> 0 | AA19: 0 | AC19: 0 | AD19: 0 | AF19: 0 | AH19: 0 | AJ19: 0 | AK19: =IF(W19=0,0,+((AVERAGE(AC8:AC19)+AVERAGE(AH8:AH19))/AVERAGE(W8:W19))*360) -> 0
C20: 2016-10-13 | E20: 0 | G20: 0 | I20: 0 | K20: 200000000 | M20: 0.001 | O20: 555.5555556 | P20: 0 | Q20: 0 | U20: 2020-09-30 | W20: 0 | Y20: =IF(W20=0,0,SUM(W8:W20)/13) -> 0 | AA20: 0 | AC20: =+AA20/360*W20 -> 0 | AD20: =IF(W20=0,0,200000000-W20) -> 0 | AF20: =IF(AD20=0,0,0.1%) -> 0 | AH20: =+AF20/360*AD20 -> 0 | AJ20: =IF(W20=0,0,((W20*AA20)+(AD20*AF20))/W20) -> 0 | AK20: =IF(W20=0,0,+((AVERAGE(AC8:AC20)+AVERAGE(AH8:AH20))/AVERAGE(W8:W20))*360) -> 0
C21: 2016-10-14 | E21: 0 | G21: 0 | I21: 0 | K21: 200000000 | M21: 0.001 | O21: 555.5555556 | P21: 0 | Q21: 0
C22: 2016-10-15 | E22: 0 | G22: 0 | I22: 0 | K22: 200000000 | M22: 0.001 | O22: 555.5555556 | P22: 0 | Q22: 0
C23: 2016-10-16 | E23: 0 | G23: 0 | I23: 0 | K23: 200000000 | M23: 0.001 | O23: 555.5555556 | P23: 0 | Q23: 0
C24: 2016-10-17 | E24: 0 | G24: 0 | I24: 0 | K24: 200000000 | M24: 0.001 | O24: 555.5555556 | P24: 0 | Q24: 0
C25: 2016-10-18 | E25: 0 | G25: 0 | I25: 0 | K25: 200000000 | M25: 0.001 | O25: 555.5555556 | P25: 0 | Q25: 0
C26: 2016-10-19 | E26: 0 | G26: 0 | I26: 0 | K26: 200000000 | M26: 0.001 | O26: 555.5555556 | P26: 0 | Q26: 0
C27: 2016-10-20 | E27: 0 | G27: 0 | I27: 0 | K27: 200000000 | M27: 0.001 | O27: 555.5555556 | P27: 0 | Q27: 0
C28: 2016-10-21 | E28: 0 | G28: 0 | I28: 0 | K28: 200000000 | M28: 0.001 | O28: 555.5555556 | P28: 0 | Q28: 0
C29: 2016-10-22 | E29: 0 | G29: 0 | I29: 0 | K29: 200000000 | M29: 0.001 | O29: 555.5555556 | P29: 0 | Q29: 0
C30: 2016-10-23 | E30: 0 | G30: 0 | I30: 0 | K30: =$E$4-E30 -> 200000000 | M30: 0.001 | O30: 555.5555556 | P30: 0 | Q30: 0
C31: 2016-10-24 | E31: 125000000 | G31: 0.01424 | I31: =ROUND(E31*G31/360,3) -> 4944.444 | K31: =IF(E31=0,0,$E$4-E31) -> 75000000 | M31: 0.001 | O31: 208.3333333 | P31: 0 | Q31: 0
C32: 2016-10-25 | E32: =+E31 -> 125000000 | G32: 0.01424 | I32: =ROUND(E32*G32/360,3) -> 4944.444 | K32: =IF(E32=0,0,$E$4-E32) -> 75000000 | M32: 0.001 | O32: 208.3333333 | P32: 0 | Q32: 0
C33: 2016-10-26 | E33: =+E32 -> 125000000 | G33: 0.01424 | I33: 4944.444 | K33: 75000000 | M33: 0.001 | O33: 208.3333333 | P33: 0 | Q33: 0
C34: 2016-10-27 | E34: 125000000 | G34: 0.01424 | I34: 4944.444 | K34: 75000000 | M34: 0.001 | O34: 208.3333333 | P34: 0 | Q34: 0
C35: 2016-10-28 | E35: 125000000 | G35: 0.01424 | I35: 4944.444 | K35: 75000000 | M35: 0.001 | O35: 208.3333333 | P35: 0 | Q35: 0
C36: 2016-10-29 | E36: 125000000 | G36: 0.01424 | I36: 4944.444 | K36: 75000000 | M36: 0.001 | O36: 208.3333333 | P36: 0 | Q36: 0
C37: 2016-10-30 | E37: 125000000 | G37: 0.01424 | I37: 4944.444 | K37: 75000000 | M37: 0.001 | O37: 208.3333333 | P37: 0 | Q37: 0
C38: 2016-10-31 | E38: 125000000 | G38: 0.01424 | I38: 4944.444 | K38: 75000000 | M38: 0.001 | O38: 208.3333333 | P38: 0 | Q38: =IF(E68<($AA$4*0.5),0,(E68*P37)/360) -> 0
C39: 2016-11-01 | E39: 125000000 | G39: 0.0143 | I39: =ROUND(E39*G39/360,3) -> 4965.278 | K39: 75000000 | M39: 0.001 | O39: =K39*M39/360 -> 208.3333333 | Q39: =SUM(O8:O37) -> 14236.11111
C40: 2016-11-02 | E40: =+E39 -> 125000000 | G40: 0.0143 | I40: =ROUND(E40*G40/360,3) -> 4965.278 | K40: 75000000 | M40: 0.001 | O40: =K40*M40/360 -> 208.3333333
C41: 2016-11-03 | E41: =+E40 -> 125000000 | G41: 0.0143 | I41: 4965.278 | K41: 75000000 | M41: 0.001 | O41: =K41*M41/360 -> 208.3333333
C42: 2016-11-04 | E42: 125000000 | G42: 0.0143 | I42: 4965.278 | K42: 75000000 | M42: 0.001 | O42: 208.3333333
C43: 2016-11-05 | E43: 125000000 | G43: 0.0143 | I43: 4965.278 | K43: 75000000 | M43: 0.001 | O43: 208.3333333
C44: 2016-11-06 | E44: 125000000 | G44: 0.0143 | I44: 4965.278 | K44: 75000000 | M44: 0.001 | O44: 208.3333333
C45: 2016-11-07 | E45: 125000000 | G45: 0.0143 | I45: 4965.278 | K45: 75000000 | M45: 0.001 | O45: =K45*M45/360 -> 208.3333333
C46: 2016-11-08 | E46: 125000000 | G46: 0.0143 | I46: 4965.278 | K46: 75000000 | M46: 0.001 | O46: 208.3333333
C47: 2016-11-09 | E47: 125000000 | G47: 0.0143 | I47: 4965.278 | K47: 75000000 | M47: 0.001 | O47: 208.3333333
C48: 2016-11-10 | E48: 125000000 | G48: 0.0143 | I48: 4965.278 | K48: 75000000 | M48: 0.001 | O48: 208.3333333
C49: 2016-11-11 | E49: 125000000 | G49: 0.0143 | I49: 4965.278 | K49: 75000000 | M49: 0.001 | O49: 208.3333333
C50: 2016-11-12 | E50: 125000000 | G50: 0.0143 | I50: 4965.278 | K50: 75000000 | M50: 0.001 | O50: 208.3333333
C51: 2016-11-13 | E51: 125000000 | G51: 0.0143 | I51: 4965.278 | K51: 75000000 | M51: 0.001 | O51: 208.3333333
C52: 2016-11-14 | E52: 125000000 | G52: 0.0143 | I52: 4965.278 | K52: 75000000 | M52: 0.001 | O52: 208.3333333
C53: 2016-11-15 | E53: 125000000 | G53: 0.0143 | I53: 4965.278 | K53: 75000000 | M53: 0.001 | O53: 208.3333333
C54: 2016-11-16 | E54: 125000000 | G54: 0.0143 | I54: 4965.278 | K54: 75000000 | M54: 0.001 | O54: 208.3333333
C55: 2016-11-17 | E55: 125000000 | G55: 0.0143 | I55: 4965.278 | K55: 75000000 | M55: 0.001 | O55: 208.3333333
C56: 2016-11-18 | E56: 125000000 | G56: 0.0143 | I56: 4965.278 | K56: 75000000 | M56: 0.001 | O56: 208.3333333
C57: 2016-11-19 | E57: 125000000 | G57: 0.0143 | I57: 4965.278 | K57: 75000000 | M57: 0.001 | O57: 208.3333333
C58: 2016-11-20 | E58: 125000000 | G58: 0.0143 | I58: 4965.278 | K58: 75000000 | M58: 0.001 | O58: 208.3333333
C59: 2016-11-21 | E59: 125000000 | G59: 0.0143 | I59: 4965.278 | K59: 75000000 | M59: 0.001 | O59: 208.3333333
C60: 2016-11-22 | E60: 125000000 | G60: 0.0143 | I60: 4965.278 | K60: 75000000 | M60: 0.001 | O60: 208.3333333
C61: 2016-11-23 | E61: 125000000 | G61: 0.0143 | I61: 4965.278 | K61: 75000000 | M61: 0.001 | O61: 208.3333333
C62: 2016-11-24 | E62: 125000000 | G62: 0.0143 | I62: 4965.278 | K62: 75000000 | M62: 0.001 | O62: 208.3333333
C63: 2016-11-25 | E63: 125000000 | G63: 0.015 | I63: 5208.333 | K63: 75000000 | M63: 0.001 | O63: 208.3333333
C64: 2016-11-26 | E64: =+E63 -> 125000000 | G64: 0.015 | I64: 5208.333 | K64: 75000000 | M64: 0.001 | O64: 208.3333333
C65: 2016-11-27 | E65: 125000000 | G65: 0.015 | I65: 5208.333 | K65: 75000000 | M65: 0.001 | O65: 208.3333333
C66: 2016-11-28 | E66: 125000000 | G66: 0.015 | I66: 5208.333 | K66: 75000000 | M66: 0.001 | O66: 208.3333333
C67: 2016-11-29 | E67: 125000000 | G67: 0.015 | I67: 5208.333 | K67: 75000000 | M67: 0.001 | O67: 208.3333333
C68: 2016-11-30 | E68: 125000000 | G68: 0.015 | I68: 5208.333 | K68: 75000000 | M68: 0.001 | O68: 208.3333333
C69: 2016-12-01 | E69: 125000000 | G69: =IF(E69>0,G68,0) -> 0.015 | I69: =ROUND(E69*G69/360,3) -> 5208.333 | K69: =IF(E69=0,0,$E$4-E69) -> 75000000 | M69: 0.001 | O69: =K69*M69/360 -> 208.3333333
C70: 2016-12-02 | E70: 125000000 | G70: =IF(E70>0,G69,0) -> 0.015 | I70: 5208.333 | K70: 75000000 | M70: 0.001 | O70: 208.3333333
C71: 2016-12-03 | E71: 125000000 | G71: 0.015 | I71: 5208.333 | K71: 75000000 | M71: 0.001 | O71: 208.3333333
C72: 2016-12-04 | E72: 125000000 | G72: 0.015 | I72: 5208.333 | K72: 75000000 | M72: 0.001 | O72: 208.3333333
C73: 2016-12-05 | E73: 125000000 | G73: 0.015 | I73: 5208.333 | K73: 75000000 | M73: 0.001 | O73: 208.3333333
C74: 2016-12-06 | E74: 125000000 | G74: 0.015 | I74: 5208.333 | K74: 75000000 | M74: =+M73 -> 0.001 | O74: 208.3333333
C75: =C74+1 -> 2016-12-07 | E75: 125000000 | G75: 0.015 | I75: 5208.333 | K75: 75000000 | M75: 0.001 | O75: 208.3333333
C76: 2016-12-08 | E76: 125000000 | G76: 0.015 | I76: 5208.333 | K76: 75000000 | M76: 0.001 | O76: 208.3333333
C77: 2016-12-09 | E77: 125000000 | G77: 0.015 | I77: 5208.333 | K77: 75000000 | M77: 0.001 | O77: 208.3333333
C78: 2016-12-10 | E78: 125000000 | G78: 0.015 | I78: 5208.333 | K78: 75000000 | M78: 0.001 | O78: 208.3333333
C79: 2016-12-11 | E79: 125000000 | G79: 0.015 | I79: 5208.333 | K79: 75000000 | M79: 0.001 | O79: 208.3333333
C80: 2016-12-12 | E80: 125000000 | G80: 0.015 | I80: 5208.333 | K80: 75000000 | M80: 0.001 | O80: 208.3333333
C81: 2016-12-13 | E81: 125000000 | G81: 0.015 | I81: 5208.333 | K81: 75000000 | M81: 0.001 | O81: 208.3333333
C82: 2016-12-14 | E82: 125000000 | G82: 0.015 | I82: 5208.333 | K82: 75000000 | M82: 0.001 | O82: 208.3333333
C83: 2016-12-15 | E83: 125000000 | G83: 0.015 | I83: 5208.333 | K83: 75000000 | M83: 0.001 | O83: 208.3333333
C84: 2016-12-16 | E84: 125000000 | G84: 0.015 | I84: 5208.333 | K84: 75000000 | M84: 0.001 | O84: 208.3333333
C85: 2016-12-17 | E85: 125000000 | G85: 0.015 | I85: 5208.333 | K85: 75000000 | M85: 0.001 | O85: 208.3333333
C86: 2016-12-18 | E86: 125000000 | G86: 0.015 | I86: 5208.333 | K86: 75000000 | M86: 0.001 | O86: 208.3333333
C87: 2016-12-19 | E87: 125000000 | G87: 0.015 | I87: 5208.333 | K87: 75000000 | M87: 0.001 | O87: 208.3333333
C88: 2016-12-20 | E88: 125000000 | G88: 0.015 | I88: 5208.333 | K88: 75000000 | M88: 0.001 | O88: 208.3333333
C89: 2016-12-21 | E89: 125000000 | G89: 0.015 | I89: 5208.333 | K89: 75000000 | M89: 0.001 | O89: 208.3333333
C90: 2016-12-22 | E90: 125000000 | G90: 0.015 | I90: 5208.333 | K90: 75000000 | M90: 0.001 | O90: 208.3333333
C91: 2016-12-23 | E91: 125000000 | G91: 0.015 | I91: 5208.333 | K91: 75000000 | M91: 0.001 | O91: 208.3333333
C92: 2016-12-24 | E92: 125000000 | G92: 0.015 | I92: 5208.333 | K92: 75000000 | M92: 0.001 | O92: 208.3333333
C93: 2016-12-25 | E93: 125000000 | G93: 0.015 | I93: 5208.333 | K93: 75000000 | M93: 0.001 | O93: 208.3333333
C94: 2016-12-26 | E94: 125000000 | G94: 0.015 | I94: 5208.333 | K94: 75000000 | M94: 0.001 | O94: 208.3333333
C95: 2016-12-27 | E95: 125000000 | G95: 0.0166 | I95: 5763.889 | K95: 75000000 | M95: 0.001 | O95: 208.3333333
C96: 2016-12-28 | E96: 125000000 | G96: 0.0166 | I96: 5763.889 | K96: 75000000 | M96: 0.001 | O96: 208.3333333
C97: 2016-12-29 | E97: 125000000 | G97: 0.0166 | I97: 5763.889 | K97: 75000000 | M97: 0.001 | O97: 208.3333333
C98: 2016-12-30 | E98: 125000000 | G98: 0.0166 | I98: 5763.889 | K98: 75000000 | M98: 0.001 | O98: 208.3333333
C99: 2016-12-31 | E99: 125000000 | G99: 0.0166 | I99: 5763.889 | K99: 75000000 | M99: 0.001 | O99: 208.3333333
C100: 2017-01-01 | E100: 125000000 | G100: =IF(E100>0,G99,0) -> 0.0166 | I100: =ROUND(E100*G100/360,3) -> 5763.889 | K100: =IF(E100=0,0,$E$4-E100) -> 75000000 | M100: 0.001 | O100: =K100*M100/360 -> 208.3333333
C101: 2017-01-02 | E101: 125000000 | G101: =IF(E101>0,G100,0) -> 0.0166 | I101: 5763.889 | K101: 75000000 | M101: 0.001 | O101: 208.3333333
C102: 2017-01-03 | E102: 125000000 | G102: 0.0166 | I102: 5763.889 | K102: 75000000 | M102: 0.001 | O102: 208.3333333
C103: 2017-01-04 | E103: 125000000 | G103: 0.0166 | I103: 5763.889 | K103: 75000000 | M103: 0.001 | O103: 208.3333333
C104: 2017-01-05 | E104: 125000000 | G104: 0.0166 | I104: 5763.889 | K104: 75000000 | M104: 0.001 | O104: 208.3333333
C105: 2017-01-06 | E105: 125000000 | G105: 0.0166 | I105: 5763.889 | K105: 75000000 | M105: 0.001 | O105: 208.3333333
C106: 2017-01-07 | E106: 125000000 | G106: 0.0166 | I106: 5763.889 | K106: 75000000 | M106: 0.001 | O106: 208.3333333
C107: 2017-01-08 | E107: 125000000 | G107: 0.0166 | I107: 5763.889 | K107: 75000000 | M107: 0.001 | O107: 208.3333333
C108: 2017-01-09 | E108: 125000000 | G108: 0.0166 | I108: 5763.889 | K108: 75000000 | M108: 0.001 | O108: 208.3333333
C109: 2017-01-10 | E109: 125000000 | G109: 0.0166 | I109: 5763.889 | K109: 75000000 | M109: 0.001 | O109: 208.3333333
C110: 2017-01-11 | E110: 125000000 | G110: 0.0166 | I110: 5763.889 | K110: 75000000 | M110: 0.001 | O110: 208.3333333
C111: 2017-01-12 | E111: 125000000 | G111: 0.0166 | I111: 5763.889 | K111: 75000000 | M111: 0.001 | O111: 208.3333333
C112: 2017-01-13 | E112: 125000000 | G112: 0.0166 | I112: 5763.889 | K112: 75000000 | M112: 0.001 | O112: 208.3333333
C113: 2017-01-14 | E113: 125000000 | G113: 0.0166 | I113: 5763.889 | K113: 75000000 | M113: 0.001 | O113: 208.3333333
C114: 2017-01-15 | E114: 125000000 | G114: 0.0166 | I114: 5763.889 | K114: 75000000 | M114: 0.001 | O114: 208.3333333
C115: 2017-01-16 | E115: 125000000 | G115: 0.0166 | I115: 5763.889 | K115: 75000000 | M115: 0.001 | O115: 208.3333333
C116: 2017-01-17 | E116: 125000000 | G116: 0.0166 | I116: 5763.889 | K116: 75000000 | M116: 0.001 | O116: 208.3333333
C117: 2017-01-18 | E117: 125000000 | G117: 0.0166 | I117: 5763.889 | K117: 75000000 | M117: 0.001 | O117: 208.3333333
C118: 2017-01-19 | E118: 125000000 | G118: 0.0166 | I118: 5763.889 | K118: 75000000 | M118: 0.001 | O118: 208.3333333
C119: 2017-01-20 | E119: 125000000 | G119: 0.0166 | I119: 5763.889 | K119: 75000000 | M119: 0.001 | O119: 208.3333333
C120: 2017-01-21 | E120: 125000000 | G120: 0.0166 | I120: 5763.889 | K120: 75000000 | M120: 0.001 | O120: 208.3333333
C121: 2017-01-22 | E121: 125000000 | G121: 0.0166 | I121: 5763.889 | K121: 75000000 | M121: 0.001 | O121: 208.3333333
C122: 2017-01-23 | E122: 125000000 | G122: 0.0166 | I122: 5763.889 | K122: 75000000 | M122: 0.001 | O122: 208.3333333
C123: 2017-01-24 | E123: 125000000 | G123: 0.0166 | I123: 5763.889 | K123: 75000000 | M123: 0.001 | O123: 208.3333333
C124: 2017-01-25 | E124: 125000000 | G124: 0.0166 | I124: 5763.889 | K124: 75000000 | M124: 0.001 | O124: 208.3333333
C125: 2017-01-26 | E125: 125000000 | G125: 0.0166 | I125: 5763.889 | K125: 75000000 | M125: 0.001 | O125: 208.3333333
C126: 2017-01-27 | E126: 125000000 | G126: 0.0168 | I126: 5833.333 | K126: 75000000 | M126: 0.001 | O126: 208.3333333
C127: 2017-01-28 | E127: 125000000 | G127: 0.0168 | I127: 5833.333 | K127: 75000000 | M127: 0.001 | O127: 208.3333333
C128: 2017-01-29 | E128: =+E127 -> 125000000 | G128: 0.0168 | I128: 5833.333 | K128: 75000000 | M128: 0.001 | O128: 208.3333333
C129: 2017-01-30 | E129: =+E128 -> 125000000 | G129: 0.0168 | I129: 5833.333 | K129: 75000000 | M129: 0.001 | O129: 208.3333333
C130: 2017-01-31 | E130: =+E129 -> 125000000 | G130: 0.0168 | I130: 5833.333 | K130: 75000000 | M130: 0.001 | O130: 208.3333333
C131: 2017-02-01 | E131: 125000000 | G131: 0.0168 | I131: =ROUND(E131*G131/360,3) -> 5833.333 | K131: 75000000 | M131: 0.001 | O131: 208.3333333 | P131: 0 | Q131: =IF(E131<($Y$4*0.5),0,(E131*P131)/360) -> 0
C132: 2017-02-02 | E132: =+E131 -> 125000000 | G132: 0.0168 | I132: =ROUND(E132*G132/360,3) -> 5833.333 | K132: 75000000 | M132: 0.001 | O132: 208.3333333 | P132: 0 | Q132: =IF(E132<($Y$4*0.5),0,(E132*P132)/360) -> 0
C133: 2017-02-03 | E133: =+E132 -> 125000000 | G133: 0.0168 | I133: 5833.333 | K133: 75000000 | M133: 0.001 | O133: 208.3333333 | P133: 0 | Q133: =IF(E133<($Y$4*0.5),0,(E133*P133)/360) -> 0
C134: 2017-02-04 | E134: 125000000 | G134: 0.0168 | I134: 5833.333 | K134: 75000000 | M134: 0.001 | O134: 208.3333333 | P134: 0 | Q134: =IF(E134<($Y$4*0.5),0,(E134*P134)/360) -> 0
C135: 2017-02-05 | E135: 125000000 | G135: 0.0168 | I135: 5833.333 | K135: 75000000 | M135: 0.001 | O135: 208.3333333 | P135: 0 | Q135: 0
C136: 2017-02-06 | E136: 125000000 | G136: 0.0168 | I136: 5833.333 | K136: 75000000 | M136: 0.001 | O136: 208.3333333 | P136: 0 | Q136: 0
C137: 2017-02-07 | E137: 125000000 | G137: 0.0168 | I137: 5833.333 | K137: 75000000 | M137: 0.001 | O137: 208.3333333 | P137: 0 | Q137: 0
C138: 2017-02-08 | E138: 125000000 | G138: 0.0168 | I138: 5833.333 | K138: 75000000 | M138: 0.001 | O138: 208.3333333 | P138: 0 | Q138: 0
C139: =C138+1 -> 2017-02-09 | E139: 125000000 | G139: 0.0168 | I139: 5833.333 | K139: 75000000 | M139: 0.001 | O139: 208.3333333 | P139: 0 | Q139: 0
C140: 2017-02-10 | E140: 125000000 | G140: 0.0168 | I140: 5833.333 | K140: 75000000 | M140: 0.001 | O140: 208.3333333 | P140: 0 | Q140: 0
C141: 2017-02-11 | E141: 125000000 | G141: 0.0168 | I141: 5833.333 | K141: 75000000 | M141: 0.001 | O141: 208.3333333 | P141: 0 | Q141: 0
C142: 2017-02-12 | E142: 125000000 | G142: 0.0168 | I142: 5833.333 | K142: 75000000 | M142: 0.001 | O142: 208.3333333 | P142: 0 | Q142: 0
C143: 2017-02-13 | E143: 125000000 | G143: 0.0168 | I143: 5833.333 | K143: 75000000 | M143: 0.001 | O143: 208.3333333 | P143: 0 | Q143: 0
C144: 2017-02-14 | E144: 125000000 | G144: 0.0168 | I144: 5833.333 | K144: 75000000 | M144: 0.001 | O144: 208.3333333 | P144: 0 | Q144: 0
C145: 2017-02-15 | E145: 125000000 | G145: 0.0168 | I145: 5833.333 | K145: 75000000 | M145: 0.001 | O145: 208.3333333 | P145: 0 | Q145: 0
C146: 2017-02-16 | E146: 125000000 | G146: 0.0168 | I146: 5833.333 | K146: 75000000 | M146: 0.001 | O146: 208.3333333 | P146: 0 | Q146: 0
C147: 2017-02-17 | E147: 125000000 | G147: 0.0168 | I147: 5833.333 | K147: 75000000 | M147: 0.001 | O147: 208.3333333 | P147: 0 | Q147: 0
C148: 2017-02-18 | E148: 125000000 | G148: 0.0168 | I148: 5833.333 | K148: 75000000 | M148: 0.001 | O148: 208.3333333 | P148: 0 | Q148: 0
C149: 2017-02-19 | E149: 125000000 | G149: 0.0168 | I149: 5833.333 | K149: 75000000 | M149: 0.001 | O149: 208.3333333 | P149: 0 | Q149: 0
C150: 2017-02-20 | E150: 125000000 | G150: 0.0168 | I150: 5833.333 | K150: 75000000 | M150: 0.001 | O150: 208.3333333 | P150: 0 | Q150: 0
C151: 2017-02-21 | E151: 125000000 | G151: 0.0168 | I151: 5833.333 | K151: 75000000 | M151: 0.001 | O151: 208.3333333 | P151: 0 | Q151: 0
C152: 2017-02-22 | E152: 125000000 | G152: 0.0168 | I152: 5833.333 | K152: 75000000 | M152: 0.001 | O152: 208.3333333 | P152: 0 | Q152: 0
C153: 2017-02-23 | E153: 125000000 | G153: 0.0168 | I153: 5833.333 | K153: 75000000 | M153: 0.001 | O153: 208.3333333 | P153: 0 | Q153: 0
C154: 2017-02-24 | E154: 125000000 | G154: 0.0168 | I154: 5833.333 | K154: 75000000 | M154: 0.001 | O154: 208.3333333 | P154: 0 | Q154: 0
C155: 2017-02-25 | E155: =+E154 -> 125000000 | G155: 0.0168 | I155: 5833.333 | K155: 75000000 | M155: 0.001 | O155: 208.3333333 | P155: 0 | Q155: 0
C156: 2017-02-26 | E156: =+E155 -> 125000000 | G156: 0.0168 | I156: 5833.333 | K156: 75000000 | M156: 0.001 | O156: 208.3333333 | P156: 0 | Q156: 0
C157: 2017-02-27 | E157: 125000000 | G157: 0.0168 | I157: 5833.333 | K157: 75000000 | M157: 0.001 | O157: 208.3333333 | P157: 0 | Q157: 0
C158: 2017-02-28 | E158: 125000000 | G158: 0.0168 | I158: 5833.333 | K158: 75000000 | M158: 0.001 | O158: 208.3333333 | P158: 0 | Q158: 0
C159: 2017-03-01 | E159: 125000000 | G159: =IF(E159>0,G158,0) -> 0.0168 | I159: =ROUND(E159*G159/360,3) -> 5833.333 | K159: =IF(E159=0,0,$E$4-E159) -> 75000000 | M159: =+M158 -> 0.001 | O159: =K159*M159/360 -> 208.3333333
C160: 2017-03-02 | E160: 125000000 | G160: 0.0168 | I160: 5833.333 | K160: =IF(E160=0,0,$E$4-E160) -> 75000000 | M160: 0.001 | O160: 208.3333333
C161: 2017-03-03 | E161: 125000000 | G161: 0.0168 | I161: 5833.333 | K161: 75000000 | M161: 0.001 | O161: 208.3333333
C162: 2017-03-04 | E162: 125000000 | G162: 0.0168 | I162: 5833.333 | K162: 75000000 | M162: 0.001 | O162: 208.3333333
C163: 2017-03-05 | E163: 125000000 | G163: 0.0168 | I163: 5833.333 | K163: 75000000 | M163: 0.001 | O163: 208.3333333
C164: 2017-03-06 | E164: 125000000 | G164: 0.0168 | I164: 5833.333 | K164: 75000000 | M164: 0.001 | O164: 208.3333333
C165: 2017-03-07 | E165: 125000000 | G165: 0.0168 | I165: 5833.333 | K165: 75000000 | M165: 0.001 | O165: 208.3333333
C166: 2017-03-08 | E166: 125000000 | G166: 0.0168 | I166: 5833.333 | K166: 75000000 | M166: 0.001 | O166: 208.3333333
C167: 2017-03-09 | E167: 125000000 | G167: 0.0168 | I167: 5833.333 | K167: 75000000 | M167: 0.001 | O167: 208.3333333
C168: 2017-03-10 | E168: 125000000 | G168: 0.0168 | I168: 5833.333 | K168: 75000000 | M168: 0.001 | O168: 208.3333333
C169: 2017-03-11 | E169: 125000000 | G169: 0.0168 | I169: 5833.333 | K169: 75000000 | M169: 0.001 | O169: 208.3333333
C170: 2017-03-12 | E170: 125000000 | G170: 0.0168 | I170: 5833.333 | K170: 75000000 | M170: 0.001 | O170: 208.3333333
C171: 2017-03-13 | E171: 125000000 | G171: 0.0168 | I171: 5833.333 | K171: 75000000 | M171: 0.001 | O171: 208.3333333
C172: 2017-03-14 | E172: 125000000 | G172: 0.0168 | I172: 5833.333 | K172: 75000000 | M172: 0.001 | O172: 208.3333333
C173: 2017-03-15 | E173: 125000000 | G173: 0.0168 | I173: 5833.333 | K173: 75000000 | M173: 0.001 | O173: 208.3333333
C174: 2017-03-16 | E174: 125000000 | G174: 0.0168 | I174: 5833.333 | K174: 75000000 | M174: 0.001 | O174: 208.3333333
C175: 2017-03-17 | E175: 125000000 | G175: 0.0168 | I175: 5833.333 | K175: 75000000 | M175: 0.001 | O175: 208.3333333
C176: 2017-03-18 | E176: 125000000 | G176: 0.0168 | I176: 5833.333 | K176: 75000000 | M176: 0.001 | O176: 208.3333333
C177: 2017-03-19 | E177: 125000000 | G177: 0.0168 | I177: 5833.333 | K177: 75000000 | M177: 0.001 | O177: 208.3333333
C178: 2017-03-20 | E178: 125000000 | G178: 0.0168 | I178: 5833.333 | K178: 75000000 | M178: 0.001 | O178: 208.3333333
C179: 2017-03-21 | E179: 125000000 | G179: 0.0168 | I179: 5833.333 | K179: 75000000 | M179: 0.001 | O179: 208.3333333
C180: 2017-03-22 | E180: 125000000 | G180: 0.0168 | I180: 5833.333 | K180: 75000000 | M180: 0.001 | O180: 208.3333333
C181: 2017-03-23 | E181: 125000000 | G181: 0.0168 | I181: 5833.333 | K181: 75000000 | M181: 0.001 | O181: 208.3333333
C182: 2017-03-24 | E182: 125000000 | G182: 0.0168 | I182: 5833.333 | K182: 75000000 | M182: 0.001 | O182: 208.3333333
C183: 2017-03-25 | E183: 125000000 | G183: 0.0168 | I183: 5833.333 | K183: 75000000 | M183: 0.001 | O183: 208.3333333
C184: 2017-03-26 | E184: 125000000 | G184: 0.0168 | I184: 5833.333 | K184: 75000000 | M184: 0.001 | O184: 208.3333333
C185: 2017-03-27 | E185: 125000000 | G185: 0.0189 | I185: 6562.5 | K185: 75000000 | M185: 0.001 | O185: 208.3333333
C186: 2017-03-28 | E186: 125000000 | G186: 0.0189 | I186: 6562.5 | K186: 75000000 | M186: 0.001 | O186: 208.3333333
C187: 2017-03-29 | E187: 125000000 | G187: 0.0189 | I187: 6562.5 | K187: 75000000 | M187: 0.001 | O187: 208.3333333
C188: 2017-03-30 | E188: 125000000 | G188: 0.0189 | I188: 6562.5 | K188: 75000000 | M188: 0.001 | O188: 208.3333333
C189: 2017-03-31 | E189: 125000000 | G189: 0.0189 | I189: 6562.5 | K189: 75000000 | M189: 0.001 | O189: 208.3333333
C190: 2017-04-01 | E190: 125000000 | G190: =IF(E190>0,G189,0) -> 0.0189 | I190: =ROUND(E190*G190/360,3) -> 6562.5 | K190: =IF(E190=0,0,$E$4-E190) -> 75000000 | M190: 0.001 | O190: =K190*M190/360 -> 208.3333333
C191: 2017-04-02 | E191: 125000000 | G191: 0.0189 | I191: 6562.5 | K191: 75000000 | M191: 0.001 | O191: 208.3333333
C192: 2017-04-03 | E192: 125000000 | G192: 0.0189 | I192: 6562.5 | K192: 75000000 | M192: 0.001 | O192: 208.3333333
C193: 2017-04-04 | E193: 125000000 | G193: 0.0189 | I193: 6562.5 | K193: 75000000 | M193: 0.001 | O193: 208.3333333
C194: 2017-04-05 | E194: 125000000 | G194: 0.0189 | I194: 6562.5 | K194: 75000000 | M194: 0.001 | O194: 208.3333333
C195: 2017-04-06 | E195: 125000000 | G195: 0.0189 | I195: 6562.5 | K195: 75000000 | M195: 0.001 | O195: 208.3333333
C196: 2017-04-07 | E196: 125000000 | G196: 0.0189 | I196: 6562.5 | K196: 75000000 | M196: 0.001 | O196: 208.3333333
C197: 2017-04-08 | E197: 125000000 | G197: 0.0189 | I197: 6562.5 | K197: 75000000 | M197: 0.001 | O197: 208.3333333
C198: 2017-04-09 | E198: 125000000 | G198: 0.0189 | I198: 6562.5 | K198: 75000000 | M198: 0.001 | O198: 208.3333333
C199: 2017-04-10 | E199: 125000000 | G199: 0.0189 | I199: 6562.5 | K199: 75000000 | M199: 0.001 | O199: 208.3333333
C200: 2017-04-11 | E200: 125000000 | G200: 0.0189 | I200: 6562.5 | K200: 75000000 | M200: 0.001 | O200: 208.3333333
C201: 2017-04-12 | E201: 125000000 | G201: 0.0189 | I201: 6562.5 | K201: 75000000 | M201: 0.001 | O201: 208.3333333
C202: 2017-04-13 | E202: 125000000 | G202: 0.0189 | I202: 6562.5 | K202: 75000000 | M202: 0.001 | O202: 208.3333333
... 900 more rows

Sheet Apr20_$200MM TL
B3: ATMOS ENERGY CORPORATION - LONG TERM DEBT DETAIL
B4: Credit Agricole | D4: 200000000 | K4: Term Loan | M4: Effective 04/09/20 to 04/09/22 | R4: 13Mth Avg
D5: Principal | F5: Principal | H5: Interest | J5: Daily | K5: Unused | M5: Commitment | O5: Commitment | Q5: Ending | R5: M/E Average
B6: Date | D6: Outstanding | F6: Outstanding | H6: Rate | J6: Interest | K6: Portion of | M6: Fee Rate | O6: Fee | Q6: Interest | R6: Interest
D7: M/E | F7: Average | J7: Calc | K7: Line | O7: Calc | Q7: Rate | R7: Rate
B8: 2020-03-31 | D8: 0 | F8: =IF(D8=0,0,SUM($D$8:D8)/13) -> 0 | H8: 0 | J8: =+H8/360*D8 -> 0 | K8: =IF(D8=0,0,200000000-D8) -> 0 | M8: =IF(K8=0,0,0.1%) -> 0 | O8: =+M8/360*K8 -> 0 | Q8: =IF(D8=0,0,((D8*H8)+(K8*M8))/D8) -> 0 | R8: =IF(D8=0,0,+((AVERAGE($J$8:J8)+AVERAGE($O$8:O8))/AVERAGE($D$8:D8))*360) -> 0
B9: 2020-04-30 | D9: 200000000 | F9: =IF(D9=0,0,SUM($D$8:D9)/13) -> 15384615.38 | H9: 0.0229475 | J9: 12748.61111 | K9: 0 | M9: 0 | O9: 0 | Q9: 0.0229475 | R9: =IF(D9=0,0,+((AVERAGE($J$8:J9)+AVERAGE($O$8:O9))/AVERAGE($D$8:D9))*360) -> 0.0229475
B10: 2020-05-31 | D10: 200000000 | F10: =IF(D10=0,0,SUM($D$8:D10)/13) -> 30769230.77 | H10: 0.0229475 | J10: 12748.61111 | K10: 0 | M10: 0 | O10: 0 | Q10: 0.0229475 | R10: =IF(D10=0,0,+((AVERAGE($J$8:J10)+AVERAGE($O$8:O10))/AVERAGE($D$8:D10))*360) -> 0.0229475
B11: 2020-06-30 | D11: 200000000 | F11: =IF(D11=0,0,SUM(D8:D11)/13) -> 46153846.15 | H11: 0.0229475 | J11: 12748.61111 | K11: 0 | M11: 0 | O11: 0 | Q11: 0.0229475 | R11: =IF(D11=0,0,+((AVERAGE($J$8:J11)+AVERAGE($O$8:O11))/AVERAGE($D$8:D11))*360) -> 0.0229475
B12: 2020-07-30 | D12: 200000000 | F12: =IF(D12=0,0,SUM(D8:D12)/13) -> 61538461.54 | H12: 0.023 | J12: 12777.77778 | K12: 0 | M12: 0 | O12: 0 | Q12: 0.023 | R12: =IF(D12=0,0,+((AVERAGE($J$8:J12)+AVERAGE($O$8:O12))/AVERAGE($D$8:D12))*360) -> 0.022960625
B13: 2020-08-30 | D13: 200000000 | F13: =IF(D13=0,0,SUM(D8:D13)/13) -> 76923076.92 | H13: 0.023 | J13: 12777.77778 | K13: 0 | M13: 0 | O13: 0 | Q13: 0.023 | R13: =IF(D13=0,0,+((AVERAGE($J$8:J13)+AVERAGE($O$8:O13))/AVERAGE($D$8:D13))*360) -> 0.0229685
B14: 2020-09-30 | D14: 200000000 | F14: =IF(D14=0,0,SUM(D8:D14)/13) -> 92307692.31 | H14: 0.023 | J14: 12777.77778 | K14: 0 | M14: 0 | O14: 0 | Q14: 0.023 | R14: =IF(D14=0,0,+((AVERAGE(J8:J14)+AVERAGE(O8:O14))/AVERAGE(D8:D14))*360) -> 0.02297375
B15: 2020-10-31 | D15: 200000000 | F15: =IF(D15=0,0,SUM(D8:D15)/13) -> 107692307.7 | H15: 0.023 | J15: 12777.77778 | K15: 0 | M15: 0 | O15: 0 | Q15: 0.023 | R15: =IF(D15=0,0,+((AVERAGE(J8:J15)+AVERAGE(O8:O15))/AVERAGE(D8:D15))*360) -> 0.0229775
B16: 2020-11-30 | D16: 200000000 | F16: =IF(D16=0,0,SUM(D8:D16)/13) -> 123076923.1 | H16: 0.023 | J16: 12777.77778 | K16: 0 | M16: 0 | O16: 0 | Q16: 0.023 | R16: =IF(D16=0,0,+((AVERAGE(J8:J16)+AVERAGE(O8:O16))/AVERAGE(D8:D16))*360) -> 0.0229803125
B17: 2020-12-31 | D17: 200000000 | F17: =IF(D17=0,0,SUM(D8:D17)/13) -> 138461538.5 | H17: 0.023 | J17: 12777.77778 | K17: 0 | M17: 0 | O17: 0 | Q17: 0.023 | R17: =IF(D17=0,0,+((AVERAGE(J8:J17)+AVERAGE(O8:O17))/AVERAGE(D8:D17))*360) -> 0.0229825
B18: 2021-01-31 | D18: 200000000 | F18: =IF(D18=0,0,SUM(D8:D18)/13) -> 153846153.8 | H18: 0.023 | J18: 12777.77778 | K18: 0 | M18: 0 | O18: 0 | Q18: 0.023 | R18: =IF(D18=0,0,+((AVERAGE(J8:J18)+AVERAGE(O8:O18))/AVERAGE(D8:D18))*360) -> 0.02298425
B19: 2021-02-28 | D19: 200000000 | F19: =IF(D19=0,0,SUM(D8:D19)/13) -> 169230769.2 | H19: 0.02425 | J19: 13472.22222 | K19: 0 | M19: 0 | O19: 0 | Q19: 0.02425 | R19: =IF(D19=0,0,+((AVERAGE(J8:J19)+AVERAGE(O8:O19))/AVERAGE(D8:D19))*360) -> 0.02309931818
B20: 2021-03-31 | D20: 200000000 | F20: =IF(D20=0,0,SUM(D8:D20)/13) -> 184615384.6 | H20: 0.02425 | J20: =+H20/360*D20 -> 13472.22222 | K20: =IF(D20=0,0,200000000-D20) -> 0 | M20: =IF(K20=0,0,0.1%) -> 0 | O20: =+M20/360*K20 -> 0 | Q20: =IF(D20=0,0,((D20*H20)+(K20*M20))/D20) -> 0.02425 | R20: =IF(D20=0,0,+((AVERAGE(J8:J20)+AVERAGE(O8:O20))/AVERAGE(D8:D20))*360) -> 0.02319520833
B21: *Bank administrative fees are captured in account 1860

Sheet FRN_$1.1BN
B3: ATMOS ENERGY CORPORATION - LONG TERM DEBT DETAIL
B4: Floating Rate Note | D4: 1100000000 | H4: Effective 03/09/21 to 03/09/23 | K4: 13Mth Avg
D5: Principal | F5: Principal | H5: Interest | J5: Daily | K5: M/E Average
B6: Date | D6: Outstanding | F6: Outstanding | H6: Rate | J6: Interest | K6: Interest
D7: M/E | F7: Average | J7: Calc | K7: Rate
B8: 2020-03-31 | D8: 0 | F8: =IF(D8=0,0,SUM($D$8:D8)/13) -> 0 | H8: 0 | J8: =+H8/360*D8 -> 0 | K8: =IF(D8=0,0,((AVERAGE(J8)/AVERAGE(D8))*360)) -> 0
B9: 2020-04-30 | D9: 0 | F9: =IF(D9=0,0,SUM($D$8:D9)/13) -> 0 | H9: 0 | J9: 0 | K9: =IF(D9=0,0,((AVERAGE(J8:J9)/AVERAGE(D8:D9))*360)) -> 0
B10: 2020-05-31 | D10: 0 | F10: =IF(D10=0,0,SUM($D$8:D10)/13) -> 0 | H10: 0 | J10: 0 | K10: =IF(D10=0,0,((AVERAGE(J8:J10)/AVERAGE(D8:D10))*360)) -> 0
B11: 2020-06-30 | D11: 0 | F11: =IF(D11=0,0,SUM(D8:D11)/13) -> 0 | H11: 0 | J11: 0 | K11: =IF(D11=0,0,((AVERAGE(J8:J11)/AVERAGE(D8:D11))*360)) -> 0
B12: 2020-07-30 | D12: 0 | F12: =IF(D12=0,0,SUM(D8:D12)/13) -> 0 | H12: 0 | J12: 0 | K12: =IF(D12=0,0,((AVERAGE(J8:J12)/AVERAGE(D8:D12))*360)) -> 0
B13: 2020-08-30 | D13: 0 | F13: =IF(D13=0,0,SUM(D8:D13)/13) -> 0 | H13: 0 | J13: 0 | K13: =IF(D13=0,0,((AVERAGE(J8:J13)/AVERAGE(D8:D13))*360)) -> 0
B14: 2020-09-30 | D14: 0 | F14: =IF(D14=0,0,SUM(D8:D14)/13) -> 0 | H14: 0 | J14: 0 | K14: =IF(D14=0,0,((AVERAGE(J8:J14)/AVERAGE(D8:D14))*360)) -> 0
B15: 2020-10-31 | D15: 0 | F15: =IF(D15=0,0,SUM(D8:D15)/13) -> 0 | H15: 0 | J15: 0 | K15: =IF(D15=0,0,((AVERAGE(J8:J15)/AVERAGE(D8:D15))*360)) -> 0
B16: 2020-11-30 | D16: 0 | F16: =IF(D16=0,0,SUM(D8:D16)/13) -> 0 | H16: 0 | J16: 0 | K16: =IF(D16=0,0,((AVERAGE(J8:J16)/AVERAGE(D8:D16))*360)) -> 0
B17: 2020-12-31 | D17: 0 | F17: =IF(D17=0,0,SUM(D8:D17)/13) -> 0 | H17: 0 | J17: 0 | K17: =IF(D17=0,0,((AVERAGE(J8:J17)/AVERAGE(D8:D17))*360)) -> 0
B18: 2021-01-31 | D18: 0 | F18: =IF(D18=0,0,SUM(D8:D18)/13) -> 0 | H18: 0 | J18: 0 | K18: =IF(D18=0,0,((AVERAGE(J8:J18)/AVERAGE(D8:D18))*360)) -> 0
B19: 2021-02-28 | D19: 0 | F19: =IF(D19=0,0,SUM(D8:D19)/13) -> 0 | H19: 0 | J19: 0 | K19: =IF(D19=0,0,((AVERAGE(J8:J19)/AVERAGE(D8:D19))*360)) -> 0
B20: 2021-03-31 | D20: 1100000000 | F20: =IF(D20=0,0,SUM(D8:D20)/13) -> 84615384.62 | H20: 0.0056538 | J20: =+H20/360*D20 -> 17275.5 | K20: =IF(D20=0,0,((AVERAGE(J8:J20)/AVERAGE(D8:D20))*360)) -> 0.0056538

Sheet 2250 LTDebt Premium
A1: Atmos Energy Corporation | W1: Atmos Energy Corporation
A2: Consolidated Long-Term Debt - Unamortized Premium Acct 2250 | W2: Unamortized Debt Premium - Acct 2250
A3: Calculation of 13 mth average balance | F3: 2250 | G3: 2250 | H3: 2250 | I3: 2250 | J3: 2250 | K3: 2250 | L3: 2250 | M3: 2250 | N3: 2250 | O3: 2250 | P3: 2250 | Q3: 2250 | R3: 2250 | W3: Analysis of monthly acct activity and balances
A4: ='LTD rate'!A3 -> March 31, 2021 | F4: Balance | G4: Balance | H4: Balance | I4: Balance | J4: Balance | K4: Balance | L4: Balance | M4: Balance | N4: Balance | O4: Balance | P4: Balance | Q4: Balance | R4: Balance | S4: 13 mth Avg | W4: =+'2260 LTDebt Discount'!V4 -> September 30, 2016 - September 30, 2017 | AA4: Debt Premium | AB4: Debt Premium | AD4: Debt Premium | AE4: Debt Premium | AG4: Debt Premium | AH4: Debt Premium | AJ4: Debt Premium | AK4: Debt Premium | AM4: Debt Premium | AN4: Debt Premium | AP4: Debt Premium | AQ4: Debt Premium | AS4: Debt Premium | AT4: Debt Premium | AV4: Debt Premium | AW4: Debt Premium | AY4: Debt Premium | AZ4: Debt Premium | BB4: Debt Premium | BC4: Debt Premium | BE4: Debt Premium | BF4: Debt Premium | BH4: Debt Premium | BI4: Debt Premium | BK4: Debt Premium | BL4: Debt Premium
D5: Full Premium | E5: 4290 | F5: Unamortized | G5: Unamortized | H5: Unamortized | I5: Unamortized | J5: Unamortized | K5: Unamortized | L5: Unamortized | M5: Unamortized | N5: Unamortized | O5: Unamortized | P5: Unamortized | Q5: Unamortized | R5: Unamortized | S5: Unamortized | AA5: 2250 | AB5: 2250 | AC5: 2250 | AD5: 2250 | AE5: 2250 | AG5: 2250 | AH5: 2250 | AJ5: 2250 | AK5: 2250 | AL5: 2250 | AM5: 2250 | AN5: 2250 | AO5: 2250 | AP5: 2250 | AQ5: 2250 | AR5: 2250 | AS5: 2250 | AT5: 2250 | AU5: 2250 | AV5: 2250 | AW5: 2250 | AX5: 2250 | AY5: 2250 | AZ5: 2250 | BA5: 2250 | BB5: 2250 | BC5: 2250 | BE5: 2250 | BF5: 2250 | BH5: 2250 | BI5: 2250 | BJ5: 2250 | BK5: 2250 | BL5: 2250 | BM5: 2250 | BN5: 2250
A6: Atmos Energy Corp., Consolidated: | C6: Year | D6: before | E6: monthly | F6: Premium | G6: Premium | H6: Premium | I6: Premium | J6: Premium | K6: Premium | L6: Premium | M6: Premium | N6: Premium | O6: Premium | P6: Premium | Q6: Premium | R6: Premium | S6: Premium | W6: Year | X6: sub | Y6: Orig | Z6: 4290 | AA6: Activity | AB6: Balance | AD6: Activity | AE6: Balance | AG6: Activity | AH6: Balance | AJ6: Activity | AK6: Balance | AM6: Activity | AN6: Balance | AP6: Activity | AQ6: Balance | AS6: Activity | AT6: Balance | AV6: Activity | AW6: Balance | AY6: Activity | AZ6: Balance | BB6: Activity | BC6: Balance | BE6: Balance | BF6: Balance | BH6: Activity | BI6: Balance | BK6: Activity | BL6: Balance
A7: Line | B7: Debt Series | C7: Issued | D7: Amort | E7: Amort. | F7: 2020-03-31 | G7: 2020-04-30 | H7: 2020-05-31 | I7: 2020-06-30 | J7: 2020-07-31 | K7: 2020-08-31 | L7: 2020-09-30 | M7: 2020-10-31 | N7: 2020-11-30 | O7: 2020-12-31 | P7: 2021-01-31 | Q7: 2021-02-28 | R7: 2021-03-31 | S7: =+R7 -> 2021-03-31 | W7: Issued | X7: acct | Y7: Debt Premium | Z7: mthly exp | AA7: =+AB7 -> 2020-03-31 | AB7: =+F7 -> 2020-03-31 | AD7: =+AE7 -> 2020-04-30 | AE7: =+G7 -> 2020-04-30 | AG7: =+AH7 -> 2020-05-31 | AH7: =+H7 -> 2020-05-31 | AJ7: =+AK7 -> 2020-06-30 | AK7: =+I7 -> 2020-06-30 | AM7: =+AN7 -> 2020-07-31 | AN7: =+J7 -> 2020-07-31 | AP7: =+AQ7 -> 2020-08-31 | AQ7: =+K7 -> 2020-08-31 | AS7: =+AT7 -> 2020-09-30 | AT7: =+L7 -> 2020-09-30 | AV7: =+AW7 -> 2020-10-31 | AW7: =+M7 -> 2020-10-31 | AY7: =+AZ7 -> 2020-11-30 | AZ7: =+N7 -> 2020-11-30 | BB7: =+BC7 -> 2020-12-31 | BC7: =+O7 -> 2020-12-31 | BE7: =+BF7 -> 2021-01-31 | BF7: =+P7 -> 2021-01-31 | BH7: =+BI7 -> 2021-02-28 | BI7: =+Q7 -> 2021-02-28 | BK7: =+BL7 -> 2021-03-31 | BL7: =+R7 -> 2021-03-31
A11: 1 | B11: $250M 4.1250% senior notes, due 2044 | C11: 2017 | D11: -9767500 | E11: -29778.96341 | F11: -8769904.79 | G11: -8740125.83 | H11: -8710346.87 | I11: -8680567.91 | J11: -8650788.95 | K11: -8621009.99 | L11: -8591231.03 | M11: -8561452.07 | N11: -8531673.11 | O11: -8501894.15 | P11: -8472115.19 | Q11: -8442336.23 | R11: -8412557.27 | S11: =AVERAGE(F11:R11) -> -8591231.03 | W11: 2017 | X11: 13536 | Y11: -9767500 | Z11: -29778.96341 | AA11: =+AB11-Y11 -> 997595.21 | AB11: =+F11 -> -8769904.79 | AD11: =+AE11-AB11 -> 29778.96 | AE11: =+G11 -> -8740125.83 | AG11: =+AH11-AE11 -> 29778.96 | AH11: =+H11 -> -8710346.87 | AJ11: =+AK11-AH11 -> 29778.96 | AK11: =+I11 -> -8680567.91 | AM11: =+AN11-AK11 -> 29778.96 | AN11: =+J11 -> -8650788.95 | AP11: =+AQ11-AN11 -> 29778.96 | AQ11: =+K11 -> -8621009.99 | AS11: =+AT11-AQ11 -> 29778.96 | AT11: =+L11 -> -8591231.03 | AV11: =+AW11-AT11 -> 29778.96 | AW11: =+M11 -> -8561452.07 | AY11: =+AZ11-AW11 -> 29778.96 | AZ11: =+N11 -> -8531673.11 | BB11: =+BC11-AZ11 -> 29778.96 | BC11: =+O11 -> -8501894.15 | BE11: =+BF11-BC11 -> 29778.96 | BF11: =+P11 -> -8472115.19 | BH11: =+BI11-BF11 -> 29778.96 | BI11: =+Q11 -> -8442336.23 | BK11: =+BL11-BI11 -> 29778.96 | BL11: =+R11 -> -8412557.27
A12: 2 | B12: Total Utility Long-Term Debt Unamortized Premium | D12: =SUM(D10:D11) -> -9767500 | E12: =SUM(E10:E11) -> -29778.96341 | F12: =F11 -> -8769904.79 | G12: =G11 -> -8740125.83 | H12: -8710346.87 | I12: -8680567.91 | J12: -8650788.95 | K12: -8621009.99 | L12: -8591231.03 | M12: -8561452.07 | N12: -8531673.11 | O12: -8501894.15 | P12: -8472115.19 | Q12: -8442336.23 | R12: -8412557.27 | S12: -8591231.03 | Y12: =SUM(Y9:Y11) -> -9767500 | Z12: -29778.96341 | AA12: 997595.21 | AB12: -8769904.79 | AC12: 0 | AD12: 29778.96 | AE12: -8740125.83 | AF12: 0 | AG12: 29778.96 | AH12: -8710346.87 | AI12: 0 | AJ12: 29778.96 | AK12: -8680567.91 | AL12: 0 | AM12: 29778.96 | AN12: -8650788.95 | AO12: 0 | AP12: 29778.96 | AQ12: -8621009.99 | AR12: 0 | AS12: 29778.96 | AT12: -8591231.03 | AU12: 0 | AV12: 29778.96 | AW12: -8561452.07 | AX12: 0 | AY12: 29778.96 | AZ12: -8531673.11 | BA12: =SUM(BA9:BA11) -> 0 | BB12: =SUM(BB9:BB11) -> 29778.96 | BC12: =SUM(BC9:BC11) -> -8501894.15 | BE12: =SUM(BE9:BE11) -> 29778.96 | BF12: -8472115.19 | BH12: =SUM(BH9:BH11) -> 29778.96 | BI12: -8442336.23 | BJ12: 0 | BK12: 29778.96 | BL12: -8412557.27 | BM12: 0 | BN12: =SUM(BN9:BN11) -> 0
AB13: check | AE13: check | AH13: check | AK13: check | AN13: check | AQ13: check | AT13: check | AW13: check | AZ13: check | BC13: check | BF13: check | BI13: check | BL13: check
F14: 0 | G14: 0 | H14: 0 | I14: 0 | J14: 0 | K14: 0 | L14: 0 | M14: 0 | N14: 0 | O14: 0 | P14: 0 | Q14: 0 | R14: 0 | Z14: G/L Bal | AB14: =+F12 -> -8769904.79 | AE14: =AB14+AD12 -> -8740125.83 | AH14: =AE14+AG12 -> -8710346.87 | AK14: =AH14+AJ12 -> -8680567.91 | AN14: =AK14+AM12 -> -8650788.95 | AQ14: =AN14+AP12 -> -8621009.99 | AT14: =+L12 -> -8591231.03 | AW14: =+M12 -> -8561452.07 | AZ14: =+N12 -> -8531673.11 | BC14: =+O12 -> -8501894.15 | BF14: =+P12 -> -8472115.19 | BI14: =+Q12 -> -8442336.23 | BL14: =+R12 -> -8412557.27
F15: =F12-F11 -> 0 | G15: =G12-G11 -> 0 | H15: =H12-H11 -> 0 | I15: =I12-I11 -> 0 | J15: =J12-J11 -> 0 | K15: 0 | L15: 0 | M15: 0 | N15: 0 | O15: 0 | P15: 0 | Q15: 0 | R15: 0 | S15: =S12-S11 -> 0
AB16: =AB12-AB14 -> 0 | AE16: =AE12-AE14 -> 0 | AH16: =AH12-AH14 -> 0 | AK16: =AK12-AK14 -> 0 | AN16: =AN12-AN14 -> 0 | AQ16: =AQ12-AQ14 -> 0 | AT16: =AT12-AT14 -> 0 | AW16: =AW12-AW14 -> 0 | AZ16: =+AZ12-AZ14 -> 0 | BC16: =+BC12-BC14 -> 0 | BF16: =+BF12-BF14 -> 0 | BI16: =+BI12-BI14 -> 0 | BL16: =+BL12-BL14 -> 0

Sheet 2260 LTDebt Discount
A1: Atmos Energy Corporation | V1: Atmos Energy Corporation
A2: Consolidated Long-Term Debt - Unamortized Discount Acct 2260 | V2: Unamortized Debt Dsct - Acct 2260
A3: Calculation of 13 mth average balance | F3: 2260 | G3: 2260 | H3: 2260 | I3: 2260 | J3: 2260 | K3: 2260 | L3: 2260 | M3: 2260 | N3: 2260 | O3: 2260 | P3: 2260 | Q3: 2260 | R3: 2260 | V3: Analysis of monthly acct activity and balances
A4: ='LTD rate'!A3 -> March 31, 2021 | F4: Balance | G4: Balance | H4: Balance | I4: Balance | J4: Balance | K4: Balance | L4: Balance | M4: Balance | N4: Balance | O4: Balance | P4: Balance | Q4: Balance | R4: Balance | S4: 13 mth Avg | V4: September 30, 2016 - September 30, 2017 | Z4: Debt Dsct | AA4: Debt Dsct | AC4: Debt Dsct | AD4: Debt Dsct | AF4: Debt Dsct | AG4: Debt Dsct | AI4: Debt Dsct | AJ4: Debt Dsct | AL4: Debt Dsct | AM4: Debt Dsct | AO4: Debt Dsct | AP4: Debt Dsct | AR4: Debt Dsct | AS4: Debt Dsct | AU4: Debt Dsct | AV4: Debt Dsct | AX4: Debt Dsct | AY4: Debt Dsct | BA4: Debt Dsct | BB4: Debt Dsct | BD4: Debt Dsct | BE4: Debt Dsct | BG4: Debt Dsct | BH4: Debt Dsct | BJ4: Debt Dsct | BK4: Debt Dsct
D5: Full Dsct | E5: 4280 | F5: Unamortized | G5: Unamortized | H5: Unamortized | I5: Unamortized | J5: Unamortized | K5: Unamortized | L5: Unamortized | M5: Unamortized | N5: Unamortized | O5: Unamortized | P5: Unamortized | Q5: Unamortized | R5: Unamortized | S5: Unamortized | Z5: 2260 | AA5: 2260 | AC5: 2260 | AD5: 2260 | AF5: 2260 | AG5: 2260 | AI5: 2260 | AJ5: 2260 | AL5: 2260 | AM5: 2260 | AO5: 2260 | AP5: 2260 | AR5: 2260 | AS5: 2260 | AU5: 2260 | AV5: 2260 | AX5: 2260 | AY5: 2260 | BA5: 2260 | BB5: 2260 | BD5: 2260 | BE5: 2260 | BG5: 2260 | BH5: 2260 | BJ5: 2260 | BK5: 2260
A6: Atmos Energy Corp., Consolidated: | C6: Year | D6: before | E6: monthly | F6: Discount | G6: Discount | H6: Discount | I6: Discount | J6: Discount | K6: Discount | L6: Discount | M6: Discount | N6: Discount | O6: Discount | P6: Discount | Q6: Discount | R6: Discount | S6: Discount | V6: Year | W6: sub | X6: Orig | Y6: 4280 | Z6: Activity | AA6: Balance | AC6: Activity | AD6: Balance | AF6: Activity | AG6: Balance | AI6: Activity | AJ6: Balance | AL6: Activity | AM6: Balance | AO6: Activity | AP6: Balance | AR6: Activity | AS6: Balance | AU6: Activity | AV6: Balance | AX6: Activity | AY6: Balance | BA6: Activity | BB6: Balance | BD6: Activity | BE6: Balance | BG6: Activity | BH6: Balance | BJ6: Activity | BK6: Balance
A7: Line | B7: Debt Series | C7: Issued | D7: Amort | E7: Amort. | F7: 2020-03-31 | G7: 2020-04-30 | H7: 2020-05-31 | I7: 2020-06-30 | J7: 2020-07-31 | K7: 2020-08-31 | L7: 2020-09-30 | M7: 2020-10-31 | N7: 2020-11-30 | O7: 2020-12-31 | P7: 2021-01-31 | Q7: 2021-02-28 | R7: 2021-03-31 | S7: =+R7 -> 2021-03-31 | V7: Issued | W7: acct | X7: Debt dsct | Y7: mthly exp | Z7: =+AA7 -> 2020-03-31 | AA7: =+F7 -> 2020-03-31 | AC7: =+AD7 -> 2020-04-30 | AD7: =+G7 -> 2020-04-30 | AF7: =+AG7 -> 2020-05-31 | AG7: =+H7 -> 2020-05-31 | AI7: =+AJ7 -> 2020-06-30 | AJ7: =+I7 -> 2020-06-30 | AL7: =+AM7 -> 2020-07-31 | AM7: =+J7 -> 2020-07-31 | AO7: =+AP7 -> 2020-08-31 | AP7: =+K7 -> 2020-08-31 | AR7: =+AS7 -> 2020-09-30 | AS7: =+L7 -> 2020-09-30 | AU7: =+AV7 -> 2020-10-31 | AV7: =+M7 -> 2020-10-31 | AX7: =+AY7 -> 2020-11-30 | AY7: =+N7 -> 2020-11-30 | BA7: =+BB7 -> 2020-12-31 | BB7: =+O7 -> 2020-12-31 | BD7: =+BE7 -> 2021-01-31 | BE7: =+P7 -> 2021-01-31 | BG7: =+BH7 -> 2021-02-28 | BH7: =+Q7 -> 2021-02-28 | BJ7: =+BK7 -> 2021-03-31 | BK7: =+R7 -> 2021-03-31
A11: 1 | B11: 6.75% Debentures Unsecured due July 2028 | C11: 1998 | D11: 1327500 | E11: =(1327500/360) -> 3687.5 | F11: 365062.5 | G11: 361375 | H11: 357687.5 | I11: 354000 | J11: 350312.5 | K11: 346625 | L11: 342937.5 | M11: 339250 | N11: 335562.5 | O11: 331875 | P11: 328187.5 | Q11: 324500 | R11: 320812.5 | S11: =AVERAGE(F11:R11) -> 342937.5 | V11: 1998 | W11: 13521 | X11: =1327500 -> 1327500 | Y11: =(+X11/360) -> 3687.5 | Z11: =+AD11-AA11 -> -3687.5 | AA11: =+F11 -> 365062.5 | AC11: =+AD11-AA11 -> -3687.5 | AD11: =+G11 -> 361375 | AF11: =+AG11-AD11 -> -3687.5 | AG11: =+H11 -> 357687.5 | AI11: =+AJ11-AG11 -> -3687.5 | AJ11: =+I11 -> 354000 | AL11: =+AM11-AJ11 -> -3687.5 | AM11: =+J11 -> 350312.5 | AO11: =+AP11-AM11 -> -3687.5 | AP11: =+K11 -> 346625 | AR11: =+AS11-AP11 -> -3687.5 | AS11: =+L11 -> 342937.5 | AU11: =+AV11-AS11 -> -3687.5 | AV11: =+M11 -> 339250 | AX11: =+AY11-AV11 -> -3687.5 | AY11: =+N11 -> 335562.5 | BA11: =+BB11-AY11 -> -3687.5 | BB11: =+O11 -> 331875 | BD11: =+BE11-BB11 -> -3687.5 | BE11: =+P11 -> 328187.5 | BG11: =+BH11-BE11 -> -3687.5 | BH11: =+Q11 -> 324500 | BJ11: =+BK11-BH11 -> -3687.5 | BK11: =+R11 -> 320812.5
A12: 2 | B12: 5.125% Senior Notes due Jan 2013 | C12: 2003 | D12: 212500 | E12: 0 | V12: 2003 | W12: 13513/26 | X12: =212500 -> 212500 | Y12: 0 | Z12: =+AD12-AA12 -> 0 | AA12: 0 | AC12: =+AD12-AA12 -> 0 | AD12: 0 | AF12: =+AG12-AD12 -> 0 | AG12: 0 | AI12: =+AJ12-AG12 -> 0 | AJ12: 0 | AL12: =+AM12-AJ12 -> 0 | AM12: 0 | AO12: =+AP12-AM12 -> 0 | AP12: 0 | AR12: =+AS12-AP12 -> 0 | AS12: 0 | AU12: =+AV12-AS12 -> 0 | AV12: 0 | AX12: =+AY12-AV12 -> 0 | AY12: 0 | BA12: =+BB12-AY12 -> 0 | BB12: 0 | BD12: =+BE12-BB12 -> 0 | BE12: 0 | BG12: =+BH12-BE12 -> 0 | BH12: 0 | BJ12: =+BK12-BH12 -> 0 | BK12: 0
A13: 3 | B13: 4.30% Sr Note due 10/1/2048 | C13: 2018 | E13: 0 | F13: 2855700 | G13: 2847350 | H13: 2839000 | I13: 2830650 | J13: 2822300 | K13: 2813950 | L13: 2805600 | M13: 2797250 | N13: 2788900 | O13: 2780550 | P13: 2772200 | Q13: 2763850 | R13: 2755500 | S13: =AVERAGE(F13:R13) -> 2805600 | V13: 2018 | Y13: 0 | Z13: -8350 | AA13: 2855700 | AC13: -8350 | AD13: 2847350 | AF13: -8350 | AG13: 2839000 | AI13: -8350 | AJ13: 2830650 | AL13: -8350 | AM13: 2822300 | AO13: -8350 | AP13: 2813950 | AR13: -8350 | AS13: 2805600 | AU13: -8350 | AV13: 2797250 | AX13: -8350 | AY13: 2788900 | BA13: -8350 | BB13: 2780550 | BD13: -8350 | BE13: 2772200 | BG13: -8350 | BH13: 2763850 | BJ13: -8350 | BK13: 2755500
A14: 4 | B14: 5.95% Sr Note due 10/15/2034 | C14: 2004 | D14: 1216000 | E14: =(1216000/360) -> 3377.777778 | F14: 587733.29 | G14: 584355.51 | H14: 580977.73 | I14: 577599.95 | J14: 574222.17 | K14: 570844.39 | L14: 567466.61 | M14: 564088.83 | N14: 560711.05 | O14: 557333.27 | P14: 553955.49 | Q14: 550577.71 | R14: 547199.93 | S14: 567466.61 | V14: 2004 | W14: 13530 | X14: 1216000 | Y14: =+X14/360 -> 3377.777778 | Z14: -3377.78 | AA14: 587733.29 | AC14: -3377.78 | AD14: 584355.51 | AF14: -3377.78 | AG14: 580977.73 | AI14: -3377.78 | AJ14: 577599.95 | AL14: -3377.78 | AM14: 574222.17 | AO14: -3377.78 | AP14: 570844.39 | AR14: -3377.78 | AS14: 567466.61 | AU14: -3377.78 | AV14: 564088.83 | AX14: -3377.78 | AY14: 560711.05 | BA14: -3377.78 | BB14: 557333.27 | BD14: -3377.78 | BE14: 553955.49 | BG14: -3377.78 | BH14: 550577.71 | BJ14: -3377.78 | BK14: 547199.93
A15: 5 | B15: 6.35% Sr Note due 6/15/2017 | C15: 2007 | D15: 677500 | E15: =677500/120 -> 5645.833333 | V15: 2007 | W15: 13531 | X15: 677500 | Z15: 0 | AA15: 0 | AC15: 0 | AD15: 0 | AF15: 0 | AG15: 0 | AI15: 0 | AJ15: 0 | AL15: 0 | AM15: 0 | AO15: 0 | AP15: 0 | AR15: 0 | AS15: 0 | AU15: 0 | AV15: 0 | AX15: 0 | AY15: 0 | BA15: 0 | BB15: 0 | BD15: 0 | BE15: 0 | BG15: 0 | BH15: 0 | BJ15: 0 | BK15: 0
A16: 6 | B16: Sr Note 5.50% Due 06/15/2041 | C16: 2011 | D16: 1288000 | E16: 3578 | F16: 908755.51 | G16: 905177.73 | H16: 901599.95 | I16: 898022.17 | J16: 894444.39 | K16: 890866.61 | L16: 887288.83 | M16: 883711.05 | N16: 880133.27 | O16: 876555.49 | P16: 872977.71 | Q16: 869399.93 | R16: 865822.15 | S16: 887288.83 | V16: 2011 | W16: 13534 | X16: 1288000 | Y16: 3578 | Z16: -3577.78 | AA16: 908755.51 | AC16: -3577.78 | AD16: 905177.73 | AF16: -3577.78 | AG16: 901599.95 | AI16: -3577.78 | AJ16: 898022.17 | AL16: -3577.78 | AM16: 894444.39 | AO16: -3577.78 | AP16: 890866.61 | AR16: -3577.78 | AS16: 887288.83 | AU16: -3577.78 | AV16: 883711.05 | AX16: -3577.78 | AY16: 880133.27 | BA16: -3577.78 | BB16: 876555.49 | BD16: -3577.78 | BE16: 872977.71 | BG16: -3577.78 | BH16: 869399.93 | BJ16: -3577.78 | BK16: 865822.15
A17: 7 | B17: 8.50% Sr Note due 3/15/2019 | C17: 2009 | D17: 841500 | E17: 7012.5 | F17: 0 | G17: 0 | H17: 0 | I17: 0 | J17: 0 | K17: 0 | L17: 0 | M17: 0 | N17: 0 | O17: 0 | P17: 0 | Q17: 0 | R17: 0 | S17: 0 | V17: 2009 | W17: 13532 | X17: 841500 | Y17: 7012.5 | Z17: 0 | AA17: 0 | AC17: 0 | AD17: 0 | AF17: 0 | AG17: 0 | AI17: 0 | AJ17: 0 | AL17: 0 | AM17: 0 | AO17: 0 | AP17: 0 | AR17: 0 | AS17: 0 | AU17: 0 | AV17: 0 | AX17: 0 | AY17: 0 | BA17: 0 | BB17: 0 | BD17: 0 | BE17: 0 | BG17: 0 | BH17: 0 | BJ17: 0 | BK17: 0
A18: 8 | B18: 4.15% Sr Note due 1/15/2043 | C18: 2013 | D18: 940000 | E18: =+D18/360 -> 2611.111111 | F18: 712833.35 | G18: 710222.24 | H18: 707611.13 | I18: 705000.02 | J18: 702388.91 | K18: 699777.8 | L18: 697166.69 | M18: 694555.58 | N18: 691944.47 | O18: 689333.36 | P18: 686722.25 | Q18: 684111.14 | R18: 681500.03 | S18: 697166.69 | V18: 2013 | W18: 13535 | X18: 940000 | Y18: =+X18/360 -> 2611.111111 | Z18: -2611.11 | AA18: 712833.35 | AC18: -2611.11 | AD18: 710222.24 | AF18: -2611.11 | AG18: 707611.13 | AI18: -2611.11 | AJ18: 705000.02 | AL18: -2611.11 | AM18: 702388.91 | AO18: -2611.11 | AP18: 699777.8 | AR18: -2611.11 | AS18: 697166.69 | AU18: -2611.11 | AV18: 694555.58 | AX18: -2611.11 | AY18: 691944.47 | BA18: -2611.11 | BB18: 689333.36 | BD18: -2611.11 | BE18: 686722.25 | BG18: -2611.11 | BH18: 684111.14 | BJ18: -2611.11 | BK18: 681500.03
A19: 9 | B19: 4.125% Sr Note due 10/15/2044 | C19: 2014 | D19: 940000 | E19: =+D19/360 -> 2611.111111 | F19: 767666.69 | G19: 765055.58 | H19: 762444.47 | I19: 759833.36 | J19: 757222.25 | K19: 754611.14 | L19: 752000.03 | M19: 749388.92 | N19: 746777.81 | O19: 744166.7 | P19: 741555.59 | Q19: 738944.48 | R19: 736333.37 | S19: 752000.03 | V19: 2014 | W19: 13536 | X19: 940000 | Y19: 2611 | Z19: -2611.11 | AA19: 767666.69 | AC19: -2611.11 | AD19: 765055.58 | AF19: -2611.11 | AG19: 762444.47 | AI19: -2611.11 | AJ19: 759833.36 | AL19: -2611.11 | AM19: 757222.25 | AO19: -2611.11 | AP19: 754611.14 | AR19: -2611.11 | AS19: 752000.03 | AU19: -2611.11 | AV19: 749388.92 | AX19: -2611.11 | AY19: 746777.81 | BA19: -2611.11 | BB19: 744166.7 | BD19: -2611.11 | BE19: 741555.59 | BG19: -2611.11 | BH19: 738944.48 | BJ19: -2611.11 | BK19: 736333.37
A20: 10 | B20: 3.000% Sr Note due 6/15/27 | C20: 2017 | D20: 1375000 | E20: 11458.33333 | F20: 991145.9 | G20: 979687.57 | H20: 968229.24 | I20: 956770.91 | J20: 945312.58 | K20: 933854.25 | L20: 922395.92 | M20: 910937.59 | N20: 899479.26 | O20: 888020.93 | P20: 876562.6 | Q20: 865104.27 | R20: 853645.94 | S20: 922395.92 | V20: 2017 | W20: 13537 | X20: 1375000 | Y20: 11458.33333 | Z20: -11458.33 | AA20: 991145.9 | AB20: 0 | AC20: -11458.33 | AD20: 979687.57 | AE20: 0 | AF20: -11458.33 | AG20: 968229.24 | AH20: 0 | AI20: -11458.33 | AJ20: 956770.91 | AK20: 0 | AL20: -11458.33 | AM20: 945312.58 | AN20: 0 | AO20: -11458.33 | AP20: 933854.25 | AQ20: 0 | AR20: -11458.33 | AS20: 922395.92 | AT20: 0 | AU20: -11458.33 | AV20: 910937.59 | AW20: 0 | AX20: -5729.17 | AY20: 899479.26 | BA20: -11458.33 | BB20: 888020.93 | BD20: -11458.33 | BE20: 876562.6 | BG20: -11458.33 | BH20: 865104.27 | BJ20: -11458.33 | BK20: 853645.94
A21: 11 | B21: 4.125% Sr Note due 3/15/2049 | C21: 2019 | F21: 1708975 | G21: 1704050 | H21: 1699125 | I21: 1694200 | J21: 1689275 | K21: 1684350 | L21: 1679425 | M21: 1674500 | N21: 1669575 | O21: 1664650 | P21: 1659725 | Q21: 1654800 | R21: 1649875 | S21: =AVERAGE(F21:R21) -> 1679425 | V21: 2019 | W21: 13540 | Z21: =+AD21-AA21 -> -4925 | AA21: =+F21 -> 1708975 | AB21: 0 | AC21: =+AD21-AA21 -> -4925 | AD21: =+G21 -> 1704050 | AE21: 0 | AF21: =+AG21-AD21 -> -4925 | AG21: =+H21 -> 1699125 | AH21: 0 | AI21: =+AJ21-AG21 -> -4925 | AJ21: =+I21 -> 1694200 | AK21: 0 | AL21: =+AM21-AJ21 -> -4925 | AM21: =+J21 -> 1689275 | AN21: 0 | AO21: =+AP21-AM21 -> -4925 | AP21: =+K21 -> 1684350 | AQ21: 0 | AR21: =+AS21-AP21 -> -4925 | AS21: =+L21 -> 1679425 | AT21: 0 | AU21: =+AV21-AS21 -> -4925 | AV21: =+M21 -> 1674500 | AW21: 0 | AY21: =+N21 -> 1669575 | BA21: =+BB21-AY21 -> -4925 | BB21: =+O21 -> 1664650 | BD21: =+BE21-BB21 -> -4925 | BE21: =+P21 -> 1659725 | BG21: =+BH21-BE21 -> -4925 | BH21: =+Q21 -> 1654800 | BJ21: =+BK21-BH21 -> -4925 | BK21: =+R21 -> 1649875
A22: 12 | B22: 2.625% Sr Notes Due 2029 | C22: 2019 | F22: 171000 | G22: 169500 | H22: 168000 | I22: 166500 | J22: 165000 | K22: 163500 | L22: 162000 | M22: 160500 | N22: 159000 | O22: 157500 | P22: 156000 | Q22: 154500 | R22: 153000 | S22: 162000 | Z22: -1500 | AA22: 171000 | AC22: -1500 | AD22: 169500 | AF22: -1500 | AG22: 168000 | AI22: -1500 | AJ22: 166500 | AL22: -1500 | AM22: 165000 | AO22: -1500 | AP22: =+K22 -> 163500 | AR22: -1500 | AS22: =+L22 -> 162000 | AU22: -1500 | AV22: =+M22 -> 160500 | AX22: =+AY22-AV22 -> -1500 | AY22: =+N22 -> 159000 | BA22: -1500 | BB22: 157500 | BD22: -1500 | BE22: =+P22 -> 156000 | BG22: -1500 | BH22: 154500 | BJ22: -1500 | BK22: 153000
A23: 13 | B23: 3.375% Sr Notes Due 2049 | C23: 2019 | F23: 363833.32 | G23: 362805.54 | H23: 361777.76 | I23: 360749.98 | J23: 359722.2 | K23: 358694.42 | L23: 357666.64 | M23: 356638.86 | N23: 355611.08 | O23: 354583.3 | P23: 353555.52 | Q23: 352527.74 | R23: 351499.96 | S23: 357666.64 | Z23: =+AD23-AA23 -> -1027.78 | AA23: =+F23 -> 363833.32 | AC23: =+AD23-AA23 -> -1027.78 | AD23: =+G23 -> 362805.54 | AF23: =+AG23-AD23 -> -1027.78 | AG23: =+H23 -> 361777.76 | AI23: =+AJ23-AG23 -> -1027.78 | AJ23: =+I23 -> 360749.98 | AL23: =+AM23-AJ23 -> -1027.78 | AM23: =+J23 -> 359722.2 | AO23: -1027.78 | AP23: =+K23 -> 358694.42 | AR23: -1027.78 | AS23: =+L23 -> 357666.64 | AU23: -1027.78 | AV23: =+M23 -> 356638.86 | AX23: -1027.78 | AY23: =+N23 -> 355611.08 | BA23: -1027.78 | BB23: 354583.3 | BD23: -1027.78 | BE23: =+P23 -> 353555.52 | BG23: -1027.78 | BH23: 352527.74 | BJ23: -1027.78 | BK23: 351499.96
A24: 14 | B24: 1.500% Sr Notes Due 2031 | C24: 2020 | M24: 2610000 | N24: 2567903.22 | O24: 2546854.83 | P24: 2525806.44 | Q24: 2504758.05 | R24: 2483709.66 | S24: 2539838.7 | Z24: =+AD24-AA24 -> 0 | AA24: =+F24 -> 0 | AC24: =+AD24-AA24 -> 0 | AD24: =+G24 -> 0 | AF24: =+AG24-AD24 -> 0 | AG24: =+H24 -> 0 | AI24: =+AJ24-AG24 -> 0 | AJ24: =+I24 -> 0 | AL24: =+AM24-AJ24 -> 0 | AM24: =+J24 -> 0 | AO24: =+AP24-AM24 -> 0 | AP24: =+K24 -> 0 | AR24: =+AS24-AP24 -> 0 | AS24: =+L24 -> 0 | AU24: =+AV24-AS24 -> 2610000 | AV24: =+M24 -> 2610000 | AX24: =+AY24-AV24 -> -42096.78 | AY24: =+N24 -> 2567903.22 | BA24: =+BB24-AY24 -> -21048.39 | BB24: =+O24 -> 2546854.83 | BD24: -21048.39 | BE24: =+P24 -> 2525806.44 | BG24: -21048.39 | BH24: 2504758.05 | BJ24: -21048.39 | BK24: =+R24 -> 2483709.66
A25: 15 | B25: 0.625% Sr Notes Due 2023 | C25: 2021 | R25: 44000 | Z25: =+AD25-AA25 -> 0 | AA25: =+F25 -> 0 | AC25: =+AD25-AA25 -> 0 | AD25: =+G25 -> 0 | AF25: =+AG25-AD25 -> 0 | AG25: =+H25 -> 0 | AI25: =+AJ25-AG25 -> 0 | AJ25: =+I25 -> 0 | AL25: =+AM25-AJ25 -> 0 | AM25: =+J25 -> 0 | AO25: =+AP25-AM25 -> 0 | AP25: =+K25 -> 0 | AR25: =+AS25-AP25 -> 0 | AS25: =+L25 -> 0 | AU25: =+AV25-AS25 -> 0 | AV25: =+M25 -> 0 | AX25: =+AY25-AV25 -> 0 | AY25: =+N25 -> 0 | BA25: =+BB25-AY25 -> 0 | BB25: =+O25 -> 0 | BD25: =+BE25-BB25 -> 0 | BE25: =+P25 -> 0 | BG25: =+BH25-BE25 -> 0 | BH25: =+Q25 -> 0 | BJ25: =-BM25 -> -1833.333333 | BK25: =+R25 -> 44000 | BL25: =R25 -> 44000 | BM25: =BL25/24 -> 1833.333333 | BN25: Estimated Monthly Amortization
A26: 17 | B26: Total Utility Long-Term Debt Unamortized Discount | D26: =SUM(D10:D20) -> 8818000 | E26: =SUM(E10:E20) -> 39982.16667 | F26: =SUM(F11:F25) -> 9432705.56 | G26: 9389579.17 | H26: 9346452.78 | I26: 9303326.39 | J26: 9260200 | K26: 9217073.61 | L26: 9173947.22 | M26: 11740820.83 | N26: 11655597.66 | O26: 11591422.88 | P26: 11527248.1 | Q26: =SUM(Q11:Q25) -> 11463073.32 | R26: =SUM(R11:R25) -> 11442898.54 | S26: =SUM(S11:S25) -> 11713785.92 | X26: =SUM(X11:X23) -> 8818000 | Y26: 34336.22222 | Z26: =SUM(Z11:Z25) -> -43126.39 | AA26: =SUM(AA11:AA25) -> 9432705.56 | AB26: 0 | AC26: =SUM(AC11:AC25) -> -43126.39 | AD26: 9389579.17 | AE26: 0 | AF26: =SUM(AF11:AF25) -> -43126.39 | AG26: 9346452.78 | AH26: 0 | AI26: =SUM(AI11:AI25) -> -43126.39 | AJ26: 9303326.39 | AK26: 0 | AL26: =SUM(AL11:AL25) -> -43126.39 | AM26: 9260200 | AN26: 0 | AO26: =SUM(AO11:AO25) -> -43126.39 | AP26: 9217073.61 | AQ26: 0 | AR26: =SUM(AR11:AR25) -> -43126.39 | AS26: 9173947.22 | AT26: 0 | AU26: =SUM(AU11:AU25) -> 2566873.61 | AV26: 11740820.83 | AW26: 0 | AX26: =SUM(AX11:AX25) -> -74569.01 | AY26: 11655597.66 | AZ26: 0 | BA26: =SUM(BA11:BA25) -> -64174.78 | BB26: 11591422.88 | BC26: 0 | BD26: =SUM(BD11:BD25) -> -64174.78 | BE26: 11527248.1 | BF26: 0 | BG26: =SUM(BG11:BG25) -> -64174.78 | BH26: 11463073.32 | BI26: 0 | BJ26: =SUM(BJ11:BJ25) -> -66008.11333 | BK26: 11442898.54
AA27: check | AD27: check | AG27: check | AJ27: check | AM27: check | AP27: check | AS27: check | AV27: check | AY27: check | BB27: check | BE27: check | BG27: =BG26-BD20 -> -52716.45 | BH27: check | BJ27: =BJ26-BG20 -> -54549.78333 | BK27: check
F28: 0 | G28: 0 | H28: 0 | I28: 0 | J28: 0 | K28: 0 | L28: 0 | M28: 0 | N28: 0 | O28: 0 | P28: 0 | Q28: 0 | R28: 0 | Y28: G/L Bal | AA28: =+F26 -> 9432705.56 | AD28: =+G26 -> 9389579.17 | AG28: =+H26 -> 9346452.78 | AJ28: =+I26 -> 9303326.39 | AM28: =+J26 -> 9260200 | AP28: =+K26 -> 9217073.61 | AS28: =+L26 -> 9173947.22 | AV28: =+M26 -> 11740820.83 | AY28: =+N26 -> 11655597.66 | BB28: =+O26 -> 11591422.88 | BE28: =+P26 -> 11527248.1 | BH28: =+Q26 -> 11463073.32 | BK28: =+R26 -> 11442898.54
AA30: =AA26-AA28 -> 0 | AD30: =AD26-AD28 -> 0 | AG30: =AG26-AG28 -> 0 | AJ30: =AJ26-AJ28 -> 0 | AM30: =AM26-AM28 -> 0 | AP30: =AP26-AP28 -> 0 | AS30: =AS26-AS28 -> 0 | AV30: =AV26-AV28 -> 0 | AY30: =+AY26-AY28 -> 0 | BB30: =+BB26-BB28 -> 0 | BE30: =+BE26-BE28 -> 0 | BH30: =+BH26-BH28 -> 0 | BK30: =+BK26-BK28 -> 0
BA36: This should have been the | BD36: =+BA20*2 -> -22916.66 | BG36: =+BD20*2 -> -22916.66 | BH36: This should have been the | BJ36: =+BG20*2 -> -22916.66 | BK36: This should have been the
BA37: activity for July

Sheet Acct 2241 Unamort Debt Exp
A1: Atmos Energy Corporation
A2: Monthly Capital Structure Report
A3: ='LTD rate'!A3 -> March 31, 2021
A5: Currency: USD
A6: Account=2241 (Unamortized debt expense)
B8: 2016-11-15 | C8: 2016-12-15 | D8: 2016-01-16 | E8: 2016-02-16 | F8: 2016-03-16 | G8: 2016-04-16 | H8: 2016-05-16 | I8: 2016-06-16 | J8: 1900-09-18 | K8: 2020-02-29 | L8: 2020-03-31 | M8: 2020-04-30 | N8: 2020-05-31 | O8: 2020-06-30 | P8: 2020-07-30 | Q8: 2020-08-31 | R8: 2020-09-30 | S8: 2020-10-31 | T8: 2020-11-30 | U8: 2020-12-31 | V8: 2021-01-31 | W8: 2021-02-28 | X8: 2021-03-31
A9: Sub Account | B9: Actual | C9: Actual | D9: Actual | E9: Actual | F9: Actual | G9: Actual | H9: Actual | I9: Actual | J9: Actual | K9: Actual | L9: Actual | M9: Actual | N9: Actual | O9: Actual | P9: Actual | Q9: Actual | R9: Actual | S9: Actual | T9: Actual | U9: Actual | V9: Actual | W9: Actual | X9: Actual
A10: =------------------------------------------------------- | B10: _______ | C10: _______ | D10: _______ | E10: _______ | F10: _______ | G10: _______ | H10: _______ | I10: _______ | J10: _______ | K10: _______ | L10: _______ | M10: _______ | N10: _______ | O10: _______ | P10: _______ | Q10: _______ | R10: _______ | S10: _______ | T10: _______ | U10: _______ | V10: _______ | W10: _______ | X10: _______
A11: Balances
A12: Trial Balance
A13: 13501 Med Terms Ser A-1 | B13: 0 | C13: 0 | D13: 0 | E13: 0 | F13: 0 | G13: 0 | H13: 0 | I13: 0 | K13: 45041.28 | L13: 44393.2 | M13: 43745.12 | N13: 43097.04 | O13: 42448.96 | P13: 41800.88 | Q13: 41152.8 | R13: 40504.72 | S13: 39856.64 | T13: 39208.56 | U13: 38560.48 | V13: 37912.4 | W13: 37264.32 | X13: 36616.24
A14: 13521 150MM 6.75% due Jul-28 | B14: 0 | C14: 0 | D14: 0 | E14: 0 | F14: 0 | G14: 0 | H14: 0 | I14: 0 | K14: 468709.57 | L14: 464068.89 | M14: 459428.21 | N14: 454787.53 | O14: 450146.85 | P14: 445506.17 | Q14: 440865.49 | R14: 436224.81 | S14: 431584.13 | T14: 426943.45 | U14: 422302.77 | V14: 417662.09 | W14: 413021.41 | X14: 408380.73
A15: 13530 200MM 5.95% due Oct-34 | B15: 0 | C15: 0 | D15: 0 | E15: 0 | F15: 0 | G15: 0 | H15: 0 | I15: 0 | K15: 1102790.94 | L15: 1096525.09 | M15: 1090259.24 | N15: 1083993.39 | O15: 1077727.54 | P15: 1071461.69 | Q15: 1065195.84 | R15: 1058929.99 | S15: 1052664.14 | T15: 1046398.29 | U15: 1040132.44 | V15: 1033866.59 | W15: 1027600.74 | X15: 1021334.89
A16: 13539 600MM 4.3% due Oct-48 | B16: 0 | C16: 0 | D16: 0 | E16: 0 | F16: 0 | G16: 0 | H16: 0 | I16: 0 | K16: 6150011.13 | L16: 6132081.07 | M16: 6114151.01 | N16: 6096220.95 | O16: 6078290.89 | P16: 6060360.83 | Q16: 6042430.77 | R16: 6024500.71 | S16: 6006570.65 | T16: 5988640.59 | U16: 5970710.53 | V16: 5952780.47 | W16: 5934850.41 | X16: 5916920.35
A17: 13532 450MM 8.5% due Mar-19 | B17: 0 | C17: 0 | D17: 0 | E17: 0 | F17: 0 | G17: 0 | H17: 0 | I17: 0 | K17: 0 | L17: 0 | M17: 0 | N17: 0 | O17: 0 | P17: 0 | Q17: 0 | R17: 0 | S17: 0 | T17: 0 | U17: 0 | V17: 0 | W17: 0 | X17: 0
A18: 13534 400MM 5.5% due Jun-41 | B18: 0 | C18: 0 | D18: 0 | E18: 0 | F18: 0 | G18: 0 | H18: 0 | I18: 0 | K18: 3058433.06 | L18: 3046439.21 | M18: 3034445.36 | N18: 3022451.51 | O18: 3010457.66 | P18: 2998463.81 | Q18: 2986469.96 | R18: 2974476.11 | S18: 2962482.26 | T18: 2950488.41 | U18: 2938494.56 | V18: 2926500.71 | W18: 2914506.86 | X18: 2902513.01
A19: 13535 500MM 4.15% due JAN-43 | B19: 0 | C19: 0 | D19: 0 | E19: 0 | F19: 0 | G19: 0 | H19: 0 | I19: 0 | K19: 4092033.93 | L19: 4077126.7 | M19: 4062219.47 | N19: 4047312.24 | O19: 4032405.01 | P19: 4017497.78 | Q19: 4002590.55 | R19: 3987683.32 | S19: 3972776.09 | T19: 3957868.86 | U19: 3942961.63 | V19: 3928054.4 | W19: 3913147.17 | X19: 3898239.94
A20: 13536 500MM 4.125% due Oct-44 | B20: 0 | C20: 0 | D20: 0 | E20: 0 | F20: 0 | G20: 0 | H20: 0 | I20: 0 | K20: 6955556.55 | L20: 6932018.29 | M20: 6908480.03 | N20: 6884941.77 | O20: 6861403.51 | P20: 6837865.25 | Q20: 6814326.99 | R20: 6790788.73 | S20: 6767250.47 | T20: 6743712.21 | U20: 6720173.95 | V20: 6696635.69 | W20: 6673097.43 | X20: 6649559.17
A21: 13537 Jun-17 debt issuance costs | B21: 0 | C21: 0 | D21: 0 | E21: 0 | F21: 0 | G21: 0 | H21: 0 | I21: 0 | K21: 3044795.86 | L21: 3009998.19 | M21: 2975200.52 | N21: 2940402.85 | O21: 2905605.18 | P21: 2870807.51 | Q21: 2836009.84 | R21: 2801212.17 | S21: 2766414.5 | T21: 2731616.83 | U21: 2696819.16 | V21: 2662021.49 | W21: 2627223.82 | X21: 2592426.15
A22: 13538 200MM BBT 3 YR Term Loan | B22: 0 | C22: 0 | D22: 0 | E22: 0 | F22: 0 | G22: 0 | H22: 0 | I22: 0 | K22: 0 | L22: 0 | M22: 0 | N22: 0 | O22: 0 | P22: 0 | Q22: 0 | R22: 0 | S22: 0 | T22: 0 | U22: 0 | V22: 0 | W22: 0 | X22: 0
A23: 13540 450MM 4.125% due Mar-49 | K23: 4672990.87 | L23: 4659562.74 | M23: 4646134.61 | N23: 4632706.48 | O23: 4619278.35 | P23: 4605850.22 | Q23: 4592422.09 | R23: 4578993.96 | S23: 4565565.83 | T23: 4552137.7 | U23: 4538709.57 | V23: 4525281.44 | W23: 4511853.31 | X23: 4498425.18
A24: 2.625% Sr Notes Due 2029 | K24: 2383055.95 | L24: 2362333.72 | M24: 2341611.49 | N24: 2320889.26 | O24: 2300167.03 | P24: 2279444.8 | Q24: 2258722.57 | R24: 2238000.34 | S24: 2217278.11 | T24: 2196555.88 | U24: 2175833.65 | V24: 2155111.42 | W24: 2134389.19 | X24: 2113666.96
A25: 3.375% Sr Notes Due 2049 | K25: 5196258.38 | L25: 5181621.03 | M25: 5166983.68 | N25: 5152346.33 | O25: 5137708.98 | P25: 5123071.63 | Q25: 5108434.28 | R25: 5093796.93 | S25: 5079159.58 | T25: 5064522.23 | U25: 5049884.88 | V25: 5035247.53 | W25: 5020610.18 | X25: 5005972.83
A26: 1.50% Sr Notes Due 2031 | R26: 77880 | S26: 5057339 | T26: 4980066.56 | U26: 4950395.29 | V26: 4909482.93 | W26: 4868570.57 | X26: 4827658.21
A27: 0.625% Sr Notes Due 2023 | X27: 4564419.27
A28: FRN Sr Notes Due 2023 | X28: 4564419.27
A29: TOTAL | B29: 0 | C29: 0 | D29: 0 | E29: 0 | F29: 0 | G29: 0 | H29: 0 | I29: 0 | K29: =SUM(K13:K26) -> 37169677.52 | L29: =SUM(L13:L28) -> 37006168.13 | M29: =SUM(M13:M28) -> 36842658.74 | N29: 36679149.35 | O29: 36515639.96 | P29: 36352130.57 | Q29: 36188621.18 | R29: 36102991.79 | S29: 40918941.4 | T29: 40678159.57 | U29: 40484978.91 | V29: 40280557.16 | W29: 40076135.41 | X29: 49000552.2
K31: 0 | L31: 0 | M31: 0 | N31: 0 | O31: 0 | P31: 0 | Q31: 0 | R31: 0 | S31: 0 | T31: 0 | U31: 0 | V31: 0 | W31: 0 | X31: 0
B33: 2016-11-15 | C33: 2016-12-15 | D33: 2016-01-16 | E33: 2016-02-16 | F33: 2016-03-16 | G33: 2016-04-16 | H33: 2016-05-16 | I33: 2016-06-16 | J33: =J8 -> 1900-09-18 | K33: 2020-02-29 | L33: 2020-03-31 | M33: 2020-04-30 | N33: 2020-05-31 | O33: 2020-06-30 | P33: 2020-07-30 | Q33: 2020-08-31 | R33: 2020-09-30 | S33: 2020-10-31 | T33: 2020-11-30 | U33: 2020-12-31 | V33: 2021-01-31 | W33: 2021-02-28 | X33: =X8 -> 2021-03-31
A34: Sub Account | B34: Actual | C34: Actual | D34: Actual | E34: Actual | F34: Actual | G34: Actual | H34: Actual | I34: Actual | J34: Actual | K34: Actual | L34: Actual | M34: Actual | N34: Actual | O34: Actual | P34: Actual | Q34: Actual | R34: Actual | S34: Actual | T34: Actual | U34: Actual | V34: Actual | W34: Actual | X34: Actual
A35: =------------------------------------------------------- | B35: _______ | C35: _______ | D35: _______ | E35: _______ | F35: _______ | G35: _______ | H35: _______ | I35: _______ | J35: _______ | K35: _______ | L35: _______ | M35: _______ | N35: _______ | O35: _______ | P35: _______ | Q35: _______ | R35: _______ | S35: _______ | T35: _______ | U35: _______ | V35: _______ | W35: _______ | X35: _______
A36: Activity
A37: Trial Balance
A38: 13501 Med Terms Ser A-1 | B38: 0 | C38: 0 | D38: 0 | E38: 0 | F38: 0 | G38: 0 | H38: 0 | I38: 0 | K38: -648.08 | L38: -648.08 | M38: -648.08 | N38: -648.08 | O38: -648.08 | P38: -648.08 | Q38: -648.08 | R38: -648.08 | S38: -648.08 | T38: -648.08 | U38: -648.08 | V38: -648.08 | W38: -648.08 | X38: =X13-W13 -> -648.08
A39: 13521 150MM 6.75% due Jul-28 | B39: 0 | C39: 0 | D39: 0 | E39: 0 | F39: 0 | G39: 0 | H39: 0 | I39: 0 | K39: -4640.68 | L39: -4640.68 | M39: -4640.68 | N39: -4640.68 | O39: -4640.68 | P39: -4640.68 | Q39: -4640.68 | R39: -4640.68 | S39: -4640.68 | T39: -4640.68 | U39: -4640.68 | V39: -4640.68 | W39: -4640.68 | X39: =X14-W14 -> -4640.68
A40: 13530 200MM 5.95% due Oct-34 | B40: 0 | C40: 0 | D40: 0 | E40: 0 | F40: 0 | G40: 0 | H40: 0 | I40: 0 | K40: -6265.85 | L40: -6265.85 | M40: -6265.85 | N40: -6265.85 | O40: -6265.85 | P40: -6265.85 | Q40: -6265.85 | R40: -6265.85 | S40: -6265.85 | T40: -6265.85 | U40: -6265.85 | V40: -6265.85 | W40: -6265.85 | X40: =X15-W15 -> -6265.85
A41: 13539 600MM 4.3% due Oct-48 | B41: 0 | C41: 0 | D41: 0 | E41: 0 | F41: 0 | G41: 0 | H41: 0 | I41: 0 | K41: -17930.06 | L41: -17930.06 | M41: -17930.06 | N41: -17930.06 | O41: -17930.06 | P41: -17930.06 | Q41: -17930.06 | R41: -17930.06 | S41: -17930.06 | T41: -17930.06 | U41: -17930.06 | V41: -17930.06 | W41: -17930.06 | X41: =X16-W16 -> -17930.06
A42: 13532 450MM 8.5% due Mar-19 | B42: 0 | C42: 0 | D42: 0 | E42: 0 | F42: 0 | G42: 0 | H42: 0 | I42: 0 | K42: 0 | L42: 0 | M42: 0 | N42: 0 | O42: 0 | P42: 0 | Q42: 0 | R42: 0 | S42: 0 | T42: 0 | U42: 0 | V42: 0 | W42: 0 | X42: =X17-W17 -> 0
A43: 13534 400MM 5.5% due Jun-41 | B43: 0 | C43: 0 | D43: 0 | E43: 0 | F43: 0 | G43: 0 | H43: 0 | I43: 0 | K43: -11993.85 | L43: -11993.85 | M43: -11993.85 | N43: -11993.85 | O43: -11993.85 | P43: -11993.85 | Q43: -11993.85 | R43: -11993.85 | S43: -11993.85 | T43: -11993.85 | U43: -11993.85 | V43: -11993.85 | W43: -11993.85 | X43: =X18-W18 -> -11993.85
A44: 13535 500MM 4.15% due JAN-43 | B44: 0 | C44: 0 | D44: 0 | E44: 0 | F44: 0 | G44: 0 | H44: 0 | I44: 0 | K44: -14907.23 | L44: -14907.23 | M44: -14907.23 | N44: -14907.23 | O44: -14907.23 | P44: -14907.23 | Q44: -14907.23 | R44: -14907.23 | S44: -14907.23 | T44: -14907.23 | U44: -14907.23 | V44: -14907.23 | W44: -14907.23 | X44: =X19-W19 -> -14907.23
A45: 13536 500MM 4.125% due Oct-44 | B45: 0 | C45: 0 | D45: 0 | E45: 0 | F45: 0 | G45: 0 | H45: 0 | I45: 0 | K45: -23538.26 | L45: -23538.26 | M45: -23538.26 | N45: -23538.26 | O45: -23538.26 | P45: -23538.26 | Q45: -23538.26 | R45: -23538.26 | S45: -23538.26 | T45: -23538.26 | U45: -23538.26 | V45: -23538.26 | W45: -23538.26 | X45: =X20-W20 -> -23538.26
A46: 13537 Jun-17 debt issuance costs | B46: 0 | C46: 0 | D46: 0 | E46: 0 | F46: 0 | G46: 0 | H46: 0 | I46: 0 | K46: -34797.67 | L46: -34797.67 | M46: -34797.67 | N46: -34797.67 | O46: -34797.67 | P46: -34797.67 | Q46: -34797.67 | R46: -34797.67 | S46: -34797.67 | T46: -34797.67 | U46: -34797.67 | V46: -34797.67 | W46: -34797.67 | X46: =X21-W21 -> -34797.67
A47: 13538 200MM BBT 3 YR Term Loan | B47: 0 | C47: 0 | D47: 0 | E47: 0 | F47: 0 | G47: 0 | H47: 0 | I47: 0 | K47: 0 | L47: 0 | M47: 0 | N47: 0 | O47: 0 | P47: 0 | Q47: 0 | R47: 0 | S47: 0 | T47: 0 | U47: 0 | V47: 0 | W47: 0 | X47: =X22-W22 -> 0
A48: 13540 450MM 4.125% due Mar-49 | K48: -13428.13 | L48: -13428.13 | M48: -13428.13 | N48: -13428.13 | O48: -13428.13 | P48: -13428.13 | Q48: -13428.13 | R48: -13428.13 | S48: -13428.13 | T48: -13428.13 | U48: -13428.13 | V48: -13428.13 | W48: -13428.13 | X48: =X23-W23 -> -13428.13
A49: 2.625% Sr Notes Due 2029 | K49: -20722.23 | L49: -20722.23 | M49: -20722.23 | N49: -20722.23 | O49: -20722.23 | P49: -20722.23 | Q49: -20722.23 | R49: -20722.23 | S49: -20722.23 | T49: -20722.23 | U49: -20722.23 | V49: -20722.23 | W49: -20722.23 | X49: =X24-W24 -> -20722.23
A50: 3.375% Sr Notes Due 2049 | K50: -14637.35 | L50: -14637.35 | M50: -14637.35 | N50: -14637.35 | O50: -14637.35 | P50: -14637.35 | Q50: -14637.35 | R50: -14637.35 | S50: -14637.35 | T50: -14637.35 | U50: -14637.35 | V50: -14637.35 | W50: -14637.35 | X50: =X25-W25 -> -14637.35
A51: 1.50% Sr Notes Due 2031 | R51: 77880 | S51: 4979459 | T51: -77272.44 | U51: -29671.27 | V51: -40912.36 | W51: -40912.36 | X51: =X26-W26 -> -40912.36
A52: 0.625% Sr Notes Due 2023 | X52: =Z52 -> -190184.1362 | Y52: =X27 -> 4564419.27 | Z52: =Y52/-24 -> -190184.1362 | AA52: Estimated Monthly Amortization
A53: FRN Sr Notes Due 2023 | X53: =Z53 -> -190184.1362 | Y53: =X28 -> 4564419.27 | Z53: =Y53/-24 -> -190184.1362 | AA53: Estimated Monthly Amortization
A54: TOTAL | B54: 0 | C54: 0 | D54: 0 | E54: 0 | F54: 0 | G54: 0 | H54: 0 | I54: 0 | K54: =SUM(K38:K51) -> -163509.39 | L54: =SUM(L38:L53) -> -163509.39 | M54: =SUM(M38:M53) -> -163509.39 | N54: -163509.39 | O54: -163509.39 | P54: -163509.39 | Q54: -163509.39 | R54: -85629.39 | S54: 4815949.61 | T54: -240781.83 | U54: -193180.66 | V54: -204421.75 | W54: -204421.75 | X54: -584790.0225
L56: 0 | M56: 0 | N56: 0 | O56: 0 | P56: 0 | Q56: 0 | R56: 0 | S56: 0 | T56: 0 | U56: 0 | V56: 0 | W56: 0 | X56: -9.313225746e-10

Sheet Acct 1650 ST Prepayments
A1: Atmos Energy Corporation
A2: Monthly Capital Structure Report
A3: ='LTD rate'!A3 -> March 31, 2021
A5: Currency: USD
A6: Account=1650 (Prepayments), Sub Accounts=13201 and 13210 (Prepaid admin fee BBT 200mm and CA 200MM)
B8: 2016-11-15 | C8: 2016-12-15 | D8: 2016-01-16 | E8: 2016-02-16 | F8: 2016-03-16 | G8: 2016-04-16 | H8: 2016-05-16 | I8: 2016-06-16 | J8: 2016-07-16 | K8: 2016-08-16 | L8: 2016-09-16 | M8: 2017-11-17 | N8: 2020-03-31 | O8: 2020-04-30 | P8: 2020-05-31 | Q8: 2020-06-30 | R8: 2020-07-30 | S8: 2020-08-31 | T8: 2020-09-30 | U8: 2020-10-31 | V8: 2020-11-30 | W8: 2020-12-31 | X8: 2021-01-31 | Y8: 2021-02-28 | Z8: 2021-03-31
A9: Sub Account | B9: Actual | C9: Actual | D9: Actual | E9: Actual | F9: Actual | G9: Actual | H9: Actual | I9: Actual | J9: Actual | K9: Actual | L9: Actual | M9: Actual | N9: Actual | O9: Actual | P9: Actual | Q9: Actual | R9: Actual | S9: Actual | T9: Actual | U9: Actual | V9: Actual | W9: Actual | X9: Actual | Y9: Actual | Z9: Actual
A10: =------------------------------------------------------- | B10: _______ | C10: _______ | D10: _______ | E10: _______ | F10: _______ | G10: _______ | H10: _______ | I10: _______ | J10: _______ | K10: _______ | L10: _______ | M10: _______ | N10: _______ | O10: _______ | P10: _______ | Q10: _______ | R10: _______ | S10: _______ | T10: _______ | U10: _______ | V10: _______ | W10: _______ | X10: _______ | Y10: _______ | Z10: _______
A11: Balance
A12: Trial Balance
A13: 13201 Prepaid admin fee BBT 200mm | B13: 0 | C13: 0 | D13: 0 | E13: 0 | F13: 0 | G13: 0 | H13: 0 | I13: 0 | J13: 0 | K13: 0 | L13: 0 | M13: 9658.38 | N13: 0 | O13: 0 | P13: 0 | Q13: 0 | R13: 0 | S13: 0 | T13: 0 | U13: 0 | V13: 0 | W13: 0 | X13: 0 | Y13: 0 | Z13: 0
A14: 13210 Prepaid admin fee CA 200mm | N14: 0 | O14: 135312.5 | P14: 138612.5 | Q14: 82500 | R14: 82500 | S14: 82500 | T14: 82500 | U14: 82500 | V14: 82500 | W14: 82500 | X14: 82500 | Y14: 82500 | Z14: 82500
A15: Total | B15: 0 | C15: 0 | D15: 0 | E15: 0 | F15: 0 | G15: 0 | H15: 0 | I15: 0 | J15: 0 | K15: 0 | L15: 0 | M15: 9658.38 | N15: =N14+N13 -> 0 | O15: 135312.5 | P15: 138612.5 | Q15: 82500 | R15: 82500 | S15: 82500 | T15: 82500 | U15: 82500 | V15: 82500 | W15: 82500 | X15: 82500 | Y15: 82500 | Z15: =Z14+Z13 -> 82500
M17: 0 | N17: 0 | O17: 0 | P17: 0 | Q17: 0 | R17: 0 | S17: 0 | T17: 0 | U17: 0 | V17: 0 | W17: 0 | X17: 0 | Y17: 0 | Z17: 0
B18: 2016-11-15 | C18: 2016-12-15 | D18: 2016-01-16 | E18: 2016-02-16 | F18: 2016-03-16 | G18: 2016-04-16 | H18: 2016-05-16 | I18: 2016-06-16 | J18: 2016-06-16 | K18: 2016-06-16 | L18: 2016-09-16 | M18: 2017-11-17 | N18: 2020-02-29 | O18: 2020-03-31 | P18: 2020-04-30 | Q18: 2020-05-31 | R18: 2020-06-30 | S18: 2020-07-30 | T18: 2020-08-31 | U18: 2020-09-30 | V18: 2020-10-31 | W18: 2020-11-30 | X18: 2020-12-31 | Y18: 2021-01-31 | Z18: =Z8 -> 2021-03-31
A19: Sub Account | B19: Actual | C19: Actual | D19: Actual | E19: Actual | F19: Actual | G19: Actual | H19: Actual | I19: Actual | J19: Actual | K19: Actual | L19: Actual | M19: Actual | N19: Actual | O19: Actual | P19: Actual | Q19: Actual | R19: Actual | S19: Actual | T19: Actual | U19: Actual | V19: Actual | W19: Actual | X19: Actual | Y19: Actual | Z19: Actual
A20: =------------------------------------------------------- | B20: _______ | C20: _______ | D20: _______ | E20: _______ | F20: _______ | G20: _______ | H20: _______ | I20: _______ | J20: _______ | K20: _______ | L20: _______ | M20: _______ | N20: _______ | O20: _______ | P20: _______ | Q20: _______ | R20: _______ | S20: _______ | T20: _______ | U20: _______ | V20: _______ | W20: _______ | X20: _______ | Y20: _______ | Z20: _______
A21: Activity
A22: Trial Balance
A23: 13201 Prepaid admin fee BBT 200mm | B23: 0 | C23: 0 | D23: 0 | E23: 0 | F23: 0 | G23: 0 | H23: 0 | I23: 0 | J23: 0 | K23: 0 | L23: 0 | M23: -583.33 | N23: 0 | O23: 0 | P23: 0 | Q23: 0 | R23: 0 | S23: 0 | T23: 0 | U23: 0 | V23: 0 | W23: 0 | X23: 0 | Y23: 0 | Z23: 0
A24: 13210 Prepaid admin fee CA 200mm | N24: 0 | O24: 135312.5 | P24: 3300 | Q24: -56112.5 | R24: 0 | S24: 0 | T24: 0 | U24: 0 | V24: 0 | W24: 0 | X24: 0 | Y24: 0 | Z24: 0
A25: Total | B25: 0 | C25: 0 | D25: 0 | E25: 0 | F25: 0 | G25: 0 | H25: 0 | I25: 0 | J25: 0 | K25: 0 | L25: =SUM(L23) -> 0 | M25: =+M23 -> -583.33 | N25: =N24+N23 -> 0 | O25: 135312.5 | P25: 3300 | Q25: -56112.5 | R25: 0 | S25: 0 | T25: 0 | U25: 0 | V25: 0 | W25: 0 | X25: 0 | Y25: 0 | Z25: =Z24+Z23 -> 0
N27: 0 | O27: 0 | P27: 0 | Q27: 0 | R27: 0 | S27: 0 | T27: 0 | U27: 0 | V27: 0 | W27: 0 | X27: 0 | Y27: 0 | Z27: 0
L28: Note to File:

Sheet Acct 1860 Prepayments LT
A1: Atmos Energy Corporation
A2: Monthly Capital Structure Report
A3: ='LTD rate'!A3 -> March 31, 2021
A5: Currency: USD
A6: Account=1860 (Prepayments), Sub Account=13210 (Prepaid admin fee Credit AG 200mm)
B8: 2016-11-15 | C8: 2016-12-15 | D8: 2016-01-16 | E8: 2016-02-16 | F8: 2016-03-16 | G8: 2016-04-16 | H8: 2016-05-16 | I8: 2016-06-16 | J8: 2016-07-16 | K8: 2016-08-16 | L8: 2016-09-16 | M8: 2017-11-17 | N8: 2020-03-31 | O8: 2020-04-30 | P8: 2020-05-31 | Q8: 2020-06-30 | R8: 2020-07-30 | S8: 2020-08-30 | T8: 2020-09-30 | U8: 2020-10-31 | V8: 2020-11-30 | W8: 2020-12-31 | X8: 2021-01-31 | Y8: 2021-02-28 | Z8: 2021-03-31
A9: Sub Account | B9: Actual | C9: Actual | D9: Actual | E9: Actual | F9: Actual | G9: Actual | H9: Actual | I9: Actual | J9: Actual | K9: Actual | L9: Actual | M9: Actual | N9: Actual | O9: Actual | P9: Actual | Q9: Actual | R9: Actual | S9: Actual | T9: Actual | U9: Actual | V9: Actual | W9: Actual | X9: Actual | Y9: Actual | Z9: Actual
A10: =------------------------------------------------------- | B10: _______ | C10: _______ | D10: _______ | E10: _______ | F10: _______ | G10: _______ | H10: _______ | I10: _______ | J10: _______ | K10: _______ | L10: _______ | M10: _______ | N10: _______ | O10: _______ | P10: _______ | Q10: _______ | R10: _______ | S10: _______ | T10: _______ | U10: _______ | V10: _______ | W10: _______ | X10: _______ | Y10: _______ | Z10: _______
A11: Balance
A12: Trial Balance
A13: 13210 Prepaid admin fee CA 200mm | N13: 0 | O13: 0 | P13: -9027.77 | Q13: 63708.33 | R13: 56833.33 | S13: 49958.33 | T13: 43083.33 | U13: 36208.33 | V13: 29333.33 | W13: 22458.33 | X13: 15583.33 | Y13: 8708.33 | Z13: 1833.33
A14: Total | B14: 0 | C14: 0 | D14: 0 | E14: 0 | F14: 0 | G14: 0 | H14: 0 | I14: 0 | J14: 0 | K14: 0 | L14: 0 | M14: 9658.38 | N14: =N13 -> 0 | O14: =O13 -> 0 | P14: -9027.77 | Q14: 63708.33 | R14: 56833.33 | S14: 49958.33 | T14: 43083.33 | U14: 36208.33 | V14: 29333.33 | W14: 22458.33 | X14: 15583.33 | Y14: 8708.33 | Z14: 1833.33
M16: 0 | N16: 0 | O16: 0 | P16: 0 | Q16: 0 | R16: 0 | S16: 0 | T16: 0 | U16: 0 | V16: 0 | W16: 0 | X16: 0 | Y16: 0 | Z16: 0
B17: 2016-11-15 | C17: 2016-12-15 | D17: 2016-01-16 | E17: 2016-02-16 | F17: 2016-03-16 | G17: 2016-04-16 | H17: 2016-05-16 | I17: 2016-06-16 | J17: 2016-06-16 | K17: 2016-06-16 | L17: 2016-09-16 | M17: 2017-11-17 | N17: 2020-01-31 | O17: 2020-02-29 | P17: 2020-03-31 | Q17: 2020-04-30 | R17: 2020-05-31 | S17: 2020-07-30 | T17: 2020-08-30 | U17: 2020-09-30 | V17: 2020-10-31 | W17: 2020-11-30 | X17: 2020-12-31 | Y17: 2021-01-31 | Z17: =Z8 -> 2021-03-31
A18: Sub Account | B18: Actual | C18: Actual | D18: Actual | E18: Actual | F18: Actual | G18: Actual | H18: Actual | I18: Actual | J18: Actual | K18: Actual | L18: Actual | M18: Actual | N18: Actual | O18: Actual | P18: Actual | Q18: Actual | R18: Actual | S18: Actual | T18: Actual | U18: Actual | V18: Actual | W18: Actual | X18: Actual | Y18: Actual | Z18: Actual
A19: =------------------------------------------------------- | B19: _______ | C19: _______ | D19: _______ | E19: _______ | F19: _______ | G19: _______ | H19: _______ | I19: _______ | J19: _______ | K19: _______ | L19: _______ | M19: _______ | N19: _______ | O19: _______ | P19: _______ | Q19: _______ | R19: _______ | S19: _______ | T19: _______ | U19: _______ | V19: _______ | W19: _______ | X19: _______ | Y19: _______ | Z19: _______
A20: Activity
A21: Trial Balance
A22: 13210 Prepaid admin fee CA 200mm | N22: 0 | O22: 0 | P22: -9027.77 | Q22: 72736.1 | R22: -6875 | S22: -6875 | T22: -6875 | U22: -6875 | V22: -6875 | W22: -6875 | X22: -6875 | Y22: -6875 | Z22: =Z13-Y13 -> -6875
A23: Total | B23: 0 | C23: 0 | D23: 0 | E23: 0 | F23: 0 | G23: 0 | H23: 0 | I23: 0 | J23: 0 | K23: 0 | L23: =SUM(#REF!) ->  | M23: =+#REF! ->  | N23: =N22 -> 0 | O23: =O22 -> 0 | P23: -9027.77 | Q23: 72736.1 | R23: -6875 | S23: -6875 | T23: -6875 | U23: -6875 | V23: -6875 | W23: -6875 | X23: -6875 | Y23: -6875 | Z23: -6875
N25: 0 | O25: 0 | P25: 0 | Q25: 0 | R25: 0 | S25: 0 | T25: 0 | U25: 0 | V25: 0 | W25: 0 | X25: 0 | Y25: 0 | Z25: 0
L26: Note to File:

Sheet Acct 2240 Real Estate Lease
A1: Atmos Energy Corporation
A2: Monthly Capital Structure Report
A3: ='LTD rate'!A3 -> March 31, 2021
A5: Currency: USD
A6: Account=2240, Sub Account=27002
B8: 2020-03-31 | C8: 2020-04-30 | D8: 2020-05-31 | E8: 2020-06-30 | F8: 2020-07-31 | G8: 2020-08-31 | H8: 2020-09-30 | I8: 2020-10-31 | J8: 2020-11-30 | K8: 2020-12-31 | L8: 2021-01-31 | M8: 2021-02-28 | N8: 2021-03-31
A9: Sub Account | B9: Actual | C9: Actual | D9: Actual | E9: Actual | F9: Actual | G9: Actual | H9: Actual | I9: Actual | J9: Actual | K9: Actual | L9: Actual | M9: Actual | N9: Actual
A10: =------------------------------------------------------- | B10: _______ | C10: _______ | D10: _______ | E10: _______ | F10: _______ | G10: _______ | H10: _______ | I10: _______ | J10: _______ | K10: _______ | L10: _______ | M10: _______ | N10: _______
A11: Balance
A12: Trial Balance
A13: Other long-Term - 842 Real Estate Lease - Distribution 2240-27002 | B13: 6665965.2 | C13: 6522821.06 | D13: 6510961.35 | E13: 8636366.86 | F13: 8647262.65 | G13: 8642960.56 | H13: 8629942.23 | I13: 8634251.99 | J13: 8620992.76 | K13: 8607657.52 | L13: 8594245.83 | M13: 8580757.16 | N13: 8611502.87
B15: 0 | C15: 0 | D15: 0 | E15: 0 | F15: 0 | G15: 0 | H15: 0 | I15: 0 | J15: 0 | K15: 0 | L15: 0 | M15: 0 | N15: 0

Sheet 1810 Unamort Debt exp
A1: Atmos Energy Corporation
A2: Total Consolidated Unamortized Debt Expense - Acct 1810
A3: September 30, 2015 - September 30, 2016
H5: 1810 | J5: 1810 | K5: 1810 | M5: 1810 | N5: 1810 | P5: 1810 | Q5: 1810 | S5: 1810 | T5: 1810 | V5: 1810 | W5: 1810 | Y5: 1810 | Z5: 1810 | AB5: 1810 | AC5: 1810 | AE5: 1810 | AF5: 1810 | AH5: 1810 | AI5: 1810 | AK5: 1810 | AL5: 1810 | AN5: 1810 | AO5: 1810 | AQ5: 1810 | AR5: 1810 | AT5: 1810 | AU5: 1810
A6: Atmos Energy Corp., Consolidated: | C6: Year | D6: sub | E6: Orig | F6: 4280 | H6: G/L Balance | J6: Amort/Othr Activity | K6: G/L Balance | M6: Amort/Othr Activity | N6: G/L Balance | P6: Amort/Othr Activity | Q6: G/L Balance | S6: Amort/Othr Activity | T6: G/L Balance | V6: Amort/Othr Activity | W6: G/L Balance | Y6: Amort/Othr Activity | Z6: G/L Balance | AB6: Amort/Othr Activity | AC6: G/L Balance | AE6: Amort/Othr Activity | AF6: G/L Balance | AH6: Amort/Othr Activity | AI6: G/L Balance | AK6: Amort/Othr Activity | AL6: G/L Balance | AN6: Amort/Othr Activity | AO6: G/L Balance | AQ6: Amort/Othr Activity | AR6: G/L Balance | AT6: Amort/Othr Activity | AU6: G/L Balance
A7: Line | B7: Debt Series | C7: Issued | D7: acct | E7: Debt exp | F7: mthly exp | H7: 2015-08-31 | J7: 2015-09-30 | K7: =+J7 -> 2015-09-30 | M7: 2015-10-31 | N7: =+M7 -> 2015-10-31 | P7: 2015-11-30 | Q7: =+P7 -> 2015-11-30 | S7: 2015-12-31 | T7: =+S7 -> 2015-12-31 | V7: 2016-01-31 | W7: =+V7 -> 2016-01-31 | Y7: 2016-02-29 | Z7: =+Y7 -> 2016-02-29 | AB7: 2016-03-31 | AC7: =+AB7 -> 2016-03-31 | AE7: 2016-04-30 | AF7: =+AE7 -> 2016-04-30 | AH7: 2016-05-31 | AI7: =+AH7 -> 2016-05-31 | AK7: 2016-06-30 | AL7: =+AK7 -> 2016-06-30 | AN7: 2016-07-31 | AO7: =+AN7 -> 2016-07-31 | AQ7: 2016-08-31 | AR7: =+AQ7 -> 2016-08-31 | AT7: 2016-09-30 | AU7: =+AT7 -> 2016-09-30
B8: (a) | C8: (b)
A9: 1 | B9: 6.75% Debentures Unsecured due July 2028 | C9: 1998 | D9: 13521 | E9: 1670646.19 | F9: 4640.68 | H9: 719306.29 | J9: =K9-H9 -> -4640.68 | K9: 714665.61 | M9: =N9-K9 -> -4640.68 | N9: 710024.93 | P9: =Q9-N9 -> -4640.68 | Q9: 705384.25 | S9: =T9-Q9 -> -4640.68 | T9: 700743.57 | V9: =W9-T9 -> -4640.68 | W9: 696102.89 | Y9: =Z9-W9 -> -4640.68 | Z9: 691462.21 | AB9: =AC9-Z9 -> -4640.68 | AC9: 686821.53 | AE9: =AF9-AC9 -> -4640.68 | AF9: 682180.85 | AH9: =AI9-AF9 -> -4640.68 | AI9: 677540.17 | AK9: =AL9-AI9 -> -4640.68 | AL9: 672899.49 | AN9: =AO9-AL9 -> -4640.68 | AO9: 668258.81 | AQ9: =AR9-AO9 -> -4640.68 | AR9: 663618.13 | AT9: =AU9-AR9 -> -663618.13 | AU9: 0 | AV9: Bal Moved to 2241 in Sept-16
A10: 2 | B10: 5.125% Senior Notes due Jan 2013 | C10: 2003 | D10: 13513/26 | E10: 782758.51 | H10: 0 | J10: =K10-H10 -> 0 | K10: 0 | M10: =N10-K10 -> 0 | N10: 0 | P10: =Q10-N10 -> 0 | Q10: 0 | S10: =T10-Q10 -> 0 | T10: 0 | V10: =W10-T10 -> 0 | W10: 0 | Y10: =Z10-W10 -> 0 | Z10: 0 | AB10: =AC10-Z10 -> 0 | AC10: 0 | AE10: =AF10-AC10 -> 0 | AF10: 0 | AH10: =AI10-AF10 -> 0 | AI10: 0 | AK10: =AL10-AI10 -> 0 | AL10: 0 | AN10: =AO10-AL10 -> 0 | AO10: 0 | AQ10: =AR10-AO10 -> 0 | AR10: 0 | AT10: =AU10-AR10 -> 0 | AU10: 0 | AV10: Bal Moved to 2241 in Sept-16
A11: 3 | B11: 6.67% MTN A1 due Dec 2025 | C11: 1995 | D11: 13501 | E11: 233308 | F11: 648.08 | H11: 80036.5 | J11: -649.18 | K11: 79387.32 | M11: -645.88 | N11: 78741.44 | P11: -648.08 | Q11: 78093.36 | S11: =T11-Q11 -> -648.08 | T11: 77445.28 | V11: =W11-T11 -> -648.08 | W11: 76797.2 | Y11: =Z11-W11 -> -648.08 | Z11: 76149.12 | AB11: =AC11-Z11 -> -648.08 | AC11: 75501.04 | AE11: =AF11-AC11 -> -648.08 | AF11: 74852.96 | AH11: =AI11-AF11 -> -648.08 | AI11: 74204.88 | AK11: =AL11-AI11 -> -648.08 | AL11: 73556.8 | AN11: =AO11-AL11 -> -648.08 | AO11: 72908.72 | AQ11: =AR11-AO11 -> -648.08 | AR11: 72260.64 | AT11: =AU11-AR11 -> -72260.64 | AU11: 0 | AV11: Bal Moved to 2241 in Sept-16
A12: 4 | B12: 4.95% Sr Note due 10/15/2014 | C12: 2004 | D12: 13529 | E12: 4496697.19 | H12: 0 | J12: 0 | K12: 0 | M12: 0 | N12: 0 | P12: 0 | Q12: 0 | S12: =T12-Q12 -> 0 | T12: 0 | V12: =W12-T12 -> 0 | W12: 0 | Y12: =Z12-W12 -> 0 | Z12: 0 | AB12: =AC12-Z12 -> 0 | AC12: 0 | AE12: =AF12-AC12 -> 0 | AF12: 0 | AH12: =AI12-AF12 -> 0 | AI12: 0 | AK12: =AL12-AI12 -> 0 | AL12: 0 | AN12: =AO12-AL12 -> 0 | AO12: 0 | AQ12: =AR12-AO12 -> 0 | AR12: 0 | AT12: =AU12-AR12 -> 0 | AU12: 0 | AV12: Bal Moved to 2241 in Sept-16
A13: 5 | B13: 5.95% Sr Note due 10/15/2034 | C13: 2004 | D13: 13530 | E13: 2255707.29 | F13: 6265.85 | H13: 1441146.84 | J13: -6265.85 | K13: 1434880.99 | M13: -6265.85 | N13: 1428615.14 | P13: -6265.85 | Q13: 1422349.29 | S13: -6265.85 | T13: 1416083.44 | V13: -6265.85 | W13: 1409817.59 | Y13: -6265.85 | Z13: 1403551.74 | AB13: -6265.85 | AC13: 1397285.89 | AE13: -6265.85 | AF13: 1391020.04 | AH13: -6265.85 | AI13: 1384754.19 | AK13: -6265.85 | AL13: 1378488.34 | AN13: -6265.85 | AO13: 1372222.49 | AQ13: -6265.85 | AR13: 1365956.64 | AT13: =AU13-AR13 -> -1365956.64 | AU13: 0 | AV13: Bal Moved to 2241 in Sept-16
A14: 6 | B14: 6.35% Sr Note due 6/15/2017 | C14: 2007 | D14: 13531 | E14: 2191242.94 | F14: 18260.36 | H14: 401727.81 | J14: -18260.36 | K14: 383467.45 | M14: -18260.36 | N14: 365207.09 | P14: -18260.36 | Q14: 346946.73 | S14: -18260.36 | T14: 328686.37 | V14: -18260.36 | W14: 310426.01 | Y14: -18260.36 | Z14: 292165.65 | AB14: -18260.36 | AC14: 273905.29 | AE14: -18260.36 | AF14: 255644.93 | AH14: -18260.36 | AI14: 237384.57 | AK14: -18260.36 | AL14: 219124.21 | AN14: -18260.36 | AO14: 200863.85 | AQ14: -18260.36 | AR14: 182603.49 | AT14: -182603.49 | AU14: 0 | AV14: Bal Moved to 2241 in Sept-16
A15: 7 | B15: Sr Note 5.50% Due 06/15/2041 | C15: 2011 | D15: 13534 | E15: 4317787.73 | F15: 11993.85 | H15: 3706101.27 | J15: -11993.85 | K15: 3694107.42 | M15: -11993.85 | N15: 3682113.57 | P15: -11993.85 | Q15: 3670119.72 | S15: -11993.85 | T15: 3658125.87 | V15: -11993.85 | W15: 3646132.02 | Y15: -11993.85 | Z15: 3634138.17 | AB15: -11993.85 | AC15: 3622144.32 | AE15: -11993.85 | AF15: 3610150.47 | AH15: -11993.85 | AI15: 3598156.62 | AK15: -11993.85 | AL15: 3586162.77 | AN15: -11993.85 | AO15: 3574168.92 | AQ15: -11993.85 | AR15: 3562175.07 | AT15: -3562175.07 | AU15: 0 | AV15: Bal Moved to 2241 in Sept-16
A16: 8 | B16: 8.50% Sr Note due 3/15/2019 | C16: 2009 | D16: 13532 | E16: 3704257.34 | F16: 30868.81 | H16: 1327358.91 | J16: -30868.81 | K16: 1296490.1 | M16: -30868.81 | N16: 1265621.29 | P16: -30868.81 | Q16: 1234752.48 | S16: -30868.81 | T16: 1203883.67 | V16: -30868.81 | W16: 1173014.86 | Y16: -30868.81 | Z16: 1142146.05 | AB16: -30868.81 | AC16: 1111277.24 | AE16: -30868.81 | AF16: 1080408.43 | AH16: -30868.81 | AI16: 1049539.62 | AK16: -30868.81 | AL16: 1018670.81 | AN16: -30868.81 | AO16: 987802 | AQ16: -30868.81 | AR16: 956933.19 | AT16: -956933.19 | AU16: 0 | AV16: Bal Moved to 2241 in Sept-16
A17: 9 | B17: 4.15% Sr Note due 1/15/2043 | C17: 2013 | D17: 13535 | E17: 5366185 | F17: 14907.23 | H17: 4897024.19 | J17: -14907.23 | K17: 4882116.96 | M17: -14907.23 | N17: 4867209.73 | P17: -14907.23 | Q17: 4852302.5 | S17: -14907.23 | T17: 4837395.27 | V17: -14907.23 | W17: 4822488.04 | Y17: -14907.23 | Z17: 4807580.81 | AB17: -14907.23 | AC17: 4792673.58 | AE17: -14907.23 | AF17: 4777766.35 | AH17: -14907.23 | AI17: 4762859.12 | AK17: -14907.23 | AL17: 4747951.89 | AN17: -14907.23 | AO17: 4733044.66 | AQ17: -14907.23 | AR17: 4718137.43 | AT17: -4718137.43 | AU17: 0 | AV17: Bal Moved to 2241 in Sept-16
A18: 10 | B18: 4.125 Sr Note due 10/15/2044 | C18: 2014 | D18: 13536 | E18: 5522224.38 | F18: 15339.51217 | H18: 5361159.52 | J18: -15339.51 | K18: 5345820.01 | M18: -15339.51 | N18: 5330480.5 | P18: -15339.51 | Q18: 5315140.99 | S18: -15339.51 | T18: 5299801.48 | V18: -15339.51 | W18: 5284461.97 | Y18: -15339.51 | Z18: 5269122.46 | AB18: -15339.51 | AC18: 5253782.95 | AE18: -15339.51 | AF18: 5238443.44 | AH18: -15339.51 | AI18: 5223103.93 | AK18: -15339.51 | AL18: 5207764.42 | AN18: -15339.51 | AO18: 5192424.91 | AQ18: -15339.51 | AR18: 5177085.4 | AT18: -5177085.4 | AU18: 0 | AV18: Bal Moved to 2241 in Sept-16
A19: 11 | B19: Jun-17 debt issuance costs | C19: 2017 | D19: 13537 | H19: 41580 | J19: 0 | K19: 41580 | M19: 0 | N19: 41580 | P19: 0 | Q19: 41580 | S19: 0 | T19: 41580 | V19: 0 | W19: 41580 | Y19: 0 | Z19: 41580 | AB19: 0 | AC19: 41580 | AE19: 0 | AF19: 41580 | AH19: 0 | AI19: 41580 | AK19: 0 | AL19: 41580 | AN19: 0 | AO19: 41580 | AQ19: 0 | AR19: 41580 | AT19: =AU19-AR19 -> -41580 | AU19: 0 | AV19: Bal Moved to 2241 in Sept-16
A20: 12
A21: 13 | B21: Total | F21: =SUM(F9:F19) -> 102924.3722 | H21: =SUM(H9:H20) -> 17975441.33 | J21: =SUM(J9:J20) -> -102925.47 | K21: =SUM(K9:K20) -> 17872515.86 | M21: =SUM(M9:M20) -> -102922.17 | N21: =SUM(N9:N20) -> 17769593.69 | P21: =SUM(P9:P20) -> -102924.37 | Q21: =SUM(Q9:Q20) -> 17666669.32 | S21: =SUM(S9:S20) -> -102924.37 | T21: =SUM(T9:T20) -> 17563744.95 | V21: =SUM(V9:V20) -> -102924.37 | W21: =SUM(W9:W20) -> 17460820.58 | Y21: =SUM(Y9:Y20) -> -102924.37 | Z21: =SUM(Z9:Z20) -> 17357896.21 | AB21: =SUM(AB9:AB20) -> -102924.37 | AC21: =SUM(AC9:AC20) -> 17254971.84 | AE21: =SUM(AE9:AE20) -> -102924.37 | AF21: =SUM(AF9:AF20) -> 17152047.47 | AH21: =SUM(AH9:AH20) -> -102924.37 | AI21: =SUM(AI9:AI20) -> 17049123.1 | AK21: =SUM(AK9:AK20) -> -102924.37 | AL21: =SUM(AL9:AL20) -> 16946198.73 | AN21: =SUM(AN9:AN20) -> -102924.37 | AO21: =SUM(AO9:AO20) -> 16843274.36 | AQ21: =SUM(AQ9:AQ20) -> -102924.37 | AR21: =SUM(AR9:AR20) -> 16740349.99 | AT21: =SUM(AT9:AT20) -> -16740349.99 | AU21: =SUM(AU9:AU20) -> 0
A22: 14 | H22: check | K22: check | N22: check | Q22: check | T22: check | W22: check | Z22: check | AC22: check | AF22: check | AI22: check | AL22: check | AO22: check | AR22: check | AU22: check
A23: 15 | B23: G/L Balance | H23: 17975441.33 | K23: 17872515.86 | N23: 17769593.69 | Q23: 17666669.32 | T23: 17563744.95 | W23: 17460820.58 | Z23: 17357896.21 | AC23: 17254971.84 | AF23: 17152047.47 | AI23: 17049123.1 | AL23: 16946198.73 | AO23: 16843274.36 | AR23: 16740349.99 | AU23: 0
A24: 16 | B24: reconciling item | H24: 0 | K24: =K21-K23 -> 0 | N24: =N21-N23 -> 0 | Q24: =Q21-Q23 -> 0 | T24: =T21-T23 -> 0 | W24: =W21-W23 -> 0 | Z24: =Z21-Z23 -> 0 | AC24: =AC21-AC23 -> 0 | AF24: =AF21-AF23 -> 0 | AI24: =AI21-AI23 -> 0 | AL24: =AL21-AL23 -> 0 | AO24: =AO21-AO23 -> 0 | AR24: =AR21-AR23 -> 0 | AU24: =AU21-AU23 -> 0

Sheet 1890 Unamort Loss on Reacq Debt
A1: Activity by Month
A3: Account=1890 (Unamortized Loss on Reacquired Debt)
B5: March-20 | C5: April-20 | D5: May-20 | E5: Jun-20 | F5: Jul-20 | G5: Aug-20 | H5: Sep-20 | I5: Oct-20 | J5: Nov-20 | K5: Dec-20 | L5: Jan-21 | M5: Feb-21 | N5: Mar-21
B6: Actual | C6: Actual | D6: Actual | E6: Actual | F6: Actual | G6: Actual | H6: Actual | I6: Actual | J6: Actual | K6: Actual | L6: Actual | M6: Actual | N6: Actual
A8: Trial Balance
A9: 13531 250MM 6.35% due Jun-17 | B9: 0 | C9: 0 | D9: 0 | E9: 0 | F9: 0 | G9: 0 | H9: 0 | I9: 0 | J9: 0 | K9: 0 | L9: 0 | M9: 0 | N9: 0
A10: 13533 8.5 percent Senior notes due 2009-450M | B10: 0 | C10: 0 | D10: 0 | E10: 0 | F10: 0 | G10: 0 | H10: 0 | I10: 0 | J10: 0 | K10: 0 | L10: 0 | M10: 0 | N10: 0
A11: 19100 Retirement of MVG Debt | B11: -13988.35 | C11: -13988.35 | D11: -13988.35 | E11: -13988.35 | F11: -13988.35 | G11: -13988.35 | H11: -13988.35 | I11: -13988.35 | J11: -13988.35 | K11: -13988.35 | L11: -13988.35 | M11: -13988.35 | N11: -13988.35
A12: 19105 Retirement Premium on NP Series Q | B12: -28131.73 | C12: -28131.73 | D12: 0 | E12: 0 | F12: 0 | G12: 0 | H12: 0 | I12: 0 | J12: 0 | K12: 0 | L12: 0 | M12: 0 | N12: 0
A13: 19107 Retirement Premium on NP Series T | B13: -30228.87 | C13: -30228.87 | D13: -30228.87 | E13: -30228.87 | F13: -30228.87 | G13: -30228.87 | H13: -30228.87 | I13: -30228.87 | J13: -30228.87 | K13: -30228.87 | L13: -30228.87 | M13: -30228.87 | N13: -30228.87
A14: 19108 Retirement Premium on NP Series U | B14: -30726.59 | C14: -30726.59 | D14: -30726.59 | E14: -30726.59 | F14: -30726.59 | G14: -30726.59 | H14: -30726.59 | I14: -30726.59 | J14: -30726.59 | K14: -30726.59 | L14: -30726.59 | M14: -30726.59 | N14: -30726.59
A15: 19110 Retirement Premium on FMB Series P | B15: 0 | C15: 0 | D15: 0 | E15: 0 | F15: 0 | G15: 0 | H15: 0 | I15: 0 | J15: 0 | K15: 0 | L15: 0 | M15: 0 | N15: 0
A16: 19113 Retirement Premium on NP Series J | B16: -46699.79 | C16: -46699.79 | D16: -46699.79 | E16: -46699.79 | F16: -46699.79 | G16: -46699.79 | H16: -46699.79 | I16: -46699.79 | J16: -46699.79 | K16: -46699.79 | L16: -46699.79 | M16: -46699.79 | N16: -46699.79
A17: TOTAL | B17: =SUM(B9:B16) -> -149775.33 | C17: -149775.33 | D17: -121643.6 | E17: -121643.6 | F17: -121643.6 | G17: =SUM(G9:G16) -> -121643.6 | H17: -121643.6 | I17: -121643.6 | J17: -121643.6 | K17: =SUM(K9:K16) -> -121643.6 | L17: =SUM(L9:L16) -> -121643.6 | M17: =SUM(M9:M16) -> -121643.6 | N17: =SUM(N9:N16) -> -121643.6
B19: 0 | C19: 0 | D19: 0 | E19: 0 | F19: 0 | G19: 0 | H19: 0 | I19: 0 | J19: 0 | K19: 0 | L19: 0 | M19: -4.074536264e-10 | N19: 0
A21: Balance by Month
A23: Account=1890 (Unamortized Loss on Reacquired Debt)
B25: March-20 | C25: April-20 | D25: May-20 | E25: Jun-20 | F25: Jul-20 | G25: Aug-20 | H25: Sep-20 | I25: Oct-20 | J25: Nov-20 | K25: Dec-20 | L25: Jan-21 | M25: Feb-21 | N25: Mar-21
B26: Actual | C26: Actual | D26: Actual | E26: Actual | F26: Actual | G26: Actual | H26: Actual | I26: Actual | J26: Actual | K26: Actual | L26: Actual | M26: Actual | N26: Actual
A28: Trial Balance
A29: 13531 250MM 6.35% due Jun-17 | B29: 0 | C29: 0 | D29: 0 | E29: 0 | F29: 0 | G29: 0 | H29: 0 | I29: 0 | J29: 0 | K29: 0 | L29: 0 | M29: 0 | N29: 0
A30: 13533 8.5 percent Senior notes due 2009-450M | B30: 1.175794739e-10 | C30: 1.175794739e-10 | D30: 1.175794739e-10 | E30: 1.175794739e-10 | F30: 1.175794739e-10 | G30: 1.175794739e-10 | H30: 1.175794739e-10 | I30: 1.175794739e-10 | J30: 1.175794739e-10 | K30: 1.175794739e-10 | L30: 1.175794739e-10 | M30: 1.175794739e-10 | N30: =+M30+N10 -> 1.175794739e-10
A31: 19100 Retirement of MVG Debt | B31: 3825812.3 | C31: 3811823.95 | D31: 3797835.6 | E31: 3783847.25 | F31: 3769858.9 | G31: 3755870.55 | H31: 3741882.2 | I31: 3727893.85 | J31: 3713905.5 | K31: 3699917.15 | L31: 3685928.8 | M31: 3671940.45 | N31: =+M31+N11 -> 3657952.1
A32: 19105 Retirement Premium on NP Series Q | B32: 28131.52 | C32: -0.21 | D32: -0.21 | E32: -0.21 | F32: -0.21 | G32: -0.21 | H32: -0.21 | I32: -0.21 | J32: -0.21 | K32: -0.21 | L32: -0.21 | M32: -0.21 | N32: =+M32+N12 -> -0.21
A33: 19107 Retirement Premium on NP Series T | B33: 423203.84 | C33: 392974.97 | D33: 362746.1 | E33: 332517.23 | F33: 302288.36 | G33: 272059.49 | H33: 241830.62 | I33: 211601.75 | J33: 181372.88 | K33: 151144.01 | L33: 120915.14 | M33: 90686.27 | N33: 60457.4
A34: 19108 Retirement Premium on NP Series U | B34: 768165.22 | C34: 737438.63 | D34: 706712.04 | E34: 675985.45 | F34: 645258.86 | G34: 614532.27 | H34: 583805.68 | I34: 553079.09 | J34: 522352.5 | K34: 491625.91 | L34: 460899.32 | M34: 430172.73 | N34: 399446.14
A35: 19110 Retirement Premium on FMB Series P | B35: 2.182785203e-13 | C35: 2.182785203e-13 | D35: 2.182785203e-13 | E35: 2.182785203e-13 | F35: 2.182785203e-13 | G35: 2.182785203e-13 | H35: 2.182785203e-13 | I35: 2.182785203e-13 | J35: 2.182785203e-13 | K35: 2.182785203e-13 | L35: 2.182785203e-13 | M35: 2.182785203e-13 | N35: 2.182785203e-13
A36: 19113 Retirement Premium on NP Series J | B36: 607097.38 | C36: 560397.59 | D36: 513697.8 | E36: 466998.01 | F36: 420298.22 | G36: 373598.43 | H36: 326898.64 | I36: 280198.85 | J36: 233499.06 | K36: 186799.27 | L36: 140099.48 | M36: 93399.69 | N36: 46699.9
A37: TOTAL | B37: 5652410.26 | C37: 5502634.93 | D37: 5380991.33 | E37: 5259347.73 | F37: 5137704.13 | G37: 5016060.53 | H37: 4894416.93 | I37: 4772773.33 | J37: 4651129.73 | K37: 4529486.13 | L37: 4407842.53 | M37: 4286198.93 | N37: =SUM(N29:N36) -> 4164555.33
B39: 0 | C39: 0 | D39: 0 | E39: 0 | F39: 0 | G39: 0 | H39: 0 | I39: 0 | J39: 0 | K39: 0 | L39: 0 | M39: 0 | N39: 0

Sheet 20102
A1: Amortization Schedule
A2: GL# 010.0000.2150.20102.002000 | F2: 5 years | G2: 5 years | H2: 20 years
F3: Amort | G3: Amort | H3: Amort | I3: Total to Amort
B4: (Gain) Loss | C4: Years | D4: Annual Amort | F4: Nov 2004-Oct 2009 | G4: Nov 2009-Oct 2014 | H4: Nov 2014-Oct 2034 | I4: Nov 2004-Oct 2034
A5: SunTrust | B5: -63003 | C5: 30 | D5: =B5/C5 -> -2100.1 | F5: =+$D5*5 -> -10500.5 | G5: =+$D5*5 -> -10500.5 | H5: =+$D5*20 -> -42002 | I5: =SUM(F5:H5) -> -63003
A6: JP Morgan | B6: -148409 | C6: 30 | D6: =B6/C6 -> -4946.966667 | F6: =+$D6*5 -> -24734.83333 | G6: =+$D6*5 -> -24734.83333 | H6: =+$D6*20 -> -98939.33333 | I6: =SUM(F6:H6) -> -148409
A7: Merrill Lynch | B7: 0 | C7: 5 | D7: =B7/C7 -> 0 | F7: =+$D7*5 -> 0 | G7: 0 | H7: 0 | I7: =SUM(F7:H7) -> 0
A8: Merrill Lynch | B8: 32377932 | C8: 10 | D8: =B8/C8 -> 3237793.2 | F8: =+$D8*5 -> 16188966 | G8: =+$D8*5 -> 16188966 | H8: 0 | I8: =SUM(F8:H8) -> 32377932
A10: Total | B10: =SUM(B5:B8) -> 32166520 | D10: =SUM(D5:D8) -> 3230746.133 | F10: =SUM(F5:F9) -> 16153730.67 | G10: =SUM(G5:G9) -> 16153730.67 | H10: =SUM(H5:H9) -> -140941.3333 | I10: =SUM(F10:H10) -> 32166520
D12: # months to Amort | F12: =5*12 -> 60 | G12: =5*12 -> 60 | H12: =20*12 -> 240
F14: DR (CR) | G14: DR (CR) | H14: DR (CR) | J14: new rates as of 06/30/20
C15: LT Int Exp | D15: Monthly Amort | F15: =+F10/F12 -> 269228.8444 | G15: =+G10/G12 -> 269228.8444 | H15: =+H10/H12 -> -587.2555556 | J15: Def State Tax | K15: 0.018
C16: 2830.28206 | D16: Def State Tax | E16: 0.023 | F16: =-F$15*$E16 -> -6192.263422 | G16: -6192.263422 | H16: 13.50687778 | J16: Def Fed Tax | K16: 0.20622
C17: 2830.28201 | D17: Def Fed Tax | E17: 0.342 | F17: -92076.2648 | G17: -92076.2648 | H17: 200.8414 | K17: =SUM(K15:K16) -> 0.22422
E18: 0.20517
A20: T-Lock Settlement | G20: Net OCI | H20: Def State Tax | I20: Def Fed Tax
H21: =E16 -> 0.023 | I21: =E17 -> 0.342 | J21: =H21+I21 -> 0.365 | K21: 0.20517 | L21: =H21+K21 -> 0.22817
C22: 2150.20102 | D22: 2150.20102 | E22: 2150.20102 | F22: 2150.20102 | G22: 2150.20102 | H22: 2830.28206 | I22: 2830.28201 | K22: Balance to Amortize | L22: Balance to Amortize
C23: Amort | D23: T-Lock Settlement | E23: Def Tax Adj | F23: Def Taxes | G23: Net of Tax | H23: Adjustment | I23: Adjustment | K23: =B5+B6 -> -211412 | L23: =B8 -> 32377932
C24: DR (CR) | D24: DR (CR) | E24: DR (CR) | F24: DR (CR) | H24: DR (CR) | I24: DR (CR) | K24: 30 YR | L24: 10 YR | M24: Bal 30 YR | N24: Bal 10 Yr
A25: Balance at Oct 31, 2004 | B25: 2004-10-04 | D25: =B10 -> 32166520 | F25: =-D25*$K$17 -> -7212377.114 | G25: =SUM(D25:F25) -> 24954142.89 | H25: 0 | I25: 0
B26: 2004-11-04 | C26: =-$F$15 -> -269228.8444 | D26: =+D25+C26 -> 31897291.16 | E26: =-C26*$K$17 -> 60366.4915 | F26: =+F25+E26 -> -7152010.623 | G26: =+G25+C26+E26 -> 24745280.53 | H26: =+$K$15*$C26 -> -4846.1192 | I26: =+$K$16*$C26 -> -55520.3723 | K26: =SUM(D5:D6)/12 -> -587.2555556 | L26: =D8/12 -> 269816.1 | M26: =K23-K26 -> -210824.7444 | N26: =L23-L26 -> 32108115.9
B27: 2004-12-04 | C27: =-$F$15 -> -269228.8444 | D27: 31628062.31 | E27: =-C27*$K$17 -> 60366.4915 | F27: =+F26+E27 -> -7091644.131 | G27: =+G26+C27+E27 -> 24536418.18 | H27: =+$K$15*$C27 -> -4846.1192 | I27: =+$K$16*$C27 -> -55520.3723 | K27: =K26 -> -587.2555556 | L27: =L26 -> 269816.1 | M27: =M26-K27 -> -210237.4889 | N27: =N26-L27 -> 31838299.8
B28: 2005-01-04 | C28: -269228.8444 | D28: 31358833.47 | E28: 60366.4915 | F28: -7031277.64 | G28: 24327555.83 | H28: -4846.1192 | I28: -55520.3723 | K28: =K27 -> -587.2555556 | L28: =L27 -> 269816.1 | M28: =M27-K28 -> -209650.2333 | N28: =N27-L28 -> 31568483.7
B29: 2005-02-04 | C29: -269228.8444 | D29: 31089604.62 | E29: 60366.4915 | F29: -6970911.148 | G29: 24118693.47 | H29: -4846.1192 | I29: -55520.3723 | K29: -587.2555556 | L29: 269816.1 | M29: -209062.9778 | N29: 31298667.6
B30: 2005-03-04 | C30: -269228.8444 | D30: 30820375.78 | E30: 60366.4915 | F30: -6910544.657 | G30: 23909831.12 | H30: -4846.1192 | I30: -55520.3723 | K30: -587.2555556 | L30: 269816.1 | M30: -208475.7222 | N30: 31028851.5
B31: 2005-04-04 | C31: =-$F$15 -> -269228.8444 | D31: 30551146.93 | E31: 60366.4915 | F31: -6850178.165 | G31: 23700968.77 | H31: -4846.1192 | I31: -55520.3723 | K31: -587.2555556 | L31: 269816.1 | M31: -207888.4667 | N31: 30759035.4
B32: 2005-05-04 | C32: -269228.8444 | D32: 30281918.09 | E32: 60366.4915 | F32: -6789811.674 | G32: 23492106.41 | H32: -4846.1192 | I32: -55520.3723 | K32: -587.2555556 | L32: 269816.1 | M32: -207301.2111 | N32: 30489219.3
B33: 2005-06-04 | C33: -269228.8444 | D33: 30012689.24 | E33: 60366.4915 | F33: -6729445.182 | G33: 23283244.06 | H33: -4846.1192 | I33: -55520.3723 | K33: -587.2555556 | L33: 269816.1 | M33: -206713.9556 | N33: 30219403.2
B34: 2005-07-04 | C34: -269228.8444 | D34: 29743460.4 | E34: 60366.4915 | F34: -6669078.691 | G34: 23074381.71 | H34: -4846.1192 | I34: -55520.3723 | K34: -587.2555556 | L34: 269816.1 | M34: -206126.7 | N34: 29949587.1
B35: 2005-08-04 | C35: -269228.8444 | D35: 29474231.56 | E35: 60366.4915 | F35: -6608712.199 | G35: 22865519.36 | H35: -4846.1192 | I35: -55520.3723 | K35: -587.2555556 | L35: 269816.1 | M35: -205539.4444 | N35: 29679771
B36: 2005-09-04 | C36: -269228.8444 | D36: 29205002.71 | E36: 60366.4915 | F36: -6548345.708 | G36: 22656657 | H36: -4846.1192 | I36: -55520.3723 | K36: -587.2555556 | L36: 269816.1 | M36: -204952.1889 | N36: 29409954.9
B37: 2005-10-04 | C37: -269228.8444 | D37: 28935773.87 | E37: 60366.4915 | F37: -6487979.216 | G37: 22447794.65 | H37: -4846.1192 | I37: -55520.3723 | K37: -587.2555556 | L37: 269816.1 | M37: -204364.9333 | N37: 29140138.8
B38: 2005-11-04 | C38: -269228.8444 | D38: 28666545.02 | E38: 60366.4915 | F38: -6427612.725 | G38: 22238932.3 | H38: -4846.1192 | I38: -55520.3723 | K38: -587.2555556 | L38: 269816.1 | M38: -203777.6778 | N38: 28870322.7
B39: 2005-12-04 | C39: -269228.8444 | D39: 28397316.18 | E39: 60366.4915 | F39: -6367246.233 | G39: 22030069.94 | H39: -4846.1192 | I39: -55520.3723 | K39: -587.2555556 | L39: 269816.1 | M39: -203190.4222 | N39: 28600506.6
B40: 2006-01-04 | C40: -269228.8444 | D40: 28128087.33 | E40: 60366.4915 | F40: -6306879.742 | G40: 21821207.59 | H40: -4846.1192 | I40: -55520.3723 | K40: -587.2555556 | L40: 269816.1 | M40: -202603.1667 | N40: 28330690.5
B41: 2006-02-04 | C41: -269228.8444 | D41: 27858858.49 | E41: 60366.4915 | F41: -6246513.25 | G41: 21612345.24 | H41: -4846.1192 | I41: -55520.3723 | K41: -587.2555556 | L41: 269816.1 | M41: -202015.9111 | N41: 28060874.4
B42: 2006-03-04 | C42: -269228.8444 | D42: 27589629.64 | E42: 60366.4915 | F42: -6186146.759 | G42: 21403482.89 | H42: -4846.1192 | I42: -55520.3723 | K42: -587.2555556 | L42: 269816.1 | M42: -201428.6556 | N42: 27791058.3
B43: 2006-04-04 | C43: -269228.8444 | D43: 27320400.8 | E43: 60366.4915 | F43: -6125780.267 | G43: 21194620.53 | H43: -4846.1192 | I43: -55520.3723 | K43: -587.2555556 | L43: 269816.1 | M43: -200841.4 | N43: 27521242.2
B44: 2006-05-04 | C44: -269228.8444 | D44: 27051171.96 | E44: 60366.4915 | F44: -6065413.776 | G44: 20985758.18 | H44: -4846.1192 | I44: -55520.3723 | K44: -587.2555556 | L44: 269816.1 | M44: -200254.1444 | N44: 27251426.1
B45: 2006-06-04 | C45: -269228.8444 | D45: 26781943.11 | E45: 60366.4915 | F45: -6005047.284 | G45: 20776895.83 | H45: -4846.1192 | I45: -55520.3723 | K45: -587.2555556 | L45: 269816.1 | M45: -199666.8889 | N45: 26981610
B46: 2006-07-04 | C46: -269228.8444 | D46: 26512714.27 | E46: 60366.4915 | F46: -5944680.793 | G46: 20568033.47 | H46: -4846.1192 | I46: -55520.3723 | K46: -587.2555556 | L46: 269816.1 | M46: -199079.6333 | N46: 26711793.9
B47: 2006-08-04 | C47: -269228.8444 | D47: 26243485.42 | E47: 60366.4915 | F47: -5884314.301 | G47: 20359171.12 | H47: -4846.1192 | I47: -55520.3723 | K47: -587.2555556 | L47: 269816.1 | M47: -198492.3778 | N47: 26441977.8
B48: 2006-09-04 | C48: -269228.8444 | D48: 25974256.58 | E48: 60366.4915 | F48: -5823947.81 | G48: 20150308.77 | H48: -4846.1192 | I48: -55520.3723 | K48: -587.2555556 | L48: 269816.1 | M48: -197905.1222 | N48: 26172161.7
B49: 2006-10-04 | C49: -269228.8444 | D49: 25705027.73 | E49: 60366.4915 | F49: -5763581.318 | G49: 19941446.41 | H49: -4846.1192 | I49: -55520.3723 | K49: -587.2555556 | L49: 269816.1 | M49: -197317.8667 | N49: 25902345.6
B50: 2006-11-04 | C50: -269228.8444 | D50: 25435798.89 | E50: 60366.4915 | F50: -5703214.827 | G50: 19732584.06 | H50: -4846.1192 | I50: -55520.3723 | K50: -587.2555556 | L50: 269816.1 | M50: -196730.6111 | N50: 25632529.5
B51: 2006-12-04 | C51: -269228.8444 | D51: 25166570.04 | E51: 60366.4915 | F51: -5642848.335 | G51: 19523721.71 | H51: -4846.1192 | I51: -55520.3723 | K51: -587.2555556 | L51: 269816.1 | M51: -196143.3556 | N51: 25362713.4
B52: 2007-01-04 | C52: -269228.8444 | D52: 24897341.2 | E52: 60366.4915 | F52: -5582481.844 | G52: 19314859.36 | H52: -4846.1192 | I52: -55520.3723 | K52: -587.2555556 | L52: 269816.1 | M52: -195556.1 | N52: 25092897.3
B53: 2007-02-04 | C53: -269228.8444 | D53: 24628112.36 | E53: 60366.4915 | F53: -5522115.352 | G53: 19105997 | H53: -4846.1192 | I53: -55520.3723 | K53: -587.2555556 | L53: 269816.1 | M53: -194968.8444 | N53: 24823081.2
B54: 2007-03-04 | C54: -269228.8444 | D54: 24358883.51 | E54: 60366.4915 | F54: -5461748.861 | G54: 18897134.65 | H54: -4846.1192 | I54: -55520.3723 | K54: -587.2555556 | L54: 269816.1 | M54: -194381.5889 | N54: 24553265.1
B55: 2007-04-04 | C55: -269228.8444 | D55: 24089654.67 | E55: 60366.4915 | F55: -5401382.369 | G55: 18688272.3 | H55: -4846.1192 | I55: -55520.3723 | K55: -587.2555556 | L55: 269816.1 | M55: -193794.3333 | N55: 24283449
B56: 2007-05-04 | C56: -269228.8444 | D56: 23820425.82 | E56: 60366.4915 | F56: -5341015.878 | G56: 18479409.94 | H56: -4846.1192 | I56: -55520.3723 | K56: -587.2555556 | L56: 269816.1 | M56: -193207.0778 | N56: 24013632.9
B57: 2007-06-04 | C57: -269228.8444 | D57: 23551196.98 | E57: 60366.4915 | F57: -5280649.386 | G57: 18270547.59 | H57: -4846.1192 | I57: -55520.3723 | K57: -587.2555556 | L57: 269816.1 | M57: -192619.8222 | N57: 23743816.8
B58: 2007-07-04 | C58: -269228.8444 | D58: 23281968.13 | E58: 60366.4915 | F58: -5220282.895 | G58: 18061685.24 | H58: -4846.1192 | I58: -55520.3723 | K58: -587.2555556 | L58: 269816.1 | M58: -192032.5667 | N58: 23474000.7
B59: 2007-08-04 | C59: -269228.8444 | D59: 23012739.29 | E59: 60366.4915 | F59: -5159916.403 | G59: 17852822.89 | H59: -4846.1192 | I59: -55520.3723 | K59: -587.2555556 | L59: 269816.1 | M59: -191445.3111 | N59: 23204184.6
B60: 2007-09-04 | C60: -269228.8444 | D60: 22743510.44 | E60: 60366.4915 | F60: -5099549.912 | G60: 17643960.53 | H60: -4846.1192 | I60: -55520.3723 | K60: -587.2555556 | L60: 269816.1 | M60: -190858.0556 | N60: 22934368.5
B61: 2007-10-04 | C61: -269228.8444 | D61: 22474281.6 | E61: 60366.4915 | F61: -5039183.42 | G61: 17435098.18 | H61: -4846.1192 | I61: -55520.3723 | K61: -587.2555556 | L61: 269816.1 | M61: -190270.8 | N61: 22664552.4
B62: 2007-11-04 | C62: -269228.8444 | D62: 22205052.76 | E62: 60366.4915 | F62: -4978816.929 | G62: 17226235.83 | H62: -4846.1192 | I62: -55520.3723 | K62: -587.2555556 | L62: 269816.1 | M62: -189683.5444 | N62: 22394736.3
B63: 2007-12-04 | C63: -269228.8444 | D63: 21935823.91 | E63: 60366.4915 | F63: -4918450.437 | G63: 17017373.47 | H63: -4846.1192 | I63: -55520.3723 | K63: -587.2555556 | L63: 269816.1 | M63: -189096.2889 | N63: 22124920.2
B64: 2008-01-04 | C64: -269228.8444 | D64: 21666595.07 | E64: 60366.4915 | F64: -4858083.946 | G64: 16808511.12 | H64: -4846.1192 | I64: -55520.3723 | K64: -587.2555556 | L64: 269816.1 | M64: -188509.0333 | N64: 21855104.1
B65: 2008-02-04 | C65: -269228.8444 | D65: 21397366.22 | E65: 60366.4915 | F65: -4797717.454 | G65: 16599648.77 | H65: -4846.1192 | I65: -55520.3723 | K65: -587.2555556 | L65: 269816.1 | M65: -187921.7778 | N65: 21585288
B66: 2008-03-04 | C66: -269228.8444 | D66: 21128137.38 | E66: 60366.4915 | F66: -4737350.963 | G66: 16390786.41 | H66: -4846.1192 | I66: -55520.3723 | K66: -587.2555556 | L66: 269816.1 | M66: -187334.5222 | N66: 21315471.9
B67: 2008-04-04 | C67: -269228.8444 | D67: 20858908.53 | E67: 60366.4915 | F67: -4676984.471 | G67: 16181924.06 | H67: -4846.1192 | I67: -55520.3723 | K67: -587.2555556 | L67: 269816.1 | M67: -186747.2667 | N67: 21045655.8
B68: 2008-05-04 | C68: -269228.8444 | D68: 20589679.69 | E68: 60366.4915 | F68: -4616617.98 | G68: 15973061.71 | H68: -4846.1192 | I68: -55520.3723 | K68: -587.2555556 | L68: 269816.1 | M68: -186160.0111 | N68: 20775839.7
B69: 2008-06-04 | C69: -269228.8444 | D69: 20320450.84 | E69: 60366.4915 | F69: -4556251.488 | G69: 15764199.36 | H69: -4846.1192 | I69: -55520.3723 | K69: -587.2555556 | L69: 269816.1 | M69: -185572.7556 | N69: 20506023.6
B70: 2008-07-04 | C70: -269228.8444 | D70: 20051222 | E70: 60366.4915 | F70: -4495884.997 | G70: 15555337 | H70: -4846.1192 | I70: -55520.3723 | K70: -587.2555556 | L70: 269816.1 | M70: -184985.5 | N70: 20236207.5
B71: 2008-08-04 | C71: -269228.8444 | D71: 19781993.16 | E71: 60366.4915 | F71: -4435518.505 | G71: 15346474.65 | H71: -4846.1192 | I71: -55520.3723 | K71: -587.2555556 | L71: 269816.1 | M71: -184398.2444 | N71: 19966391.4
B72: 2008-09-04 | C72: -269228.8444 | D72: 19512764.31 | E72: 60366.4915 | F72: -4375152.014 | G72: 15137612.3 | H72: -4846.1192 | I72: -55520.3723 | K72: -587.2555556 | L72: 269816.1 | M72: -183810.9889 | N72: 19696575.3
B73: 2008-10-04 | C73: -269228.8444 | D73: 19243535.47 | E73: 60366.4915 | F73: -4314785.522 | G73: 14928749.94 | H73: -4846.1192 | I73: -55520.3723 | K73: -587.2555556 | L73: 269816.1 | M73: -183223.7333 | N73: 19426759.2
B74: 2008-11-04 | C74: -269228.8444 | D74: 18974306.62 | E74: 60366.4915 | F74: -4254419.031 | G74: 14719887.59 | H74: -4846.1192 | I74: -55520.3723 | K74: -587.2555556 | L74: 269816.1 | M74: -182636.4778 | N74: 19156943.1
B75: 2008-12-04 | C75: -269228.8444 | D75: 18705077.78 | E75: 60366.4915 | F75: -4194052.539 | G75: 14511025.24 | H75: -4846.1192 | I75: -55520.3723 | K75: -587.2555556 | L75: 269816.1 | M75: -182049.2222 | N75: 18887127
B76: 2009-01-04 | C76: -269228.8444 | D76: 18435848.93 | E76: 60366.4915 | F76: -4133686.048 | G76: 14302162.89 | H76: -4846.1192 | I76: -55520.3723 | K76: -587.2555556 | L76: 269816.1 | M76: -181461.9667 | N76: 18617310.9
B77: 2009-02-04 | C77: -269228.8444 | D77: 18166620.09 | E77: 60366.4915 | F77: -4073319.556 | G77: 14093300.53 | H77: -4846.1192 | I77: -55520.3723 | K77: -587.2555556 | L77: 269816.1 | M77: -180874.7111 | N77: 18347494.8
B78: 2009-03-04 | C78: -269228.8444 | D78: 17897391.24 | E78: 60366.4915 | F78: -4012953.065 | G78: 13884438.18 | H78: -4846.1192 | I78: -55520.3723 | K78: -587.2555556 | L78: 269816.1 | M78: -180287.4556 | N78: 18077678.7
B79: 2009-04-04 | C79: -269228.8444 | D79: 17628162.4 | E79: 60366.4915 | F79: -3952586.573 | G79: 13675575.83 | H79: -4846.1192 | I79: -55520.3723 | K79: -587.2555556 | L79: 269816.1 | M79: -179700.2 | N79: 17807862.6
B80: 2009-05-04 | C80: -269228.8444 | D80: 17358933.56 | E80: 60366.4915 | F80: -3892220.082 | G80: 13466713.47 | H80: -4846.1192 | I80: -55520.3723 | K80: -587.2555556 | L80: 269816.1 | M80: -179112.9444 | N80: 17538046.5
B81: 2009-06-04 | C81: -269228.8444 | D81: 17089704.71 | E81: 60366.4915 | F81: -3831853.59 | G81: 13257851.12 | H81: -4846.1192 | I81: -55520.3723 | K81: -587.2555556 | L81: 269816.1 | M81: -178525.6889 | N81: 17268230.4
B82: 2009-07-04 | C82: -269228.8444 | D82: 16820475.87 | E82: 60366.4915 | F82: -3771487.099 | G82: 13048988.77 | H82: -4846.1192 | I82: -55520.3723 | K82: -587.2555556 | L82: 269816.1 | M82: -177938.4333 | N82: 16998414.3
B83: 2009-08-04 | C83: -269228.8444 | D83: 16551247.02 | E83: 60366.4915 | F83: -3711120.607 | G83: 12840126.41 | H83: -4846.1192 | I83: -55520.3723 | K83: -587.2555556 | L83: 269816.1 | M83: -177351.1778 | N83: 16728598.2
B84: 2009-09-04 | C84: -269228.8444 | D84: 16282018.18 | E84: 60366.4915 | F84: -3650754.116 | G84: 12631264.06 | H84: -4846.1192 | I84: -55520.3723 | K84: -587.2555556 | L84: 269816.1 | M84: -176763.9222 | N84: 16458782.1
B85: 2009-10-04 | C85: -269228.8444 | D85: 16012789.33 | E85: 60366.4915 | F85: -3590387.624 | G85: 12422401.71 | H85: -4846.1192 | I85: -55520.3723 | K85: -587.2555556 | L85: 269816.1 | M85: -176176.6667 | N85: 16188966
B86: 2009-11-04 | C86: =-$G$15 -> -269228.8444 | D86: 15743560.49 | E86: 60366.4915 | F86: -3530021.133 | G86: 12213539.36 | H86: -4846.1192 | I86: -55520.3723 | K86: -587.2555556 | L86: 269816.1 | M86: -175589.4111 | N86: 15919149.9
B87: 2009-12-04 | C87: -269228.8444 | D87: 15474331.64 | E87: 60366.4915 | F87: -3469654.641 | G87: 12004677 | H87: -4846.1192 | I87: -55520.3723 | K87: -587.2555556 | L87: 269816.1 | M87: -175002.1556 | N87: 15649333.8
B88: 2010-01-04 | C88: -269228.8444 | D88: 15205102.8 | E88: 60366.4915 | F88: -3409288.15 | G88: 11795814.65 | H88: -4846.1192 | I88: -55520.3723 | K88: -587.2555556 | L88: 269816.1 | M88: -174414.9 | N88: 15379517.7
B89: 2010-02-04 | C89: -269228.8444 | D89: 14935873.96 | E89: 60366.4915 | F89: -3348921.658 | G89: 11586952.3 | H89: -4846.1192 | I89: -55520.3723 | K89: -587.2555556 | L89: 269816.1 | M89: -173827.6444 | N89: 15109701.6
B90: 2010-03-04 | C90: -269228.8444 | D90: =+D89+C90 -> 14666645.11 | E90: 60366.4915 | F90: -3288555.167 | G90: 11378089.94 | H90: -4846.1192 | I90: -55520.3723 | K90: -587.2555556 | L90: 269816.1 | M90: -173240.3889 | N90: 14839885.5
B91: 2010-04-04 | C91: -269228.8444 | D91: 14397416.27 | E91: =-C91*$K$17 -> 60366.4915 | F91: =+F90+E91 -> -3228188.675 | G91: =+G90+C91+E91 -> 11169227.59 | H91: =+$K$15*$C91 -> -4846.1192 | I91: =+$K$16*$C91 -> -55520.3723 | K91: -587.2555556 | L91: 269816.1 | M91: -172653.1333 | N91: 14570069.4
B92: 2010-05-04 | C92: -269228.8444 | D92: 14128187.42 | E92: 60366.4915 | F92: -3167822.184 | G92: 10960365.24 | H92: -4846.1192 | I92: -55520.3723 | K92: =K91 -> -587.2555556 | L92: =L91 -> 269816.1 | M92: =M91-K92 -> -172065.8778 | N92: =N91-L92 -> 14300253.3
B93: 2010-06-04 | C93: -269228.8444 | D93: 13858958.58 | E93: 60366.4915 | F93: -3107455.692 | G93: 10751502.89 | H93: -4846.1192 | I93: -55520.3723 | K93: -587.2555556 | L93: 269816.1 | M93: -171478.6222 | N93: 14030437.2
B94: 2010-07-04 | C94: -269228.8444 | D94: 13589729.73 | E94: 60366.4915 | F94: -3047089.201 | G94: 10542640.53 | H94: -4846.1192 | I94: -55520.3723 | K94: -587.2555556 | L94: 269816.1 | M94: -170891.3667 | N94: 13760621.1
B95: 2010-08-04 | C95: -269228.8444 | D95: 13320500.89 | E95: 60366.4915 | F95: -2986722.709 | G95: 10333778.18 | H95: -4846.1192 | I95: -55520.3723 | K95: -587.2555556 | L95: 269816.1 | M95: -170304.1111 | N95: 13490805
B96: 2010-09-04 | C96: -269228.8444 | D96: 13051272.04 | E96: 60366.4915 | F96: -2926356.218 | G96: 10124915.83 | H96: -4846.1192 | I96: -55520.3723 | K96: -587.2555556 | L96: 269816.1 | M96: -169716.8556 | N96: 13220988.9
B97: 2010-10-04 | C97: -269228.8444 | D97: 12782043.2 | E97: 60366.4915 | F97: -2865989.726 | G97: 9916053.474 | H97: -4846.1192 | I97: -55520.3723 | K97: -587.2555556 | L97: 269816.1 | M97: -169129.6 | N97: 12951172.8
B98: 2010-11-04 | C98: -269228.8444 | D98: 12512814.36 | E98: 60366.4915 | F98: -2805623.235 | G98: 9707191.121 | H98: -4846.1192 | I98: -55520.3723 | K98: -587.2555556 | L98: 269816.1 | M98: -168542.3444 | N98: 12681356.7
B99: 2010-12-04 | C99: -269228.8444 | D99: 12243585.51 | E99: 60366.4915 | F99: -2745256.743 | G99: 9498328.768 | H99: -4846.1192 | I99: -55520.3723 | K99: -587.2555556 | L99: 269816.1 | M99: -167955.0889 | N99: 12411540.6
B100: 2011-01-04 | C100: -269228.8444 | D100: 11974356.67 | E100: 60366.4915 | F100: -2684890.252 | G100: 9289466.415 | H100: -4846.1192 | I100: -55520.3723 | K100: -587.2555556 | L100: 269816.1 | M100: -167367.8333 | N100: 12141724.5
B101: 2011-02-04 | C101: -269228.8444 | D101: 11705127.82 | E101: 60366.4915 | F101: -2624523.76 | G101: 9080604.062 | H101: -4846.1192 | I101: -55520.3723 | K101: -587.2555556 | L101: 269816.1 | M101: -166780.5778 | N101: 11871908.4
B102: 2011-03-04 | C102: -269228.8444 | D102: 11435898.98 | E102: 60366.4915 | F102: -2564157.269 | G102: 8871741.709 | H102: -4846.1192 | I102: -55520.3723 | K102: -587.2555556 | L102: 269816.1 | M102: -166193.3222 | N102: 11602092.3
B103: 2011-04-04 | C103: -269228.8444 | D103: 11166670.13 | E103: 60366.4915 | F103: -2503790.777 | G103: 8662879.356 | H103: -4846.1192 | I103: -55520.3723 | K103: -587.2555556 | L103: 269816.1 | M103: -165606.0667 | N103: 11332276.2
B104: 2011-05-04 | C104: -269228.8444 | D104: 10897441.29 | E104: 60366.4915 | F104: -2443424.286 | G104: 8454017.003 | H104: -4846.1192 | I104: -55520.3723 | K104: -587.2555556 | L104: 269816.1 | M104: -165018.8111 | N104: 11062460.1
B105: 2011-06-04 | C105: -269228.8444 | D105: 10628212.44 | E105: 60366.4915 | F105: -2383057.794 | G105: 8245154.65 | H105: -4846.1192 | I105: -55520.3723 | K105: -587.2555556 | L105: 269816.1 | M105: -164431.5556 | N105: 10792644
B106: 2011-07-04 | C106: -269228.8444 | D106: 10358983.6 | E106: 60366.4915 | F106: -2322691.303 | G106: 8036292.297 | H106: -4846.1192 | I106: -55520.3723 | K106: -587.2555556 | L106: 269816.1 | M106: -163844.3 | N106: 10522827.9
B107: 2011-08-04 | C107: -269228.8444 | D107: 10089754.76 | E107: 60366.4915 | F107: -2262324.811 | G107: 7827429.944 | H107: -4846.1192 | I107: -55520.3723 | K107: -587.2555556 | L107: 269816.1 | M107: -163257.0444 | N107: 10253011.8
B108: 2011-09-04 | C108: -269228.8444 | D108: 9820525.911 | E108: 60366.4915 | F108: -2201958.32 | G108: 7618567.591 | H108: -4846.1192 | I108: -55520.3723 | K108: -587.2555556 | L108: 269816.1 | M108: -162669.7889 | N108: 9983195.7
B109: 2011-10-04 | C109: -269228.8444 | D109: 9551297.067 | E109: 60366.4915 | F109: -2141591.828 | G109: 7409705.238 | H109: -4846.1192 | I109: -55520.3723 | K109: -587.2555556 | L109: 269816.1 | M109: -162082.5333 | N109: 9713379.6
B110: 2011-11-04 | C110: -269228.8444 | D110: 9282068.222 | E110: 60366.4915 | F110: -2081225.337 | G110: 7200842.885 | H110: -4846.1192 | I110: -55520.3723 | K110: -587.2555556 | L110: 269816.1 | M110: -161495.2778 | N110: 9443563.5
B111: 2011-12-04 | C111: -269228.8444 | D111: 9012839.378 | E111: 60366.4915 | F111: -2020858.845 | G111: 6991980.532 | H111: -4846.1192 | I111: -55520.3723 | K111: -587.2555556 | L111: 269816.1 | M111: -160908.0222 | N111: 9173747.4
B112: 2012-01-04 | C112: -269228.8444 | D112: 8743610.533 | E112: 60366.4915 | F112: -1960492.354 | G112: 6783118.18 | H112: -4846.1192 | I112: -55520.3723 | K112: -587.2555556 | L112: 269816.1 | M112: -160320.7667 | N112: 8903931.3
B113: 2012-02-04 | C113: -269228.8444 | D113: 8474381.689 | E113: 60366.4915 | F113: -1900125.862 | G113: 6574255.827 | H113: -4846.1192 | I113: -55520.3723 | K113: -587.2555556 | L113: 269816.1 | M113: -159733.5111 | N113: 8634115.2
B114: 2012-03-04 | C114: -269228.8444 | D114: 8205152.844 | E114: 60366.4915 | F114: -1839759.371 | G114: 6365393.474 | H114: -4846.1192 | I114: -55520.3723 | K114: -587.2555556 | L114: 269816.1 | M114: -159146.2556 | N114: 8364299.1
B115: 2012-04-04 | C115: -269228.8444 | D115: 7935924 | E115: 60366.4915 | F115: -1779392.879 | G115: 6156531.121 | H115: -4846.1192 | I115: -55520.3723 | K115: -587.2555556 | L115: 269816.1 | M115: -158559 | N115: 8094483
B116: 2012-05-04 | C116: -269228.8444 | D116: 7666695.156 | E116: 60366.4915 | F116: -1719026.388 | G116: 5947668.768 | H116: -4846.1192 | I116: -55520.3723 | K116: -587.2555556 | L116: 269816.1 | M116: -157971.7444 | N116: 7824666.9
B117: 2012-06-04 | C117: -269228.8444 | D117: 7397466.311 | E117: 60366.4915 | F117: -1658659.896 | G117: 5738806.415 | H117: -4846.1192 | I117: -55520.3723 | K117: -587.2555556 | L117: 269816.1 | M117: -157384.4889 | N117: 7554850.8
B118: 2012-07-04 | C118: -269228.8444 | D118: 7128237.467 | E118: 60366.4915 | F118: -1598293.405 | G118: 5529944.062 | H118: -4846.1192 | I118: -55520.3723 | K118: -587.2555556 | L118: 269816.1 | M118: -156797.2333 | N118: 7285034.7
B119: 2012-08-04 | C119: -269228.8444 | D119: 6859008.622 | E119: 60366.4915 | F119: -1537926.913 | G119: 5321081.709 | H119: -4846.1192 | I119: -55520.3723 | K119: -587.2555556 | L119: 269816.1 | M119: -156209.9778 | N119: 7015218.6
B120: 2012-09-04 | C120: -269228.8444 | D120: 6589779.778 | E120: 60366.4915 | F120: -1477560.422 | G120: 5112219.356 | H120: -4846.1192 | I120: -55520.3723 | K120: -587.2555556 | L120: 269816.1 | M120: -155622.7222 | N120: 6745402.5
B121: 2012-10-04 | C121: -269228.8444 | D121: 6320550.933 | E121: 60366.4915 | F121: -1417193.93 | G121: 4903357.003 | H121: -4846.1192 | I121: -55520.3723 | K121: -587.2555556 | L121: 269816.1 | M121: -155035.4667 | N121: 6475586.4
B122: 2012-11-04 | C122: -269228.8444 | D122: 6051322.089 | E122: 60366.4915 | F122: -1356827.439 | G122: 4694494.65 | H122: -4846.1192 | I122: -55520.3723 | K122: -587.2555556 | L122: 269816.1 | M122: -154448.2111 | N122: 6205770.3
B123: 2012-12-04 | C123: -269228.8444 | D123: 5782093.244 | E123: 60366.4915 | F123: -1296460.947 | G123: 4485632.297 | H123: -4846.1192 | I123: -55520.3723 | K123: -587.2555556 | L123: 269816.1 | M123: -153860.9556 | N123: 5935954.2
B124: 2013-01-04 | C124: -269228.8444 | D124: 5512864.4 | E124: 60366.4915 | F124: -1236094.456 | G124: 4276769.944 | H124: -4846.1192 | I124: -55520.3723 | K124: -587.2555556 | L124: 269816.1 | M124: -153273.7 | N124: 5666138.1
B125: 2013-02-04 | C125: -269228.8444 | D125: 5243635.556 | E125: 60366.4915 | F125: -1175727.964 | G125: 4067907.591 | H125: -4846.1192 | I125: -55520.3723 | K125: -587.2555556 | L125: 269816.1 | M125: -152686.4444 | N125: 5396322
B126: 2013-03-04 | C126: -269228.8444 | D126: 4974406.711 | E126: 60366.4915 | F126: -1115361.473 | G126: 3859045.238 | H126: -4846.1192 | I126: -55520.3723 | K126: -587.2555556 | L126: 269816.1 | M126: -152099.1889 | N126: 5126505.9
B127: 2013-04-04 | C127: -269228.8444 | D127: 4705177.867 | E127: 60366.4915 | F127: -1054994.981 | G127: 3650182.885 | H127: -4846.1192 | I127: -55520.3723 | K127: -587.2555556 | L127: 269816.1 | M127: -151511.9333 | N127: 4856689.8
B128: 2013-05-04 | C128: -269228.8444 | D128: 4435949.022 | E128: 60366.4915 | F128: -994628.4898 | G128: 3441320.532 | H128: -4846.1192 | I128: -55520.3723 | K128: -587.2555556 | L128: 269816.1 | M128: -150924.6778 | N128: 4586873.7
B129: 2013-06-04 | C129: -269228.8444 | D129: 4166720.178 | E129: 60366.4915 | F129: -934261.9983 | G129: 3232458.18 | H129: -4846.1192 | I129: -55520.3723 | K129: -587.2555556 | L129: 269816.1 | M129: -150337.4222 | N129: 4317057.6
B130: 2013-07-04 | C130: -269228.8444 | D130: 3897491.333 | E130: 60366.4915 | F130: -873895.5068 | G130: 3023595.827 | H130: -4846.1192 | I130: -55520.3723 | K130: -587.2555556 | L130: 269816.1 | M130: -149750.1667 | N130: 4047241.5
B131: 2013-08-04 | C131: -269228.8444 | D131: 3628262.489 | E131: 60366.4915 | F131: -813529.0153 | G131: 2814733.474 | H131: -4846.1192 | I131: -55520.3723 | K131: -587.2555556 | L131: 269816.1 | M131: -149162.9111 | N131: 3777425.4
B132: 2013-09-04 | C132: -269228.8444 | D132: 3359033.644 | E132: 60366.4915 | F132: -753162.5238 | G132: 2605871.121 | H132: -4846.1192 | I132: -55520.3723 | K132: -587.2555556 | L132: 269816.1 | M132: -148575.6556 | N132: 3507609.3
B133: 2013-10-04 | C133: -269228.8444 | D133: 3089804.8 | E133: 60366.4915 | F133: -692796.0323 | G133: 2397008.768 | H133: -4846.1192 | I133: -55520.3723 | K133: -587.2555556 | L133: 269816.1 | M133: -147988.4 | N133: 3237793.2
B134: 2013-11-04 | C134: -269228.8444 | D134: 2820575.956 | E134: 60366.4915 | F134: -632429.5408 | G134: 2188146.415 | H134: -4846.1192 | I134: -55520.3723 | K134: -587.2555556 | L134: 269816.1 | M134: -147401.1444 | N134: 2967977.1
B135: 2013-12-04 | C135: -269228.8444 | D135: 2551347.111 | E135: 60366.4915 | F135: -572063.0493 | G135: 1979284.062 | H135: -4846.1192 | I135: -55520.3723 | K135: -587.2555556 | L135: 269816.1 | M135: -146813.8889 | N135: 2698161
B136: 2014-01-04 | C136: -269228.8444 | D136: 2282118.267 | E136: 60366.4915 | F136: -511696.5578 | G136: 1770421.709 | H136: -4846.1192 | I136: -55520.3723 | K136: -587.2555556 | L136: 269816.1 | M136: -146226.6333 | N136: 2428344.9
B137: 2014-02-04 | C137: -269228.8444 | D137: 2012889.422 | E137: 60366.4915 | F137: -451330.0663 | G137: 1561559.356 | H137: -4846.1192 | I137: -55520.3723 | K137: -587.2555556 | L137: 269816.1 | M137: -145639.3778 | N137: 2158528.8
B138: 2014-03-04 | C138: -269228.8444 | D138: 1743660.578 | E138: 60366.4915 | F138: -390963.5747 | G138: 1352697.003 | H138: -4846.1192 | I138: -55520.3723 | K138: -587.2555556 | L138: 269816.1 | M138: -145052.1222 | N138: 1888712.7
B139: 2014-04-04 | C139: -269228.8444 | D139: 1474431.733 | E139: 60366.4915 | F139: -330597.0832 | G139: 1143834.65 | H139: -4846.1192 | I139: -55520.3723 | K139: -587.2555556 | L139: 269816.1 | M139: -144464.8667 | N139: =N138-L139 -> 1618896.6
B140: 2014-05-04 | C140: -269228.8444 | D140: 1205202.889 | E140: 60366.4915 | F140: -270230.5917 | G140: 934972.2971 | H140: -4846.1192 | I140: -55520.3723 | K140: -587.2555556 | L140: 269816.1 | M140: -143877.6111 | N140: =N139-L140 -> 1349080.5
B141: 2014-06-04 | C141: -269228.8444 | D141: 935974.0444 | E141: 60366.4915 | F141: -209864.1002 | G141: 726109.9442 | H141: -4846.1192 | I141: -55520.3723 | K141: -587.2555556 | L141: 269816.1 | M141: -143290.3556 | N141: 1079264.4
B142: 2014-07-04 | C142: -269228.8444 | D142: 666745.2 | E142: 60366.4915 | F142: -149497.6087 | G142: 517247.5913 | H142: -4846.1192 | I142: -55520.3723 | K142: -587.2555556 | L142: 269816.1 | M142: -142703.1 | N142: 809448.3
B143: 2014-08-04 | C143: -269228.8444 | D143: 397516.3556 | E143: 60366.4915 | F143: -89131.11724 | G143: 308385.2383 | H143: -4846.1192 | I143: -55520.3723 | K143: -587.2555556 | L143: 269816.1 | M143: -142115.8444 | N143: 539632.2
B144: 2014-09-04 | C144: =-$G$15 -> -269228.8444 | D144: 128287.5111 | E144: 60366.4915 | F144: -28764.62574 | G144: 99522.88537 | H144: -4846.1192 | I144: -55520.3723 | K144: -587.2555556 | L144: 269816.1 | M144: -141528.5889 | N144: 269816.1
B145: 2014-10-04 | C145: =-$G$15 -> -269228.8444 | D145: -140941.3333 | E145: 60366.4915 | F145: 31601.86576 | G145: -109339.4676 | H145: -4846.1192 | I145: -55520.3723 | K145: -587.2555556 | L145: =L144 -> 269816.1 | M145: -140941.3333 | N145: -6.88014552e-08
B146: 2014-11-04 | C146: =-$H$15 -> 587.2555556 | D146: =+D145+C146 -> -140354.0778 | E146: -131.6744407 | F146: 31470.19132 | G146: -108883.8865 | H146: 10.5706 | I146: 121.1038407 | K146: -587.2555556 | M146: =M145-K146 -> -140354.0778
B147: 2014-12-04 | C147: =-$H$15 -> 587.2555556 | D147: -139766.8222 | E147: -131.6744407 | F147: 31338.51688 | G147: -108428.3053 | H147: 10.5706 | I147: 121.1038407 | K147: -587.2555556 | M147: -139766.8222
B148: 2015-01-04 | C148: 587.2555556 | D148: -139179.5667 | E148: -131.6744407 | F148: 31206.84244 | G148: -107972.7242 | H148: 10.5706 | I148: 121.1038407 | K148: -587.2555556 | M148: -139179.5667
B149: 2015-02-04 | C149: 587.2555556 | D149: -138592.3111 | E149: -131.6744407 | F149: 31075.168 | G149: -107517.1431 | H149: 10.5706 | I149: 121.1038407 | K149: -587.2555556 | M149: -138592.3111
B150: 2015-03-04 | C150: 587.2555556 | D150: -138005.0556 | E150: -131.6744407 | F150: 30943.49356 | G150: -107061.562 | H150: 10.5706 | I150: 121.1038407 | K150: -587.2555556 | M150: -138005.0556
B151: 2015-04-04 | C151: 587.2555556 | D151: -137417.8 | E151: -131.6744407 | F151: 30811.81912 | G151: -106605.9809 | H151: 10.5706 | I151: 121.1038407 | K151: -587.2555556 | M151: -137417.8
B152: 2015-05-04 | C152: 587.2555556 | D152: -136830.5444 | E152: -131.6744407 | F152: 30680.14468 | G152: -106150.3998 | H152: 10.5706 | I152: 121.1038407 | K152: -587.2555556 | M152: -136830.5444
B153: 2015-06-04 | C153: 587.2555556 | D153: -136243.2889 | E153: -131.6744407 | F153: 30548.47023 | G153: -105694.8187 | H153: 10.5706 | I153: 121.1038407 | K153: -587.2555556 | M153: -136243.2889
B154: 2015-07-04 | C154: 587.2555556 | D154: =+D153+C154 -> -135656.0333 | E154: -131.6744407 | F154: 30416.79579 | G154: -105239.2375 | H154: 10.5706 | I154: 121.1038407 | K154: -587.2555556 | M154: -135656.0333
B155: 2015-08-04 | C155: 587.2555556 | D155: -135068.7778 | E155: =-C155*$K$17 -> -131.6744407 | F155: =+F154+E155 -> 30285.12135 | G155: =+G154+C155+E155 -> -104783.6564 | H155: =+$K$15*$C155 -> 10.5706 | I155: =+$K$16*$C155 -> 121.1038407 | K155: -587.2555556 | M155: -135068.7778
B156: 2015-09-04 | C156: 587.2555556 | D156: -134481.5222 | E156: -131.6744407 | F156: 30153.44691 | G156: -104328.0753 | H156: 10.5706 | I156: 121.1038407 | K156: =K155 -> -587.2555556 | M156: =M155-K156 -> -134481.5222
B157: 2015-10-04 | C157: 587.2555556 | D157: -133894.2667 | E157: -131.6744407 | F157: 30021.77247 | G157: -103872.4942 | H157: 10.5706 | I157: 121.1038407 | K157: -587.2555556 | M157: -133894.2667
B158: 2015-11-04 | C158: 587.2555556 | D158: -133307.0111 | E158: -131.6744407 | F158: 29890.09803 | G158: -103416.9131 | H158: 10.5706 | I158: 121.1038407 | K158: -587.2555556 | M158: -133307.0111
B159: 2015-12-04 | C159: 587.2555556 | D159: -132719.7556 | E159: -131.6744407 | F159: 29758.42359 | G159: -102961.332 | H159: 10.5706 | I159: 121.1038407 | K159: -587.2555556 | M159: -132719.7556
B160: 2016-01-04 | C160: 587.2555556 | D160: -132132.5 | E160: -131.6744407 | F160: 29626.74915 | G160: -102505.7509 | H160: 10.5706 | I160: 121.1038407 | K160: -587.2555556 | M160: -132132.5
B161: 2016-02-04 | C161: 587.2555556 | D161: -131545.2444 | E161: -131.6744407 | F161: 29495.07471 | G161: -102050.1697 | H161: 10.5706 | I161: 121.1038407 | K161: -587.2555556 | M161: -131545.2444
B162: 2016-03-04 | C162: 587.2555556 | D162: -130957.9889 | E162: -131.6744407 | F162: 29363.40027 | G162: -101594.5886 | H162: 10.5706 | I162: 121.1038407 | K162: -587.2555556 | M162: -130957.9889
B163: 2016-04-04 | C163: 587.2555556 | D163: -130370.7333 | E163: -131.6744407 | F163: 29231.72583 | G163: -101139.0075 | H163: 10.5706 | I163: 121.1038407 | K163: -587.2555556 | M163: -130370.7333
B164: 2016-05-04 | C164: 587.2555556 | D164: -129783.4778 | E164: -131.6744407 | F164: 29100.05139 | G164: -100683.4264 | H164: 10.5706 | I164: 121.1038407 | K164: -587.2555556 | M164: -129783.4778
B165: 2016-06-04 | C165: 587.2555556 | D165: -129196.2222 | E165: -131.6744407 | F165: 28968.37695 | G165: -100227.8453 | H165: 10.5706 | I165: 121.1038407 | K165: -587.2555556 | M165: -129196.2222
B166: 2016-07-04 | C166: 587.2555556 | D166: -128608.9667 | E166: -131.6744407 | F166: 28836.70251 | G166: -99772.26416 | H166: 10.5706 | I166: 121.1038407 | K166: -587.2555556 | M166: -128608.9667
B167: 2016-08-04 | C167: 587.2555556 | D167: -128021.7111 | E167: -131.6744407 | F167: 28705.02807 | G167: -99316.68305 | H167: 10.5706 | I167: 121.1038407 | K167: -587.2555556 | M167: -128021.7111
B168: 2016-09-04 | C168: 587.2555556 | D168: -127434.4556 | E168: -131.6744407 | F168: 28573.35362 | G168: -98861.10193 | H168: 10.5706 | I168: 121.1038407 | K168: -587.2555556 | M168: -127434.4556
B169: 2016-10-04 | C169: 587.2555556 | D169: -126847.2 | E169: -131.6744407 | F169: 28441.67918 | G169: -98405.52082 | H169: 10.5706 | I169: 121.1038407 | K169: -587.2555556 | M169: -126847.2
B170: 2016-11-04 | C170: 587.2555556 | D170: -126259.9444 | E170: -131.6744407 | F170: 28310.00474 | G170: -97949.9397 | H170: 10.5706 | I170: 121.1038407 | K170: -587.2555556 | M170: -126259.9444
B171: 2016-12-04 | C171: 587.2555556 | D171: -125672.6889 | E171: -131.6744407 | F171: 28178.3303 | G171: -97494.35859 | H171: 10.5706 | I171: 121.1038407 | K171: -587.2555556 | M171: -125672.6889
B172: 2017-01-04 | C172: 587.2555556 | D172: -125085.4333 | E172: -131.6744407 | F172: 28046.65586 | G172: -97038.77747 | H172: 10.5706 | I172: 121.1038407 | K172: -587.2555556 | M172: -125085.4333
B173: 2017-02-04 | C173: 587.2555556 | D173: -124498.1778 | E173: -131.6744407 | F173: 27914.98142 | G173: -96583.19636 | H173: 10.5706 | I173: 121.1038407 | K173: -587.2555556 | M173: -124498.1778
B174: 2017-03-04 | C174: 587.2555556 | D174: -123910.9222 | E174: -131.6744407 | F174: 27783.30698 | G174: -96127.61524 | H174: 10.5706 | I174: 121.1038407 | K174: -587.2555556 | M174: -123910.9222
B175: 2017-04-04 | C175: 587.2555556 | D175: -123323.6667 | E175: -131.6744407 | F175: 27651.63254 | G175: -95672.03413 | H175: 10.5706 | I175: 121.1038407 | K175: -587.2555556 | M175: -123323.6667
B176: 2017-05-04 | C176: 587.2555556 | D176: -122736.4111 | E176: -131.6744407 | F176: 27519.9581 | G176: -95216.45301 | H176: 10.5706 | I176: 121.1038407 | K176: -587.2555556 | M176: -122736.4111
B177: 2017-06-04 | C177: 587.2555556 | D177: -122149.1556 | E177: -131.6744407 | F177: 27388.28366 | G177: -94760.8719 | H177: 10.5706 | I177: 121.1038407 | K177: -587.2555556 | M177: -122149.1556
B178: 2017-07-04 | C178: 587.2555556 | D178: -121561.9 | E178: -131.6744407 | F178: 27256.60922 | G178: -94305.29078 | H178: 10.5706 | I178: 121.1038407 | K178: -587.2555556 | M178: -121561.9
B179: 2017-08-04 | C179: 587.2555556 | D179: -120974.6444 | E179: -131.6744407 | F179: 27124.93478 | G179: -93849.70967 | H179: 10.5706 | I179: 121.1038407 | K179: -587.2555556 | M179: -120974.6444
B180: 2017-09-04 | C180: 587.2555556 | D180: -120387.3889 | E180: -131.6744407 | F180: 26993.26034 | G180: -93394.12855 | H180: 10.5706 | I180: 121.1038407 | K180: -587.2555556 | M180: -120387.3889
B181: 2017-10-04 | C181: 587.2555556 | D181: =+D180+C181 -> -119800.1333 | E181: -131.6744407 | F181: 26861.5859 | G181: -92938.54744 | H181: 10.5706 | I181: 121.1038407 | K181: -587.2555556 | M181: -119800.1333
B182: 2017-11-04 | C182: 587.2555556 | D182: -119212.8778 | E182: -131.6744407 | F182: 26729.91146 | G182: -92482.96632 | H182: 10.5706 | I182: 121.1038407 | K182: -587.2555556 | M182: -119212.8778
B183: 2017-12-04 | C183: 587.2555556 | D183: =+D182+C183 -> -118625.6222 | E183: -131.6744407 | F183: =+F182+E183 -> 26598.23701 | G183: -92027.38521 | H183: 10.5706 | I183: 121.1038407 | K183: -587.2555556 | M183: -118625.6222
B184: 2018-01-04 | C184: =-$H$15 -> 587.2555556 | D184: =+D183+C184 -> -118038.3667 | E184: -131.6744407 | F184: =+F183+E184 -> 26466.56257 | G184: =+G183+C184+E184 -> -91571.80409 | H184: 10.5706 | I184: 121.1038407 | K184: -587.2555556 | M184: -118038.3667
B185: 2018-02-04 | C185: =-$H$15 -> 587.2555556 | D185: =+D184+C185 -> -117451.1111 | E185: -131.6744407 | F185: =+F184+E185 -> 26334.88813 | G185: =+G184+C185+E185 -> -91116.22298 | H185: 10.5706 | I185: 121.1038407 | K185: -587.2555556 | M185: -117451.1111
B186: 2018-03-04 | C186: =-$H$15 -> 587.2555556 | D186: -116863.8556 | E186: -131.6744407 | F186: =+F185+E186 -> 26203.21369 | G186: =+G185+C186+E186 -> -90660.64186 | H186: 10.5706 | I186: 121.1038407 | K186: -587.2555556 | M186: -116863.8556
B187: 2018-04-04 | C187: 587.2555556 | D187: -116276.6 | E187: -131.6744407 | F187: =+F186+E187 -> 26071.53925 | G187: =+G186+C187+E187 -> -90205.06075 | H187: 10.5706 | I187: 121.1038407 | K187: -587.2555556 | M187: -116276.6
B188: 2018-05-04 | C188: 587.2555556 | D188: -115689.3444 | E188: -131.6744407 | F188: =+F187+E188 -> 25939.86481 | G188: -89749.47963 | H188: 10.5706 | I188: 121.1038407 | K188: -587.2555556 | M188: -115689.3444
B189: 2018-06-04 | C189: 587.2555556 | D189: -115102.0889 | E189: -131.6744407 | F189: 25808.19037 | G189: -89293.89852 | H189: 10.5706 | I189: 121.1038407 | K189: -587.2555556 | M189: -115102.0889
B190: 2018-07-04 | C190: 587.2555556 | D190: -114514.8333 | E190: -131.6744407 | F190: 25676.51593 | G190: -88838.3174 | H190: 10.5706 | I190: 121.1038407 | K190: -587.2555556 | M190: -114514.8333
B191: 2018-08-04 | C191: 587.2555556 | D191: -113927.5778 | E191: -131.6744407 | F191: 25544.84149 | G191: -88382.73629 | H191: 10.5706 | I191: 121.1038407 | K191: -587.2555556 | M191: -113927.5778
B192: 2018-09-04 | C192: 587.2555556 | D192: -113340.3222 | E192: -131.6744407 | F192: 25413.16705 | G192: -87927.15517 | H192: 10.5706 | I192: 121.1038407 | K192: -587.2555556 | M192: -113340.3222
B193: 2018-10-04 | C193: 587.2555556 | D193: -112753.0667 | E193: -131.6744407 | F193: 25281.49261 | G193: -87471.57406 | H193: 10.5706 | I193: 121.1038407 | K193: -587.2555556 | M193: -112753.0667
B194: 2018-11-04 | C194: 587.2555556 | D194: -112165.8111 | E194: -131.6744407 | F194: 25149.81817 | G194: -87015.99294 | H194: 10.5706 | I194: 121.1038407 | K194: -587.2555556 | M194: -112165.8111
B195: 2018-12-04 | C195: 587.2555556 | D195: -111578.5556 | E195: -131.6744407 | F195: 25018.14373 | G195: -86560.41183 | H195: 10.5706 | I195: 121.1038407 | K195: -587.2555556 | M195: -111578.5556
B196: 2019-01-04 | C196: 587.2555556 | D196: -110991.3 | E196: -131.6744407 | F196: 24886.46929 | G196: -86104.83071 | H196: 10.5706 | I196: 121.1038407 | K196: -587.2555556 | M196: -110991.3
B197: 2019-02-04 | C197: 587.2555556 | D197: -110404.0444 | E197: -131.6744407 | F197: 24754.79485 | G197: -85649.2496 | H197: 10.5706 | I197: 121.1038407 | K197: -587.2555556 | M197: -110404.0444
B198: 2019-03-04 | C198: 587.2555556 | D198: -109816.7889 | E198: -131.6744407 | F198: 24623.1204 | G198: -85193.66848 | H198: 10.5706 | I198: 121.1038407 | K198: -587.2555556 | M198: -109816.7889
B199: 2019-04-04 | C199: 587.2555556 | D199: -109229.5333 | E199: -131.6744407 | F199: 24491.44596 | G199: -84738.08737 | H199: 10.5706 | I199: 121.1038407 | K199: -587.2555556 | M199: -109229.5333
B200: 2019-05-04 | C200: 587.2555556 | D200: -108642.2778 | E200: -131.6744407 | F200: 24359.77152 | G200: -84282.50625 | H200: 10.5706 | I200: 121.1038407 | K200: -587.2555556 | M200: -108642.2778
B201: 2019-06-04 | C201: 587.2555556 | D201: -108055.0222 | E201: -131.6744407 | F201: 24228.09708 | G201: -83826.92514 | H201: 10.5706 | I201: 121.1038407 | K201: -587.2555556 | M201: -108055.0222
B202: 2019-07-04 | C202: 587.2555556 | D202: -107467.7667 | E202: -131.6744407 | F202: 24096.42264 | G202: =+G201+C202+E202 -> -83371.34402 | H202: 10.5706 | I202: 121.1038407 | K202: -587.2555556 | M202: -107467.7667
B203: 2019-08-04 | C203: 587.2555556 | D203: -106880.5111 | E203: -131.6744407 | F203: 23964.7482 | G203: -82915.76291 | H203: 10.5706 | I203: 121.1038407 | K203: -587.2555556 | M203: -106880.5111
B204: 2019-09-04 | C204: 587.2555556 | D204: -106293.2556 | E204: -131.6744407 | F204: 23833.07376 | G204: -82460.18179 | H204: 10.5706 | I204: 121.1038407 | K204: -587.2555556 | M204: -106293.2556
... 181 more rows

Sheet 20104
A1: Amortization Schedule
A2: GL# 010.0000.2150.20104.002000 | F2: 10 years
F3: Amort | I3: Total to Amort
B4: (Gain) Loss | C4: Years | D4: Annual Amort | F4: April 2009-Mar 2019 | I4: April 2009-Mar 2019
A5: SunTrust | B5: -1937702.25 | C5: 10 | D5: =B5/C5 -> -193770.225 | F5: =ROUND((+$D5*10),2) -> -1937702.25 | G5: =ROUND((+$D5*0),2) -> 0 | H5: =ROUND((+$D5*0),2) -> 0 | I5: =SUM(F5:H5) -> -1937702.25
A6: JP Morgan | B6: 0 | C6: 30 | D6: =B6/C6 -> 0 | F6: =ROUND((+$D6*5),2) -> 0 | G6: =ROUND((+$D6*5),2) -> 0 | H6: =ROUND((+$D6*20),2) -> 0 | I6: =SUM(F6:H6) -> 0
A7: Merrill Lynch | B7: 0 | C7: 5 | D7: =B7/C7 -> 0 | F7: =ROUND((+$D7*5),2) -> 0 | G7: 0 | H7: 0 | I7: =SUM(F7:H7) -> 0
A8: Merrill Lynch | B8: 1160366.57 | C8: 10 | D8: =B8/C8 -> 116036.657 | F8: =ROUND((+$D8*10),2) -> 1160366.57 | G8: =ROUND((+$D8*0),2) -> 0 | H8: 0 | I8: =SUM(F8:H8) -> 1160366.57
A10: Total | B10: =SUM(B5:B8) -> -777335.68 | D10: =SUM(D5:D8) -> -77733.568 | F10: =SUM(F5:F9) -> -777335.68 | G10: =SUM(G5:G9) -> 0 | H10: =SUM(H5:H9) -> 0 | I10: =SUM(F10:H10) -> -777335.68
D12: # months to Amort | F12: =10*12 -> 120 | G12: =5*12 -> 60 | H12: =20*12 -> 240
F14: DR (CR) | G14: DR (CR) | H14: DR (CR)
C15: LT Int Exp | D15: Monthly Amort | F15: =+F10/F12 -> -6477.797333 | G15: =+G10/G12 -> 0 | H15: =+H10/H12 -> 0
C16: 2830.28206 | D16: Def State Tax | E16: 0.023 | F16: =-F$15*$E16 -> 148.9893387 | G16: 0 | H16: 0
C17: 2830.28201 | D17: Def Fed Tax | E17: 0.342 | F17: 2215.406688 | G17: 0 | H17: 0
E18: 0.20517
A20: T-Lock Settlement | G20: Net OCI | H20: Def State Tax | I20: Def Fed Tax
H21: =E16 -> 0.023 | I21: =E17 -> 0.342 | J21: =H21+I21 -> 0.365 | K21: 0.20517 | L21: =H21+K21 -> 0.22817
C22: 2150.20104 | D22: 2150.20104 | E22: 2150.20104 | F22: 2150.20104 | G22: 2150.20104 | H22: 2830.28206 | I22: 2830.28201
C23: Amort | D23: T-Lock Settlement | E23: Def Tax Adj | F23: Def Taxes | G23: Net of Tax | H23: Adjustment | I23: Adjustment
C24: DR (CR) | D24: DR (CR) | E24: DR (CR) | F24: DR (CR) | H24: DR (CR) | I24: DR (CR)
A25: Balance at March 31, 2009 | B25: 2009-03-01 | D25: =B10 -> -777335.68 | F25: =-D25*$J$21 -> 283727.5232 | G25: =SUM(D25:F25) -> -493608.1568 | H25: 0 | I25: 0
B26: 2009-04-01 | C26: =-$F$15 -> 6477.797333 | D26: =+D25+C26 -> -770857.8827 | E26: =-C26*$J$21 -> -2364.396027 | F26: =+F25+E26 -> 281363.1272 | G26: =+G25+C26+E26 -> -489494.7555 | H26: =+$H$21*$C26 -> 148.9893387 | I26: =+$I$21*$C26 -> 2215.406688
B27: 2009-05-01 | C27: 6477.797333 | D27: -764380.0853 | E27: =-C27*$J$21 -> -2364.396027 | F27: 278998.7311 | G27: -485381.3542 | H27: =+$H$21*$C27 -> 148.9893387 | I27: =+$I$21*$C27 -> 2215.406688
B28: 2009-06-01 | C28: 6477.797333 | D28: -757902.288 | E28: -2364.396027 | F28: 276634.3351 | G28: -481267.9529 | H28: 148.9893387 | I28: 2215.406688
B29: 2009-07-01 | C29: 6477.797333 | D29: -751424.4907 | E29: -2364.396027 | F29: 274269.9391 | G29: -477154.5516 | H29: 148.9893387 | I29: 2215.406688
B30: 2009-08-01 | C30: 6477.797333 | D30: -744946.6933 | E30: -2364.396027 | F30: 271905.5431 | G30: -473041.1503 | H30: 148.9893387 | I30: 2215.406688
B31: 2009-09-01 | C31: 6477.797333 | D31: -738468.896 | E31: -2364.396027 | F31: 269541.147 | G31: -468927.749 | H31: 148.9893387 | I31: 2215.406688
B32: 2009-10-01 | C32: 6477.797333 | D32: -731991.0987 | E32: -2364.396027 | F32: 267176.751 | G32: -464814.3477 | H32: 148.9893387 | I32: 2215.406688
B33: 2009-11-01 | C33: 6477.797333 | D33: -725513.3013 | E33: -2364.396027 | F33: 264812.355 | G33: -460700.9463 | H33: 148.9893387 | I33: 2215.406688
B34: 2009-12-01 | C34: 6477.797333 | D34: -719035.504 | E34: -2364.396027 | F34: 262447.959 | G34: -456587.545 | H34: 148.9893387 | I34: 2215.406688
B35: 2010-01-01 | C35: 6477.797333 | D35: -712557.7067 | E35: -2364.396027 | F35: 260083.5629 | G35: -452474.1437 | H35: 148.9893387 | I35: 2215.406688
B36: 2010-02-01 | C36: 6477.797333 | D36: -706079.9093 | E36: -2364.396027 | F36: 257719.1669 | G36: -448360.7424 | H36: 148.9893387 | I36: 2215.406688
B37: 2010-03-01 | C37: 6477.797333 | D37: -699602.112 | E37: -2364.396027 | F37: 255354.7709 | G37: -444247.3411 | H37: 148.9893387 | I37: 2215.406688
B38: 2010-04-01 | C38: 6477.797333 | D38: -693124.3147 | E38: -2364.396027 | F38: 252990.3749 | G38: -440133.9398 | H38: 148.9893387 | I38: 2215.406688
B39: 2010-05-01 | C39: 6477.797333 | D39: -686646.5173 | E39: -2364.396027 | F39: 250625.9788 | G39: -436020.5385 | H39: 148.9893387 | I39: 2215.406688
B40: 2010-06-01 | C40: 6477.797333 | D40: -680168.72 | E40: -2364.396027 | F40: 248261.5828 | G40: -431907.1372 | H40: 148.9893387 | I40: 2215.406688
B41: 2010-07-01 | C41: 6477.797333 | D41: -673690.9227 | E41: -2364.396027 | F41: 245897.1868 | G41: -427793.7359 | H41: 148.9893387 | I41: 2215.406688
B42: 2010-08-01 | C42: 6477.797333 | D42: -667213.1253 | E42: -2364.396027 | F42: 243532.7907 | G42: -423680.3346 | H42: 148.9893387 | I42: 2215.406688
B43: 2010-09-01 | C43: 6477.797333 | D43: -660735.328 | E43: -2364.396027 | F43: 241168.3947 | G43: -419566.9333 | H43: 148.9893387 | I43: 2215.406688
B44: 2010-10-01 | C44: 6477.797333 | D44: -654257.5307 | E44: -2364.396027 | F44: 238803.9987 | G44: -415453.532 | H44: 148.9893387 | I44: 2215.406688
B45: 2010-11-01 | C45: 6477.797333 | D45: -647779.7333 | E45: -2364.396027 | F45: 236439.6027 | G45: -411340.1307 | H45: 148.9893387 | I45: 2215.406688
B46: 2010-12-01 | C46: 6477.797333 | D46: -641301.936 | E46: -2364.396027 | F46: 234075.2066 | G46: -407226.7294 | H46: 148.9893387 | I46: 2215.406688
B47: 2011-01-01 | C47: 6477.797333 | D47: -634824.1387 | E47: -2364.396027 | F47: 231710.8106 | G47: -403113.3281 | H47: 148.9893387 | I47: 2215.406688
B48: 2011-02-01 | C48: 6477.797333 | D48: -628346.3413 | E48: -2364.396027 | F48: 229346.4146 | G48: -398999.9267 | H48: 148.9893387 | I48: 2215.406688
B49: 2011-03-01 | C49: 6477.797333 | D49: -621868.544 | E49: -2364.396027 | F49: 226982.0186 | G49: -394886.5254 | H49: 148.9893387 | I49: 2215.406688
B50: 2011-04-01 | C50: 6477.797333 | D50: -615390.7467 | E50: -2364.396027 | F50: 224617.6225 | G50: -390773.1241 | H50: 148.9893387 | I50: 2215.406688
B51: 2011-05-01 | C51: 6477.797333 | D51: -608912.9493 | E51: -2364.396027 | F51: 222253.2265 | G51: -386659.7228 | H51: 148.9893387 | I51: 2215.406688
B52: 2011-06-01 | C52: 6477.797333 | D52: -602435.152 | E52: -2364.396027 | F52: 219888.8305 | G52: -382546.3215 | H52: 148.9893387 | I52: 2215.406688
B53: 2011-07-01 | C53: 6477.797333 | D53: -595957.3547 | E53: -2364.396027 | F53: 217524.4345 | G53: -378432.9202 | H53: 148.9893387 | I53: 2215.406688
B54: 2011-08-01 | C54: 6477.797333 | D54: -589479.5573 | E54: -2364.396027 | F54: 215160.0384 | G54: -374319.5189 | H54: 148.9893387 | I54: 2215.406688
B55: 2011-09-01 | C55: 6477.797333 | D55: -583001.76 | E55: -2364.396027 | F55: 212795.6424 | G55: -370206.1176 | H55: 148.9893387 | I55: 2215.406688
B56: 2011-10-01 | C56: 6477.797333 | D56: -576523.9627 | E56: -2364.396027 | F56: 210431.2464 | G56: -366092.7163 | H56: 148.9893387 | I56: 2215.406688
B57: 2011-11-01 | C57: 6477.797333 | D57: -570046.1653 | E57: -2364.396027 | F57: 208066.8503 | G57: -361979.315 | H57: 148.9893387 | I57: 2215.406688
B58: 2011-12-01 | C58: 6477.797333 | D58: -563568.368 | E58: -2364.396027 | F58: 205702.4543 | G58: -357865.9137 | H58: 148.9893387 | I58: 2215.406688
B59: 2012-01-01 | C59: 6477.797333 | D59: -557090.5707 | E59: -2364.396027 | F59: 203338.0583 | G59: -353752.5124 | H59: 148.9893387 | I59: 2215.406688
B60: 2012-02-01 | C60: 6477.797333 | D60: -550612.7733 | E60: -2364.396027 | F60: 200973.6623 | G60: -349639.1111 | H60: 148.9893387 | I60: 2215.406688
B61: 2012-03-01 | C61: 6477.797333 | D61: -544134.976 | E61: -2364.396027 | F61: 198609.2662 | G61: -345525.7098 | H61: 148.9893387 | I61: 2215.406688
B62: 2012-04-01 | C62: 6477.797333 | D62: -537657.1787 | E62: -2364.396027 | F62: 196244.8702 | G62: -341412.3085 | H62: 148.9893387 | I62: 2215.406688
B63: 2012-05-01 | C63: 6477.797333 | D63: -531179.3813 | E63: -2364.396027 | F63: 193880.4742 | G63: -337298.9071 | H63: 148.9893387 | I63: 2215.406688
B64: 2012-06-01 | C64: 6477.797333 | D64: -524701.584 | E64: -2364.396027 | F64: 191516.0782 | G64: -333185.5058 | H64: 148.9893387 | I64: 2215.406688
B65: 2012-07-01 | C65: 6477.797333 | D65: -518223.7867 | E65: -2364.396027 | F65: 189151.6821 | G65: -329072.1045 | H65: 148.9893387 | I65: 2215.406688
B66: 2012-08-01 | C66: 6477.797333 | D66: -511745.9893 | E66: -2364.396027 | F66: 186787.2861 | G66: -324958.7032 | H66: 148.9893387 | I66: 2215.406688
B67: 2012-09-01 | C67: 6477.797333 | D67: -505268.192 | E67: -2364.396027 | F67: 184422.8901 | G67: -320845.3019 | H67: 148.9893387 | I67: 2215.406688
B68: 2012-10-01 | C68: 6477.797333 | D68: -498790.3947 | E68: -2364.396027 | F68: 182058.4941 | G68: -316731.9006 | H68: 148.9893387 | I68: 2215.406688
B69: 2012-11-01 | C69: 6477.797333 | D69: -492312.5973 | E69: -2364.396027 | F69: 179694.098 | G69: -312618.4993 | H69: 148.9893387 | I69: 2215.406688
B70: 2012-12-01 | C70: 6477.797333 | D70: -485834.8 | E70: -2364.396027 | F70: 177329.702 | G70: -308505.098 | H70: 148.9893387 | I70: 2215.406688
B71: 2013-01-01 | C71: 6477.797333 | D71: -479357.0027 | E71: -2364.396027 | F71: 174965.306 | G71: -304391.6967 | H71: 148.9893387 | I71: 2215.406688
B72: 2013-02-01 | C72: 6477.797333 | D72: -472879.2053 | E72: -2364.396027 | F72: 172600.9099 | G72: -300278.2954 | H72: 148.9893387 | I72: 2215.406688
B73: 2013-03-01 | C73: 6477.797333 | D73: -466401.408 | E73: -2364.396027 | F73: 170236.5139 | G73: -296164.8941 | H73: 148.9893387 | I73: 2215.406688
B74: 2013-04-01 | C74: 6477.797333 | D74: -459923.6107 | E74: -2364.396027 | F74: 167872.1179 | G74: -292051.4928 | H74: 148.9893387 | I74: 2215.406688
B75: 2013-05-01 | C75: 6477.797333 | D75: -453445.8133 | E75: -2364.396027 | F75: 165507.7219 | G75: -287938.0915 | H75: 148.9893387 | I75: 2215.406688
B76: 2013-06-01 | C76: 6477.797333 | D76: -446968.016 | E76: -2364.396027 | F76: 163143.3258 | G76: -283824.6902 | H76: 148.9893387 | I76: 2215.406688
B77: 2013-07-01 | C77: 6477.797333 | D77: -440490.2187 | E77: -2364.396027 | F77: 160778.9298 | G77: -279711.2889 | H77: 148.9893387 | I77: 2215.406688
B78: 2013-08-01 | C78: 6477.797333 | D78: -434012.4213 | E78: -2364.396027 | F78: 158414.5338 | G78: -275597.8875 | H78: 148.9893387 | I78: 2215.406688
B79: 2013-09-01 | C79: 6477.797333 | D79: -427534.624 | E79: -2364.396027 | F79: 156050.1378 | G79: -271484.4862 | H79: 148.9893387 | I79: 2215.406688
B80: 2013-10-01 | C80: 6477.797333 | D80: -421056.8267 | E80: -2364.396027 | F80: 153685.7417 | G80: -267371.0849 | H80: 148.9893387 | I80: 2215.406688
B81: 2013-11-01 | C81: 6477.797333 | D81: -414579.0293 | E81: -2364.396027 | F81: 151321.3457 | G81: -263257.6836 | H81: 148.9893387 | I81: 2215.406688
B82: 2013-12-01 | C82: 6477.797333 | D82: -408101.232 | E82: -2364.396027 | F82: 148956.9497 | G82: -259144.2823 | H82: 148.9893387 | I82: 2215.406688
B83: 2014-01-01 | C83: 6477.797333 | D83: -401623.4347 | E83: -2364.396027 | F83: 146592.5537 | G83: -255030.881 | H83: 148.9893387 | I83: 2215.406688
B84: 2014-02-01 | C84: 6477.797333 | D84: -395145.6373 | E84: -2364.396027 | F84: 144228.1576 | G84: -250917.4797 | H84: 148.9893387 | I84: 2215.406688
B85: 2014-03-01 | C85: 6477.797333 | D85: -388667.84 | E85: -2364.396027 | F85: 141863.7616 | G85: -246804.0784 | H85: 148.9893387 | I85: 2215.406688
B86: 2014-04-01 | C86: 6477.797333 | D86: -382190.0427 | E86: -2364.396027 | F86: 139499.3656 | G86: -242690.6771 | H86: 148.9893387 | I86: 2215.406688
B87: 2014-05-01 | C87: 6477.797333 | D87: -375712.2453 | E87: -2364.396027 | F87: 137134.9695 | G87: -238577.2758 | H87: 148.9893387 | I87: 2215.406688
B88: 2014-06-01 | C88: 6477.797333 | D88: -369234.448 | E88: -2364.396027 | F88: 134770.5735 | G88: -234463.8745 | H88: 148.9893387 | I88: 2215.406688
B89: 2014-07-01 | C89: 6477.797333 | D89: -362756.6507 | E89: -2364.396027 | F89: 132406.1775 | G89: -230350.4732 | H89: 148.9893387 | I89: 2215.406688
B90: 2014-08-01 | C90: =-$F$15 -> 6477.797333 | D90: =+D89+C90 -> -356278.8533 | E90: -2364.396027 | F90: =+F89+E90 -> 130041.7815 | G90: =+G89+C90+E90 -> -226237.0719 | H90: 148.9893387 | I90: 2215.406688
B91: 2014-09-01 | C91: 6477.797333 | D91: -349801.056 | E91: =-C91*$J$21 -> -2364.396027 | F91: 127677.3854 | G91: -222123.6706 | H91: =+$H$21*$C91 -> 148.9893387 | I91: =+$I$21*$C91 -> 2215.406688
B92: 2014-10-01 | C92: 6477.797333 | D92: -343323.2587 | E92: -2364.396027 | F92: 125312.9894 | G92: -218010.2693 | H92: 148.9893387 | I92: 2215.406688
B93: 2014-11-01 | C93: 6477.797333 | D93: -336845.4613 | E93: -2364.396027 | F93: 122948.5934 | G93: -213896.8679 | H93: 148.9893387 | I93: 2215.406688
B94: 2014-12-01 | C94: 6477.797333 | D94: -330367.664 | E94: -2364.396027 | F94: 120584.1974 | G94: -209783.4666 | H94: 148.9893387 | I94: 2215.406688
B95: 2015-01-01 | C95: 6477.797333 | D95: -323889.8667 | E95: -2364.396027 | F95: 118219.8013 | G95: -205670.0653 | H95: 148.9893387 | I95: 2215.406688
B96: 2015-02-01 | C96: 6477.797333 | D96: -317412.0693 | E96: -2364.396027 | F96: 115855.4053 | G96: -201556.664 | H96: 148.9893387 | I96: 2215.406688
B97: 2015-03-01 | C97: 6477.797333 | D97: -310934.272 | E97: -2364.396027 | F97: 113491.0093 | G97: -197443.2627 | H97: 148.9893387 | I97: 2215.406688
B98: 2015-04-01 | C98: 6477.797333 | D98: -304456.4747 | E98: -2364.396027 | F98: 111126.6133 | G98: -193329.8614 | H98: 148.9893387 | I98: 2215.406688
B99: 2015-05-01 | C99: 6477.797333 | D99: -297978.6773 | E99: -2364.396027 | F99: 108762.2172 | G99: -189216.4601 | H99: 148.9893387 | I99: 2215.406688
B100: 2015-06-01 | C100: 6477.797333 | D100: -291500.88 | E100: -2364.396027 | F100: 106397.8212 | G100: -185103.0588 | H100: 148.9893387 | I100: 2215.406688
B101: 2015-07-01 | C101: 6477.797333 | D101: -285023.0827 | E101: -2364.396027 | F101: 104033.4252 | G101: -180989.6575 | H101: 148.9893387 | I101: 2215.406688
B102: 2015-08-01 | C102: 6477.797333 | D102: -278545.2853 | E102: -2364.396027 | F102: 101669.0291 | G102: -176876.2562 | H102: 148.9893387 | I102: 2215.406688
B103: 2015-09-01 | C103: 6477.797333 | D103: -272067.488 | E103: -2364.396027 | F103: 99304.63312 | G103: -172762.8549 | H103: 148.9893387 | I103: 2215.406688
B104: 2015-10-01 | C104: 6477.797333 | D104: -265589.6907 | E104: -2364.396027 | F104: 96940.23709 | G104: -168649.4536 | H104: 148.9893387 | I104: 2215.406688
B105: 2015-11-01 | C105: 6477.797333 | D105: -259111.8933 | E105: -2364.396027 | F105: 94575.84107 | G105: -164536.0523 | H105: 148.9893387 | I105: 2215.406688
B106: 2015-12-01 | C106: 6477.797333 | D106: -252634.096 | E106: -2364.396027 | F106: 92211.44504 | G106: -160422.651 | H106: 148.9893387 | I106: 2215.406688
B107: 2016-01-01 | C107: 6477.797333 | D107: -246156.2987 | E107: -2364.396027 | F107: 89847.04901 | G107: -156309.2497 | H107: 148.9893387 | I107: 2215.406688
B108: 2016-02-01 | C108: 6477.797333 | D108: -239678.5013 | E108: -2364.396027 | F108: 87482.65299 | G108: -152195.8483 | H108: 148.9893387 | I108: 2215.406688
B109: 2016-03-01 | C109: 6477.797333 | D109: -233200.704 | E109: -2364.396027 | F109: 85118.25696 | G109: -148082.447 | H109: 148.9893387 | I109: 2215.406688
B110: 2016-04-01 | C110: 6477.797333 | D110: -226722.9067 | E110: -2364.396027 | F110: 82753.86093 | G110: -143969.0457 | H110: 148.9893387 | I110: 2215.406688
B111: 2016-05-01 | C111: 6477.797333 | D111: -220245.1093 | E111: -2364.396027 | F111: 80389.46491 | G111: -139855.6444 | H111: 148.9893387 | I111: 2215.406688
B112: 2016-06-01 | C112: 6477.797333 | D112: -213767.312 | E112: -2364.396027 | F112: 78025.06888 | G112: -135742.2431 | H112: 148.9893387 | I112: 2215.406688
B113: 2016-07-01 | C113: 6477.797333 | D113: -207289.5147 | E113: -2364.396027 | F113: 75660.67285 | G113: -131628.8418 | H113: 148.9893387 | I113: 2215.406688
B114: 2016-08-01 | C114: 6477.797333 | D114: -200811.7173 | E114: -2364.396027 | F114: 73296.27683 | G114: -127515.4405 | H114: 148.9893387 | I114: 2215.406688
B115: 2016-09-01 | C115: 6477.797333 | D115: -194333.92 | E115: -2364.396027 | F115: 70931.8808 | G115: -123402.0392 | H115: 148.9893387 | I115: 2215.406688
B116: 2016-10-01 | C116: 6477.797333 | D116: -187856.1227 | E116: -2364.396027 | F116: 68567.48477 | G116: -119288.6379 | H116: 148.9893387 | I116: 2215.406688
B117: 2016-11-01 | C117: 6477.797333 | D117: -181378.3253 | E117: -2364.396027 | F117: 66203.08875 | G117: -115175.2366 | H117: 148.9893387 | I117: 2215.406688
B118: 2016-12-01 | C118: 6477.797333 | D118: -174900.528 | E118: -2364.396027 | F118: 63838.69272 | G118: -111061.8353 | H118: 148.9893387 | I118: 2215.406688
B119: 2017-01-01 | C119: 6477.797333 | D119: -168422.7307 | E119: -2364.396027 | F119: 61474.29669 | G119: -106948.434 | H119: 148.9893387 | I119: 2215.406688
B120: 2017-02-01 | C120: 6477.797333 | D120: -161944.9333 | E120: -2364.396027 | F120: 59109.90067 | G120: -102835.0327 | H120: 148.9893387 | I120: 2215.406688
B121: 2017-03-01 | C121: 6477.797333 | D121: -155467.136 | E121: -2364.396027 | F121: 56745.50464 | G121: -98721.63136 | H121: 148.9893387 | I121: 2215.406688
B122: 2017-04-01 | C122: 6477.797333 | D122: -148989.3387 | E122: -2364.396027 | F122: 54381.10861 | G122: -94608.23005 | H122: 148.9893387 | I122: 2215.406688
B123: 2017-05-01 | C123: 6477.797333 | D123: -142511.5413 | E123: -2364.396027 | F123: 52016.71259 | G123: -90494.82875 | H123: 148.9893387 | I123: 2215.406688
B124: 2017-06-01 | C124: 6477.797333 | D124: -136033.744 | E124: -2364.396027 | F124: 49652.31656 | G124: -86381.42744 | H124: 148.9893387 | I124: 2215.406688
B125: 2017-07-01 | C125: 6477.797333 | D125: -129555.9467 | E125: -2364.396027 | F125: 47287.92053 | G125: -82268.02613 | H125: 148.9893387 | I125: 2215.406688
B126: 2017-08-01 | C126: 6477.797333 | D126: -123078.1493 | E126: -2364.396027 | F126: 44923.52451 | G126: -78154.62483 | H126: 148.9893387 | I126: 2215.406688
B127: 2017-09-01 | C127: 6477.797333 | D127: -116600.352 | E127: -2364.396027 | F127: 42559.12848 | G127: -74041.22352 | H127: 148.9893387 | I127: 2215.406688
B128: 2017-10-01 | C128: 6477.797333 | D128: -110122.5547 | E128: -2364.396027 | F128: 40194.73245 | G128: -69927.82221 | H128: 148.9893387 | I128: 2215.406688
B129: 2017-11-01 | C129: 6477.797333 | D129: -103644.7573 | E129: -2364.396027 | F129: 37830.33643 | G129: -65814.42091 | H129: 148.9893387 | I129: 2215.406688
B130: 2017-12-01 | C130: 6477.797333 | D130: -97166.96 | E130: =-C130*$J$21 -> -2364.396027 | F130: 35465.9404 | G130: -61701.0196 | H130: 148.9893387 | I130: =+$I$21*$C130 -> 2215.406688
B131: 2018-01-01 | C131: =-$F$15 -> 6477.797333 | D131: =+D130+C131 -> -90689.16267 | E131: =-C131*$L$21 -> -1478.039018 | F131: =+F130+E131 -> 33987.90138 | G131: =+G130+C131+E131 -> -56701.26128 | H131: =+$H$21*$C131 -> 148.9893387 | I131: =C131*$K$21 -> 1329.049679
B132: 2018-02-01 | C132: =-$F$15 -> 6477.797333 | D132: =+D131+C132 -> -84211.36533 | E132: =-C132*$L$21 -> -1478.039018 | F132: =+F131+E132 -> 32509.86236 | G132: =+G131+C132+E132 -> -51701.50297 | H132: =+$H$21*$C132 -> 148.9893387 | I132: =C132*$K$21 -> 1329.049679
B133: 2018-03-01 | C133: 6477.797333 | D133: -77733.568 | E133: =-C133*$L$21 -> -1478.039018 | F133: 31031.82335 | G133: -46701.74465 | H133: 148.9893387 | I133: 1329.049679
B134: 2018-04-01 | C134: 6477.797333 | D134: -71255.77067 | E134: =-C134*$L$21 -> -1478.039018 | F134: 29553.78433 | G134: -41701.98634 | H134: 148.9893387 | I134: 1329.049679
B135: 2018-05-01 | C135: 6477.797333 | D135: -64777.97333 | E135: -1478.039018 | F135: 28075.74531 | G135: -36702.22802 | H135: 148.9893387 | I135: 1329.049679
B136: 2018-06-01 | C136: 6477.797333 | D136: -58300.176 | E136: -1478.039018 | F136: 26597.70629 | G136: -31702.46971 | H136: 148.9893387 | I136: 1329.049679
B137: 2018-07-01 | C137: 6477.797333 | D137: -51822.37867 | E137: -1478.039018 | F137: 25119.66728 | G137: -26702.71139 | H137: 148.9893387 | I137: 1329.049679
B138: 2018-08-01 | C138: 6477.797333 | D138: -45344.58133 | E138: -1478.039018 | F138: 23641.62826 | G138: -21702.95307 | H138: 148.9893387 | I138: 1329.049679
B139: 2018-09-01 | C139: 6477.797333 | D139: -38866.784 | E139: -1478.039018 | F139: 22163.58924 | G139: -16703.19476 | H139: 148.9893387 | I139: 1329.049679
B140: 2018-10-01 | C140: 6477.797333 | D140: -32388.98667 | E140: -1478.039018 | F140: 20685.55022 | G140: -11703.43644 | H140: 148.9893387 | I140: 1329.049679
B141: 2018-11-01 | C141: 6477.797333 | D141: -25911.18933 | E141: -1478.039018 | F141: 19207.51121 | G141: -6703.678126 | H141: 148.9893387 | I141: 1329.049679
B142: 2018-12-01 | C142: 6477.797333 | D142: -19433.392 | E142: -1478.039018 | F142: 17729.47219 | G142: -1703.919811 | H142: 148.9893387 | I142: 1329.049679
B143: 2019-01-01 | C143: 6477.797333 | D143: -12955.59467 | E143: -1478.039018 | F143: 16251.43317 | G143: 3295.838505 | H143: 148.9893387 | I143: 1329.049679
B144: 2019-02-01 | C144: 6477.797333 | D144: -6477.797333 | E144: -1478.039018 | F144: 14773.39415 | G144: 8295.596821 | H144: 148.9893387 | I144: 1329.049679
B145: 2019-03-01 | C145: 6477.797333 | D145: -1.082298695e-09 | E145: -1478.039018 | F145: 13295.35514 | G145: 13295.35514 | H145: 148.9893387 | I145: 1329.049679

Sheet 20105
A1: Amortization Schedule
A2: GL# 010.0000.2150.20105.002000 | F2: 10 years | G2: 10 years | H2: 10 years
F3: Amort | G3: Amort | H3: Amort | I3: Total to Amort
B4: (Gain) Loss | C4: Years | D4: Annual Amort | F4: June 2011-May 2021 | G4: June 2021-May 2031 | H4: June 2031-May 2041 | I4: June 2011-May 2041
A5: Morgan Stanley | B5: -6701857 | C5: 30 | D5: =B5/C5 -> -223395.2333 | F5: =+$D5*10 -> -2233952.333 | G5: -2233952.333 | H5: -2233952.333 | I5: =SUM(F5:H5) -> -6701857
A6: Wells Fargo | B6: -6799114 | C6: 30 | D6: =B6/C6 -> -226637.1333 | F6: -2266371.333 | G6: -2266371.333 | H6: -2266371.333 | I6: =SUM(F6:H6) -> -6799114
A7: BNP Paribas | B7: -6578076 | C7: 30 | D7: =B7/C7 -> -219269.2 | F7: -2192692 | G7: -2192692 | H7: -2192692 | I7: =SUM(F7:H7) -> -6578076
A8: Merrill Lynch | B8: 0 | C8: 30 | D8: =B8/C8 -> 0 | F8: =+$D8*10 -> 0 | G8: =+$D8*0 -> 0 | H8: 0 | I8: =SUM(F8:H8) -> 0
A10: Total | B10: =SUM(B5:B8) -> -20079047 | D10: =SUM(D5:D8) -> -669301.5667 | F10: =SUM(F5:F9) -> -6693015.667 | G10: =SUM(G5:G9) -> -6693015.667 | H10: =SUM(H5:H9) -> -6693015.667 | I10: =SUM(F10:H10) -> -20079047
D12: # months to Amort | F12: =10*12 -> 120 | G12: =10*12 -> 120 | H12: =10*12 -> 120
F14: DR (CR) | G14: DR (CR) | H14: DR (CR)
C15: LT Int Exp | D15: Monthly Amort | F15: =+F10/F12 -> -55775.13056 | G15: =+G10/G12 -> -55775.13056 | H15: =+H10/H12 -> -55775.13056 | L15: new rates as of 06/30/20
C16: 2830.xxxxx | D16: Def State Tax | E16: 0.023 | F16: =-F$15*$E16 -> 1282.828003 | G16: 1282.828003 | H16: 1282.828003 | L16: Def State Tax | M16: 0.018
C17: 2830.xxxxx | D17: Def Fed Tax | E17: 0.342 | F17: 19075.09465 | G17: 19075.09465 | H17: 19075.09465 | L17: Def Fed Tax | M17: 0.20622
M18: =SUM(M16:M17) -> 0.22422
A20: T-Lock Settlement | G20: Net OCI | H20: Def State Tax | I20: Def Fed Tax
H21: =E16 -> 0.023 | I21: =E17 -> 0.342 | J21: =H21+I21 -> 0.365 | L21: 0.20517 | M21: =H21+L21 -> 0.22817
C22: 2150.20105 | D22: 2150.20105 | E22: 2150.20105 | F22: 2150.20105 | G22: 2150.20105 | H22: 2830.28206 | I22: 2830.28201
C23: Amort | D23: T-Lock Settlement | E23: Def Tax Adj | F23: Def Taxes | G23: Net of Tax | H23: Adjustment | I23: Adjustment
C24: DR (CR) | D24: DR (CR) | E24: DR (CR) | F24: DR (CR) | H24: DR (CR) | I24: DR (CR)
A25: Balance at June 30, 2011 | B25: 2011-06-01 | D25: =B10 -> -20079047 | F25: =-D25*$M$18 -> 4502123.918 | G25: =SUM(D25:F25) -> -15576923.08 | H25: 0 | I25: 0
B26: 2011-06-01 | C26: =-$F$15 -> 55775.13056 | D26: =+D25+C26 -> -20023271.87 | E26: =-C26*$M$18 -> -12505.89977 | F26: =+F25+E26 -> 4489618.019 | G26: =+G25+C26+E26 -> -15533653.85 | H26: =+$M$16*$C26 -> 1003.95235 | I26: =+$M$17*$C26 -> 11501.94742
B27: 2011-07-01 | C27: 55775.13056 | D27: -19967496.74 | E27: =-C27*$M$18 -> -12505.89977 | F27: 4477112.119 | G27: -15490384.62 | H27: =+$M$16*$C27 -> 1003.95235 | I27: =+$M$17*$C27 -> 11501.94742
B28: 2011-08-01 | C28: 55775.13056 | D28: -19911721.61 | E28: -12505.89977 | F28: 4464606.219 | G28: -15447115.39 | H28: 1003.95235 | I28: 11501.94742
B29: 2011-09-01 | C29: 55775.13056 | D29: -19855946.48 | E29: -12505.89977 | F29: 4452100.319 | G29: -15403846.16 | H29: 1003.95235 | I29: 11501.94742
B30: 2011-10-01 | C30: 55775.13056 | D30: -19800171.35 | E30: -12505.89977 | F30: 4439594.419 | G30: -15360576.93 | H30: 1003.95235 | I30: 11501.94742
B31: 2011-11-01 | C31: 55775.13056 | D31: -19744396.22 | E31: -12505.89977 | F31: 4427088.52 | G31: -15317307.7 | H31: 1003.95235 | I31: 11501.94742
B32: 2011-12-01 | C32: 55775.13056 | D32: -19688621.09 | E32: -12505.89977 | F32: 4414582.62 | G32: -15274038.47 | H32: 1003.95235 | I32: 11501.94742
B33: 2012-01-01 | C33: 55775.13056 | D33: -19632845.96 | E33: -12505.89977 | F33: 4402076.72 | G33: -15230769.24 | H33: 1003.95235 | I33: 11501.94742
B34: 2012-02-01 | C34: 55775.13056 | D34: -19577070.83 | E34: -12505.89977 | F34: 4389570.82 | G34: -15187500 | H34: 1003.95235 | I34: 11501.94742
B35: 2012-03-01 | C35: 55775.13056 | D35: -19521295.69 | E35: -12505.89977 | F35: 4377064.921 | G35: -15144230.77 | H35: 1003.95235 | I35: 11501.94742
B36: 2012-04-01 | C36: 55775.13056 | D36: -19465520.56 | E36: -12505.89977 | F36: 4364559.021 | G36: -15100961.54 | H36: 1003.95235 | I36: 11501.94742
B37: 2012-05-01 | C37: 55775.13056 | D37: -19409745.43 | E37: -12505.89977 | F37: 4352053.121 | G37: -15057692.31 | H37: 1003.95235 | I37: 11501.94742
B38: 2012-06-01 | C38: 55775.13056 | D38: -19353970.3 | E38: -12505.89977 | F38: 4339547.221 | G38: -15014423.08 | H38: 1003.95235 | I38: 11501.94742
B39: 2012-07-01 | C39: 55775.13056 | D39: -19298195.17 | E39: -12505.89977 | F39: 4327041.322 | G39: -14971153.85 | H39: 1003.95235 | I39: 11501.94742
B40: 2012-08-01 | C40: 55775.13056 | D40: -19242420.04 | E40: -12505.89977 | F40: 4314535.422 | G40: -14927884.62 | H40: 1003.95235 | I40: 11501.94742
B41: 2012-09-01 | C41: 55775.13056 | D41: -19186644.91 | E41: -12505.89977 | F41: 4302029.522 | G41: -14884615.39 | H41: 1003.95235 | I41: 11501.94742
B42: 2012-10-01 | C42: 55775.13056 | D42: -19130869.78 | E42: -12505.89977 | F42: 4289523.622 | G42: -14841346.16 | H42: 1003.95235 | I42: 11501.94742
B43: 2012-11-01 | C43: 55775.13056 | D43: -19075094.65 | E43: -12505.89977 | F43: 4277017.722 | G43: -14798076.93 | H43: 1003.95235 | I43: 11501.94742
B44: 2012-12-01 | C44: 55775.13056 | D44: -19019319.52 | E44: -12505.89977 | F44: 4264511.823 | G44: -14754807.7 | H44: 1003.95235 | I44: 11501.94742
B45: 2013-01-01 | C45: 55775.13056 | D45: -18963544.39 | E45: -12505.89977 | F45: 4252005.923 | G45: -14711538.47 | H45: 1003.95235 | I45: 11501.94742
B46: 2013-02-01 | C46: 55775.13056 | D46: -18907769.26 | E46: -12505.89977 | F46: 4239500.023 | G46: -14668269.24 | H46: 1003.95235 | I46: 11501.94742
B47: 2013-03-01 | C47: 55775.13056 | D47: -18851994.13 | E47: -12505.89977 | F47: 4226994.123 | G47: -14625000 | H47: 1003.95235 | I47: 11501.94742
B48: 2013-04-01 | C48: 55775.13056 | D48: -18796219 | E48: -12505.89977 | F48: 4214488.224 | G48: -14581730.77 | H48: 1003.95235 | I48: 11501.94742
B49: 2013-05-01 | C49: 55775.13056 | D49: -18740443.87 | E49: -12505.89977 | F49: 4201982.324 | G49: -14538461.54 | H49: 1003.95235 | I49: 11501.94742
B50: 2013-06-01 | C50: 55775.13056 | D50: -18684668.74 | E50: -12505.89977 | F50: 4189476.424 | G50: -14495192.31 | H50: 1003.95235 | I50: 11501.94742
B51: 2013-07-01 | C51: 55775.13056 | D51: -18628893.61 | E51: -12505.89977 | F51: 4176970.524 | G51: -14451923.08 | H51: 1003.95235 | I51: 11501.94742
B52: 2013-08-01 | C52: 55775.13056 | D52: -18573118.48 | E52: -12505.89977 | F52: 4164464.624 | G52: -14408653.85 | H52: 1003.95235 | I52: 11501.94742
B53: 2013-09-01 | C53: 55775.13056 | D53: -18517343.34 | E53: -12505.89977 | F53: 4151958.725 | G53: -14365384.62 | H53: 1003.95235 | I53: 11501.94742
B54: 2013-10-01 | C54: 55775.13056 | D54: -18461568.21 | E54: -12505.89977 | F54: 4139452.825 | G54: -14322115.39 | H54: 1003.95235 | I54: 11501.94742
B55: 2013-11-01 | C55: 55775.13056 | D55: -18405793.08 | E55: -12505.89977 | F55: 4126946.925 | G55: -14278846.16 | H55: 1003.95235 | I55: 11501.94742
B56: 2013-12-01 | C56: 55775.13056 | D56: -18350017.95 | E56: -12505.89977 | F56: 4114441.025 | G56: -14235576.93 | H56: 1003.95235 | I56: 11501.94742
B57: 2014-01-01 | C57: 55775.13056 | D57: -18294242.82 | E57: -12505.89977 | F57: 4101935.126 | G57: -14192307.7 | H57: 1003.95235 | I57: 11501.94742
B58: 2014-02-01 | C58: 55775.13056 | D58: -18238467.69 | E58: -12505.89977 | F58: 4089429.226 | G58: -14149038.47 | H58: 1003.95235 | I58: 11501.94742
B59: 2014-03-01 | C59: 55775.13056 | D59: -18182692.56 | E59: -12505.89977 | F59: 4076923.326 | G59: -14105769.24 | H59: 1003.95235 | I59: 11501.94742
B60: 2014-04-01 | C60: 55775.13056 | D60: -18126917.43 | E60: -12505.89977 | F60: 4064417.426 | G60: -14062500 | H60: 1003.95235 | I60: 11501.94742
B61: 2014-05-01 | C61: 55775.13056 | D61: -18071142.3 | E61: -12505.89977 | F61: 4051911.527 | G61: -14019230.77 | H61: 1003.95235 | I61: 11501.94742
B62: 2014-06-01 | C62: 55775.13056 | D62: -18015367.17 | E62: -12505.89977 | F62: 4039405.627 | G62: -13975961.54 | H62: 1003.95235 | I62: 11501.94742
B63: 2014-07-01 | C63: 55775.13056 | D63: -17959592.04 | E63: -12505.89977 | F63: 4026899.727 | G63: -13932692.31 | H63: 1003.95235 | I63: 11501.94742
B64: 2014-08-01 | C64: 55775.13056 | D64: -17903816.91 | E64: -12505.89977 | F64: 4014393.827 | G64: -13889423.08 | H64: 1003.95235 | I64: 11501.94742
B65: 2014-09-01 | C65: 55775.13056 | D65: -17848041.78 | E65: -12505.89977 | F65: 4001887.927 | G65: -13846153.85 | H65: 1003.95235 | I65: 11501.94742
B66: 2014-10-01 | C66: 55775.13056 | D66: -17792266.65 | E66: -12505.89977 | F66: 3989382.028 | G66: -13802884.62 | H66: 1003.95235 | I66: 11501.94742
B67: 2014-11-01 | C67: 55775.13056 | D67: -17736491.52 | E67: -12505.89977 | F67: 3976876.128 | G67: -13759615.39 | H67: 1003.95235 | I67: 11501.94742
B68: 2014-12-01 | C68: 55775.13056 | D68: -17680716.39 | E68: -12505.89977 | F68: 3964370.228 | G68: -13716346.16 | H68: 1003.95235 | I68: 11501.94742
B69: 2015-01-01 | C69: 55775.13056 | D69: -17624941.26 | E69: -12505.89977 | F69: 3951864.328 | G69: -13673076.93 | H69: 1003.95235 | I69: 11501.94742
B70: 2015-02-01 | C70: 55775.13056 | D70: -17569166.13 | E70: -12505.89977 | F70: 3939358.429 | G70: -13629807.7 | H70: 1003.95235 | I70: 11501.94742
B71: 2015-03-01 | C71: 55775.13056 | D71: -17513390.99 | E71: -12505.89977 | F71: 3926852.529 | G71: -13586538.47 | H71: 1003.95235 | I71: 11501.94742
B72: 2015-04-01 | C72: 55775.13056 | D72: -17457615.86 | E72: -12505.89977 | F72: 3914346.629 | G72: -13543269.23 | H72: 1003.95235 | I72: 11501.94742
B73: 2015-05-01 | C73: 55775.13056 | D73: -17401840.73 | E73: -12505.89977 | F73: 3901840.729 | G73: -13500000 | H73: 1003.95235 | I73: 11501.94742
B74: 2015-06-01 | C74: 55775.13056 | D74: -17346065.6 | E74: -12505.89977 | F74: 3889334.829 | G74: -13456730.77 | H74: 1003.95235 | I74: 11501.94742
B75: 2015-07-01 | C75: 55775.13056 | D75: -17290290.47 | E75: -12505.89977 | F75: 3876828.93 | G75: -13413461.54 | H75: 1003.95235 | I75: 11501.94742
B76: 2015-08-01 | C76: 55775.13056 | D76: -17234515.34 | E76: -12505.89977 | F76: 3864323.03 | G76: -13370192.31 | H76: 1003.95235 | I76: 11501.94742
B77: 2015-09-01 | C77: 55775.13056 | D77: -17178740.21 | E77: -12505.89977 | F77: 3851817.13 | G77: -13326923.08 | H77: 1003.95235 | I77: 11501.94742
B78: 2015-10-01 | C78: 55775.13056 | D78: -17122965.08 | E78: -12505.89977 | F78: 3839311.23 | G78: -13283653.85 | H78: 1003.95235 | I78: 11501.94742
B79: 2015-11-01 | C79: 55775.13056 | D79: -17067189.95 | E79: -12505.89977 | F79: 3826805.331 | G79: -13240384.62 | H79: 1003.95235 | I79: 11501.94742
B80: 2015-12-01 | C80: 55775.13056 | D80: -17011414.82 | E80: -12505.89977 | F80: 3814299.431 | G80: -13197115.39 | H80: 1003.95235 | I80: 11501.94742
B81: 2016-01-01 | C81: 55775.13056 | D81: -16955639.69 | E81: -12505.89977 | F81: 3801793.531 | G81: -13153846.16 | H81: 1003.95235 | I81: 11501.94742
B82: 2016-02-01 | C82: 55775.13056 | D82: -16899864.56 | E82: -12505.89977 | F82: 3789287.631 | G82: -13110576.93 | H82: 1003.95235 | I82: 11501.94742
B83: 2016-03-01 | C83: 55775.13056 | D83: -16844089.43 | E83: -12505.89977 | F83: 3776781.731 | G83: -13067307.7 | H83: 1003.95235 | I83: 11501.94742
B84: 2016-04-01 | C84: 55775.13056 | D84: -16788314.3 | E84: -12505.89977 | F84: 3764275.832 | G84: -13024038.47 | H84: 1003.95235 | I84: 11501.94742
B85: 2016-05-01 | C85: 55775.13056 | D85: -16732539.17 | E85: -12505.89977 | F85: 3751769.932 | G85: -12980769.23 | H85: 1003.95235 | I85: 11501.94742
B86: 2016-06-01 | C86: 55775.13056 | D86: -16676764.04 | E86: -12505.89977 | F86: 3739264.032 | G86: -12937500 | H86: 1003.95235 | I86: 11501.94742
B87: 2016-07-01 | C87: 55775.13056 | D87: -16620988.91 | E87: -12505.89977 | F87: 3726758.132 | G87: -12894230.77 | H87: 1003.95235 | I87: 11501.94742
B88: 2016-08-01 | C88: 55775.13056 | D88: -16565213.78 | E88: -12505.89977 | F88: 3714252.233 | G88: -12850961.54 | H88: 1003.95235 | I88: 11501.94742
B89: 2016-09-01 | C89: 55775.13056 | D89: -16509438.64 | E89: -12505.89977 | F89: 3701746.333 | G89: -12807692.31 | H89: 1003.95235 | I89: 11501.94742
B90: 2016-10-01 | C90: =-$F$15 -> 55775.13056 | D90: =+D89+C90 -> -16453663.51 | E90: -12505.89977 | F90: =+F89+E90 -> 3689240.433 | G90: =+G89+C90+E90 -> -12764423.08 | H90: 1003.95235 | I90: 11501.94742
B91: 2016-11-01 | C91: 55775.13056 | D91: -16397888.38 | E91: =-C91*$M$18 -> -12505.89977 | F91: 3676734.533 | G91: -12721153.85 | H91: =+$M$16*$C91 -> 1003.95235 | I91: =+$M$17*$C91 -> 11501.94742
B92: 2016-12-01 | C92: 55775.13056 | D92: -16342113.25 | E92: -12505.89977 | F92: 3664228.634 | G92: -12677884.62 | H92: 1003.95235 | I92: 11501.94742
B93: 2017-01-01 | C93: 55775.13056 | D93: -16286338.12 | E93: -12505.89977 | F93: 3651722.734 | G93: -12634615.39 | H93: 1003.95235 | I93: 11501.94742
B94: 2017-02-01 | C94: 55775.13056 | D94: -16230562.99 | E94: -12505.89977 | F94: 3639216.834 | G94: -12591346.16 | H94: 1003.95235 | I94: 11501.94742
B95: 2017-03-01 | C95: 55775.13056 | D95: -16174787.86 | E95: -12505.89977 | F95: 3626710.934 | G95: -12548076.93 | H95: 1003.95235 | I95: 11501.94742
B96: 2017-04-01 | C96: 55775.13056 | D96: -16119012.73 | E96: -12505.89977 | F96: 3614205.034 | G96: -12504807.7 | H96: 1003.95235 | I96: 11501.94742
B97: 2017-05-01 | C97: 55775.13056 | D97: -16063237.6 | E97: -12505.89977 | F97: 3601699.135 | G97: -12461538.47 | H97: 1003.95235 | I97: 11501.94742
B98: 2017-06-01 | C98: 55775.13056 | D98: -16007462.47 | E98: -12505.89977 | F98: 3589193.235 | G98: -12418269.23 | H98: 1003.95235 | I98: 11501.94742
B99: 2017-07-01 | C99: 55775.13056 | D99: -15951687.34 | E99: -12505.89977 | F99: 3576687.335 | G99: -12375000 | H99: 1003.95235 | I99: 11501.94742
B100: 2017-08-01 | C100: 55775.13056 | D100: -15895912.21 | E100: -12505.89977 | F100: 3564181.435 | G100: -12331730.77 | H100: 1003.95235 | I100: 11501.94742
B101: 2017-09-01 | C101: 55775.13056 | D101: -15840137.08 | E101: -12505.89977 | F101: 3551675.536 | G101: -12288461.54 | H101: 1003.95235 | I101: 11501.94742
B102: 2017-10-01 | C102: 55775.13056 | D102: -15784361.95 | E102: -12505.89977 | F102: 3539169.636 | G102: -12245192.31 | H102: 1003.95235 | I102: 11501.94742
B103: 2017-11-01 | C103: 55775.13056 | D103: -15728586.82 | E103: -12505.89977 | F103: 3526663.736 | G103: -12201923.08 | H103: 1003.95235 | I103: 11501.94742
B104: 2017-12-01 | C104: 55775.13056 | D104: -15672811.69 | E104: -12505.89977 | F104: 3514157.836 | G104: -12158653.85 | H104: 1003.95235 | I104: 11501.94742
B105: 2018-01-01 | C105: =-$F$15 -> 55775.13056 | D105: =+D104+C105 -> -15617036.56 | E105: -12505.89977 | F105: 3501651.936 | G105: -12115384.62 | H105: 1003.95235 | I105: 11501.94742
B106: 2018-02-01 | C106: =-$F$15 -> 55775.13056 | D106: =+D105+C106 -> -15561261.43 | E106: -12505.89977 | F106: 3489146.037 | G106: -12072115.39 | H106: 1003.95235 | I106: 11501.94742
B107: 2018-03-01 | C107: 55775.13056 | D107: -15505486.29 | E107: -12505.89977 | F107: 3476640.137 | G107: -12028846.16 | H107: 1003.95235 | I107: 11501.94742
B108: 2018-04-01 | C108: 55775.13056 | D108: -15449711.16 | E108: -12505.89977 | F108: 3464134.237 | G108: -11985576.93 | H108: 1003.95235 | I108: 11501.94742
B109: 2018-05-01 | C109: 55775.13056 | D109: -15393936.03 | E109: -12505.89977 | F109: 3451628.337 | G109: -11942307.7 | H109: 1003.95235 | I109: 11501.94742
B110: 2018-06-01 | C110: 55775.13056 | D110: -15338160.9 | E110: -12505.89977 | F110: 3439122.438 | G110: -11899038.47 | H110: 1003.95235 | I110: 11501.94742
B111: 2018-07-01 | C111: 55775.13056 | D111: -15282385.77 | E111: -12505.89977 | F111: 3426616.538 | G111: -11855769.23 | H111: 1003.95235 | I111: 11501.94742
B112: 2018-08-01 | C112: 55775.13056 | D112: -15226610.64 | E112: -12505.89977 | F112: 3414110.638 | G112: -11812500 | H112: 1003.95235 | I112: 11501.94742
B113: 2018-09-01 | C113: 55775.13056 | D113: -15170835.51 | E113: -12505.89977 | F113: 3401604.738 | G113: -11769230.77 | H113: 1003.95235 | I113: 11501.94742
B114: 2018-10-01 | C114: 55775.13056 | D114: -15115060.38 | E114: -12505.89977 | F114: 3389098.839 | G114: -11725961.54 | H114: 1003.95235 | I114: 11501.94742
B115: 2018-11-01 | C115: 55775.13056 | D115: -15059285.25 | E115: -12505.89977 | F115: 3376592.939 | G115: -11682692.31 | H115: 1003.95235 | I115: 11501.94742
B116: 2018-12-01 | C116: 55775.13056 | D116: -15003510.12 | E116: -12505.89977 | F116: 3364087.039 | G116: -11639423.08 | H116: 1003.95235 | I116: 11501.94742
B117: 2019-01-01 | C117: 55775.13056 | D117: -14947734.99 | E117: -12505.89977 | F117: 3351581.139 | G117: -11596153.85 | H117: 1003.95235 | I117: 11501.94742
B118: 2019-02-01 | C118: 55775.13056 | D118: -14891959.86 | E118: -12505.89977 | F118: 3339075.239 | G118: -11552884.62 | H118: 1003.95235 | I118: 11501.94742
B119: 2019-03-01 | C119: 55775.13056 | D119: -14836184.73 | E119: -12505.89977 | F119: 3326569.34 | G119: -11509615.39 | H119: 1003.95235 | I119: 11501.94742
B120: 2019-04-01 | C120: 55775.13056 | D120: -14780409.6 | E120: -12505.89977 | F120: 3314063.44 | G120: -11466346.16 | H120: 1003.95235 | I120: 11501.94742
B121: 2019-05-01 | C121: 55775.13056 | D121: -14724634.47 | E121: -12505.89977 | F121: 3301557.54 | G121: -11423076.93 | H121: 1003.95235 | I121: 11501.94742
B122: 2019-06-01 | C122: 55775.13056 | D122: -14668859.34 | E122: -12505.89977 | F122: 3289051.64 | G122: -11379807.7 | H122: 1003.95235 | I122: 11501.94742
B123: 2019-07-01 | C123: 55775.13056 | D123: -14613084.21 | E123: -12505.89977 | F123: 3276545.741 | G123: -11336538.46 | H123: 1003.95235 | I123: 11501.94742
B124: 2019-08-01 | C124: 55775.13056 | D124: -14557309.08 | E124: -12505.89977 | F124: 3264039.841 | G124: -11293269.23 | H124: 1003.95235 | I124: 11501.94742
B125: 2019-09-01 | C125: 55775.13056 | D125: -14501533.94 | E125: -12505.89977 | F125: 3251533.941 | G125: -11250000 | H125: 1003.95235 | I125: 11501.94742
B126: 2019-10-01 | C126: 55775.13056 | D126: -14445758.81 | E126: -12505.89977 | F126: 3239028.041 | G126: -11206730.77 | H126: 1003.95235 | I126: 11501.94742
B127: 2019-11-01 | C127: 55775.13056 | D127: -14389983.68 | E127: -12505.89977 | F127: 3226522.141 | G127: -11163461.54 | H127: 1003.95235 | I127: 11501.94742
B128: 2019-12-01 | C128: 55775.13056 | D128: -14334208.55 | E128: -12505.89977 | F128: 3214016.242 | G128: -11120192.31 | H128: 1003.95235 | I128: 11501.94742
B129: 2020-01-01 | C129: 55775.13056 | D129: -14278433.42 | E129: -12505.89977 | F129: 3201510.342 | G129: -11076923.08 | H129: 1003.95235 | I129: 11501.94742
B130: 2020-02-01 | C130: 55775.13056 | D130: -14222658.29 | E130: -12505.89977 | F130: 3189004.442 | G130: -11033653.85 | H130: 1003.95235 | I130: 11501.94742
B131: 2020-03-01 | C131: 55775.13056 | D131: -14166883.16 | E131: -12505.89977 | F131: 3176498.542 | G131: -10990384.62 | H131: 1003.95235 | I131: 11501.94742
B132: 2020-04-01 | C132: 55775.13056 | D132: -14111108.03 | E132: -12505.89977 | F132: 3163992.643 | G132: -10947115.39 | H132: 1003.95235 | I132: 11501.94742
B133: 2020-05-01 | C133: 55775.13056 | D133: -14055332.9 | E133: -12505.89977 | F133: 3151486.743 | G133: -10903846.16 | H133: 1003.95235 | I133: 11501.94742
B134: 2020-06-01 | C134: 55775.13056 | D134: -13999557.77 | E134: -12505.89977 | F134: 3138980.843 | G134: -10860576.93 | H134: 1003.95235 | I134: 11501.94742
B135: 2020-07-01 | C135: 55775.13056 | D135: -13943782.64 | E135: -12505.89977 | F135: 3126474.943 | G135: -10817307.7 | H135: 1003.95235 | I135: 11501.94742
B136: 2020-08-01 | C136: 55775.13056 | D136: -13888007.51 | E136: -12505.89977 | F136: 3113969.044 | G136: -10774038.46 | H136: 1003.95235 | I136: 11501.94742
B137: 2020-09-01 | C137: 55775.13056 | D137: -13832232.38 | E137: -12505.89977 | F137: 3101463.144 | G137: -10730769.23 | H137: 1003.95235 | I137: 11501.94742
B138: 2020-10-01 | C138: 55775.13056 | D138: -13776457.25 | E138: -12505.89977 | F138: 3088957.244 | G138: -10687500 | H138: 1003.95235 | I138: 11501.94742
B139: 2020-11-01 | C139: 55775.13056 | D139: -13720682.12 | E139: -12505.89977 | F139: 3076451.344 | G139: -10644230.77 | H139: 1003.95235 | I139: 11501.94742
B140: 2020-12-01 | C140: 55775.13056 | D140: -13664906.99 | E140: -12505.89977 | F140: 3063945.444 | G140: -10600961.54 | H140: 1003.95235 | I140: 11501.94742
B141: 2021-01-01 | C141: 55775.13056 | D141: -13609131.86 | E141: -12505.89977 | F141: 3051439.545 | G141: -10557692.31 | H141: 1003.95235 | I141: 11501.94742
B142: 2021-02-01 | C142: 55775.13056 | D142: -13553356.73 | E142: -12505.89977 | F142: 3038933.645 | G142: -10514423.08 | H142: 1003.95235 | I142: 11501.94742
B143: 2021-03-01 | C143: 55775.13056 | D143: -13497581.59 | E143: -12505.89977 | F143: 3026427.745 | G143: -10471153.85 | H143: 1003.95235 | I143: 11501.94742
B144: 2021-04-01 | C144: 55775.13056 | D144: -13441806.46 | E144: -12505.89977 | F144: 3013921.845 | G144: -10427884.62 | H144: 1003.95235 | I144: 11501.94742
B145: 2021-05-01 | C145: 55775.13056 | D145: -13386031.33 | E145: -12505.89977 | F145: 3001415.946 | G145: -10384615.39 | H145: 1003.95235 | I145: 11501.94742
B146: 2021-06-01 | C146: 55775.13056 | D146: -13330256.2 | E146: -12505.89977 | F146: 2988910.046 | G146: -10341346.16 | H146: 1003.95235 | I146: 11501.94742
B147: 2021-07-01 | C147: 55775.13056 | D147: -13274481.07 | E147: -12505.89977 | F147: 2976404.146 | G147: -10298076.93 | H147: 1003.95235 | I147: 11501.94742
B148: 2021-08-01 | C148: 55775.13056 | D148: -13218705.94 | E148: -12505.89977 | F148: 2963898.246 | G148: -10254807.7 | H148: 1003.95235 | I148: 11501.94742
B149: 2021-09-01 | C149: 55775.13056 | D149: -13162930.81 | E149: -12505.89977 | F149: 2951392.346 | G149: -10211538.46 | H149: 1003.95235 | I149: 11501.94742
B150: 2021-10-01 | C150: 55775.13056 | D150: -13107155.68 | E150: -12505.89977 | F150: 2938886.447 | G150: -10168269.23 | H150: 1003.95235 | I150: 11501.94742
B151: 2021-11-01 | C151: 55775.13056 | D151: -13051380.55 | E151: -12505.89977 | F151: 2926380.547 | G151: -10125000 | H151: 1003.95235 | I151: 11501.94742
B152: 2021-12-01 | C152: 55775.13056 | D152: -12995605.42 | E152: -12505.89977 | F152: 2913874.647 | G152: -10081730.77 | H152: 1003.95235 | I152: 11501.94742
B153: 2022-01-01 | C153: 55775.13056 | D153: -12939830.29 | E153: -12505.89977 | F153: 2901368.747 | G153: -10038461.54 | H153: 1003.95235 | I153: 11501.94742
B154: 2022-02-01 | C154: 55775.13056 | D154: -12884055.16 | E154: -12505.89977 | F154: =+F153+E154 -> 2888862.848 | G154: =+G153+C154+E154 -> -9995192.311 | H154: 1003.95235 | I154: 11501.94742
B155: 2022-03-01 | C155: 55775.13056 | D155: -12828280.03 | E155: =-C155*$M$18 -> -12505.89977 | F155: 2876356.948 | G155: -9951923.08 | H155: =+$M$16*$C155 -> 1003.95235 | I155: =+$M$17*$C155 -> 11501.94742
B156: 2022-04-01 | C156: 55775.13056 | D156: -12772504.9 | E156: -12505.89977 | F156: 2863851.048 | G156: -9908653.849 | H156: 1003.95235 | I156: 11501.94742
B157: 2022-05-01 | C157: 55775.13056 | D157: -12716729.77 | E157: -12505.89977 | F157: 2851345.148 | G157: -9865384.618 | H157: 1003.95235 | I157: 11501.94742
B158: 2022-06-01 | C158: 55775.13056 | D158: -12660954.64 | E158: -12505.89977 | F158: 2838839.249 | G158: -9822115.388 | H158: 1003.95235 | I158: 11501.94742
B159: 2022-07-01 | C159: 55775.13056 | D159: -12605179.51 | E159: -12505.89977 | F159: 2826333.349 | G159: -9778846.157 | H159: 1003.95235 | I159: 11501.94742
B160: 2022-08-01 | C160: 55775.13056 | D160: -12549404.38 | E160: -12505.89977 | F160: 2813827.449 | G160: -9735576.926 | H160: 1003.95235 | I160: 11501.94742
B161: 2022-09-01 | C161: 55775.13056 | D161: -12493629.24 | E161: -12505.89977 | F161: 2801321.549 | G161: -9692307.695 | H161: 1003.95235 | I161: 11501.94742
B162: 2022-10-01 | C162: 55775.13056 | D162: -12437854.11 | E162: -12505.89977 | F162: 2788815.649 | G162: -9649038.464 | H162: 1003.95235 | I162: 11501.94742
B163: 2022-11-01 | C163: 55775.13056 | D163: -12382078.98 | E163: -12505.89977 | F163: 2776309.75 | G163: -9605769.234 | H163: 1003.95235 | I163: 11501.94742
B164: 2022-12-01 | C164: 55775.13056 | D164: -12326303.85 | E164: -12505.89977 | F164: 2763803.85 | G164: -9562500.003 | H164: 1003.95235 | I164: 11501.94742
B165: 2023-01-01 | C165: 55775.13056 | D165: -12270528.72 | E165: -12505.89977 | F165: 2751297.95 | G165: -9519230.772 | H165: 1003.95235 | I165: 11501.94742
B166: 2023-02-01 | C166: 55775.13056 | D166: -12214753.59 | E166: -12505.89977 | F166: 2738792.05 | G166: -9475961.541 | H166: 1003.95235 | I166: 11501.94742
B167: 2023-03-01 | C167: 55775.13056 | D167: -12158978.46 | E167: -12505.89977 | F167: 2726286.151 | G167: -9432692.311 | H167: 1003.95235 | I167: 11501.94742
B168: 2023-04-01 | C168: 55775.13056 | D168: -12103203.33 | E168: -12505.89977 | F168: 2713780.251 | G168: -9389423.08 | H168: 1003.95235 | I168: 11501.94742
B169: 2023-05-01 | C169: 55775.13056 | D169: -12047428.2 | E169: -12505.89977 | F169: 2701274.351 | G169: -9346153.849 | H169: 1003.95235 | I169: 11501.94742
B170: 2023-06-01 | C170: =-$F$15 -> 55775.13056 | D170: =+D169+C170 -> -11991653.07 | E170: -12505.89977 | F170: 2688768.451 | G170: -9302884.618 | H170: 1003.95235 | I170: 11501.94742
B171: 2023-07-01 | C171: 55775.13056 | D171: -11935877.94 | E171: -12505.89977 | F171: 2676262.551 | G171: -9259615.387 | H171: 1003.95235 | I171: 11501.94742
B172: 2023-08-01 | C172: 55775.13056 | D172: -11880102.81 | E172: -12505.89977 | F172: 2663756.652 | G172: -9216346.157 | H172: 1003.95235 | I172: 11501.94742
B173: 2023-09-01 | C173: 55775.13056 | D173: -11824327.68 | E173: -12505.89977 | F173: 2651250.752 | G173: -9173076.926 | H173: 1003.95235 | I173: 11501.94742
B174: 2023-10-01 | C174: 55775.13056 | D174: -11768552.55 | E174: -12505.89977 | F174: 2638744.852 | G174: -9129807.695 | H174: 1003.95235 | I174: 11501.94742
B175: 2023-11-01 | C175: 55775.13056 | D175: -11712777.42 | E175: -12505.89977 | F175: 2626238.952 | G175: -9086538.464 | H175: 1003.95235 | I175: 11501.94742
B176: 2023-12-01 | C176: 55775.13056 | D176: -11657002.29 | E176: -12505.89977 | F176: 2613733.053 | G176: -9043269.234 | H176: 1003.95235 | I176: 11501.94742
B177: 2024-01-01 | C177: 55775.13056 | D177: -11601227.16 | E177: -12505.89977 | F177: 2601227.153 | G177: -9000000.003 | H177: 1003.95235 | I177: 11501.94742
B178: 2024-02-01 | C178: 55775.13056 | D178: -11545452.03 | E178: -12505.89977 | F178: 2588721.253 | G178: -8956730.772 | H178: 1003.95235 | I178: 11501.94742
B179: 2024-03-01 | C179: 55775.13056 | D179: -11489676.89 | E179: -12505.89977 | F179: 2576215.353 | G179: -8913461.541 | H179: 1003.95235 | I179: 11501.94742
B180: 2024-04-01 | C180: 55775.13056 | D180: -11433901.76 | E180: -12505.89977 | F180: 2563709.453 | G180: -8870192.31 | H180: 1003.95235 | I180: 11501.94742
B181: 2024-05-01 | C181: 55775.13056 | D181: -11378126.63 | E181: -12505.89977 | F181: 2551203.554 | G181: -8826923.08 | H181: 1003.95235 | I181: 11501.94742
B182: 2024-06-01 | C182: 55775.13056 | D182: -11322351.5 | E182: -12505.89977 | F182: 2538697.654 | G182: -8783653.849 | H182: 1003.95235 | I182: 11501.94742
B183: 2024-07-01 | C183: 55775.13056 | D183: -11266576.37 | E183: -12505.89977 | F183: 2526191.754 | G183: -8740384.618 | H183: 1003.95235 | I183: 11501.94742
B184: 2024-08-01 | C184: 55775.13056 | D184: -11210801.24 | E184: -12505.89977 | F184: 2513685.854 | G184: -8697115.387 | H184: 1003.95235 | I184: 11501.94742
B185: 2024-09-01 | C185: 55775.13056 | D185: -11155026.11 | E185: -12505.89977 | F185: 2501179.955 | G185: -8653846.156 | H185: 1003.95235 | I185: 11501.94742
B186: 2024-10-01 | C186: 55775.13056 | D186: -11099250.98 | E186: -12505.89977 | F186: 2488674.055 | G186: -8610576.926 | H186: 1003.95235 | I186: 11501.94742
B187: 2024-11-01 | C187: 55775.13056 | D187: -11043475.85 | E187: -12505.89977 | F187: 2476168.155 | G187: -8567307.695 | H187: 1003.95235 | I187: 11501.94742
B188: 2024-12-01 | C188: 55775.13056 | D188: -10987700.72 | E188: -12505.89977 | F188: 2463662.255 | G188: -8524038.464 | H188: 1003.95235 | I188: 11501.94742
B189: 2025-01-01 | C189: 55775.13056 | D189: -10931925.59 | E189: -12505.89977 | F189: 2451156.356 | G189: -8480769.233 | H189: 1003.95235 | I189: 11501.94742
B190: 2025-02-01 | C190: 55775.13056 | D190: -10876150.46 | E190: -12505.89977 | F190: 2438650.456 | G190: -8437500.003 | H190: 1003.95235 | I190: 11501.94742
B191: 2025-03-01 | C191: 55775.13056 | D191: -10820375.33 | E191: -12505.89977 | F191: 2426144.556 | G191: -8394230.772 | H191: 1003.95235 | I191: 11501.94742
B192: 2025-04-01 | C192: 55775.13056 | D192: -10764600.2 | E192: -12505.89977 | F192: 2413638.656 | G192: -8350961.541 | H192: 1003.95235 | I192: 11501.94742
B193: 2025-05-01 | C193: 55775.13056 | D193: -10708825.07 | E193: -12505.89977 | F193: 2401132.756 | G193: -8307692.31 | H193: 1003.95235 | I193: 11501.94742
B194: 2025-06-01 | C194: 55775.13056 | D194: -10653049.94 | E194: -12505.89977 | F194: 2388626.857 | G194: -8264423.079 | H194: 1003.95235 | I194: 11501.94742
B195: 2025-07-01 | C195: 55775.13056 | D195: -10597274.81 | E195: -12505.89977 | F195: 2376120.957 | G195: -8221153.849 | H195: 1003.95235 | I195: 11501.94742
B196: 2025-08-01 | C196: 55775.13056 | D196: -10541499.68 | E196: -12505.89977 | F196: 2363615.057 | G196: -8177884.618 | H196: 1003.95235 | I196: 11501.94742
B197: 2025-09-01 | C197: 55775.13056 | D197: -10485724.54 | E197: -12505.89977 | F197: 2351109.157 | G197: -8134615.387 | H197: 1003.95235 | I197: 11501.94742
B198: 2025-10-01 | C198: 55775.13056 | D198: -10429949.41 | E198: -12505.89977 | F198: 2338603.258 | G198: -8091346.156 | H198: 1003.95235 | I198: 11501.94742
B199: 2025-11-01 | C199: 55775.13056 | D199: -10374174.28 | E199: -12505.89977 | F199: 2326097.358 | G199: -8048076.926 | H199: 1003.95235 | I199: 11501.94742
B200: 2025-12-01 | C200: 55775.13056 | D200: -10318399.15 | E200: -12505.89977 | F200: 2313591.458 | G200: -8004807.695 | H200: 1003.95235 | I200: 11501.94742
B201: 2026-01-01 | C201: 55775.13056 | D201: -10262624.02 | E201: -12505.89977 | F201: 2301085.558 | G201: -7961538.464 | H201: 1003.95235 | I201: 11501.94742
B202: 2026-02-01 | C202: 55775.13056 | D202: -10206848.89 | E202: -12505.89977 | F202: 2288579.658 | G202: -7918269.233 | H202: 1003.95235 | I202: 11501.94742
B203: 2026-03-01 | C203: 55775.13056 | D203: -10151073.76 | E203: -12505.89977 | F203: 2276073.759 | G203: -7875000.002 | H203: 1003.95235 | I203: 11501.94742
B204: 2026-04-01 | C204: 55775.13056 | D204: -10095298.63 | E204: -12505.89977 | F204: 2263567.859 | G204: -7831730.772 | H204: 1003.95235 | I204: 11501.94742
... 181 more rows

Sheet 20107
A1: Amortization Schedule
A2: GL# 010.0000.2150.20107.002000 | F2: 10 years | G2: 10 years | H2: 10 years
B4: (Gain) Loss | C4: Years | D4: Annual Amort | F4: Jan 2013-Dec-2023 | G4: Jan 2023-Dec-2033 | H4: Jan 2033-Dec-2042 | I4: Jan 2013-Dec-2043
A5: Deutsche Bank AG | B5: 17703796.05 | C5: 30 | D5: =B5/C5 -> 590126.535 | F5: =D5*10 -> 5901265.35 | G5: =D5*10 -> 5901265.35 | H5: =D5*10 -> 5901265.35 | I5: =SUM(F5:H5) -> 17703796.05
A6: Goldman Sachs | B6: 24403396 | C6: 30 | D6: =B6/C6 -> 813446.5333 | F6: =D6*10 -> 8134465.333 | G6: =D6*10 -> 8134465.333 | H6: =D6*10 -> 8134465.333 | I6: =SUM(F6:H6) -> 24403396
A7: Bank of Tokyo - Mitsubishi UFJ | B7: 24518512 | C7: 30 | D7: =B7/C7 -> 817283.7333 | F7: =D7*10 -> 8172837.333 | G7: =D7*10 -> 8172837.333 | H7: =D7*10 -> 8172837.333 | I7: =SUM(F7:H7) -> 24518512
A9: Total | B9: =SUM(B5:B7) -> 66625704.05 | D9: =SUM(D5:D7) -> 2220856.802 | F9: =SUM(F5:F8) -> 22208568.02 | G9: =SUM(G5:G8) -> 22208568.02 | H9: =SUM(H5:H8) -> 22208568.02 | I9: =SUM(F9:H9) -> 66625704.05
D11: # months to Amort | F11: =10*12 -> 120 | G11: =10*12 -> 120 | H11: =10*12 -> 120 | I11: =SUM(F11:H11) -> 360
F13: DR (CR) | G13: DR (CR) | H13: DR (CR)
C14: LT Int Exp | D14: Monthly Amort | F14: =F9/F11 -> 185071.4001 | G14: =G9/G11 -> 185071.4001 | H14: =H9/H11 -> 185071.4001
C15: 2830.xxxxx | D15: Def State Tax | E15: 0.023 | F15: =F14*E15 -> 4256.642203 | G15: =G14*E15 -> 4256.642203 | H15: =H14*E15 -> 4256.642203 | I15: =H15*360 -> 1532391.193 | L15: new rates as of 06/30/20
C16: 2830.xxxxx | D16: Def Fed Tax | E16: 0.342 | F16: =F14*E16 -> 63294.41885 | G16: =G14*E16 -> 63294.41885 | H16: =H14*E16 -> 63294.41885 | I16: =H16*360 -> 22785990.79 | L16: Def State Tax | M16: 0.018
E17: 0.20517 | L17: Def Fed Tax | M17: 0.20622
M18: =SUM(M16:M17) -> 0.22422
A19: T-Lock Settlement | G19: Net OCI | H19: Def State Tax | I19: Def Fed Tax
H20: =E15 -> 0.023 | I20: =E16 -> 0.342 | J20: =H20+I20 -> 0.365 | L20: 0.20517 | M20: =H20+L20 -> 0.22817
C21: 2150.20107 | D21: 2150.20107 | E21: 2150.20107 | F21: 2150.20107 | G21: 2150.20107 | H21: 2830.28206 | I21: 2830.28201
C22: Amort | D22: T-Lock Settlement | E22: Def Tax Adj | F22: Def Taxes | G22: Net of Tax | H22: Adjustment | I22: Adjustment
C23: DR (CR) | D23: DR (CR) | E23: DR (CR) | F23: DR (CR) | H23: DR (CR) | I23: DR (CR)
A24: Balance at June 30, 2011 | B24: 2013-01-01 | D24: =B9 -> 66625704.05 | F24: =-D24*M18 -> -14938815.36 | G24: =SUM(D24:F24) -> 51686888.69 | H24: 0 | I24: 0
B25: 2013-02-01 | C25: =-$F$14 -> -185071.4001 | D25: =D24+C25 -> 66440632.65 | E25: =-C25*$M$18 -> 41496.70934 | F25: =F24+E25 -> -14897318.65 | G25: =G24+C25+E25 -> 51543314 | H25: =$M$16*C25 -> -3331.285202 | I25: =$M$17*C25 -> -38165.42414
B26: 2013-03-01 | C26: =-$F$14 -> -185071.4001 | D26: =D25+C26 -> 66255561.25 | E26: =-C26*$M$18 -> 41496.70934 | F26: =F25+E26 -> -14855821.94 | G26: =G25+C26+E26 -> 51399739.31 | H26: =$M$16*C26 -> -3331.285202 | I26: =$M$17*C26 -> -38165.42414
B27: 2013-04-01 | C27: =-$F$14 -> -185071.4001 | D27: 66070489.85 | E27: 41496.70934 | F27: -14814325.23 | G27: 51256164.62 | H27: -3331.285202 | I27: -38165.42414
B28: 2013-05-01 | C28: -185071.4001 | D28: 65885418.45 | E28: 41496.70934 | F28: -14772828.52 | G28: 51112589.92 | H28: -3331.285202 | I28: -38165.42414
B29: 2013-06-01 | C29: -185071.4001 | D29: 65700347.05 | E29: 41496.70934 | F29: -14731331.82 | G29: 50969015.23 | H29: -3331.285202 | I29: -38165.42414
B30: 2013-07-01 | C30: -185071.4001 | D30: 65515275.65 | E30: 41496.70934 | F30: -14689835.11 | G30: 50825440.54 | H30: -3331.285202 | I30: -38165.42414
B31: 2013-08-01 | C31: -185071.4001 | D31: 65330204.25 | E31: 41496.70934 | F31: -14648338.4 | G31: 50681865.85 | H31: -3331.285202 | I31: -38165.42414
B32: 2013-09-01 | C32: -185071.4001 | D32: 65145132.85 | E32: 41496.70934 | F32: -14606841.69 | G32: 50538291.16 | H32: -3331.285202 | I32: -38165.42414
B33: 2013-10-01 | C33: -185071.4001 | D33: 64960061.45 | E33: 41496.70934 | F33: -14565344.98 | G33: 50394716.47 | H33: -3331.285202 | I33: -38165.42414
B34: 2013-11-01 | C34: -185071.4001 | D34: 64774990.05 | E34: 41496.70934 | F34: -14523848.27 | G34: 50251141.78 | H34: -3331.285202 | I34: -38165.42414
B35: 2013-12-01 | C35: -185071.4001 | D35: 64589918.65 | E35: 41496.70934 | F35: -14482351.56 | G35: 50107567.09 | H35: -3331.285202 | I35: -38165.42414
B36: 2014-01-01 | C36: -185071.4001 | D36: 64404847.25 | E36: 41496.70934 | F36: -14440854.85 | G36: 49963992.4 | H36: -3331.285202 | I36: -38165.42414
B37: 2014-02-01 | C37: -185071.4001 | D37: 64219775.85 | E37: 41496.70934 | F37: -14399358.14 | G37: 49820417.71 | H37: -3331.285202 | I37: -38165.42414
B38: 2014-03-01 | C38: -185071.4001 | D38: 64034704.45 | E38: 41496.70934 | F38: -14357861.43 | G38: 49676843.02 | H38: -3331.285202 | I38: -38165.42414
B39: 2014-04-01 | C39: -185071.4001 | D39: 63849633.05 | E39: 41496.70934 | F39: -14316364.72 | G39: 49533268.33 | H39: -3331.285202 | I39: -38165.42414
B40: 2014-05-01 | C40: -185071.4001 | D40: 63664561.65 | E40: 41496.70934 | F40: -14274868.01 | G40: 49389693.64 | H40: -3331.285202 | I40: -38165.42414
B41: 2014-06-01 | C41: -185071.4001 | D41: 63479490.25 | E41: 41496.70934 | F41: -14233371.3 | G41: 49246118.94 | H41: -3331.285202 | I41: -38165.42414
B42: 2014-07-01 | C42: -185071.4001 | D42: 63294418.85 | E42: 41496.70934 | F42: -14191874.59 | G42: 49102544.25 | H42: -3331.285202 | I42: -38165.42414
B43: 2014-08-01 | C43: -185071.4001 | D43: 63109347.45 | E43: 41496.70934 | F43: -14150377.88 | G43: 48958969.56 | H43: -3331.285202 | I43: -38165.42414
B44: 2014-09-01 | C44: -185071.4001 | D44: 62924276.05 | E44: 41496.70934 | F44: -14108881.18 | G44: 48815394.87 | H44: -3331.285202 | I44: -38165.42414
B45: 2014-10-01 | C45: -185071.4001 | D45: 62739204.65 | E45: 41496.70934 | F45: -14067384.47 | G45: 48671820.18 | H45: -3331.285202 | I45: -38165.42414
B46: 2014-11-01 | C46: -185071.4001 | D46: 62554133.25 | E46: 41496.70934 | F46: -14025887.76 | G46: 48528245.49 | H46: -3331.285202 | I46: -38165.42414
B47: 2014-12-01 | C47: -185071.4001 | D47: 62369061.85 | E47: 41496.70934 | F47: -13984391.05 | G47: 48384670.8 | H47: -3331.285202 | I47: -38165.42414
B48: 2015-01-01 | C48: -185071.4001 | D48: 62183990.45 | E48: 41496.70934 | F48: -13942894.34 | G48: 48241096.11 | H48: -3331.285202 | I48: -38165.42414
B49: 2015-02-01 | C49: -185071.4001 | D49: 61998919.05 | E49: 41496.70934 | F49: -13901397.63 | G49: 48097521.42 | H49: -3331.285202 | I49: -38165.42414
B50: 2015-03-01 | C50: -185071.4001 | D50: 61813847.65 | E50: 41496.70934 | F50: -13859900.92 | G50: 47953946.73 | H50: -3331.285202 | I50: -38165.42414
B51: 2015-04-01 | C51: -185071.4001 | D51: 61628776.25 | E51: 41496.70934 | F51: -13818404.21 | G51: 47810372.04 | H51: -3331.285202 | I51: -38165.42414
B52: 2015-05-01 | C52: -185071.4001 | D52: 61443704.85 | E52: 41496.70934 | F52: -13776907.5 | G52: 47666797.35 | H52: -3331.285202 | I52: -38165.42414
B53: 2015-06-01 | C53: -185071.4001 | D53: 61258633.45 | E53: 41496.70934 | F53: -13735410.79 | G53: 47523222.65 | H53: -3331.285202 | I53: -38165.42414
B54: 2015-07-01 | C54: -185071.4001 | D54: 61073562.05 | E54: 41496.70934 | F54: -13693914.08 | G54: 47379647.96 | H54: -3331.285202 | I54: -38165.42414
B55: 2015-08-01 | C55: -185071.4001 | D55: 60888490.65 | E55: 41496.70934 | F55: -13652417.37 | G55: 47236073.27 | H55: -3331.285202 | I55: -38165.42414
B56: 2015-09-01 | C56: -185071.4001 | D56: 60703419.25 | E56: 41496.70934 | F56: -13610920.66 | G56: 47092498.58 | H56: -3331.285202 | I56: -38165.42414
B57: 2015-10-01 | C57: -185071.4001 | D57: 60518347.85 | E57: 41496.70934 | F57: -13569423.95 | G57: 46948923.89 | H57: -3331.285202 | I57: -38165.42414
B58: 2015-11-01 | C58: -185071.4001 | D58: 60333276.45 | E58: 41496.70934 | F58: -13527927.24 | G58: 46805349.2 | H58: -3331.285202 | I58: -38165.42414
B59: 2015-12-01 | C59: -185071.4001 | D59: 60148205.05 | E59: 41496.70934 | F59: -13486430.54 | G59: 46661774.51 | H59: -3331.285202 | I59: -38165.42414
B60: 2016-01-01 | C60: -185071.4001 | D60: 59963133.64 | E60: 41496.70934 | F60: -13444933.83 | G60: 46518199.82 | H60: -3331.285202 | I60: -38165.42414
B61: 2016-02-01 | C61: -185071.4001 | D61: 59778062.24 | E61: 41496.70934 | F61: -13403437.12 | G61: 46374625.13 | H61: -3331.285202 | I61: -38165.42414
B62: 2016-03-01 | C62: -185071.4001 | D62: 59592990.84 | E62: 41496.70934 | F62: -13361940.41 | G62: 46231050.44 | H62: -3331.285202 | I62: -38165.42414
B63: 2016-04-01 | C63: -185071.4001 | D63: 59407919.44 | E63: 41496.70934 | F63: -13320443.7 | G63: 46087475.75 | H63: -3331.285202 | I63: -38165.42414
B64: 2016-05-01 | C64: -185071.4001 | D64: 59222848.04 | E64: 41496.70934 | F64: -13278946.99 | G64: 45943901.06 | H64: -3331.285202 | I64: -38165.42414
B65: 2016-06-01 | C65: -185071.4001 | D65: 59037776.64 | E65: 41496.70934 | F65: -13237450.28 | G65: 45800326.37 | H65: -3331.285202 | I65: -38165.42414
B66: 2016-07-01 | C66: -185071.4001 | D66: 58852705.24 | E66: 41496.70934 | F66: -13195953.57 | G66: 45656751.67 | H66: -3331.285202 | I66: -38165.42414
B67: 2016-08-01 | C67: -185071.4001 | D67: 58667633.84 | E67: 41496.70934 | F67: -13154456.86 | G67: 45513176.98 | H67: -3331.285202 | I67: -38165.42414
B68: 2016-09-01 | C68: -185071.4001 | D68: 58482562.44 | E68: 41496.70934 | F68: -13112960.15 | G68: 45369602.29 | H68: -3331.285202 | I68: -38165.42414
B69: 2016-10-01 | C69: -185071.4001 | D69: 58297491.04 | E69: 41496.70934 | F69: -13071463.44 | G69: 45226027.6 | H69: -3331.285202 | I69: -38165.42414
B70: 2016-11-01 | C70: -185071.4001 | D70: 58112419.64 | E70: 41496.70934 | F70: -13029966.73 | G70: 45082452.91 | H70: -3331.285202 | I70: -38165.42414
B71: 2016-12-01 | C71: -185071.4001 | D71: 57927348.24 | E71: 41496.70934 | F71: -12988470.02 | G71: 44938878.22 | H71: -3331.285202 | I71: -38165.42414
B72: 2017-01-01 | C72: -185071.4001 | D72: 57742276.84 | E72: 41496.70934 | F72: -12946973.31 | G72: 44795303.53 | H72: -3331.285202 | I72: -38165.42414
B73: 2017-02-01 | C73: -185071.4001 | D73: 57557205.44 | E73: 41496.70934 | F73: -12905476.6 | G73: 44651728.84 | H73: -3331.285202 | I73: -38165.42414
B74: 2017-03-01 | C74: -185071.4001 | D74: 57372134.04 | E74: 41496.70934 | F74: -12863979.9 | G74: 44508154.15 | H74: -3331.285202 | I74: -38165.42414
B75: 2017-04-01 | C75: -185071.4001 | D75: 57187062.64 | E75: 41496.70934 | F75: -12822483.19 | G75: 44364579.46 | H75: -3331.285202 | I75: -38165.42414
B76: 2017-05-01 | C76: -185071.4001 | D76: 57001991.24 | E76: 41496.70934 | F76: -12780986.48 | G76: 44221004.77 | H76: -3331.285202 | I76: -38165.42414
B77: 2017-06-01 | C77: -185071.4001 | D77: 56816919.84 | E77: 41496.70934 | F77: -12739489.77 | G77: 44077430.08 | H77: -3331.285202 | I77: -38165.42414
B78: 2017-07-01 | C78: -185071.4001 | D78: 56631848.44 | E78: 41496.70934 | F78: -12697993.06 | G78: 43933855.38 | H78: -3331.285202 | I78: -38165.42414
B79: 2017-08-01 | C79: -185071.4001 | D79: 56446777.04 | E79: 41496.70934 | F79: -12656496.35 | G79: 43790280.69 | H79: -3331.285202 | I79: -38165.42414
B80: 2017-09-01 | C80: -185071.4001 | D80: 56261705.64 | E80: 41496.70934 | F80: -12614999.64 | G80: 43646706 | H80: -3331.285202 | I80: -38165.42414
B81: 2017-10-01 | C81: -185071.4001 | D81: 56076634.24 | E81: 41496.70934 | F81: -12573502.93 | G81: 43503131.31 | H81: -3331.285202 | I81: -38165.42414
B82: 2017-11-01 | C82: -185071.4001 | D82: 55891562.84 | E82: 41496.70934 | F82: -12532006.22 | G82: 43359556.62 | H82: -3331.285202 | I82: -38165.42414
B83: 2017-12-01 | C83: -185071.4001 | D83: 55706491.44 | E83: 41496.70934 | F83: -12490509.51 | G83: 43215981.93 | H83: -3331.285202 | I83: -38165.42414
B84: 2018-01-01 | C84: =-$F$14 -> -185071.4001 | D84: =D83+C84 -> 55521420.04 | E84: 41496.70934 | F84: =F83+E84 -> -12449012.8 | G84: =G83+C84+E84 -> 43072407.24 | H84: -3331.285202 | I84: -38165.42414
B85: 2018-02-01 | C85: =-$F$14 -> -185071.4001 | D85: =D84+C85 -> 55336348.64 | E85: 41496.70934 | F85: =F84+E85 -> -12407516.09 | G85: =G84+C85+E85 -> 42928832.55 | H85: -3331.285202 | I85: -38165.42414
B86: 2018-03-01 | C86: -185071.4001 | D86: 55151277.24 | E86: 41496.70934 | F86: -12366019.38 | G86: 42785257.86 | H86: -3331.285202 | I86: -38165.42414
B87: 2018-04-01 | C87: -185071.4001 | D87: 54966205.84 | E87: 41496.70934 | F87: -12324522.67 | G87: 42641683.17 | H87: -3331.285202 | I87: -38165.42414
B88: 2018-05-01 | C88: -185071.4001 | D88: 54781134.44 | E88: 41496.70934 | F88: -12283025.96 | G88: 42498108.48 | H88: -3331.285202 | I88: -38165.42414
B89: 2018-06-01 | C89: -185071.4001 | D89: 54596063.04 | E89: 41496.70934 | F89: -12241529.26 | G89: 42354533.79 | H89: -3331.285202 | I89: -38165.42414
B90: 2018-07-01 | C90: -185071.4001 | D90: 54410991.64 | E90: =-C90*$M$18 -> 41496.70934 | F90: -12200032.55 | G90: 42210959.1 | H90: =$M$16*C90 -> -3331.285202 | I90: =$M$17*C90 -> -38165.42414
B91: 2018-08-01 | C91: -185071.4001 | D91: 54225920.24 | E91: 41496.70934 | F91: -12158535.84 | G91: 42067384.4 | H91: -3331.285202 | I91: -38165.42414
B92: 2018-09-01 | C92: -185071.4001 | D92: 54040848.84 | E92: 41496.70934 | F92: -12117039.13 | G92: 41923809.71 | H92: -3331.285202 | I92: -38165.42414
B93: 2018-10-01 | C93: -185071.4001 | D93: 53855777.44 | E93: 41496.70934 | F93: -12075542.42 | G93: 41780235.02 | H93: -3331.285202 | I93: -38165.42414
B94: 2018-11-01 | C94: -185071.4001 | D94: 53670706.04 | E94: 41496.70934 | F94: -12034045.71 | G94: 41636660.33 | H94: -3331.285202 | I94: -38165.42414
B95: 2018-12-01 | C95: -185071.4001 | D95: 53485634.64 | E95: 41496.70934 | F95: -11992549 | G95: 41493085.64 | H95: -3331.285202 | I95: -38165.42414
B96: 2019-01-01 | C96: -185071.4001 | D96: 53300563.24 | E96: 41496.70934 | F96: -11951052.29 | G96: 41349510.95 | H96: -3331.285202 | I96: -38165.42414
B97: 2019-02-01 | C97: -185071.4001 | D97: 53115491.84 | E97: 41496.70934 | F97: -11909555.58 | G97: 41205936.26 | H97: -3331.285202 | I97: -38165.42414
B98: 2019-03-01 | C98: -185071.4001 | D98: 52930420.44 | E98: 41496.70934 | F98: -11868058.87 | G98: 41062361.57 | H98: -3331.285202 | I98: -38165.42414
B99: 2019-04-01 | C99: -185071.4001 | D99: 52745349.04 | E99: 41496.70934 | F99: -11826562.16 | G99: 40918786.88 | H99: -3331.285202 | I99: -38165.42414
B100: 2019-05-01 | C100: -185071.4001 | D100: 52560277.64 | E100: 41496.70934 | F100: -11785065.45 | G100: 40775212.19 | H100: -3331.285202 | I100: -38165.42414
B101: 2019-06-01 | C101: -185071.4001 | D101: 52375206.24 | E101: 41496.70934 | F101: -11743568.74 | G101: 40631637.5 | H101: -3331.285202 | I101: -38165.42414
B102: 2019-07-01 | C102: -185071.4001 | D102: 52190134.84 | E102: 41496.70934 | F102: -11702072.03 | G102: 40488062.81 | H102: -3331.285202 | I102: -38165.42414
B103: 2019-08-01 | C103: -185071.4001 | D103: 52005063.44 | E103: 41496.70934 | F103: -11660575.32 | G103: 40344488.11 | H103: -3331.285202 | I103: -38165.42414
B104: 2019-09-01 | C104: -185071.4001 | D104: 51819992.04 | E104: 41496.70934 | F104: -11619078.61 | G104: 40200913.42 | H104: -3331.285202 | I104: -38165.42414
B105: 2019-10-01 | C105: -185071.4001 | D105: 51634920.64 | E105: 41496.70934 | F105: -11577581.91 | G105: 40057338.73 | H105: -3331.285202 | I105: -38165.42414
B106: 2019-11-01 | C106: -185071.4001 | D106: 51449849.24 | E106: 41496.70934 | F106: -11536085.2 | G106: 39913764.04 | H106: -3331.285202 | I106: -38165.42414
B107: 2019-12-01 | C107: -185071.4001 | D107: 51264777.84 | E107: 41496.70934 | F107: -11494588.49 | G107: 39770189.35 | H107: -3331.285202 | I107: -38165.42414
B108: 2020-01-01 | C108: -185071.4001 | D108: 51079706.44 | E108: 41496.70934 | F108: -11453091.78 | G108: 39626614.66 | H108: -3331.285202 | I108: -38165.42414
B109: 2020-02-01 | C109: -185071.4001 | D109: 50894635.04 | E109: 41496.70934 | F109: -11411595.07 | G109: 39483039.97 | H109: -3331.285202 | I109: -38165.42414
B110: 2020-03-01 | C110: -185071.4001 | D110: 50709563.64 | E110: 41496.70934 | F110: -11370098.36 | G110: 39339465.28 | H110: -3331.285202 | I110: -38165.42414
B111: 2020-04-01 | C111: -185071.4001 | D111: 50524492.24 | E111: 41496.70934 | F111: -11328601.65 | G111: 39195890.59 | H111: -3331.285202 | I111: -38165.42414
B112: 2020-05-01 | C112: -185071.4001 | D112: 50339420.84 | E112: 41496.70934 | F112: -11287104.94 | G112: 39052315.9 | H112: -3331.285202 | I112: -38165.42414
B113: 2020-06-01 | C113: -185071.4001 | D113: 50154349.44 | E113: 41496.70934 | F113: -11245608.23 | G113: 38908741.21 | H113: -3331.285202 | I113: -38165.42414
B114: 2020-07-01 | C114: -185071.4001 | D114: 49969278.04 | E114: 41496.70934 | F114: -11204111.52 | G114: 38765166.52 | H114: -3331.285202 | I114: -38165.42414
B115: 2020-08-01 | C115: -185071.4001 | D115: 49784206.64 | E115: 41496.70934 | F115: -11162614.81 | G115: 38621591.83 | H115: -3331.285202 | I115: -38165.42414
B116: 2020-09-01 | C116: -185071.4001 | D116: 49599135.24 | E116: 41496.70934 | F116: -11121118.1 | G116: 38478017.13 | H116: -3331.285202 | I116: -38165.42414
B117: 2020-10-01 | C117: -185071.4001 | D117: 49414063.84 | E117: 41496.70934 | F117: -11079621.39 | G117: 38334442.44 | H117: -3331.285202 | I117: -38165.42414
B118: 2020-11-01 | C118: -185071.4001 | D118: 49228992.44 | E118: 41496.70934 | F118: -11038124.68 | G118: 38190867.75 | H118: -3331.285202 | I118: -38165.42414
B119: 2020-12-01 | C119: -185071.4001 | D119: 49043921.04 | E119: 41496.70934 | F119: -10996627.97 | G119: 38047293.06 | H119: -3331.285202 | I119: -38165.42414
B120: 2021-01-01 | C120: -185071.4001 | D120: 48858849.64 | E120: 41496.70934 | F120: -10955131.27 | G120: 37903718.37 | H120: -3331.285202 | I120: -38165.42414
B121: 2021-02-01 | C121: -185071.4001 | D121: 48673778.24 | E121: 41496.70934 | F121: -10913634.56 | G121: 37760143.68 | H121: -3331.285202 | I121: -38165.42414
B122: 2021-03-01 | C122: -185071.4001 | D122: 48488706.84 | E122: 41496.70934 | F122: -10872137.85 | G122: 37616568.99 | H122: -3331.285202 | I122: -38165.42414
B123: 2021-04-01 | C123: -185071.4001 | D123: 48303635.44 | E123: 41496.70934 | F123: -10830641.14 | G123: 37472994.3 | H123: -3331.285202 | I123: -38165.42414
B124: 2021-05-01 | C124: -185071.4001 | D124: 48118564.04 | E124: 41496.70934 | F124: -10789144.43 | G124: 37329419.61 | H124: -3331.285202 | I124: -38165.42414
B125: 2021-06-01 | C125: -185071.4001 | D125: 47933492.64 | E125: 41496.70934 | F125: -10747647.72 | G125: 37185844.92 | H125: -3331.285202 | I125: -38165.42414
B126: 2021-07-01 | C126: -185071.4001 | D126: 47748421.24 | E126: 41496.70934 | F126: -10706151.01 | G126: 37042270.23 | H126: -3331.285202 | I126: -38165.42414
B127: 2021-08-01 | C127: -185071.4001 | D127: 47563349.84 | E127: 41496.70934 | F127: -10664654.3 | G127: 36898695.54 | H127: -3331.285202 | I127: -38165.42414
B128: 2021-09-01 | C128: -185071.4001 | D128: 47378278.44 | E128: 41496.70934 | F128: -10623157.59 | G128: 36755120.84 | H128: -3331.285202 | I128: -38165.42414
B129: 2021-10-01 | C129: -185071.4001 | D129: 47193207.04 | E129: 41496.70934 | F129: -10581660.88 | G129: 36611546.15 | H129: -3331.285202 | I129: -38165.42414
B130: 2021-11-01 | C130: -185071.4001 | D130: 47008135.64 | E130: 41496.70934 | F130: -10540164.17 | G130: 36467971.46 | H130: -3331.285202 | I130: -38165.42414
B131: 2021-12-01 | C131: -185071.4001 | D131: 46823064.24 | E131: 41496.70934 | F131: -10498667.46 | G131: 36324396.77 | H131: -3331.285202 | I131: -38165.42414
B132: 2022-01-01 | C132: -185071.4001 | D132: 46637992.83 | E132: 41496.70934 | F132: -10457170.75 | G132: 36180822.08 | H132: -3331.285202 | I132: -38165.42414
B133: 2022-02-01 | C133: -185071.4001 | D133: 46452921.43 | E133: 41496.70934 | F133: -10415674.04 | G133: 36037247.39 | H133: -3331.285202 | I133: -38165.42414
B134: 2022-03-01 | C134: -185071.4001 | D134: 46267850.03 | E134: 41496.70934 | F134: -10374177.33 | G134: 35893672.7 | H134: -3331.285202 | I134: -38165.42414
B135: 2022-04-01 | C135: -185071.4001 | D135: 46082778.63 | E135: 41496.70934 | F135: -10332680.63 | G135: 35750098.01 | H135: -3331.285202 | I135: -38165.42414
B136: 2022-05-01 | C136: -185071.4001 | D136: 45897707.23 | E136: 41496.70934 | F136: -10291183.92 | G136: 35606523.32 | H136: -3331.285202 | I136: -38165.42414
B137: 2022-06-01 | C137: -185071.4001 | D137: 45712635.83 | E137: 41496.70934 | F137: -10249687.21 | G137: 35462948.63 | H137: -3331.285202 | I137: -38165.42414
B138: 2022-07-01 | C138: -185071.4001 | D138: 45527564.43 | E138: 41496.70934 | F138: -10208190.5 | G138: 35319373.94 | H138: -3331.285202 | I138: -38165.42414
B139: 2022-08-01 | C139: -185071.4001 | D139: 45342493.03 | E139: 41496.70934 | F139: -10166693.79 | G139: 35175799.25 | H139: -3331.285202 | I139: -38165.42414
B140: 2022-09-01 | C140: -185071.4001 | D140: 45157421.63 | E140: 41496.70934 | F140: -10125197.08 | G140: 35032224.56 | H140: -3331.285202 | I140: -38165.42414
B141: 2022-10-01 | C141: -185071.4001 | D141: 44972350.23 | E141: 41496.70934 | F141: -10083700.37 | G141: 34888649.86 | H141: -3331.285202 | I141: -38165.42414
B142: 2022-11-01 | C142: -185071.4001 | D142: 44787278.83 | E142: 41496.70934 | F142: -10042203.66 | G142: 34745075.17 | H142: -3331.285202 | I142: -38165.42414
B143: 2022-12-01 | C143: -185071.4001 | D143: 44602207.43 | E143: 41496.70934 | F143: -10000706.95 | G143: 34601500.48 | H143: -3331.285202 | I143: -38165.42414
B144: 2023-01-01 | C144: -185071.4001 | D144: 44417136.03 | E144: 41496.70934 | F144: -9959210.241 | G144: 34457925.79 | H144: -3331.285202 | I144: -38165.42414
B145: 2023-02-01 | C145: -185071.4001 | D145: 44232064.63 | E145: 41496.70934 | F145: -9917713.532 | G145: 34314351.1 | H145: -3331.285202 | I145: -38165.42414
B146: 2023-03-01 | C146: -185071.4001 | D146: 44046993.23 | E146: 41496.70934 | F146: -9876216.823 | G146: 34170776.41 | H146: -3331.285202 | I146: -38165.42414
B147: 2023-04-01 | C147: -185071.4001 | D147: 43861921.83 | E147: 41496.70934 | F147: -9834720.113 | G147: 34027201.72 | H147: -3331.285202 | I147: -38165.42414
B148: 2023-05-01 | C148: -185071.4001 | D148: 43676850.43 | E148: 41496.70934 | F148: -9793223.404 | G148: 33883627.03 | H148: -3331.285202 | I148: -38165.42414
B149: 2023-06-01 | C149: =-$F$14 -> -185071.4001 | D149: =D148+C149 -> 43491779.03 | E149: 41496.70934 | F149: =F148+E149 -> -9751726.695 | G149: =G148+C149+E149 -> 33740052.34 | H149: -3331.285202 | I149: -38165.42414
B150: 2023-07-01 | C150: -185071.4001 | D150: 43306707.63 | E150: 41496.70934 | F150: -9710229.985 | G150: 33596477.65 | H150: -3331.285202 | I150: -38165.42414
B151: 2023-08-01 | C151: -185071.4001 | D151: 43121636.23 | E151: 41496.70934 | F151: -9668733.276 | G151: 33452902.96 | H151: -3331.285202 | I151: -38165.42414
B152: 2023-09-01 | C152: -185071.4001 | D152: 42936564.83 | E152: 41496.70934 | F152: -9627236.567 | G152: 33309328.27 | H152: -3331.285202 | I152: -38165.42414
B153: 2023-10-01 | C153: -185071.4001 | D153: 42751493.43 | E153: 41496.70934 | F153: -9585739.857 | G153: 33165753.57 | H153: -3331.285202 | I153: -38165.42414
B154: 2023-11-01 | C154: -185071.4001 | D154: 42566422.03 | E154: =-C154*$M$18 -> 41496.70934 | F154: -9544243.148 | G154: 33022178.88 | H154: =$M$16*C154 -> -3331.285202 | I154: =$M$17*C154 -> -38165.42414
B155: 2023-12-01 | C155: -185071.4001 | D155: 42381350.63 | E155: 41496.70934 | F155: -9502746.439 | G155: 32878604.19 | H155: -3331.285202 | I155: -38165.42414
B156: 2024-01-01 | C156: -185071.4001 | D156: 42196279.23 | E156: 41496.70934 | F156: -9461249.729 | G156: 32735029.5 | H156: -3331.285202 | I156: -38165.42414
B157: 2024-02-01 | C157: -185071.4001 | D157: 42011207.83 | E157: 41496.70934 | F157: -9419753.02 | G157: 32591454.81 | H157: -3331.285202 | I157: -38165.42414
B158: 2024-03-01 | C158: -185071.4001 | D158: 41826136.43 | E158: 41496.70934 | F158: -9378256.311 | G158: 32447880.12 | H158: -3331.285202 | I158: -38165.42414
B159: 2024-04-01 | C159: -185071.4001 | D159: 41641065.03 | E159: 41496.70934 | F159: -9336759.601 | G159: 32304305.43 | H159: -3331.285202 | I159: -38165.42414
B160: 2024-05-01 | C160: -185071.4001 | D160: 41455993.63 | E160: 41496.70934 | F160: -9295262.892 | G160: 32160730.74 | H160: -3331.285202 | I160: -38165.42414
B161: 2024-06-01 | C161: -185071.4001 | D161: 41270922.23 | E161: 41496.70934 | F161: -9253766.183 | G161: 32017156.05 | H161: -3331.285202 | I161: -38165.42414
B162: 2024-07-01 | C162: -185071.4001 | D162: 41085850.83 | E162: 41496.70934 | F162: -9212269.473 | G162: 31873581.36 | H162: -3331.285202 | I162: -38165.42414
B163: 2024-08-01 | C163: -185071.4001 | D163: 40900779.43 | E163: 41496.70934 | F163: -9170772.764 | G163: 31730006.67 | H163: -3331.285202 | I163: -38165.42414
B164: 2024-09-01 | C164: -185071.4001 | D164: 40715708.03 | E164: 41496.70934 | F164: -9129276.055 | G164: 31586431.98 | H164: -3331.285202 | I164: -38165.42414
B165: 2024-10-01 | C165: -185071.4001 | D165: 40530636.63 | E165: 41496.70934 | F165: -9087779.345 | G165: 31442857.29 | H165: -3331.285202 | I165: -38165.42414
B166: 2024-11-01 | C166: -185071.4001 | D166: 40345565.23 | E166: 41496.70934 | F166: -9046282.636 | G166: 31299282.59 | H166: -3331.285202 | I166: -38165.42414
B167: 2024-12-01 | C167: -185071.4001 | D167: 40160493.83 | E167: 41496.70934 | F167: -9004785.927 | G167: 31155707.9 | H167: -3331.285202 | I167: -38165.42414
B168: 2025-01-01 | C168: -185071.4001 | D168: 39975422.43 | E168: 41496.70934 | F168: -8963289.217 | G168: 31012133.21 | H168: -3331.285202 | I168: -38165.42414
B169: 2025-02-01 | C169: -185071.4001 | D169: 39790351.03 | E169: 41496.70934 | F169: -8921792.508 | G169: 30868558.52 | H169: -3331.285202 | I169: -38165.42414
B170: 2025-03-01 | C170: -185071.4001 | D170: 39605279.63 | E170: 41496.70934 | F170: -8880295.799 | G170: 30724983.83 | H170: -3331.285202 | I170: -38165.42414
B171: 2025-04-01 | C171: -185071.4001 | D171: 39420208.23 | E171: 41496.70934 | F171: -8838799.089 | G171: 30581409.14 | H171: -3331.285202 | I171: -38165.42414
B172: 2025-05-01 | C172: -185071.4001 | D172: 39235136.83 | E172: 41496.70934 | F172: -8797302.38 | G172: 30437834.45 | H172: -3331.285202 | I172: -38165.42414
B173: 2025-06-01 | C173: -185071.4001 | D173: 39050065.43 | E173: 41496.70934 | F173: -8755805.671 | G173: 30294259.76 | H173: -3331.285202 | I173: -38165.42414
B174: 2025-07-01 | C174: -185071.4001 | D174: 38864994.03 | E174: 41496.70934 | F174: -8714308.961 | G174: 30150685.07 | H174: -3331.285202 | I174: -38165.42414
B175: 2025-08-01 | C175: -185071.4001 | D175: 38679922.63 | E175: 41496.70934 | F175: -8672812.252 | G175: 30007110.38 | H175: -3331.285202 | I175: -38165.42414
B176: 2025-09-01 | C176: -185071.4001 | D176: 38494851.23 | E176: 41496.70934 | F176: -8631315.543 | G176: 29863535.69 | H176: -3331.285202 | I176: -38165.42414
B177: 2025-10-01 | C177: -185071.4001 | D177: 38309779.83 | E177: 41496.70934 | F177: -8589818.833 | G177: 29719961 | H177: -3331.285202 | I177: -38165.42414
B178: 2025-11-01 | C178: -185071.4001 | D178: 38124708.43 | E178: 41496.70934 | F178: -8548322.124 | G178: 29576386.3 | H178: -3331.285202 | I178: -38165.42414
B179: 2025-12-01 | C179: -185071.4001 | D179: 37939637.03 | E179: 41496.70934 | F179: -8506825.415 | G179: 29432811.61 | H179: -3331.285202 | I179: -38165.42414
B180: 2026-01-01 | C180: -185071.4001 | D180: 37754565.63 | E180: 41496.70934 | F180: -8465328.705 | G180: 29289236.92 | H180: -3331.285202 | I180: -38165.42414
B181: 2026-02-01 | C181: -185071.4001 | D181: 37569494.23 | E181: 41496.70934 | F181: -8423831.996 | G181: 29145662.23 | H181: -3331.285202 | I181: -38165.42414
B182: 2026-03-01 | C182: -185071.4001 | D182: 37384422.83 | E182: 41496.70934 | F182: -8382335.287 | G182: 29002087.54 | H182: -3331.285202 | I182: -38165.42414
B183: 2026-04-01 | C183: -185071.4001 | D183: 37199351.43 | E183: 41496.70934 | F183: -8340838.577 | G183: 28858512.85 | H183: -3331.285202 | I183: -38165.42414
B184: 2026-05-01 | C184: -185071.4001 | D184: 37014280.03 | E184: 41496.70934 | F184: -8299341.868 | G184: 28714938.16 | H184: -3331.285202 | I184: -38165.42414
B185: 2026-06-01 | C185: -185071.4001 | D185: 36829208.63 | E185: 41496.70934 | F185: -8257845.158 | G185: 28571363.47 | H185: -3331.285202 | I185: -38165.42414
B186: 2026-07-01 | C186: -185071.4001 | D186: 36644137.23 | E186: 41496.70934 | F186: -8216348.449 | G186: 28427788.78 | H186: -3331.285202 | I186: -38165.42414
B187: 2026-08-01 | C187: -185071.4001 | D187: 36459065.83 | E187: 41496.70934 | F187: -8174851.74 | G187: 28284214.09 | H187: -3331.285202 | I187: -38165.42414
B188: 2026-09-01 | C188: -185071.4001 | D188: 36273994.43 | E188: 41496.70934 | F188: -8133355.03 | G188: 28140639.4 | H188: -3331.285202 | I188: -38165.42414
B189: 2026-10-01 | C189: -185071.4001 | D189: 36088923.03 | E189: 41496.70934 | F189: -8091858.321 | G189: 27997064.71 | H189: -3331.285202 | I189: -38165.42414
B190: 2026-11-01 | C190: -185071.4001 | D190: 35903851.63 | E190: 41496.70934 | F190: -8050361.612 | G190: 27853490.02 | H190: -3331.285202 | I190: -38165.42414
B191: 2026-12-01 | C191: -185071.4001 | D191: 35718780.23 | E191: 41496.70934 | F191: -8008864.902 | G191: 27709915.32 | H191: -3331.285202 | I191: -38165.42414
B192: 2027-01-01 | C192: -185071.4001 | D192: 35533708.83 | E192: 41496.70934 | F192: -7967368.193 | G192: 27566340.63 | H192: -3331.285202 | I192: -38165.42414
B193: 2027-02-01 | C193: -185071.4001 | D193: 35348637.43 | E193: 41496.70934 | F193: -7925871.484 | G193: 27422765.94 | H193: -3331.285202 | I193: -38165.42414
B194: 2027-03-01 | C194: -185071.4001 | D194: 35163566.03 | E194: 41496.70934 | F194: -7884374.774 | G194: 27279191.25 | H194: -3331.285202 | I194: -38165.42414
B195: 2027-04-01 | C195: -185071.4001 | D195: 34978494.63 | E195: 41496.70934 | F195: -7842878.065 | G195: 27135616.56 | H195: -3331.285202 | I195: -38165.42414
B196: 2027-05-01 | C196: -185071.4001 | D196: 34793423.23 | E196: 41496.70934 | F196: -7801381.356 | G196: 26992041.87 | H196: -3331.285202 | I196: -38165.42414
B197: 2027-06-01 | C197: -185071.4001 | D197: 34608351.83 | E197: 41496.70934 | F197: -7759884.646 | G197: 26848467.18 | H197: -3331.285202 | I197: -38165.42414
B198: 2027-07-01 | C198: -185071.4001 | D198: 34423280.43 | E198: 41496.70934 | F198: -7718387.937 | G198: 26704892.49 | H198: -3331.285202 | I198: -38165.42414
B199: 2027-08-01 | C199: -185071.4001 | D199: 34238209.03 | E199: 41496.70934 | F199: -7676891.228 | G199: 26561317.8 | H199: -3331.285202 | I199: -38165.42414
B200: 2027-09-01 | C200: -185071.4001 | D200: 34053137.63 | E200: 41496.70934 | F200: -7635394.518 | G200: 26417743.11 | H200: -3331.285202 | I200: -38165.42414
B201: 2027-10-01 | C201: -185071.4001 | D201: 33868066.23 | E201: 41496.70934 | F201: -7593897.809 | G201: 26274168.42 | H201: -3331.285202 | I201: -38165.42414
B202: 2027-11-01 | C202: -185071.4001 | D202: 33682994.83 | E202: 41496.70934 | F202: -7552401.1 | G202: 26130593.73 | H202: -3331.285202 | I202: -38165.42414
B203: 2027-12-01 | C203: -185071.4001 | D203: 33497923.43 | E203: 41496.70934 | F203: -7510904.39 | G203: 25987019.03 | H203: -3331.285202 | I203: -38165.42414
B204: 2028-01-01 | C204: -185071.4001 | D204: 33312852.02 | E204: 41496.70934 | F204: -7469407.681 | G204: 25843444.34 | H204: -3331.285202 | I204: -38165.42414
... 180 more rows

Sheet 20108
A1: Amortization Schedule
A2: GL# 010.0000.2150.20108.002000
B4: (Gain) Loss | C4: Years | D4: Annual Amort
A5: RBS | B5: -3940950 | C5: 30 | D5: =B5/C5 -> -131365
A6: Goldman Sachs | B6: -3085120 | C6: 30 | D6: =B6/C6 -> -102837.3333
A7: Morgan Stanley | B7: -3210000 | C7: 30 | D7: =B7/C7 -> -107000
A8: JPMorgan | B8: -3128280 | C8: 30 | D8: =B8/C8 -> -104276
A10: Total | B10: =SUM(B5:B8) -> -13364350 | D10: =SUM(D5:D8) -> -445478.3333
F14: DR (CR)
C15: LT Int Exp | D15: Monthly Amort | F15: =B10/360 -> -37123.19444 | L15: new rates as of 06/30/20
C16: 2830.xxxxx | D16: Def State Tax | E16: =M16 -> 0.018 | F16: =-F15*E16 -> 668.2175 | L16: Def State Tax | M16: 0.018
C17: 2830.xxxxx | D17: Def Fed Tax | E17: =M17 -> 0.20622 | F17: =-F15*E17 -> 7655.545158 | L17: Def Fed Tax | M17: 0.20622
E18: =SUM(E16:E17) -> 0.22422 | M18: =SUM(M16:M17) -> 0.22422
E19: 20.517
A20: T-Lock Settlement | G20: Net OCI | H20: Def State Tax | I20: Def Fed Tax
H21: =E16 -> 0.018 | I21: =E17 -> 0.20622 | J21: =H21+I21 -> 0.22422 | L21: 0.20517 | M21: =H21+L21 -> 0.22317
C22: 2150.20108 | D22: 2150.20108 | E22: 2150.20108 | F22: 2150.20108 | G22: 2150.20108 | H22: 2830.28206 | I22: 2830.28201
C23: Amort | D23: T-Lock Settlement | E23: Def Tax Adj | F23: Def Taxes | G23: Net of Tax | H23: Adjustment | I23: Adjustment
C24: DR (CR) | D24: DR (CR) | E24: DR (CR) | F24: DR (CR) | H24: DR (CR) | I24: DR (CR)
B25: 2014-10-01 | D25: =B10 -> -13364350 | F25: =-D25*M18 -> 2996554.557 | G25: =SUM(D25:F25) -> -10367795.44 | H25: 0 | I25: 0
B26: 2014-11-01 | C26: =-$F$15 -> 37123.19444 | D26: =D25+C26 -> -13327226.81 | E26: =$F$15*$E$18 -> -8323.762658 | F26: =F25+E26 -> 2988230.794 | G26: =G25+C26+E26 -> -10338996.01 | H26: =$F$16 -> 668.2175 | I26: =$F$17 -> 7655.545158
B27: 2014-12-01 | C27: =-$F$15 -> 37123.19444 | D27: =D26+C27 -> -13290103.61 | E27: =$F$15*$E$18 -> -8323.762658 | F27: =F26+E27 -> 2979907.032 | G27: =G26+C27+E27 -> -10310196.58 | H27: =$F$16 -> 668.2175 | I27: =$F$17 -> 7655.545158
B28: 2015-01-01 | C28: 37123.19444 | D28: -13252980.42 | E28: -8323.762658 | F28: 2971583.269 | G28: -10281397.15 | H28: 668.2175 | I28: 7655.545158
B29: 2015-02-01 | C29: 37123.19444 | D29: -13215857.22 | E29: -8323.762658 | F29: 2963259.506 | G29: -10252597.72 | H29: 668.2175 | I29: 7655.545158
B30: 2015-03-01 | C30: 37123.19444 | D30: -13178734.03 | E30: -8323.762658 | F30: 2954935.744 | G30: -10223798.28 | H30: 668.2175 | I30: 7655.545158
B31: 2015-04-01 | C31: 37123.19444 | D31: -13141610.83 | E31: -8323.762658 | F31: 2946611.981 | G31: -10194998.85 | H31: 668.2175 | I31: 7655.545158
B32: 2015-05-01 | C32: 37123.19444 | D32: -13104487.64 | E32: -8323.762658 | F32: 2938288.218 | G32: -10166199.42 | H32: 668.2175 | I32: 7655.545158
B33: 2015-06-01 | C33: 37123.19444 | D33: -13067364.44 | E33: -8323.762658 | F33: 2929964.456 | G33: -10137399.99 | H33: 668.2175 | I33: 7655.545158
B34: 2015-07-01 | C34: 37123.19444 | D34: -13030241.25 | E34: -8323.762658 | F34: 2921640.693 | G34: -10108600.56 | H34: 668.2175 | I34: 7655.545158
B35: 2015-08-01 | C35: 37123.19444 | D35: -12993118.06 | E35: -8323.762658 | F35: 2913316.93 | G35: -10079801.13 | H35: 668.2175 | I35: 7655.545158
B36: 2015-09-01 | C36: 37123.19444 | D36: -12955994.86 | E36: -8323.762658 | F36: 2904993.168 | G36: -10051001.69 | H36: 668.2175 | I36: 7655.545158
B37: 2015-10-01 | C37: 37123.19444 | D37: -12918871.67 | E37: -8323.762658 | F37: 2896669.405 | G37: -10022202.26 | H37: 668.2175 | I37: 7655.545158
B38: 2015-11-01 | C38: 37123.19444 | D38: -12881748.47 | E38: -8323.762658 | F38: 2888345.642 | G38: -9993402.83 | H38: 668.2175 | I38: 7655.545158
B39: 2015-12-01 | C39: 37123.19444 | D39: -12844625.28 | E39: -8323.762658 | F39: 2880021.88 | G39: -9964603.398 | H39: 668.2175 | I39: 7655.545158
B40: 2016-01-01 | C40: 37123.19444 | D40: -12807502.08 | E40: -8323.762658 | F40: 2871698.117 | G40: -9935803.966 | H40: 668.2175 | I40: 7655.545158
B41: 2016-02-01 | C41: 37123.19444 | D41: -12770378.89 | E41: -8323.762658 | F41: 2863374.354 | G41: -9907004.534 | H41: 668.2175 | I41: 7655.545158
B42: 2016-03-01 | C42: 37123.19444 | D42: -12733255.69 | E42: -8323.762658 | F42: 2855050.592 | G42: -9878205.103 | H42: 668.2175 | I42: 7655.545158
B43: 2016-04-01 | C43: 37123.19444 | D43: -12696132.5 | E43: -8323.762658 | F43: 2846726.829 | G43: -9849405.671 | H43: 668.2175 | I43: 7655.545158
B44: 2016-05-01 | C44: 37123.19444 | D44: -12659009.31 | E44: -8323.762658 | F44: 2838403.066 | G44: -9820606.239 | H44: 668.2175 | I44: 7655.545158
B45: 2016-06-01 | C45: 37123.19444 | D45: -12621886.11 | E45: -8323.762658 | F45: 2830079.304 | G45: -9791806.807 | H45: 668.2175 | I45: 7655.545158
B46: 2016-07-01 | C46: 37123.19444 | D46: -12584762.92 | E46: -8323.762658 | F46: 2821755.541 | G46: -9763007.375 | H46: 668.2175 | I46: 7655.545158
B47: 2016-08-01 | C47: 37123.19444 | D47: -12547639.72 | E47: -8323.762658 | F47: 2813431.779 | G47: -9734207.944 | H47: 668.2175 | I47: 7655.545158
B48: 2016-09-01 | C48: 37123.19444 | D48: -12510516.53 | E48: -8323.762658 | F48: 2805108.016 | G48: -9705408.512 | H48: 668.2175 | I48: 7655.545158
B49: 2016-10-01 | C49: 37123.19444 | D49: -12473393.33 | E49: -8323.762658 | F49: 2796784.253 | G49: -9676609.08 | H49: 668.2175 | I49: 7655.545158
B50: 2016-11-01 | C50: 37123.19444 | D50: -12436270.14 | E50: -8323.762658 | F50: 2788460.491 | G50: -9647809.648 | H50: 668.2175 | I50: 7655.545158
B51: 2016-12-01 | C51: 37123.19444 | D51: -12399146.94 | E51: -8323.762658 | F51: 2780136.728 | G51: -9619010.217 | H51: 668.2175 | I51: 7655.545158
B52: 2017-01-01 | C52: 37123.19444 | D52: -12362023.75 | E52: -8323.762658 | F52: 2771812.965 | G52: -9590210.785 | H52: 668.2175 | I52: 7655.545158
B53: 2017-02-01 | C53: 37123.19444 | D53: -12324900.56 | E53: -8323.762658 | F53: 2763489.203 | G53: -9561411.353 | H53: 668.2175 | I53: 7655.545158
B54: 2017-03-01 | C54: 37123.19444 | D54: -12287777.36 | E54: -8323.762658 | F54: 2755165.44 | G54: -9532611.921 | H54: 668.2175 | I54: 7655.545158
B55: 2017-04-01 | C55: 37123.19444 | D55: -12250654.17 | E55: -8323.762658 | F55: 2746841.677 | G55: -9503812.489 | H55: 668.2175 | I55: 7655.545158
B56: 2017-05-01 | C56: 37123.19444 | D56: -12213530.97 | E56: -8323.762658 | F56: 2738517.915 | G56: -9475013.058 | H56: 668.2175 | I56: 7655.545158
B57: 2017-06-01 | C57: 37123.19444 | D57: -12176407.78 | E57: -8323.762658 | F57: 2730194.152 | G57: -9446213.626 | H57: 668.2175 | I57: 7655.545158
B58: 2017-07-01 | C58: 37123.19444 | D58: -12139284.58 | E58: -8323.762658 | F58: 2721870.389 | G58: -9417414.194 | H58: 668.2175 | I58: 7655.545158
B59: 2017-08-01 | C59: 37123.19444 | D59: -12102161.39 | E59: -8323.762658 | F59: 2713546.627 | G59: -9388614.762 | H59: 668.2175 | I59: 7655.545158
B60: 2017-09-01 | C60: 37123.19444 | D60: -12065038.19 | E60: -8323.762658 | F60: 2705222.864 | G60: -9359815.33 | H60: 668.2175 | I60: 7655.545158
B61: 2017-10-01 | C61: 37123.19444 | D61: -12027915 | E61: -8323.762658 | F61: 2696899.101 | G61: -9331015.899 | H61: 668.2175 | I61: 7655.545158
B62: 2017-11-01 | C62: 37123.19444 | D62: -11990791.81 | E62: -8323.762658 | F62: 2688575.339 | G62: -9302216.467 | H62: 668.2175 | I62: 7655.545158
B63: 2017-12-01 | C63: 37123.19444 | D63: -11953668.61 | E63: -8323.762658 | F63: 2680251.576 | G63: -9273417.035 | H63: 668.2175 | I63: 7655.545158
B64: 2018-01-01 | C64: =-$F$15 -> 37123.19444 | D64: =D63+C64 -> -11916545.42 | E64: -8323.762658 | F64: 2671927.813 | G64: =G63+C64+E64 -> -9244617.603 | H64: 668.2175 | I64: 7655.545158
B65: 2018-02-01 | C65: =-$F$15 -> 37123.19444 | D65: =D64+C65 -> -11879422.22 | E65: -8323.762658 | F65: 2663604.051 | G65: =G64+C65+E65 -> -9215818.172 | H65: 668.2175 | I65: 7655.545158
B66: 2018-03-01 | C66: 37123.19444 | D66: -11842299.03 | E66: -8323.762658 | F66: 2655280.288 | G66: -9187018.74 | H66: 668.2175 | I66: 7655.545158
B67: 2018-04-01 | C67: 37123.19444 | D67: -11805175.83 | E67: -8323.762658 | F67: 2646956.525 | G67: -9158219.308 | H67: 668.2175 | I67: 7655.545158
B68: 2018-05-01 | C68: 37123.19444 | D68: -11768052.64 | E68: -8323.762658 | F68: 2638632.763 | G68: -9129419.876 | H68: 668.2175 | I68: 7655.545158
B69: 2018-06-01 | C69: 37123.19444 | D69: -11730929.44 | E69: -8323.762658 | F69: 2630309 | G69: -9100620.444 | H69: 668.2175 | I69: 7655.545158
B70: 2018-07-01 | C70: 37123.19444 | D70: -11693806.25 | E70: -8323.762658 | F70: 2621985.237 | G70: -9071821.013 | H70: 668.2175 | I70: 7655.545158
B71: 2018-08-01 | C71: 37123.19444 | D71: -11656683.06 | E71: -8323.762658 | F71: 2613661.475 | G71: -9043021.581 | H71: 668.2175 | I71: 7655.545158
B72: 2018-09-01 | C72: 37123.19444 | D72: -11619559.86 | E72: -8323.762658 | F72: 2605337.712 | G72: -9014222.149 | H72: 668.2175 | I72: 7655.545158
B73: 2018-10-01 | C73: 37123.19444 | D73: -11582436.67 | E73: -8323.762658 | F73: 2597013.949 | G73: -8985422.717 | H73: 668.2175 | I73: 7655.545158
B74: 2018-11-01 | C74: 37123.19444 | D74: -11545313.47 | E74: -8323.762658 | F74: 2588690.187 | G74: -8956623.285 | H74: 668.2175 | I74: 7655.545158
B75: 2018-12-01 | C75: 37123.19444 | D75: -11508190.28 | E75: -8323.762658 | F75: 2580366.424 | G75: -8927823.854 | H75: 668.2175 | I75: 7655.545158
B76: 2019-01-01 | C76: 37123.19444 | D76: -11471067.08 | E76: -8323.762658 | F76: 2572042.661 | G76: -8899024.422 | H76: 668.2175 | I76: 7655.545158
B77: 2019-02-01 | C77: 37123.19444 | D77: -11433943.89 | E77: -8323.762658 | F77: 2563718.899 | G77: -8870224.99 | H77: 668.2175 | I77: 7655.545158
B78: 2019-03-01 | C78: 37123.19444 | D78: -11396820.69 | E78: -8323.762658 | F78: 2555395.136 | G78: -8841425.558 | H78: 668.2175 | I78: 7655.545158
B79: 2019-04-01 | C79: 37123.19444 | D79: -11359697.5 | E79: -8323.762658 | F79: 2547071.373 | G79: -8812626.127 | H79: 668.2175 | I79: 7655.545158
B80: 2019-05-01 | C80: 37123.19444 | D80: -11322574.31 | E80: -8323.762658 | F80: 2538747.611 | G80: -8783826.695 | H80: 668.2175 | I80: 7655.545158
B81: 2019-06-01 | C81: 37123.19444 | D81: -11285451.11 | E81: -8323.762658 | F81: 2530423.848 | G81: -8755027.263 | H81: 668.2175 | I81: 7655.545158
B82: 2019-07-01 | C82: 37123.19444 | D82: -11248327.92 | E82: -8323.762658 | F82: 2522100.085 | G82: -8726227.831 | H82: 668.2175 | I82: 7655.545158
B83: 2019-08-01 | C83: 37123.19444 | D83: -11211204.72 | E83: -8323.762658 | F83: 2513776.323 | G83: -8697428.399 | H83: 668.2175 | I83: 7655.545158
B84: 2019-09-01 | C84: 37123.19444 | D84: -11174081.53 | E84: -8323.762658 | F84: 2505452.56 | G84: -8668628.968 | H84: 668.2175 | I84: 7655.545158
B85: 2019-10-01 | C85: 37123.19444 | D85: -11136958.33 | E85: -8323.762658 | F85: 2497128.797 | G85: -8639829.536 | H85: 668.2175 | I85: 7655.545158
B86: 2019-11-01 | C86: 37123.19444 | D86: -11099835.14 | E86: -8323.762658 | F86: 2488805.035 | G86: -8611030.104 | H86: 668.2175 | I86: 7655.545158
B87: 2019-12-01 | C87: 37123.19444 | D87: -11062711.94 | E87: -8323.762658 | F87: 2480481.272 | G87: -8582230.672 | H87: 668.2175 | I87: 7655.545158
B88: 2020-01-01 | C88: 37123.19444 | D88: -11025588.75 | E88: -8323.762658 | F88: 2472157.51 | G88: -8553431.24 | H88: 668.2175 | I88: 7655.545158
B89: 2020-02-01 | C89: 37123.19444 | D89: -10988465.56 | E89: -8323.762658 | F89: 2463833.747 | G89: -8524631.809 | H89: 668.2175 | I89: 7655.545158
B90: 2020-03-01 | C90: 37123.19444 | D90: -10951342.36 | E90: -8323.762658 | F90: 2455509.984 | G90: -8495832.377 | H90: 668.2175 | I90: 7655.545158
B91: 2020-04-01 | C91: 37123.19444 | D91: -10914219.17 | E91: =$F$15*$E$18 -> -8323.762658 | F91: =F90+E91 -> 2447186.222 | G91: -8467032.945 | H91: =$F$16 -> 668.2175 | I91: =$F$17 -> 7655.545158
B92: 2020-05-01 | C92: 37123.19444 | D92: -10877095.97 | E92: -8323.762658 | F92: 2438862.459 | G92: -8438233.513 | H92: 668.2175 | I92: 7655.545158
B93: 2020-06-01 | C93: 37123.19444 | D93: -10839972.78 | E93: -8323.762658 | F93: 2430538.696 | G93: -8409434.082 | H93: 668.2175 | I93: 7655.545158
B94: 2020-07-01 | C94: 37123.19444 | D94: -10802849.58 | E94: -8323.762658 | F94: 2422214.934 | G94: -8380634.65 | H94: 668.2175 | I94: 7655.545158
B95: 2020-08-01 | C95: 37123.19444 | D95: -10765726.39 | E95: -8323.762658 | F95: 2413891.171 | G95: -8351835.218 | H95: 668.2175 | I95: 7655.545158
B96: 2020-09-01 | C96: 37123.19444 | D96: -10728603.19 | E96: -8323.762658 | F96: 2405567.408 | G96: -8323035.786 | H96: 668.2175 | I96: 7655.545158
B97: 2020-10-01 | C97: 37123.19444 | D97: -10691480 | E97: -8323.762658 | F97: 2397243.646 | G97: -8294236.354 | H97: 668.2175 | I97: 7655.545158
B98: 2020-11-01 | C98: 37123.19444 | D98: -10654356.81 | E98: -8323.762658 | F98: 2388919.883 | G98: -8265436.923 | H98: 668.2175 | I98: 7655.545158
B99: 2020-12-01 | C99: 37123.19444 | D99: -10617233.61 | E99: -8323.762658 | F99: 2380596.12 | G99: -8236637.491 | H99: 668.2175 | I99: 7655.545158
B100: 2021-01-01 | C100: 37123.19444 | D100: -10580110.42 | E100: -8323.762658 | F100: 2372272.358 | G100: -8207838.059 | H100: 668.2175 | I100: 7655.545158
B101: 2021-02-01 | C101: 37123.19444 | D101: -10542987.22 | E101: -8323.762658 | F101: 2363948.595 | G101: -8179038.627 | H101: 668.2175 | I101: 7655.545158
B102: 2021-03-01 | C102: 37123.19444 | D102: -10505864.03 | E102: -8323.762658 | F102: 2355624.832 | G102: -8150239.195 | H102: 668.2175 | I102: 7655.545158
B103: 2021-04-01 | C103: 37123.19444 | D103: -10468740.83 | E103: -8323.762658 | F103: 2347301.07 | G103: -8121439.764 | H103: 668.2175 | I103: 7655.545158
B104: 2021-05-01 | C104: 37123.19444 | D104: -10431617.64 | E104: -8323.762658 | F104: 2338977.307 | G104: -8092640.332 | H104: 668.2175 | I104: 7655.545158
B105: 2021-06-01 | C105: 37123.19444 | D105: -10394494.44 | E105: -8323.762658 | F105: 2330653.544 | G105: -8063840.9 | H105: 668.2175 | I105: 7655.545158
B106: 2021-07-01 | C106: 37123.19444 | D106: -10357371.25 | E106: -8323.762658 | F106: 2322329.782 | G106: -8035041.468 | H106: 668.2175 | I106: 7655.545158
B107: 2021-08-01 | C107: 37123.19444 | D107: -10320248.06 | E107: -8323.762658 | F107: 2314006.019 | G107: -8006242.037 | H107: 668.2175 | I107: 7655.545158
B108: 2021-09-01 | C108: 37123.19444 | D108: -10283124.86 | E108: -8323.762658 | F108: 2305682.256 | G108: -7977442.605 | H108: 668.2175 | I108: 7655.545158
B109: 2021-10-01 | C109: 37123.19444 | D109: -10246001.67 | E109: -8323.762658 | F109: 2297358.494 | G109: -7948643.173 | H109: 668.2175 | I109: 7655.545158
B110: 2021-11-01 | C110: 37123.19444 | D110: -10208878.47 | E110: -8323.762658 | F110: 2289034.731 | G110: -7919843.741 | H110: 668.2175 | I110: 7655.545158
B111: 2021-12-01 | C111: 37123.19444 | D111: -10171755.28 | E111: -8323.762658 | F111: 2280710.968 | G111: -7891044.309 | H111: 668.2175 | I111: 7655.545158
B112: 2022-01-01 | C112: 37123.19444 | D112: -10134632.08 | E112: -8323.762658 | F112: 2272387.206 | G112: -7862244.878 | H112: 668.2175 | I112: 7655.545158
B113: 2022-02-01 | C113: 37123.19444 | D113: -10097508.89 | E113: -8323.762658 | F113: 2264063.443 | G113: -7833445.446 | H113: 668.2175 | I113: 7655.545158
B114: 2022-03-01 | C114: 37123.19444 | D114: -10060385.69 | E114: -8323.762658 | F114: 2255739.68 | G114: -7804646.014 | H114: 668.2175 | I114: 7655.545158
B115: 2022-04-01 | C115: 37123.19444 | D115: -10023262.5 | E115: -8323.762658 | F115: 2247415.918 | G115: -7775846.582 | H115: 668.2175 | I115: 7655.545158
B116: 2022-05-01 | C116: 37123.19444 | D116: -9986139.306 | E116: -8323.762658 | F116: 2239092.155 | G116: -7747047.15 | H116: 668.2175 | I116: 7655.545158
B117: 2022-06-01 | C117: 37123.19444 | D117: -9949016.111 | E117: -8323.762658 | F117: 2230768.392 | G117: -7718247.719 | H117: 668.2175 | I117: 7655.545158
B118: 2022-07-01 | C118: 37123.19444 | D118: -9911892.917 | E118: -8323.762658 | F118: 2222444.63 | G118: -7689448.287 | H118: 668.2175 | I118: 7655.545158
B119: 2022-08-01 | C119: 37123.19444 | D119: -9874769.722 | E119: -8323.762658 | F119: 2214120.867 | G119: -7660648.855 | H119: 668.2175 | I119: 7655.545158
B120: 2022-09-01 | C120: 37123.19444 | D120: -9837646.528 | E120: -8323.762658 | F120: 2205797.104 | G120: -7631849.423 | H120: 668.2175 | I120: 7655.545158
B121: 2022-10-01 | C121: 37123.19444 | D121: -9800523.333 | E121: -8323.762658 | F121: 2197473.342 | G121: -7603049.992 | H121: 668.2175 | I121: 7655.545158
B122: 2022-11-01 | C122: 37123.19444 | D122: -9763400.139 | E122: -8323.762658 | F122: 2189149.579 | G122: -7574250.56 | H122: 668.2175 | I122: 7655.545158
B123: 2022-12-01 | C123: 37123.19444 | D123: -9726276.944 | E123: -8323.762658 | F123: 2180825.816 | G123: -7545451.128 | H123: 668.2175 | I123: 7655.545158
B124: 2023-01-01 | C124: 37123.19444 | D124: -9689153.75 | E124: -8323.762658 | F124: 2172502.054 | G124: -7516651.696 | H124: 668.2175 | I124: 7655.545158
B125: 2023-02-01 | C125: 37123.19444 | D125: -9652030.556 | E125: -8323.762658 | F125: 2164178.291 | G125: -7487852.264 | H125: 668.2175 | I125: 7655.545158
B126: 2023-03-01 | C126: 37123.19444 | D126: -9614907.361 | E126: -8323.762658 | F126: 2155854.529 | G126: -7459052.833 | H126: 668.2175 | I126: 7655.545158
B127: 2023-04-01 | C127: 37123.19444 | D127: -9577784.167 | E127: -8323.762658 | F127: 2147530.766 | G127: -7430253.401 | H127: 668.2175 | I127: 7655.545158
B128: 2023-05-01 | C128: 37123.19444 | D128: -9540660.972 | E128: -8323.762658 | F128: 2139207.003 | G128: -7401453.969 | H128: 668.2175 | I128: 7655.545158
B129: 2023-06-01 | C129: =-$F$15 -> 37123.19444 | D129: =D128+C129 -> -9503537.778 | E129: -8323.762658 | F129: 2130883.241 | G129: =G128+C129+E129 -> -7372654.537 | H129: 668.2175 | I129: 7655.545158
B130: 2023-07-01 | C130: 37123.19444 | D130: -9466414.583 | E130: -8323.762658 | F130: 2122559.478 | G130: -7343855.105 | H130: 668.2175 | I130: 7655.545158
B131: 2023-08-01 | C131: 37123.19444 | D131: -9429291.389 | E131: -8323.762658 | F131: 2114235.715 | G131: -7315055.674 | H131: 668.2175 | I131: 7655.545158
B132: 2023-09-01 | C132: 37123.19444 | D132: -9392168.194 | E132: -8323.762658 | F132: 2105911.953 | G132: -7286256.242 | H132: 668.2175 | I132: 7655.545158
B133: 2023-10-01 | C133: 37123.19444 | D133: -9355045 | E133: -8323.762658 | F133: 2097588.19 | G133: -7257456.81 | H133: 668.2175 | I133: 7655.545158
B134: 2023-11-01 | C134: 37123.19444 | D134: -9317921.806 | E134: -8323.762658 | F134: 2089264.427 | G134: -7228657.378 | H134: 668.2175 | I134: 7655.545158
B135: 2023-12-01 | C135: 37123.19444 | D135: -9280798.611 | E135: -8323.762658 | F135: 2080940.665 | G135: -7199857.947 | H135: 668.2175 | I135: 7655.545158
B136: 2024-01-01 | C136: 37123.19444 | D136: -9243675.417 | E136: -8323.762658 | F136: 2072616.902 | G136: -7171058.515 | H136: 668.2175 | I136: 7655.545158
B137: 2024-02-01 | C137: 37123.19444 | D137: -9206552.222 | E137: -8323.762658 | F137: 2064293.139 | G137: -7142259.083 | H137: 668.2175 | I137: 7655.545158
B138: 2024-03-01 | C138: 37123.19444 | D138: -9169429.028 | E138: -8323.762658 | F138: 2055969.377 | G138: -7113459.651 | H138: 668.2175 | I138: 7655.545158
B139: 2024-04-01 | C139: 37123.19444 | D139: -9132305.833 | E139: -8323.762658 | F139: 2047645.614 | G139: -7084660.219 | H139: 668.2175 | I139: 7655.545158
B140: 2024-05-01 | C140: 37123.19444 | D140: -9095182.639 | E140: -8323.762658 | F140: 2039321.851 | G140: -7055860.788 | H140: 668.2175 | I140: 7655.545158
B141: 2024-06-01 | C141: 37123.19444 | D141: -9058059.444 | E141: -8323.762658 | F141: 2030998.089 | G141: -7027061.356 | H141: 668.2175 | I141: 7655.545158
B142: 2024-07-01 | C142: 37123.19444 | D142: -9020936.25 | E142: -8323.762658 | F142: 2022674.326 | G142: -6998261.924 | H142: 668.2175 | I142: 7655.545158
B143: 2024-08-01 | C143: 37123.19444 | D143: -8983813.056 | E143: -8323.762658 | F143: 2014350.563 | G143: -6969462.492 | H143: 668.2175 | I143: 7655.545158
B144: 2024-09-01 | C144: 37123.19444 | D144: -8946689.861 | E144: -8323.762658 | F144: 2006026.801 | G144: -6940663.06 | H144: 668.2175 | I144: 7655.545158
B145: 2024-10-01 | C145: 37123.19444 | D145: -8909566.667 | E145: -8323.762658 | F145: 1997703.038 | G145: -6911863.629 | H145: 668.2175 | I145: 7655.545158
B146: 2024-11-01 | C146: 37123.19444 | D146: -8872443.472 | E146: -8323.762658 | F146: 1989379.275 | G146: -6883064.197 | H146: 668.2175 | I146: 7655.545158
B147: 2024-12-01 | C147: 37123.19444 | D147: -8835320.278 | E147: -8323.762658 | F147: 1981055.513 | G147: -6854264.765 | H147: 668.2175 | I147: 7655.545158
B148: 2025-01-01 | C148: 37123.19444 | D148: -8798197.083 | E148: -8323.762658 | F148: 1972731.75 | G148: -6825465.333 | H148: 668.2175 | I148: 7655.545158
B149: 2025-02-01 | C149: 37123.19444 | D149: -8761073.889 | E149: -8323.762658 | F149: 1964407.987 | G149: -6796665.902 | H149: 668.2175 | I149: 7655.545158
B150: 2025-03-01 | C150: 37123.19444 | D150: -8723950.694 | E150: -8323.762658 | F150: 1956084.225 | G150: -6767866.47 | H150: 668.2175 | I150: 7655.545158
B151: 2025-04-01 | C151: 37123.19444 | D151: -8686827.5 | E151: -8323.762658 | F151: 1947760.462 | G151: -6739067.038 | H151: 668.2175 | I151: 7655.545158
B152: 2025-05-01 | C152: 37123.19444 | D152: -8649704.306 | E152: -8323.762658 | F152: 1939436.699 | G152: -6710267.606 | H152: 668.2175 | I152: 7655.545158
B153: 2025-06-01 | C153: 37123.19444 | D153: -8612581.111 | E153: -8323.762658 | F153: 1931112.937 | G153: -6681468.174 | H153: 668.2175 | I153: 7655.545158
B154: 2025-07-01 | C154: 37123.19444 | D154: -8575457.917 | E154: -8323.762658 | F154: 1922789.174 | G154: -6652668.743 | H154: 668.2175 | I154: 7655.545158
B155: 2025-08-01 | C155: 37123.19444 | D155: -8538334.722 | E155: =$F$15*$E$18 -> -8323.762658 | F155: =F154+E155 -> 1914465.411 | G155: -6623869.311 | H155: =$F$16 -> 668.2175 | I155: =$F$17 -> 7655.545158
B156: 2025-09-01 | C156: 37123.19444 | D156: -8501211.528 | E156: -8323.762658 | F156: 1906141.649 | G156: -6595069.879 | H156: 668.2175 | I156: 7655.545158
B157: 2025-10-01 | C157: 37123.19444 | D157: -8464088.333 | E157: -8323.762658 | F157: 1897817.886 | G157: -6566270.447 | H157: 668.2175 | I157: 7655.545158
B158: 2025-11-01 | C158: 37123.19444 | D158: -8426965.139 | E158: -8323.762658 | F158: 1889494.123 | G158: -6537471.015 | H158: 668.2175 | I158: 7655.545158
B159: 2025-12-01 | C159: 37123.19444 | D159: -8389841.944 | E159: -8323.762658 | F159: 1881170.361 | G159: -6508671.584 | H159: 668.2175 | I159: 7655.545158
B160: 2026-01-01 | C160: 37123.19444 | D160: -8352718.75 | E160: -8323.762658 | F160: 1872846.598 | G160: -6479872.152 | H160: 668.2175 | I160: 7655.545158
B161: 2026-02-01 | C161: 37123.19444 | D161: -8315595.556 | E161: -8323.762658 | F161: 1864522.835 | G161: -6451072.72 | H161: 668.2175 | I161: 7655.545158
B162: 2026-03-01 | C162: 37123.19444 | D162: -8278472.361 | E162: -8323.762658 | F162: 1856199.073 | G162: -6422273.288 | H162: 668.2175 | I162: 7655.545158
B163: 2026-04-01 | C163: 37123.19444 | D163: -8241349.167 | E163: -8323.762658 | F163: 1847875.31 | G163: -6393473.857 | H163: 668.2175 | I163: 7655.545158
B164: 2026-05-01 | C164: 37123.19444 | D164: -8204225.972 | E164: -8323.762658 | F164: 1839551.547 | G164: -6364674.425 | H164: 668.2175 | I164: 7655.545158
B165: 2026-06-01 | C165: 37123.19444 | D165: -8167102.778 | E165: -8323.762658 | F165: 1831227.785 | G165: -6335874.993 | H165: 668.2175 | I165: 7655.545158
B166: 2026-07-01 | C166: 37123.19444 | D166: -8129979.583 | E166: -8323.762658 | F166: 1822904.022 | G166: -6307075.561 | H166: 668.2175 | I166: 7655.545158
B167: 2026-08-01 | C167: 37123.19444 | D167: -8092856.389 | E167: -8323.762658 | F167: 1814580.26 | G167: -6278276.129 | H167: 668.2175 | I167: 7655.545158
B168: 2026-09-01 | C168: 37123.19444 | D168: -8055733.194 | E168: -8323.762658 | F168: 1806256.497 | G168: -6249476.698 | H168: 668.2175 | I168: 7655.545158
B169: 2026-10-01 | C169: 37123.19444 | D169: -8018610 | E169: -8323.762658 | F169: 1797932.734 | G169: -6220677.266 | H169: 668.2175 | I169: 7655.545158
B170: 2026-11-01 | C170: 37123.19444 | D170: -7981486.806 | E170: -8323.762658 | F170: 1789608.972 | G170: -6191877.834 | H170: 668.2175 | I170: 7655.545158
B171: 2026-12-01 | C171: 37123.19444 | D171: -7944363.611 | E171: -8323.762658 | F171: 1781285.209 | G171: -6163078.402 | H171: 668.2175 | I171: 7655.545158
B172: 2027-01-01 | C172: 37123.19444 | D172: -7907240.417 | E172: -8323.762658 | F172: 1772961.446 | G172: -6134278.97 | H172: 668.2175 | I172: 7655.545158
B173: 2027-02-01 | C173: 37123.19444 | D173: -7870117.222 | E173: -8323.762658 | F173: 1764637.684 | G173: -6105479.539 | H173: 668.2175 | I173: 7655.545158
B174: 2027-03-01 | C174: 37123.19444 | D174: -7832994.028 | E174: -8323.762658 | F174: 1756313.921 | G174: -6076680.107 | H174: 668.2175 | I174: 7655.545158
B175: 2027-04-01 | C175: 37123.19444 | D175: -7795870.833 | E175: -8323.762658 | F175: 1747990.158 | G175: -6047880.675 | H175: 668.2175 | I175: 7655.545158
B176: 2027-05-01 | C176: 37123.19444 | D176: -7758747.639 | E176: -8323.762658 | F176: 1739666.396 | G176: -6019081.243 | H176: 668.2175 | I176: 7655.545158
B177: 2027-06-01 | C177: 37123.19444 | D177: -7721624.444 | E177: -8323.762658 | F177: 1731342.633 | G177: -5990281.812 | H177: 668.2175 | I177: 7655.545158
B178: 2027-07-01 | C178: 37123.19444 | D178: -7684501.25 | E178: -8323.762658 | F178: 1723018.87 | G178: -5961482.38 | H178: 668.2175 | I178: 7655.545158
B179: 2027-08-01 | C179: 37123.19444 | D179: -7647378.056 | E179: -8323.762658 | F179: 1714695.108 | G179: -5932682.948 | H179: 668.2175 | I179: 7655.545158
B180: 2027-09-01 | C180: 37123.19444 | D180: -7610254.861 | E180: -8323.762658 | F180: 1706371.345 | G180: -5903883.516 | H180: 668.2175 | I180: 7655.545158
B181: 2027-10-01 | C181: 37123.19444 | D181: -7573131.667 | E181: -8323.762658 | F181: 1698047.582 | G181: -5875084.084 | H181: 668.2175 | I181: 7655.545158
B182: 2027-11-01 | C182: 37123.19444 | D182: -7536008.472 | E182: -8323.762658 | F182: 1689723.82 | G182: -5846284.653 | H182: 668.2175 | I182: 7655.545158
B183: 2027-12-01 | C183: 37123.19444 | D183: -7498885.278 | E183: -8323.762658 | F183: 1681400.057 | G183: -5817485.221 | H183: 668.2175 | I183: 7655.545158
B184: 2028-01-01 | C184: 37123.19444 | D184: -7461762.083 | E184: -8323.762658 | F184: 1673076.294 | G184: -5788685.789 | H184: 668.2175 | I184: 7655.545158
B185: 2028-02-01 | C185: 37123.19444 | D185: -7424638.889 | E185: -8323.762658 | F185: 1664752.532 | G185: -5759886.357 | H185: 668.2175 | I185: 7655.545158
B186: 2028-03-01 | C186: 37123.19444 | D186: -7387515.694 | E186: -8323.762658 | F186: 1656428.769 | G186: -5731086.925 | H186: 668.2175 | I186: 7655.545158
B187: 2028-04-01 | C187: 37123.19444 | D187: -7350392.5 | E187: -8323.762658 | F187: 1648105.006 | G187: -5702287.494 | H187: 668.2175 | I187: 7655.545158
B188: 2028-05-01 | C188: 37123.19444 | D188: -7313269.306 | E188: -8323.762658 | F188: 1639781.244 | G188: -5673488.062 | H188: 668.2175 | I188: 7655.545158
B189: 2028-06-01 | C189: 37123.19444 | D189: -7276146.111 | E189: -8323.762658 | F189: 1631457.481 | G189: -5644688.63 | H189: 668.2175 | I189: 7655.545158
B190: 2028-07-01 | C190: 37123.19444 | D190: -7239022.917 | E190: -8323.762658 | F190: 1623133.718 | G190: -5615889.198 | H190: 668.2175 | I190: 7655.545158
B191: 2028-08-01 | C191: 37123.19444 | D191: -7201899.722 | E191: -8323.762658 | F191: 1614809.956 | G191: -5587089.767 | H191: 668.2175 | I191: 7655.545158
B192: 2028-09-01 | C192: 37123.19444 | D192: -7164776.528 | E192: -8323.762658 | F192: 1606486.193 | G192: -5558290.335 | H192: 668.2175 | I192: 7655.545158
B193: 2028-10-01 | C193: =-$F$15 -> 37123.19444 | D193: =D192+C193 -> -7127653.333 | E193: -8323.762658 | F193: 1598162.43 | G193: =G192+C193+E193 -> -5529490.903 | H193: 668.2175 | I193: 7655.545158
B194: 2028-11-01 | C194: 37123.19444 | D194: -7090530.139 | E194: -8323.762658 | F194: 1589838.668 | G194: -5500691.471 | H194: 668.2175 | I194: 7655.545158
B195: 2028-12-01 | C195: 37123.19444 | D195: -7053406.944 | E195: -8323.762658 | F195: 1581514.905 | G195: -5471892.039 | H195: 668.2175 | I195: 7655.545158
B196: 2029-01-01 | C196: 37123.19444 | D196: -7016283.75 | E196: -8323.762658 | F196: 1573191.142 | G196: -5443092.608 | H196: 668.2175 | I196: 7655.545158
B197: 2029-02-01 | C197: 37123.19444 | D197: -6979160.556 | E197: -8323.762658 | F197: 1564867.38 | G197: -5414293.176 | H197: 668.2175 | I197: 7655.545158
B198: 2029-03-01 | C198: 37123.19444 | D198: -6942037.361 | E198: -8323.762658 | F198: 1556543.617 | G198: -5385493.744 | H198: 668.2175 | I198: 7655.545158
B199: 2029-04-01 | C199: 37123.19444 | D199: -6904914.167 | E199: -8323.762658 | F199: 1548219.854 | G199: -5356694.312 | H199: 668.2175 | I199: 7655.545158
B200: 2029-05-01 | C200: 37123.19444 | D200: -6867790.972 | E200: -8323.762658 | F200: 1539896.092 | G200: -5327894.88 | H200: 668.2175 | I200: 7655.545158
B201: 2029-06-01 | C201: 37123.19444 | D201: -6830667.778 | E201: -8323.762658 | F201: 1531572.329 | G201: -5299095.449 | H201: 668.2175 | I201: 7655.545158
B202: 2029-07-01 | C202: 37123.19444 | D202: -6793544.583 | E202: -8323.762658 | F202: 1523248.566 | G202: -5270296.017 | H202: 668.2175 | I202: 7655.545158
B203: 2029-08-01 | C203: 37123.19444 | D203: -6756421.389 | E203: -8323.762658 | F203: 1514924.804 | G203: -5241496.585 | H203: 668.2175 | I203: 7655.545158
B204: 2029-09-01 | C204: 37123.19444 | D204: -6719298.194 | E204: -8323.762658 | F204: 1506601.041 | G204: -5212697.153 | H204: 668.2175 | I204: 7655.545158
B205: 2029-10-01 | C205: 37123.19444 | D205: -6682175 | E205: -8323.762658 | F205: 1498277.278 | G205: -5183897.722 | H205: 668.2175 | I205: 7655.545158
... 180 more rows

Sheet 20109
A1: Amortization Schedule
A2: GL# 010.0000.2150.20109.002000
A3: 06/15/17-10/15/44
B4: (Gain) Loss | C4: Years | D4: Annual Amort
A5: UBS | B5: 18305434 | C5: 27 | D5: =B5/C5 -> 677979.037 | G5: =C5*12 -> 324 | H5: months
A6: Credit Agricole | B6: 18690073 | C6: 27 | D6: =B6/C6 -> 692224.9259 | G6: 4 | H6: 4 months
G7: 328
A10: Total | B10: =SUM(B5:B8) -> 36995507 | D10: =SUM(D5:D8) -> 1370203.963
F14: DR (CR)
C15: LT Int Exp | D15: Monthly Amort | F15: =B10/328 -> 112791.1799 | L15: new rates as of 06/30/20
C16: 2830.xxxxx | D16: Def State Tax | E16: =M16 -> 0.018 | F16: =-F15*E16 -> -2030.241238 | L16: Def State Tax | M16: 0.018
C17: 2830.xxxxx | D17: Def Fed Tax | E17: =M17 -> 0.20622 | F17: =-F15*E17 -> -23259.79711 | L17: Def Fed Tax | M17: 0.20622
E18: =SUM(E16:E17) -> 0.22422 | M18: =SUM(M16:M17) -> 0.22422
A20: T-Lock Settlement | G20: Net OCI | H20: Def State Tax | I20: Def Fed Tax
H21: =E16 -> 0.018 | I21: =E17 -> 0.20622 | J21: =H21+I21 -> 0.22422 | L21: 0.20517 | M21: =H21+L21 -> 0.22317
C22: 2150.20109 | D22: 2150.20109 | E22: 2150.20109 | F22: 2150.20109 | G22: 2150.20109 | H22: 2830.28206 | I22: 2830.28201
C23: Amort | D23: T-Lock Settlement | E23: Def Tax Adj | F23: Def Taxes | G23: Net of Tax | H23: Adjustment | I23: Adjustment
C24: DR (CR) | D24: DR (CR) | E24: DR (CR) | F24: DR (CR) | H24: DR (CR) | I24: DR (CR)
B25: 2017-06-15 | D25: =B10 -> 36995507 | F25: =-D25*E18 -> -8295132.58 | G25: =SUM(D25:F25) -> 28700374.42 | H25: 0 | I25: 0
B26: 2017-07-15 | C26: =-$F$15 -> -112791.1799 | D26: =D25+C26 -> 36882715.82 | E26: =$F$15*$E$18 -> 25290.03835 | F26: =F25+E26 -> -8269842.541 | G26: =G25+C26+E26 -> 28612873.28 | H26: =$F$16 -> -2030.241238 | I26: =$F$17 -> -23259.79711
B27: 2017-08-15 | C27: -112791.1799 | D27: 36769924.64 | E27: 25290.03835 | F27: -8244552.503 | G27: 28525372.14 | H27: -2030.241238 | I27: -23259.79711
B28: 2017-09-15 | C28: -112791.1799 | D28: 36657133.46 | E28: 25290.03835 | F28: -8219262.464 | G28: 28437871 | H28: -2030.241238 | I28: -23259.79711
B29: 2017-10-15 | C29: -112791.1799 | D29: 36544342.28 | E29: 25290.03835 | F29: -8193972.426 | G29: 28350369.85 | H29: -2030.241238 | I29: -23259.79711
B30: 2017-11-15 | C30: -112791.1799 | D30: 36431551.1 | E30: 25290.03835 | F30: -8168682.388 | G30: 28262868.71 | H30: -2030.241238 | I30: -23259.79711
B31: 2017-12-15 | C31: -112791.1799 | D31: 36318759.92 | E31: 25290.03835 | F31: -8143392.349 | G31: 28175367.57 | H31: -2030.241238 | I31: -23259.79711
B32: 2018-01-15 | C32: -112791.1799 | D32: 36205968.74 | E32: 25290.03835 | F32: -8118102.311 | G32: 28087866.43 | H32: -2030.241238 | I32: -23259.79711
B33: 2018-02-15 | C33: =-$F$15 -> -112791.1799 | D33: =D32+C33 -> 36093177.56 | E33: 25290.03835 | F33: -8092812.273 | G33: =G32+C33+E33 -> 28000365.29 | H33: -2030.241238 | I33: -23259.79711
B34: 2018-03-15 | C34: -112791.1799 | D34: 35980386.38 | E34: 25290.03835 | F34: -8067522.234 | G34: 27912864.15 | H34: -2030.241238 | I34: -23259.79711
B35: 2018-04-15 | C35: -112791.1799 | D35: 35867595.2 | E35: 25290.03835 | F35: -8042232.196 | G35: 27825363.01 | H35: -2030.241238 | I35: -23259.79711
B36: 2018-05-15 | C36: -112791.1799 | D36: 35754804.02 | E36: 25290.03835 | F36: -8016942.158 | G36: 27737861.86 | H36: -2030.241238 | I36: -23259.79711
B37: 2018-06-15 | C37: -112791.1799 | D37: 35642012.84 | E37: 25290.03835 | F37: -7991652.119 | G37: 27650360.72 | H37: -2030.241238 | I37: -23259.79711
B38: 2018-07-15 | C38: -112791.1799 | D38: 35529221.66 | E38: 25290.03835 | F38: -7966362.081 | G38: 27562859.58 | H38: -2030.241238 | I38: -23259.79711
B39: 2018-08-15 | C39: -112791.1799 | D39: 35416430.48 | E39: 25290.03835 | F39: -7941072.043 | G39: 27475358.44 | H39: -2030.241238 | I39: -23259.79711
B40: 2018-09-15 | C40: -112791.1799 | D40: 35303639.3 | E40: 25290.03835 | F40: -7915782.004 | G40: 27387857.3 | H40: -2030.241238 | I40: -23259.79711
B41: 2018-10-15 | C41: -112791.1799 | D41: 35190848.12 | E41: 25290.03835 | F41: -7890491.966 | G41: 27300356.16 | H41: -2030.241238 | I41: -23259.79711
B42: 2018-11-15 | C42: -112791.1799 | D42: 35078056.94 | E42: 25290.03835 | F42: -7865201.928 | G42: 27212855.01 | H42: -2030.241238 | I42: -23259.79711
B43: 2018-12-15 | C43: -112791.1799 | D43: 34965265.76 | E43: 25290.03835 | F43: -7839911.889 | G43: 27125353.87 | H43: -2030.241238 | I43: -23259.79711
B44: 2019-01-15 | C44: -112791.1799 | D44: 34852474.58 | E44: 25290.03835 | F44: -7814621.851 | G44: 27037852.73 | H44: -2030.241238 | I44: -23259.79711
B45: 2019-02-15 | C45: -112791.1799 | D45: 34739683.4 | E45: 25290.03835 | F45: -7789331.812 | G45: 26950351.59 | H45: -2030.241238 | I45: -23259.79711
B46: 2019-03-15 | C46: -112791.1799 | D46: 34626892.22 | E46: 25290.03835 | F46: -7764041.774 | G46: 26862850.45 | H46: -2030.241238 | I46: -23259.79711
B47: 2019-04-15 | C47: -112791.1799 | D47: 34514101.04 | E47: 25290.03835 | F47: -7738751.736 | G47: 26775349.31 | H47: -2030.241238 | I47: -23259.79711
B48: 2019-05-15 | C48: -112791.1799 | D48: 34401309.86 | E48: 25290.03835 | F48: -7713461.697 | G48: 26687848.17 | H48: -2030.241238 | I48: -23259.79711
B49: 2019-06-15 | C49: -112791.1799 | D49: 34288518.68 | E49: 25290.03835 | F49: -7688171.659 | G49: 26600347.02 | H49: -2030.241238 | I49: -23259.79711
B50: 2019-07-15 | C50: -112791.1799 | D50: 34175727.5 | E50: 25290.03835 | F50: -7662881.621 | G50: 26512845.88 | H50: -2030.241238 | I50: -23259.79711
B51: 2019-08-15 | C51: -112791.1799 | D51: 34062936.32 | E51: 25290.03835 | F51: -7637591.582 | G51: 26425344.74 | H51: -2030.241238 | I51: -23259.79711
